Workbook

Sheet How to Use
B1: यह एक्सेल प्रोग्राम इष्टदेव बजरंगबली व पाबूजी महाराज की असीम कृपा तथा गुरुदेव वासुदेवजी महाराज के आशीर्वाद और माता -पिता के शुभ आशीष से आप तक हाजिर किया जा रहा है
B4: :: निर्देश ::
B5: Video No. 01 link :- | C5: https://youtu.be/e9tzJ3zCZPk
B6: Video No. 02 link :- | C6: https://youtu.be/KZNCz_sq6iQ
B7: Video No. 03 link :- | C7: https://youtu.be/ZmZ-D7xZTpA
A8: 1 | B8: Master Sheet :- | C8: इस शीट पर आप अपने से सम्बंधित सूचना की एंट्री कर सकते है I सबसे पहले आप अपने विद्यालय का नाम तथा उसके बाद अपने डीडीओ का नाम व पद , उसके बाद अपना स्वयं का नाम व पद इनपुट करें I उसके बाद आपको किस माह से एरियर बनाना है , उस माह को सलेक्ट बटन से सलेक्ट करे तथा अगले कॉलम में किस माह तक एरियर बनाना है उसे सलेक्ट करें I मकान किराया दर , पे मेट्रिक्स लेवल और इनकम टैक्स कटवाना है तो प्रतिशत में लिखे अन्यथा शुन्य ही रहने देवे I उसके बाद वेतन का प्रकार लिखें , इसमे आप रेगुलर पे और फिक्स पे में से चयन करें I यदि आप फिक्स वेतन को सलेक्ट करते है तो फ़िक्स पे के वेतन वाला कॉलम खुल जायेगा और रेगुलर वेतन वाला कॉलम फ्रीज़ हो जायेगा I और यदि आप रेगुलर पे का आप्शन सलेक्ट करते है तो रेगुलर पे वाला आप्शन अनफ्रीज़ हो जायेगा I उसके बाद आप जिस दिनांक से वेतन बनाना चाहते है उस दिनांक को DD/MM/YYYY के फॉर्मेट में लिखें I नवीन वेतन का बेसिक पे लिखें , जिसके द्वारा एरियर की कैलकुलेशन होगी I उसके बाद यदि आप किसी पूर्व राजकीय सेवा में रहने के कारण एरियर बनाना है तो इसमे YES सलेक्ट करें I जैसे ही YES सलेक्ट करेंगे तो वेतन लिखने के लिए कॉलम अनफ्रीज़ हो जायेगा , जिसमे वेतन लिख पायेंगे I उसके बाद यदि आपके S.I. कटौती हो रही है तो S.I. कटौती को इन्द्राज करें I उसके बाद यदि आपके G.P.F. कटौती हो रही है तो पहले YES सलेक्ट करें तथा उसके बाद आप G.P.F. कटौती को इन्द्राज करें I अन्त में यदि एरियर बनाने के पीरियड में आपके वेतन में जुलाई की वेतन वृद्धि के अलावा ओर किसी प्रकार की वेतन वृद्धि हुई है तो YES सलेक्ट करे , YES सलेक्ट करते ही वेतन लिखने के लिए आप्शन शो हो जायेंगे I नियमित वेतन वृद्धि स्वतः होगी I मार्च 2020 के वेतन से कोरोना की कटौती हुई हो तो yes सेलेक्ट करे I जैसे ही yes सलेक्ट करेंगे दिनों की संख्या भरने के आप्शन शो हो जायेगा I वहा दिनों की संख्या सलेक्ट कर लेवे I
D9: Update on
C10: नोट :- आप को जो भी एन्ट्री करनी है वो सब मास्टर शीट पर ही करनी है , एरियर शीट पर कुछ नहीं करना है I यदि आपको ड्राप डाउन लिस्ट में आपका पद नहीं मिल रहा है तो मास्टर शीट पर गुरुदेव की फोटो के निचे टेबल दे रखी है , उसमे लिख लेवे , वह पद लिस्ट में ऐड हो जाएगा I | D10: 2022-06-24
A12: 2 | B12: Arrear Sheet :- | C12: यहाँ पर मास्टर शीट पर जो एंट्री की गयी है उसका आउटपुट मिलेगा I यहाँ किसी भी प्रकार की एन्ट्री नहीं होगी I जो भी संशोधन करना है तो मास्टर शीट पर करना है I यह शीट fully ऑटोमेटेड है , यहाँ पर केवल प्रिंट निकलना है , जो A4 साइज़ में पेज सेट किया हुआ है I
A14: 3 | B14: Unlock Arrear Sheet :- | C14: यह अनलॉक शीट इसलिए डाली गयी ताकि किसी भी अपवाद स्वरुप किसी कार्मिक का वेतन ड्रा (एरियर ) सही नहीं बैठ रहा है या फिर वेतन व कटोती में ज्यादा संशोधन है तो आप अनलॉक शीट काम में ले सकते है I कही पर त्रुटि रहने के समय काम ले सकते है I
B16: सूचना :- | C16: वैसे इस प्रोग्राम को तैयार करने में पूर्ण सावधानी बरती गयी है , फिर भी मानवीय त्रुटि होना संम्भव है I अतः आप अपने स्तर पर जरुर चेक कर लेवे I इस हेतु निर्माणकर्ता कतई जिम्मेदार नहीं होगा I यह आपकी सुविधा के लिए है I
C18: वैसे शीट पूरी मेहनत से तैयार की गयी है , फिर भी अगर कही पर त्रुटि रहती है तो जरुर अवगत करावे , इस हेतु जरुर संशोधित संस्करण निकाला जायेगा I
C20: धन्यवाद
C21: आपका दोस्त
C22: हीरालाल जाट , वरिष्ठ अध्यापक (एक्सेल प्रोग्रामर )

Sheet Master Sheet
D1: DATA ENTRY | J1: You tube Video Link Given Bleow
C3: Office Name :- | D3: Mahatma Gandhi Government School (English Medium) Bar, PALI | AG3: 2017-01-01
AG4: 2017-02-01
C5: डीडीओ का नाम :- | D5: USHA PALIYA | F5: डीडीओ का पद :- | G5: Principal | I5: जुलाई 2021 से पूर्व मकान किराया दर :- | K5: 8 | L5: % | N5: HRA पुराना ही लिखे नए के लिए Cell no. D29 | AG5: 2017-03-01
AG6: 2017-04-01
C7: कार्मिक का नाम :- | D7: HEERALAL JAT | F7: कार्मिक का पद :- | G7: Sr. Teacher | I7: निर्धारित पे मैट्रिक्स लेवल :- | K7: L-10 | O7: परम पूज्य गुरुदेव वासुदेवजी महाराज | AG7: 2017-05-01
AG8: 2017-06-01
B9: किस माह से एरियर बनाना है :- | D9: 2020-10-01 | F9: तथा किस माह तक एरियर बनाना है :- | G9: 2022-06-01 | I9: इन्कम टैक्स कटाना है तो % में लिखे :- | K9: 0 | L9: % | AG9: 2017-07-01
O10: Post | AG10: 2017-08-01
B11: जो पूर्व में वेतन मिला है उसका प्रकार सेलेक्ट करें :- | D11: Fix Pay | F11: फिक्स पे वेतन मिला हो तो यहाँ लिखें :- | G11: 23700 | I11: यदि नियमित वेतन मिला हो तो यहाँ लिखें :- | K11: 32800 | O11: CDEO | AG11: 2017-09-01
O12: DEEO | AG12: 2017-10-01
B13: किस तारीख से एरियर बनाना है :- (Date Format :- DD/MM/YYYY ). | D13: 2020-10-05 | F13: नया वेतन मिलने के दिनों की संख्या :- (आप सिर्फ़ चेक कर सकते है ) | G13: =IFERROR(IF('Arrear Sheet'!AU6="","",'Arrear Sheet'!AU6),"") -> 27 | I13: नवीन निर्धारित वेतन (New Basic Salary) :- | K13: 33800 | O13: ADEO | AG13: 2017-11-01
O14: ADPC | AG14: 2017-12-01
B15: वर्तमान में यदि आप पूर्व राजकीय सेवा का वेतन आहरण किया है तो सामने कॉलम में YES सेलेक्ट करे :- | G15: NO | I15: पूर्व राजकीय सेवा का वेतन (बेसिक) यहाँ लिखे :- | K15: 30500 | O15: APC | AG15: 2018-01-01
O16: CBEO | AG16: 2018-02-01
B17: यदि आपके वेतन से राज्य बीमा कटोती हो रही है तो YES सेलेक्ट करें :- | D17: NO | F17: S.I. Deduction Premium Amount :- | G17: 2100 | I17: S.I. Deduction Due Premium Amount :- | K17: 2100 | O17: ACBEO-1 | AG17: 2018-03-01
O18: ACBEO-2 | AG18: 2018-04-01
B19: यदि एरियर बनाने की अवधि के दौरान राज्य बीमा कटोती में वृद्धि हुई है तो YES सेलेक्ट करें :- | D19: NO | F19: जिस माह में S.I. Premium में बदलाव आया है , वह माह सलेक्ट करें :- | G19: 2019-03-01 | I19: परिवर्तित प्रीमियम राशि यहाँ पर लिखें :- | K19: 3000 | O19: PEEO | AG19: 2018-05-01
O20: Principal | AG20: 2018-06-01
B21: यदि कार्मिक के जीपीएफ कटौती है तो YES सेलेक्ट करें :- | D21: NO | F21: G.P.F. Deduction Premium Amount :- | G21: 3675 | I21: G.P.F. Deduction Due Premium Amount :- | K21: 3675 | O21: PEEO | AG21: 2018-07-01
O22: Principal | AG22: 2018-08-01
B23: यदि एरियर बनाने की अवधि के दौरान GPF कटोती में वृद्धि हुई है तो YES सेलेक्ट करें :- | D23: NO | F23: जिस माह में G.P.F. Ded. में वृद्धि करवाई है , वह माह सलेक्ट करें :- | G23: 2021-04-01 | I23: परिवर्तित प्रीमियम राशि यहाँ पर लिखें :- | K23: 5000 | O23: Head Master | AG23: 2018-09-01
O24: Lecturer | AG24: 2018-10-01
B25: यदि एरियर ड्रा के दौरान आपके वेतन में फिक्सेशन या एसीपी के कारण वेतन में बदलाव आया हो तो YES सेलेक्ट करें :- | D25: NO | F25: जिस माह में वेतन में बदलाव आया है , वह माह सलेक्ट करें :- | G25: 2021-04-01 | I25: परिवर्तित वेतन यहाँ पर लिखें :- | K25: 41100 | O25: Sr. Teacher | AG25: 2018-11-01
O26: Teacher L-2 | AG26: 2018-12-01
B27: यदि आपके मार्च 2020 के वेतन से कोरोना कटोती हुई है तो YES सेलेक्ट करें :- | D27: NO | F27: कितने दिनों का वेतन काटा गया है , उन दिनों की संख्या को सलेक्ट करें :- | G27: 3 | O27: Teacher L-1 | AG27: 2019-01-01
O28: Prabodhak | AG28: 2019-02-01
B29: जुलाई 2021 से मकान किराया दर :- | D29: =IFERROR(IF(K5=8,9,18),"") -> 9 | E29: % | F29: यदि GPF-2004 की कटौती हो रही है तो YES सलेक्ट करे, नहीं तो NO सलेक्ट करें (1 अप्रैल 2022 से) :- | K29: YES | O29: PTI - 1 | AG29: 2019-03-01
O30: PTI - II | AG30: 2019-04-01
I31: GPF-2004 के प्रीमियम राशि यहाँ पर लिखें :- | K31: 2100 | O31: PTI - III | AG31: 2019-05-01
O32: Librarian | AG32: 2019-06-01
O33: OA | AG33: 2019-07-01
K34: New Update Date | O34: UDC | AG34: 2019-08-01
C35: You tube Video Link | E35: This Program Is Developed By : | K35: 2022-06-24 | O35: LDC | AG35: 2019-09-01
C36: https://youtu.be/e9tzJ3zCZPk | E36: Heeralal Jat | O36: Lab Tec. | AG36: 2019-10-01
C37: https://youtu.be/KZNCz_sq6iQ | E37: Senior Teacher | K37: https://youtu.be/ZmZ-D7xZTpA | O37: Peon | AG37: 2019-11-01
C38: You tube Channal Link | E38: Mahatma Gandhi Government School Bar , PALI | AG38: 2019-12-01
C39: https://youtube.com/c/Heeralaljat | E39: V./P. :- Chandawal Nagar, Teh. - Sojat (Pali) | AG39: 2020-01-01
E40: heeralaljatchandawal@gmail.com | AG40: 2020-02-01
AG41: 2020-03-01
AG42: 2020-04-01
AG43: 2020-05-01
AG44: 2020-06-01
AG45: 2020-07-01
AG46: 2020-08-01
AG47: 2020-09-01
AG48: 2020-10-01
AG49: 2020-11-01
AG50: 2020-12-01
AG51: 2021-01-01
AG52: 2021-02-01
AG53: 2021-03-01
AG54: 2021-04-01
AG55: 2021-05-01
AG56: 2021-06-01
AG57: 2021-07-01
AG58: 2021-08-01
AG59: 2021-09-01
AG60: 2021-10-01
AG61: 2021-11-01
AG62: 2021-12-01
AG63: 2022-01-01
AG64: 2022-02-01
AG65: 2022-03-01
AG66: 2022-04-01
AG67: 2022-05-01
AG68: 2022-06-01
AG69: 2022-07-01
AG70: 2022-08-01
AG71: 2022-09-01
AG72: 2022-10-01
AG73: 2022-11-01
AG74: 2022-12-01
AG75: 2023-01-01
AG76: 2023-02-01
AG77: 2023-03-01
AG78: 2023-04-01
AG79: 2023-05-01
AG80: 2023-06-01

Sheet Arrear Sheet
C1: =IF('Master Sheet'!D3="","",CONCATENATE("Office ",'Master Sheet'!D3,)) -> Office Mahatma Gandhi Government School (English Medium) Bar, PALI | AL1: 2022-03-01 | AO1: 2020-03-01 | AS1: ='Master Sheet'!K31 -> 2100
C2: Difference Arrear Sheet | AL2: NPS | AO2: ='Master Sheet'!D27 -> NO | AP2: ='Master Sheet'!G27 -> 3 | AQ2: =IFERROR(IF(AP4="",0,MONTH(AP4)),"") -> 10 | AU2: =IF(AO4=AO3,29,IF(AQ2=1,31,IF(AQ2=2,28,IF(AQ2=3,31,IF(AQ2=4,30,IF(AQ2=5,31,IF(AQ2=6,30,IF(AQ2=7,31,IF(AQ2=8,31,IF(AQ2=9,30,IF(AQ2=10,31,IF(AQ2=11,30,IF(AQ2=12,31,0))))))))))))) -> 31 | AW2: 2017-07-01 | AX2: 2023-07-01
C3: Name Of Employee : | F3: =IFERROR(UPPER('Master Sheet'!D7),"") -> HEERALAL JAT | M3: Post : | O3: =IFERROR(UPPER('Master Sheet'!G7),"") -> SR. TEACHER | T3: Pay Matrix Level : | W3: =IFERROR(CONCATENATE("L - ",'Master Sheet'!K7),"") -> L - 10 | Z3: GPF / NPS :- | AC3: =IF($AO$18=$AO$20,"GPF","NPS") -> NPS | AM3: =MONTH(AQ10) -> 11 | AO3: ='Master Sheet'!D9 -> 2020-10-01 | AQ3: =IFERROR(IF(AO6="",0,MONTH(AO6)),"") -> 10 | AU3: =IF(AO4=AO3,29,IF(AQ2=1,31,IF(AQ2=2,28,IF(AQ2=3,31,IF(AQ2=4,30,IF(AQ2=5,31,IF(AQ2=6,30,IF(AQ2=7,31,IF(AQ2=8,31,IF(AQ2=9,30,IF(AQ2=10,31,IF(AQ2=11,30,IF(AQ2=12,31,0))))))))))))) -> 31 | AW3: 2018-07-01
H4: Arrear From Date : | N4: =IFERROR('Master Sheet'!D9,"") -> 2020-10-01 | Q4: to | R4: =IFERROR('Master Sheet'!G9,"") -> 2022-06-01 | U4: Posting Place : | X4: ='Master Sheet'!D3 -> Mahatma Gandhi Government School (English Medium) Bar, PALI | AL4: =IF(AC3="GPF"," GPF","GPF-2004") -> GPF-2004 | AM4: =MONTH(AP6) -> 6 | AO4: 2020-02-01 | AP4: ='Master Sheet'!D13 -> 2020-10-05 | AQ4: =IFERROR(IF(AP4="",0,DAY(AP4)-1),"") -> 4 | AU4: =IFERROR(SUM(AU3-AQ4),"") -> 27 | AW4: 2019-07-01
AW5: 2020-07-01
B6: Sr. No. | C6: Month | D6: Pay Due | H6: Pay Drawn | L6: Pay Difference | P6: =IF($AO$18=$AO$20,"GPF","NPS/GPF-2004") -> NPS/GPF-2004 | S6: SI | V6: Corona relief fund | Y6: =CONCATENATE("GPF In ",AL4) -> GPF In GPF-2004 | Z6: Income Tax | AA6: Total Deduction | AB6: Net Payment | AC6: Bill No./Date | AD6: Encashment Date | AM6: 2020-09-01 | AN6: 2020-10-01 | AO6: =IF('Master Sheet'!D9="","",'Master Sheet'!D9) -> 2020-10-01 | AP6: =IF('Master Sheet'!G9="","",'Master Sheet'!G9) -> 2022-06-01 | AQ6: =IFERROR(IF(AP4="",0,DAY(AP4)-1),"") -> 4 | AU6: =IFERROR(SUM(AU2-AQ4),"") -> 27 | AW6: 2021-07-01
D7: Pay | E7: DA | F7: HRA | G7: Total | H7: Pay | I7: DA | J7: HRA | K7: Total | L7: Pay | M7: DA | N7: HRA | O7: Total | P7: Due | Q7: Ded | R7: Diff. | S7: Due | T7: Ded | U7: Diff. | V7: Due | W7: Ded | X7: Diff. | AL7: =IF(AM7="NO",28,31) -> 31 | AM7: =IF('Master Sheet'!K29="","",'Master Sheet'!K29) -> YES | AO7: =IF('Master Sheet'!K9="","",'Master Sheet'!K9) -> 0 | AQ7: =IF('Master Sheet'!K5="","",'Master Sheet'!K5) -> 8 | AU7: =IF('Master Sheet'!D29="","",'Master Sheet'!D29) -> 9 | AV7: 2021-07-01 | AW7: 2022-07-01 | BI7: =ROUND(ROUND(M8*3%,0)*10%,0) -> 15
A8: =IF(LEN(C8)>=2,1,0) -> 1 | B8: =IFERROR(IF(A8="","",IF(A8=0,"",A8)),"") -> 1 | C8: =IFERROR(IF(AT9="","",AT9),"") -> 2020-10-01 | D8: =IFERROR(IF(AU9="","",AU9),"") -> 29439 | E8: =IFERROR(IF(AV9="","",AV9),"") -> 5005 | F8: =IFERROR(IF(OR(C8=$AM$16,C8=$AM$17,C8=$AM$18,C8=$AM$19,C8=$AM$20,C8=$AM$21,C8=$AM$22,C8=$AM$23,C8=$AM$24),0,IF(AW9="","",AW9)),"") -> 2355 | G8: =IF(C8="","",SUM(D8:F8)) -> 36799 | H8: =IFERROR(IF(AY9="","",AY9),"") -> 20642 | I8: =IFERROR(IF(AZ9="","",AZ9),"") -> 0 | J8: =IFERROR(IF(OR(C8=$AM$16,C8=$AM$17,C8=$AM$18,C8=$AM$19,C8=$AM$20,C8=$AM$21,C8=$AM$22,C8=$AM$23,C8=$AM$24),0,IF(BA9="","",BA9)),"") -> 0 | K8: =IF(C8="","",SUM(H8:J8)) -> 20642 | L8: =IFERROR(IF(C8="","",IF(D8="","",IF(H8="","",SUM(D8-H8)))),"") -> 8797 | M8: =IFERROR(IF(C8="","",IF(E8="","",IF(I8="","",SUM(E8-I8)))),"") -> 5005 | N8: =IFERROR(IF(C8="","",IF(F8="","",IF(J8="","",SUM(F8-J8)))),"") -> 2355 | O8: =IFERROR(IF(C8="","",IF(G8="","",IF(K8="","",SUM(G8-K8)))),"") -> 16157 | P8: =IFERROR(IF(C8="","",IF(AND(C8>$AL$1,$AC$3=$AL$2),BO9,IF($AO$18=$AO$20,SUM(BB9+BJ9),ROUND((D8+E8)*10%,0)))),"") -> 3444 | Q8: =IFERROR(IF(C8="","",IF(H8="","",IF(I8="","",IF(AND(C8>$AL$1,$AC$3=$AL$2),BO9,IF($AO$18=$AO$20,$AO$21,ROUND((H8+I8)*10%,0)))))),"") -> 2064 | R8: =IFERROR(IF(C8="","",SUM(P8-Q8)),"") -> 1380 | S8: =IFERROR(IF(C8="","",IF($AO$16=$AO$17,0,IF($AO$19=$AO$20,$AO$25,0))),"") -> 0 | T8: =IFERROR(IF(C8="","",IF($AO$16=$AO$17,0,IF($AO$19=$AO$20,$AO$24,0))),"") -> 0 | U8: =IFERROR(IF(C8="","",SUM(S8-T8)),"") -> 0 | V8: =IF(C8="","",IF(AND($AO$2=$AO$20,C8=$AO$1),ROUND(D8/31*$AP$2,0),IF(C8=$AM$6,ROUND((G8)*1/30,0),IF(C8=$AN$6,ROUND((G8)*1/31,0),"")))) -> 1187 | W8: =IF(C8="","",IF(AND($AO$2=$AO$20,C8=$AO$1),ROUND(H8/31*$AP$2,0),IF(C8=$AM$6,ROUND((K8)*1/30,0),IF(C8=$AN$6,ROUND((K8)*1/31,0),"")))) -> 666 | X8: =IFERROR(IF(C8="","",SUM(V8-W8)),"") -> 521 | Y8: =IFERROR(IF(BG9="","",IF(AND($P$6="NPS",BG9="YES"),SUM(BH9+BO9),"")),"") ->  | Z8: =IFERROR(IF(C8="","",ROUND(O8*$AO$7%,0)),"") -> 0 | AA8: =IFERROR(IF(C8="","",IF($AC$3="GPF",SUM(R8,U8,X8,Y8,Z8),SUM(U8,X8,Y8,Z8))),"") -> 521 | AB8: =IFERROR(IF(C8="","",SUM(O8-AA8)),"") -> 15636 | BJ8: GPF
A9: =IF(C9="TOTAL","",IF(LEN(C9)>=2,B8+1,0)) -> 2 | B9: =IFERROR(IF(A9="","",IF(A9=0,"",A9)),"") -> 2 | C9: =IFERROR(IF(AT10="","",AT10),"") -> 2020-11-01 | D9: =IFERROR(IF($C9="TOTAL",SUM($D$8:D8),IF(AU10="","",AU10)),"") -> 33800 | E9: =IFERROR(IF($C9="TOTAL",SUM($E$8:E8),IF(AV10="","",AV10)),"") -> 5746 | F9: =IFERROR(IF($C9="TOTAL",SUM($F$8:F8),IF(OR(C9=$AM$16,C9=$AM$17,C9=$AM$18,C9=$AM$19,C9=$AM$20,C9=$AM$21,C9=$AM$22,C9=$AM$23,C9=$AM$24),0,IF(AW10="","",AW10))),"") -> 2704 | G9: =IF(C9="","",SUM(D9:F9)) -> 42250 | H9: =IFERROR(IF($C9="TOTAL",SUM($H$8:H8),IF(AY10="","",AY10)),"") -> 23700 | I9: =IFERROR(IF($C9="TOTAL",SUM($I$8:I8),IF(AZ10="","",AZ10)),"") -> 0 | J9: =IFERROR(IF($C9="TOTAL",SUM($J$8:J8),IF(OR(C9=$AM$16,C9=$AM$17,C9=$AM$18,C9=$AM$19,C9=$AM$20,C9=$AM$21,C9=$AM$22,C9=$AM$23,C9=$AM$24),0,IF(BA10="","",BA10))),"") -> 0 | K9: =IF(C9="","",SUM(H9:J9)) -> 23700 | L9: =IFERROR(IF(C9="","",IF(D9="","",IF(H9="","",IF($C9="TOTAL",SUM($L$8:L8),SUM(D9-H9))))),"") -> 10100 | M9: =IFERROR(IF(C9="","",IF(E9="","",IF(I9="","",IF($C9="TOTAL",SUM($M$8:M8),SUM(E9-I9))))),"") -> 5746 | N9: =IFERROR(IF(C9="","",IF(F9="","",IF(J9="","",IF($C9="TOTAL",SUM($N$8:N8),SUM(F9-J9))))),"") -> 2704 | O9: =IFERROR(IF(C9="","",IF(G9="","",IF(K9="","",SUM(G9-K9)))),"") -> 18550 | P9: =IFERROR(IF(C9="","",IF(AND(C9>$AL$1,$AC$3=$AL$2),BO10,IF($AO$18=$AO$20,SUM(BB10+BJ10),ROUND((D9+E9)*10%,0)))),"") -> 3955 | Q9: =IFERROR(IF(C9="","",IF(H9="","",IF(I9="","",IF(AND(C9>$AL$1,$AC$3=$AL$2),BO10,IF($AO$18=$AO$20,$AO$21,ROUND((H9+I9)*10%,0)))))),"") -> 2370 | R9: 1585 | S9: =IFERROR(IF(C9="","",IF($AO$16=$AO$17,0,IF($C9="TOTAL",SUM($S$8:S8),IF($AO$19=$AO$31,0,IF(AND($AO$32=$AO$20,C9=$AO$33),$AO$34,S8))))),"") -> 0 | T9: =IFERROR(IF(C9="","",IF($AO$16=$AO$17,0,IF($C9="TOTAL",SUM($T$8:T8),IF($AO$19=$AO$20,$AO$24,0)))),"") -> 0 | U9: =IFERROR(IF(C9="","",SUM(S9-T9)),"") -> 0 | V9: =IF(C9="","",IF($C9="TOTAL",SUM($V$8:V8),IF(AND($AO$2=$AO$20,C9=$AO$1),ROUND(D9/31*$AP$2,0),IF(C9=$AM$6,ROUND((G9)*1/30,0),IF(C9=$AN$6,ROUND((G9)*1/31,0),""))))) ->  | W9: =IF(C9="","",IF($C9="TOTAL",SUM($W$8:W8),IF(AND($AO$2=$AO$20,C9=$AO$1),ROUND(H9/31*$AP$2,0),IF(C9=$AM$6,ROUND((K9)*1/30,0),IF(C9=$AN$6,ROUND((K9)*1/31,0),""))))) ->  | X9: =IFERROR(IF(C9="","",SUM(V9-W9)),"") ->  | Y9: =IFERROR(IF(C9="","",IF(AND(BH10="",BO10=""),"",IF($C9="TOTAL",SUM($Y$8:Y8),BH10))),"") ->  | Z9: =IFERROR(IF(C9="","",IF($C9="TOTAL",SUM($Z$8:Z8),ROUND(O9*$AO$7%,0))),"") -> 0 | AA9: =IFERROR(IF(C9="","",IF($C9="TOTAL",SUM($AA$8:AA8),IF($AC$3=$AL$2,SUM(U9,X9,Y9,Z9),SUM(R9,U9,X9,Y9,Z9)))),"") -> 0 | AB9: =IFERROR(IF(C9="","",IF($C9="TOTAL",SUM($AB$8:AB8),SUM(O9-AA9))),"") -> 18550 | AK9: =IF(OR(AT9=$AN$9,AT9=$AN$10,AT9=$AN$11,AT9=$AN$12,AT9=$AN$13,AT9=$AN$14),4,IF(OR(AT9=$AN$15,AT9=$AN$16,AT9=$AN$17,AT9=$AN$18,AT9=$AN$19,AT9=$AN$20),5,IF(OR(AT9=$AN$21,AT9=$AN$22,AT9=$AN$23,AT9=$AN$24,AT9=$AN$25,AT9=$AN$26),7,IF(OR(AT9=$AN$27,AT9=$AN$28,AT9=$AN$29,AT9=$AN$30,AT9=$AN$31,AT9=$AN$32),9,IF(OR(AT9=$AN$33,AT9=$AN$34,AT9=$AN$35,AT9=$AN$36,AT9=$AN$37,AT9=$AN$38),12,IF(OR(AT9=$AN$39,AT9=$AN$40,AT9=$AN$41,AT9=$AN$42,AT9=$AN$43,AT9=$AN$44,AT9=$AN$45,AT9=$AN$46,AT9=$AN$47,AT9=$AN$48,AT9=$AN$49,AT9=$AN$50,AT9=$AN$51,AT9=$AN$52,AT9=$AN$53,AT9=$AN$54,AT9=$AN$55,AT9=$AN$56,AT9=$AN$57,AT9=$AN$58,AT9=$AN$59,AT9=$AN$60,AT9=$AN$61,AT9=$AN$62),17,IF(OR(AT9=$AN$63,AT9=$AN$64,AT9=$AN$65,AT9=$AN$66,AT9=$AN$67,AT9=$AN$68),31,34))))))) -> 17 | AL9: =IF(OR(AT9=$AN$9,AT9=$AN$10,AT9=$AN$11,AT9=$AN$12,AT9=$AN$13,AT9=$AN$14),4,IF(OR(AT9=$AN$15,AT9=$AN$16,AT9=$AN$17,AT9=$AN$18,AT9=$AN$19,AT9=$AN$20),5,IF(OR(AT9=$AN$21,AT9=$AN$22,AT9=$AN$23,AT9=$AN$24,AT9=$AN$25,AT9=$AN$26),7,IF(OR(AT9=$AN$27,AT9=$AN$28,AT9=$AN$29,AT9=$AN$30,AT9=$AN$31,AT9=$AN$32),9,IF(OR(AT9=$AN$33,AT9=$AN$34,AT9=$AN$35,AT9=$AN$36,AT9=$AN$37,AT9=$AN$38),12,IF(OR(AT9=$AN$39,AT9=$AN$40,AT9=$AN$41,AT9=$AN$42,AT9=$AN$43,AT9=$AN$44,AT9=$AN$45,AT9=$AN$46,AT9=$AN$47,AT9=$AN$48,AT9=$AN$49,AT9=$AN$50,AT9=$AN$51,AT9=$AN$52,AT9=$AN$53,AT9=$AN$54,AT9=$AN$55,AT9=$AN$56,AT9=$AN$57,AT9=$AN$58,AT9=$AN$59,AT9=$AN$60,AT9=$AN$61,AT9=$AN$62),17,IF(OR(AT9=$AN$63,AT9=$AN$64,AT9=$AN$65,AT9=$AN$66,AT9=$AN$67,AT9=$AN$68),31,34))))))) -> 17 | AN9: 2017-01-01 | AO9: ='Master Sheet'!K13 -> 33800 | AP9: =IF(AND($AO$6>$AP$6),"",DATE(YEAR(AO6),MONTH(AO6),DAY(AO6))) -> 2020-10-01 | AQ9: =IF(AND(AP9=""),"",IF(AND(AP9=$AN$9),$AN$9,IF(AND(AP9=$AN$10),$AN$10,IF(AND(AP9=$AN$11),$AN$11,IF(AND(AP9=$AN$12),$AN$12,IF(AND(AP9=$AN$13),$AN$13,IF(AND(AP9=$AN$14),$AN$14,IF(AND(AP9=$AN$15),$AN$15,IF(AND(AP9=$AN$16),$AN$16,IF(AND(AP9=$AN$17),$AN$17,IF(AND(AP9=$AN$18),$AN$18,IF(AND(AP9=$AN$19),$AN$19,IF(AND(AP9=$AN$20),$AN$20,IF(AND(AP9=$AN$21),$AN$21,IF(AND(AP9=$AN$22),$AN$22,IF(AND(AP9=$AN$23),$AN$23,IF(AND(AP9=$AN$24),$AN$24,IF(AND(AP9=$AN$25),$AN$25,IF(AND(AP9=$AN$26),$AN$26,IF(AND(AP9=$AN$27),$AN$27,IF(AND(AP9=$AN$28),$AN$28,IF(AND(AP9=$AN$29),$AN$29,IF(AND(AP9=$AN$30),$AN$30,IF(AND(AP9=$AN$31),$AN$31,IF(AND(AP9=$AN$32),$AN$32,IF(AND(AP9=$AN$33),$AN$33,IF(AND(AP9=$AN$34),$AN$34,IF(AND(AP9=$AN$35),$AN$35,IF(AND(AP9=$AN$36),$AN$36,IF(AND(AP9=$AN$37),$AN$37,IF(AND(AP9=$AN$38),$AN$38,IF(AND(AP9=$AN$39),$AN$39,IF(AND(AP9=$AN$40),$AN$40,IF(AND(AP9=$AN$41),$AN$41,IF(AND(AP9=$AN$42),$AN$42,IF(AND(AP9=$AN$43),$AN$43,IF(AND(AP9=$AN$44),$AN$44,IF(AND(AP9=$AN$45),$AN$45,IF(AND(AP9=$AN$46),$AN$46,IF(AND(AP9=$AN$47),$AN$47,IF(AND(AP9=$AN$48),$AN$48,IF(AND(AP9=$AN$49),$AN$49,IF(AND(AP9=$AN$50),$AN$50,IF(AND(AP9=$AN$51),$AN$51,IF(AND(AP9=$AN$52),$AN$52,IF(AND(AP9=$AN$53),$AN$53,IF(AND(AP9=$AN$54),$AN$54,IF(AND(AP9=$AN$55),$AN$55,IF(AND(AP9=$AN$56),$AN$56,IF(AND(AP9=$AN$57),$AN$57,IF(AND(AP9=$AN$58),$AN$58,IF(AND(AP9=$AN$59),$AN$59,IF(AND(AP9=$AN$60),$AN$60,IF(AND(AP9=$AN$61),$AN$61,IF(AND(AP9=$AN$62),$AN$62,IF(AND(AP9=$AN$63),$AN$63,IF(AND(AP9=$AN$64),$AN$64,IF(AND(AP9=$AN$65),$AN$65,IF(AND(AP9=$AN$66),$AN$66,IF(AND(AP9=$AN$67),$AN$67,IF(AND(AP9=$AN$68),$AN$68,IF(AND(AP9=$AN$69),$AN$69,IF(AND(AP9=$AN$70),$AN$70,IF(AND(AP9=$AN$71),$AN$71,"")))))))))))))))))))))))))))))))))))))))))))))))))))))))))))))))) -> 2020-10-01 | AR9: =IF(AND(AP9=""),"",IF(AND(AP9=$AN$72),$AP$72,IF(AND(AP9=$AN$73),$AN$73,IF(AND(AP9=$AN$74),$AN$74,IF(AND(AP9=$AN$75),$AN$75,IF(AND(AP9=$AN$76),$AN$76,IF(AND(AP9=$AN$77),$AN$77,IF(AND(AP9=$AN$78),$AN$78,IF(AND(AP9=$AN$79),$AN$79,IF(AND(AP9=$AN$80),$AN$80,IF(AND(AP9=$AN$81),$AN$81,IF(AND(AP9=$AN$82),$AN$82,IF(AND(AP9=$AN$83),$AN$83,IF(AND(AP9=$AN$84),$AN$84,IF(AND(AP9=$AN$85),$AN$85,IF(AND(AP9=$AN$86),$AN$86,IF(AND(AP9=$AN$87),$AN$87,IF(AND(AP9=$AN$88),$AN$88,IF(AND(AP9=$AN$89),$AN$89,IF(AND(AP9=$AN$90),$AN$90,IF(AND(AP9=$AN$91),$AN$91,""))))))))))))))))))))) ->  | AS9: =IFERROR(IF(AND(AQ9="",AR9=""),"",IF(AQ9="",AR9,AQ9)),"") -> 2020-10-01 | AT9: =IFERROR(IF(AND(AQ9="",AS9=""),"",IF(AS9>$AP$6,"",AS9)),"") -> 2020-10-01 | AU9: =IF(AT9="","",ROUND((AO9/AU3)*AU6,0)) -> 29439 | AV9: =IF(AT9="","",IF(AT9="TOTAL","",ROUND(AU9*AK9%,0))) -> 5005 | AW9: =IF(AT9="","",IF(AT9="TOTAL","",IF(AT9>=$AV$7,ROUND(AU9*$AU$7%,0),ROUND(AU9*$AQ$7%,0)))) -> 2355 | AY9: =IF(AT9="","",IF(AND($AO$10="",$AO$14=""),"",IF(AO26=AO20,ROUND((AO27/AU3)*AU6,0),IF($AO$13=$AO$15,ROUND(($AO$14/AU3)*AU6,0),ROUND(($AO$10/AU3)*AU6,0))))) -> 20642 | AZ9: =IF(AT9="","",IF(AY9="","",IF($AO$16=$AO$17,0,ROUND(AY9*AL9%,0)))) -> 0 | BA9: =IF(AT9="","",IF(AY9="","",IF($AO$16=$AO$17,0,IF(AT9>=$AV$7,ROUND(AY9*$AU$7%,0),ROUND(AY9*$AQ$7%,0))))) -> 0 | BB9: =IF(AT9="","",IF(AT9="TOTAL","",IF(AY9="","",IF($AO$16=$AO$17,0,IF(OR(C8=$AM$16,C8=$AM$17,C8=$AM$18,C8=$AM$19,C8=$AM$20,C8=$AM$21,C8=$AM$22,C8=$AM$23,C8=$AM$24),SUM(BE9+$AO$22),$AO$22))))) -> 0 | BE9: =IF(AT9="","",IF(AT9="TOTAL","",IF(AY9="","",SUM(O8)-SUM(($AO$22-$AO$21)+SUM(U8,X8,Z8))))) -> 15636 | BF9: =IF(AT9="","",IF(AT9="TOTAL","",IF(AND($AO$20=$AO$36,C9=$AO$37),$AO$38,$AO$22))) -> 3675 | BG9: =IF(OR(AT9=$AN$63,AT9=$AN$64,AT9=$AN$65),"YES","") ->  | BH9: =IF(BG9="","",IF($AO$16=$AO$17,ROUND((D8)*3%,0),IF(OR(AT9=$AN$63,AT9=$AN$64,AT9=$AN$65),SUM(ROUND((D8-H8)*3%,0)),IF(OR(AT9=$AN$69,AT9=$AN$70,AT9=$AN$71),SUM(ROUND((D8-H8)*3%,0)),"")))) ->  | BI9: =IFERROR(IF(AND($AO$16=$AO$17,BG9="YES"),ROUND(ROUND(D8*3%,0)*10%,0),IF(AND($AO$16=$AO$15,BG9="YES",$AM$7="NO"),ROUND(ROUND((L8+H8)*3%,0)*10%,0),IF(AND($AO$16=$AO$15,BG9="YES",$AM$7="YES"),ROUND(ROUND((L8+M8)*3%,0)*10%,0),0))),"") -> 0 | BJ9: =IF(AND($AO$16=$AO$17,BG9="YES"),ROUND(D8*3%,0),IF(AND($AO$16=$AO$15,BG9="YES",$AM$7="NO"),ROUND((L8+H8)*3%,0),IF(AND($AO$16=$AO$15,BG9="YES",$AM$7="YES"),ROUND((L8+M8)*3%,0),0))) -> 0 | BK9: =IF(AND($AO$16=$AO$17,BG9="YES"),ROUND(ROUND(D8*3%,0)*10%,0),IF(AND($AO$16=$AO$15,BG9="YES",$AM$7="NO"),ROUND(ROUND((L8+H8)*3%,0)*10%,0),IF(AND($AO$16=$AO$15,BG9="YES",$AM$7="YES"),ROUND(ROUND((L8+M8)*3%,0)*10%,0),""))) ->  | BO9: =IF(AND(AT9>$AL$1,$AC$3=$AL$2),$AS$1,"") -> 
A10: =IF(C10="TOTAL","",IF(B9="","",IF(LEN(C10)>=2,B9+1,0))) -> 3 | B10: 3 | C10: 2020-12-01 | D10: =IFERROR(IF($C9="TOTAL","अक्षरें राशि :-",IF($C10="TOTAL",SUM($D$8:D9),IF(AU11="","",AU11))),"") -> 33800 | E10: =IFERROR(IF($C10="TOTAL",SUM($E$8:E9),IF(AV11="","",AV11)),"") -> 5746 | F10: =IFERROR(IF($C10="TOTAL",SUM($F$8:F9),IF(OR(C10=$AM$16,C10=$AM$17,C10=$AM$18,C10=$AM$19,C10=$AM$20,C10=$AM$21,C10=$AM$22,C10=$AM$23,C10=$AM$24),0,IF(AW11="","",AW11))),"") -> 2704 | G10: =IF(C10="","",SUM(D10:F10)) -> 42250 | H10: =IFERROR(IF($C10="TOTAL",SUM($H$8:H9),IF(AY11="","",AY11)),"") -> 23700 | I10: =IFERROR(IF($C10="TOTAL",SUM($I$8:I9),IF(AZ11="","",AZ11)),"") -> 0 | J10: =IFERROR(IF($C10="TOTAL",SUM($J$8:J9),IF(OR(C10=$AM$16,C10=$AM$17,C10=$AM$18,C10=$AM$19,C10=$AM$20,C10=$AM$21,C10=$AM$22,C10=$AM$23,C10=$AM$24),0,IF(BA11="","",BA11))),"") -> 0 | K10: =IF(C10="","",SUM(H10:J10)) -> 23700 | L10: =IFERROR(IF(C10="","",IF(D10="","",IF(H10="","",IF($C10="TOTAL",SUM($L$8:L9),SUM(D10-H10))))),"") -> 10100 | M10: =IFERROR(IF(C10="","",IF(E10="","",IF(I10="","",IF($C10="TOTAL",SUM($M$8:M9),SUM(E10-I10))))),"") -> 5746 | N10: =IFERROR(IF(C10="","",IF(F10="","",IF(J10="","",IF($C10="TOTAL",SUM($N$8:N9),SUM(F10-J10))))),"") -> 2704 | O10: =IFERROR(IF(C10="","",IF(G10="","",IF(K10="","",SUM(G10-K10)))),"") -> 18550 | P10: =IFERROR(IF(C10="","",IF($C10="TOTAL",SUM($P$8:P9),IF(AND(C10>$AL$1,$AC$3=$AL$2),BO11,IF($AO$18=$AO$20,SUM(BB11+BJ11),ROUND((D10+E10)*10%,0))))),"") -> 3955 | Q10: =IFERROR(IF(C10="","",IF(H10="","",IF(I10="","",IF($C10="TOTAL",SUM($Q$8:Q9),IF(AND(C10>$AL$1,$AC$3=$AL$2),BO11,IF($AO$18=$AO$20,$AO$21,ROUND((H10+I10)*10%,0))))))),"") -> 2370 | R10: =IFERROR(IF(C10="","",SUM(P10-Q10)),"") -> 1585 | S10: =IFERROR(IF(C10="","",IF($AO$16=$AO$17,0,IF($C10="TOTAL",SUM($S$8:S9),IF($AO$19=$AO$31,0,IF(AND($AO$32=$AO$20,C10=$AO$33),$AO$34,S9))))),"") -> 0 | T10: =IFERROR(IF(C10="","",IF($AO$16=$AO$17,0,IF($C10="TOTAL",SUM($T$8:T9),IF($AO$19=$AO$20,$AO$24,0)))),"") -> 0 | U10: =IFERROR(IF(C10="","",SUM(S10-T10)),"") -> 0 | V10: =IF(C10="","",IF($C10="TOTAL",SUM($V$8:V9),IF(AND($AO$2=$AO$20,C10=$AO$1),ROUND(D10/31*$AP$2,0),IF(C10=$AM$6,ROUND((G10)*1/30,0),IF(C10=$AN$6,ROUND((G10)*1/31,0),""))))) ->  | W10: =IF(C10="","",IF($C10="TOTAL",SUM($W$8:W9),IF(AND($AO$2=$AO$20,C10=$AO$1),ROUND(H10/31*$AP$2,0),IF(C10=$AM$6,ROUND((K10)*1/30,0),IF(C10=$AN$6,ROUND((K10)*1/31,0),""))))) ->  | X10: =IFERROR(IF(C10="","",SUM(V10-W10)),"") ->  | Y10: =IFERROR(IF(C10="","",IF(AND(BH11="",BO11=""),"",IF($C10="TOTAL",SUM($Y$8:Y9),BH11))),"") ->  | Z10: =IFERROR(IF(C10="","",IF($C10="TOTAL",SUM($Z$8:Z9),ROUND(O10*$AO$7%,0))),"") -> 0 | AA10: =IFERROR(IF(C10="","",IF($C10="TOTAL",SUM($AA$8:AA9),IF($AC$3=$AL$2,SUM(U10,X10,Y10,Z10),SUM(R10,U10,X10,Y10,Z10)))),"") -> 0 | AB10: =IFERROR(IF(C10="","",IF($C10="TOTAL",SUM($AB$8:AB9),SUM(O10-AA10))),"") -> 18550 | AK10: =IF(OR(AT10=$AN$9,AT10=$AN$10,AT10=$AN$11,AT10=$AN$12,AT10=$AN$13,AT10=$AN$14),4,IF(OR(AT10=$AN$15,AT10=$AN$16,AT10=$AN$17,AT10=$AN$18,AT10=$AN$19,AT10=$AN$20),5,IF(OR(AT10=$AN$21,AT10=$AN$22,AT10=$AN$23,AT10=$AN$24,AT10=$AN$25,AT10=$AN$26),7,IF(OR(AT10=$AN$27,AT10=$AN$28,AT10=$AN$29,AT10=$AN$30,AT10=$AN$31,AT10=$AN$32),9,IF(OR(AT10=$AN$33,AT10=$AN$34,AT10=$AN$35,AT10=$AN$36,AT10=$AN$37,AT10=$AN$38),12,IF(OR(AT10=$AN$39,AT10=$AN$40,AT10=$AN$41,AT10=$AN$42,AT10=$AN$43,AT10=$AN$44,AT10=$AN$45,AT10=$AN$46,AT10=$AN$47,AT10=$AN$48,AT10=$AN$49,AT10=$AN$50,AT10=$AN$51,AT10=$AN$52,AT10=$AN$53,AT10=$AN$54,AT10=$AN$55,AT10=$AN$56,AT10=$AN$57,AT10=$AN$58,AT10=$AN$59,AT10=$AN$60,AT10=$AN$61,AT10=$AN$62),17,IF(OR(AT10=$AN$63,AT10=$AN$64,AT10=$AN$65,AT10=$AN$66,AT10=$AN$67,AT10=$AN$68),31,34))))))) -> 17 | AL10: =IF(OR(AT10=$AN$9,AT10=$AN$10,AT10=$AN$11,AT10=$AN$12,AT10=$AN$13,AT10=$AN$14),4,IF(OR(AT10=$AN$15,AT10=$AN$16,AT10=$AN$17,AT10=$AN$18,AT10=$AN$19,AT10=$AN$20),5,IF(OR(AT10=$AN$21,AT10=$AN$22,AT10=$AN$23,AT10=$AN$24,AT10=$AN$25,AT10=$AN$26),7,IF(OR(AT10=$AN$27,AT10=$AN$28,AT10=$AN$29,AT10=$AN$30,AT10=$AN$31,AT10=$AN$32),9,IF(OR(AT10=$AN$33,AT10=$AN$34,AT10=$AN$35,AT10=$AN$36,AT10=$AN$37,AT10=$AN$38),12,IF(OR(AT10=$AN$39,AT10=$AN$40,AT10=$AN$41,AT10=$AN$42,AT10=$AN$43,AT10=$AN$44,AT10=$AN$45,AT10=$AN$46,AT10=$AN$47,AT10=$AN$48,AT10=$AN$49,AT10=$AN$50,AT10=$AN$51,AT10=$AN$52,AT10=$AN$53,AT10=$AN$54,AT10=$AN$55,AT10=$AN$56,AT10=$AN$57,AT10=$AN$58,AT10=$AN$59,AT10=$AN$60,AT10=$AN$61,AT10=$AN$62),17,IF(OR(AT10=$AN$63,AT10=$AN$64,AT10=$AN$65,AT10=$AN$66,AT10=$AN$67,AT10=$AN$68),31,34))))))) -> 17 | AN10: 2017-02-01 | AO10: ='Master Sheet'!G11 -> 23700 | AP10: =IF(AND($AO$6>$AP$6),"",DATE(YEAR(AP9),MONTH(AP9)+1,DAY(AP9))) -> 2020-11-01 | AQ10: =IF(AND(AP10=""),"",IF(AND(AP10=$AN$9),$AN$9,IF(AND(AP10=$AN$10),$AN$10,IF(AND(AP10=$AN$11),$AN$11,IF(AND(AP10=$AN$12),$AN$12,IF(AND(AP10=$AN$13),$AN$13,IF(AND(AP10=$AN$14),$AN$14,IF(AND(AP10=$AN$15),$AN$15,IF(AND(AP10=$AN$16),$AN$16,IF(AND(AP10=$AN$17),$AN$17,IF(AND(AP10=$AN$18),$AN$18,IF(AND(AP10=$AN$19),$AN$19,IF(AND(AP10=$AN$20),$AN$20,IF(AND(AP10=$AN$21),$AN$21,IF(AND(AP10=$AN$22),$AN$22,IF(AND(AP10=$AN$23),$AN$23,IF(AND(AP10=$AN$24),$AN$24,IF(AND(AP10=$AN$25),$AN$25,IF(AND(AP10=$AN$26),$AN$26,IF(AND(AP10=$AN$27),$AN$27,IF(AND(AP10=$AN$28),$AN$28,IF(AND(AP10=$AN$29),$AN$29,IF(AND(AP10=$AN$30),$AN$30,IF(AND(AP10=$AN$31),$AN$31,IF(AND(AP10=$AN$32),$AN$32,IF(AND(AP10=$AN$33),$AN$33,IF(AND(AP10=$AN$34),$AN$34,IF(AND(AP10=$AN$35),$AN$35,IF(AND(AP10=$AN$36),$AN$36,IF(AND(AP10=$AN$37),$AN$37,IF(AND(AP10=$AN$38),$AN$38,IF(AND(AP10=$AN$39),$AN$39,IF(AND(AP10=$AN$40),$AN$40,IF(AND(AP10=$AN$41),$AN$41,IF(AND(AP10=$AN$42),$AN$42,IF(AND(AP10=$AN$43),$AN$43,IF(AND(AP10=$AN$44),$AN$44,IF(AND(AP10=$AN$45),$AN$45,IF(AND(AP10=$AN$46),$AN$46,IF(AND(AP10=$AN$47),$AN$47,IF(AND(AP10=$AN$48),$AN$48,IF(AND(AP10=$AN$49),$AN$49,IF(AND(AP10=$AN$50),$AN$50,IF(AND(AP10=$AN$51),$AN$51,IF(AND(AP10=$AN$52),$AN$52,IF(AND(AP10=$AN$53),$AN$53,IF(AND(AP10=$AN$54),$AN$54,IF(AND(AP10=$AN$55),$AN$55,IF(AND(AP10=$AN$56),$AN$56,IF(AND(AP10=$AN$57),$AN$57,IF(AND(AP10=$AN$58),$AN$58,IF(AND(AP10=$AN$59),$AN$59,IF(AND(AP10=$AN$60),$AN$60,IF(AND(AP10=$AN$61),$AN$61,IF(AND(AP10=$AN$62),$AN$62,IF(AND(AP10=$AN$63),$AN$63,IF(AND(AP10=$AN$64),$AN$64,IF(AND(AP10=$AN$65),$AN$65,IF(AND(AP10=$AN$66),$AN$66,IF(AND(AP10=$AN$67),$AN$67,IF(AND(AP10=$AN$68),$AN$68,IF(AND(AP10=$AN$69),$AN$69,IF(AND(AP10=$AN$70),$AN$70,IF(AND(AP10=$AN$71),$AN$71,"")))))))))))))))))))))))))))))))))))))))))))))))))))))))))))))))) -> 2020-11-01 | AR10: =IF(AND(AP10=""),"",IF(AND(AP10=$AN$72),$AP$72,IF(AND(AP10=$AN$73),$AN$73,IF(AND(AP10=$AN$74),$AN$74,IF(AND(AP10=$AN$75),$AN$75,IF(AND(AP10=$AN$76),$AN$76,IF(AND(AP10=$AN$77),$AN$77,IF(AND(AP10=$AN$78),$AN$78,IF(AND(AP10=$AN$79),$AN$79,IF(AND(AP10=$AN$80),$AN$80,IF(AND(AP10=$AN$81),$AN$81,IF(AND(AP10=$AN$82),$AN$82,IF(AND(AP10=$AN$83),$AN$83,IF(AND(AP10=$AN$84),$AN$84,IF(AND(AP10=$AN$85),$AN$85,IF(AND(AP10=$AN$86),$AN$86,IF(AND(AP10=$AN$87),$AN$87,IF(AND(AP10=$AN$88),$AN$88,IF(AND(AP10=$AN$89),$AN$89,IF(AND(AP10=$AN$90),$AN$90,IF(AND(AP10=$AN$91),$AN$91,""))))))))))))))))))))) ->  | AS10: =IFERROR(IF(AND(AQ10="",AR10=""),"",IF(AQ10="",AR10,AQ10)),"") -> 2020-11-01 | AT10: =IFERROR(IF(AS10="","",IF(DATE(YEAR(AS10),MONTH(AS10),DAY(AS10))=DATE(YEAR($AP$6),MONTH($AP$6)+1,DAY($AP$6)),"TOTAL",IF(AS10>$AP$6,"",AS10))),"") -> 2020-11-01 | AU10: =IFERROR(IF(AT10="","",IF(AND($AO$20=$AO$28,$AO$30=AT10),$AO$29,IF(OR(AT10=$AW$2,AT10=$AW$3,AT10=$AW$4,AT10=$AW$5,AT10=$AW$6,AT10=$AW$7,AT10=$AX$2),MROUND(AO9*1.03,100),AO9))),"") -> 33800 | AV10: 5746 | AW10: 2704 | AY10: =IFERROR(IF(AT10="","",IF(AT10="TOTAL","",IF($AO$16=$AO$17,$AO$10,IF($AO$20=$AO$26,BC10,BD10)))),"") -> 23700 | AZ10: =IF(AT10="","",IF(AT10="TOTAL","",IF(AY10="","",IF($AO$16=$AO$17,0,ROUND(AY10*AL10%,0))))) -> 0 | BA10: =IF(AT10="","",IF(AT10="TOTAL","",IF(AY10="","",IF($AO$16=$AO$17,0,IF(AT10>=$AV$7,ROUND(AY10*$AU$7%,0),ROUND(AY10*$AQ$7%,0)))))) -> 0 | BB10: =IF(AT10="","",IF(AT10="TOTAL","",IF(AY10="","",IF($AO$16=$AO$17,0,IF(OR(C9=$AM$16,C9=$AM$17,C9=$AM$18,C9=$AM$19,C9=$AM$20,C9=$AM$21,C9=$AM$22,C9=$AM$23,C9=$AM$24),SUM(BE10+BF10),BF10))))) -> 0 | BC10: =IF(OR(AT10=$AW$2,AT10=$AW$3,AT10=$AW$4,AT10=$AW$5,AT10=$AW$6),MROUND(AO27*1.03,100),AO27) -> 30500 | BD10: =IF(OR(AT10=$AW$2,AT10=$AW$3,AT10=$AW$4,AT10=$AW$5,AT10=$AW$6),MROUND(AO14*1.03,100),AO14) -> 32800 | BE10: =IF(AT10="","",IF(AT10="TOTAL","",IF(AY10="","",SUM(O9)-SUM((BF10-$AO$21)+SUM(U9,X9,Z9))))) -> 18550 | BF10: =IF(AT9="","",IF(AT9="TOTAL","",IF(AND($AO$20=$AO$36,C10=$AO$37),$AO$38,BF9))) -> 3675 | BG10: =IF(OR(AT10=$AN$63,AT10=$AN$64,AT10=$AN$65),"YES","") ->  | BH10: =IF(BG10="","",IF($AO$16=$AO$17,ROUND((D9)*3%,0),IF(OR(AT10=$AN$63,AT10=$AN$64,AT10=$AN$65),SUM(ROUND((D9-H9)*3%,0)),IF(OR(AT10=$AN$69,AT10=$AN$70,AT10=$AN$71),SUM(ROUND((D9-H9)*3%,0)),"")))) ->  | BI10: =IFERROR(IF(AND($AO$16=$AO$17,BG10="YES"),ROUND(ROUND(D9*3%,0)*10%,0),IF(AND($AO$16=$AO$15,BG10="YES",$AM$7="NO"),ROUND(ROUND((L9+H9)*3%,0)*10%,0),IF(AND($AO$16=$AO$15,BG10="YES",$AM$7="YES"),ROUND(ROUND((L9+M9)*3%,0)*10%,0),0))),"") -> 0 | BJ10: =IF(AND($AO$16=$AO$17,BG10="YES"),ROUND(D9*3%,0),IF(AND($AO$16=$AO$15,BG10="YES",$AM$7="NO"),ROUND((L9+H9)*3%,0),IF(AND($AO$16=$AO$15,BG10="YES",$AM$7="YES"),ROUND((L9+M9)*3%,0),0))) -> 0 | BO10: =IF(AND(AT10>$AL$1,$AC$3=$AL$2),$AS$1,"") -> 
A11: =IF(C11="TOTAL","",IF(B10="","",IF(LEN(C11)>=2,B10+1,0))) -> 4 | B11: 4 | C11: =IFERROR(IF(AT12="","",AT12),"") -> 2021-01-01 | D11: =IFERROR(IF($C10="TOTAL","अक्षरें राशि :-",IF($C11="TOTAL",SUM($D$8:D10),IF(AU12="","",AU12))),"") -> 33800 | E11: =IFERROR(IF($C11="TOTAL",SUM($E$8:E10),IF(AV12="","",AV12)),"") -> 5746 | F11: =IFERROR(IF($C11="TOTAL",SUM($F$8:F10),IF(OR(C11=$AM$16,C11=$AM$17,C11=$AM$18,C11=$AM$19,C11=$AM$20,C11=$AM$21,C11=$AM$22,C11=$AM$23,C11=$AM$24),0,IF(AW12="","",AW12))),"") -> 2704 | G11: =IF(C11="","",SUM(D11:F11)) -> 42250 | H11: =IFERROR(IF($C11="TOTAL",SUM($H$8:H10),IF(AY12="","",AY12)),"") -> 23700 | I11: =IFERROR(IF($C11="TOTAL",SUM($I$8:I10),IF(AZ12="","",AZ12)),"") -> 0 | J11: =IFERROR(IF($C11="TOTAL",SUM($J$8:J10),IF(OR(C11=$AM$16,C11=$AM$17,C11=$AM$18,C11=$AM$19,C11=$AM$20,C11=$AM$21,C11=$AM$22,C11=$AM$23,C11=$AM$24),0,IF(BA12="","",BA12))),"") -> 0 | K11: 23700 | L11: =IFERROR(IF(C11="","",IF(D11="","",IF(H11="","",IF($C11="TOTAL",SUM($L$8:L10),SUM(D11-H11))))),"") -> 10100 | M11: =IFERROR(IF(C11="","",IF(E11="","",IF(I11="","",IF($C11="TOTAL",SUM($M$8:M10),SUM(E11-I11))))),"") -> 5746 | N11: =IFERROR(IF(C11="","",IF(F11="","",IF(J11="","",IF($C11="TOTAL",SUM($N$8:N10),SUM(F11-J11))))),"") -> 2704 | O11: 18550 | P11: =IFERROR(IF(C11="","",IF($C11="TOTAL",SUM($P$8:P10),IF(AND(C11>$AL$1,$AC$3=$AL$2),BO12,IF($AO$18=$AO$20,SUM(BB12+BJ12),ROUND((D11+E11)*10%,0))))),"") -> 3955 | Q11: =IFERROR(IF(C11="","",IF(H11="","",IF(I11="","",IF($C11="TOTAL",SUM($Q$8:Q10),IF(AND(C11>$AL$1,$AC$3=$AL$2),BO12,IF($AO$18=$AO$20,$AO$21,ROUND((H11+I11)*10%,0))))))),"") -> 2370 | R11: 1585 | S11: =IFERROR(IF(C11="","",IF($AO$16=$AO$17,0,IF($C11="TOTAL",SUM($S$8:S10),IF($AO$19=$AO$31,0,IF(AND($AO$32=$AO$20,C11=$AO$33),$AO$34,S10))))),"") -> 0 | T11: =IFERROR(IF(C11="","",IF($AO$16=$AO$17,0,IF($C11="TOTAL",SUM($T$8:T10),IF($AO$19=$AO$20,$AO$24,0)))),"") -> 0 | U11: 0 | V11: =IF(C11="","",IF($C11="TOTAL",SUM($V$8:V10),IF(AND($AO$2=$AO$20,C11=$AO$1),ROUND(D11/31*$AP$2,0),IF(C11=$AM$6,ROUND((G11)*1/30,0),IF(C11=$AN$6,ROUND((G11)*1/31,0),""))))) ->  | W11: =IF(C11="","",IF($C11="TOTAL",SUM($W$8:W10),IF(AND($AO$2=$AO$20,C11=$AO$1),ROUND(H11/31*$AP$2,0),IF(C11=$AM$6,ROUND((K11)*1/30,0),IF(C11=$AN$6,ROUND((K11)*1/31,0),""))))) ->  | Y11: =IFERROR(IF(C11="","",IF(AND(BH12="",BO12=""),"",IF($C11="TOTAL",SUM($Y$8:Y10),BH12))),"") ->  | Z11: =IFERROR(IF(C11="","",IF($C11="TOTAL",SUM($Z$8:Z10),ROUND(O11*$AO$7%,0))),"") -> 0 | AA11: =IFERROR(IF(C11="","",IF($C11="TOTAL",SUM($AA$8:AA10),IF($AC$3=$AL$2,SUM(U11,X11,Y11,Z11),SUM(R11,U11,X11,Y11,Z11)))),"") -> 0 | AB11: =IFERROR(IF(C11="","",IF($C11="TOTAL",SUM($AB$8:AB10),SUM(O11-AA11))),"") -> 18550 | AK11: 17 | AL11: 17 | AM11: =IF(AV9="","",ROUND((AO11+AV9)*10%,0)) -> 3444 | AN11: 2017-03-01 | AO11: =IFERROR(ROUND((AO9/AU3)*AU6,0),"") -> 29439 | AP11: 2020-12-01 | AQ11: 2020-12-01 | AS11: 2020-12-01 | AT11: =IFERROR(IF(AS11="","",IF(DATE(YEAR(AS11),MONTH(AS11),DAY(AS11))=DATE(YEAR($AP$6),MONTH($AP$6)+1,DAY($AP$6)),"TOTAL",IF(AS11>$AP$6,"",AS11))),"") -> 2020-12-01 | AU11: =IFERROR(IF(AT11="","",IF(AND($AO$20=$AO$28,$AO$30=AT11),$AO$29,IF(OR(AT11=$AW$2,AT11=$AW$3,AT11=$AW$4,AT11=$AW$5,AT11=$AW$6,AT11=$AW$7,AT11=$AX$2),MROUND(AU10*1.03,100),AU10))),"") -> 33800 | AV11: 5746 | AW11: =IF(AT11="","",IF(AT11="TOTAL","",IF(AT11>=$AV$7,ROUND(AU11*$AU$7%,0),ROUND(AU11*$AQ$7%,0)))) -> 2704 | AY11: =IFERROR(IF(AT11="","",IF(AT11="TOTAL","",IF($AO$16=$AO$17,$AO$10,IF(OR(AT11=$AW$2,AT11=$AW$3,AT11=$AW$4,AT11=$AW$5,AT11=$AW$6,AT11=$AW$7,AT11=$AX$2),MROUND(AY10*1.03,100),AY10)))),"") -> 23700 | AZ11: 0 | BA11: =IF(AT11="","",IF(AT11="TOTAL","",IF(AY11="","",IF($AO$16=$AO$17,0,IF(AT11>=$AV$7,ROUND(AY11*$AU$7%,0),ROUND(AY11*$AQ$7%,0)))))) -> 0 | BB11: =IF(AT11="","",IF(AT11="TOTAL","",IF(AY11="","",IF($AO$16=$AO$17,0,IF(OR(C10=$AM$16,C10=$AM$17,C10=$AM$18,C10=$AM$19,C10=$AM$20,C10=$AM$21,C10=$AM$22,C10=$AM$23,C10=$AM$24),SUM(BE11+BF11),BF11))))) -> 0 | BC11: =IF(OR(AT11=$AW$2,AT11=$AW$3,AT11=$AW$4,AT11=$AW$5,AT11=$AW$6),MROUND(BC10*1.03,100),BC10) -> 30500 | BD11: =IF(OR(AT11=$AW$2,AT11=$AW$3,AT11=$AW$4,AT11=$AW$5,AT11=$AW$6),MROUND(BD10*1.03,100),BD10) -> 32800 | BE11: =IF(AT11="","",IF(AT11="TOTAL","",IF(AY11="","",SUM(O10)-SUM((BF11-$AO$21)+SUM(U10,X10,Z10))))) -> 18550 | BF11: =IF(AT10="","",IF(AT10="TOTAL","",IF(AND($AO$20=$AO$36,C11=$AO$37),$AO$38,BF10))) -> 3675 | BI11: 0 | BJ11: 0
A12: 5 | B12: 5 | C12: 2021-02-01 | D12: =IFERROR(IF($C11="TOTAL","अक्षरें राशि :-",IF($C12="TOTAL",SUM($D$8:D11),IF(AU13="","",AU13))),"") -> 33800 | E12: =IFERROR(IF($C12="TOTAL",SUM($E$8:E11),IF(AV13="","",AV13)),"") -> 5746 | F12: =IFERROR(IF($C12="TOTAL",SUM($F$8:F11),IF(OR(C12=$AM$16,C12=$AM$17,C12=$AM$18,C12=$AM$19,C12=$AM$20,C12=$AM$21,C12=$AM$22,C12=$AM$23,C12=$AM$24),0,IF(AW13="","",AW13))),"") -> 2704 | G12: 42250 | H12: =IFERROR(IF($C12="TOTAL",SUM($H$8:H11),IF(AY13="","",AY13)),"") -> 23700 | I12: =IFERROR(IF($C12="TOTAL",SUM($I$8:I11),IF(AZ13="","",AZ13)),"") -> 0 | J12: =IFERROR(IF($C12="TOTAL",SUM($J$8:J11),IF(OR(C12=$AM$16,C12=$AM$17,C12=$AM$18,C12=$AM$19,C12=$AM$20,C12=$AM$21,C12=$AM$22,C12=$AM$23,C12=$AM$24),0,IF(BA13="","",BA13))),"") -> 0 | K12: 23700 | L12: =IFERROR(IF(C12="","",IF(D12="","",IF(H12="","",IF($C12="TOTAL",SUM($L$8:L11),SUM(D12-H12))))),"") -> 10100 | M12: =IFERROR(IF(C12="","",IF(E12="","",IF(I12="","",IF($C12="TOTAL",SUM($M$8:M11),SUM(E12-I12))))),"") -> 5746 | N12: =IFERROR(IF(C12="","",IF(F12="","",IF(J12="","",IF($C12="TOTAL",SUM($N$8:N11),SUM(F12-J12))))),"") -> 2704 | O12: 18550 | P12: =IFERROR(IF(C12="","",IF($C12="TOTAL",SUM($P$8:P11),IF(AND(C12>$AL$1,$AC$3=$AL$2),BO13,IF($AO$18=$AO$20,SUM(BB13+BJ13),ROUND((D12+E12)*10%,0))))),"") -> 3955 | Q12: =IFERROR(IF(C12="","",IF(H12="","",IF(I12="","",IF($C12="TOTAL",SUM($Q$8:Q11),IF(AND(C12>$AL$1,$AC$3=$AL$2),BO13,IF($AO$18=$AO$20,$AO$21,ROUND((H12+I12)*10%,0))))))),"") -> 2370 | R12: 1585 | S12: =IFERROR(IF(C12="","",IF($AO$16=$AO$17,0,IF($C12="TOTAL",SUM($S$8:S11),IF($AO$19=$AO$31,0,IF(AND($AO$32=$AO$20,C12=$AO$33),$AO$34,S11))))),"") -> 0 | T12: =IFERROR(IF(C12="","",IF($AO$16=$AO$17,0,IF($C12="TOTAL",SUM($T$8:T11),IF($AO$19=$AO$20,$AO$24,0)))),"") -> 0 | U12: 0 | V12: =IF(C12="","",IF($C12="TOTAL",SUM($V$8:V11),IF(AND($AO$2=$AO$20,C12=$AO$1),ROUND(D12/31*$AP$2,0),IF(C12=$AM$6,ROUND((G12)*1/30,0),IF(C12=$AN$6,ROUND((G12)*1/31,0),""))))) ->  | W12: =IF(C12="","",IF($C12="TOTAL",SUM($W$8:W11),IF(AND($AO$2=$AO$20,C12=$AO$1),ROUND(H12/31*$AP$2,0),IF(C12=$AM$6,ROUND((K12)*1/30,0),IF(C12=$AN$6,ROUND((K12)*1/31,0),""))))) ->  | Y12: =IFERROR(IF(C12="","",IF(AND(BH13="",BO13=""),"",IF($C12="TOTAL",SUM($Y$8:Y11),BH13))),"") ->  | Z12: =IFERROR(IF(C12="","",IF($C12="TOTAL",SUM($Z$8:Z11),ROUND(O12*$AO$7%,0))),"") -> 0 | AA12: =IFERROR(IF(C12="","",IF($C12="TOTAL",SUM($AA$8:AA11),IF($AC$3=$AL$2,SUM(U12,X12,Y12,Z12),SUM(R12,U12,X12,Y12,Z12)))),"") -> 0 | AB12: =IFERROR(IF(C12="","",IF($C12="TOTAL",SUM($AB$8:AB11),SUM(O12-AA12))),"") -> 18550 | AK12: 17 | AL12: 17 | AM12: =ROUND((AO12)*10%,0) -> 306 | AN12: 2017-04-01 | AO12: =IFERROR(IF($AO$13=$AO$15,ROUND((AO14/AU3)*AQ6,0),ROUND((AO10/AU3)*AQ6,0)),"") -> 3058 | AP12: 2021-01-01 | AQ12: 2021-01-01 | AS12: 2021-01-01 | AT12: 2021-01-01 | AU12: =IFERROR(IF(AT12="","",IF(AND($AO$20=$AO$28,$AO$30=AT12),$AO$29,IF(OR(AT12=$AW$2,AT12=$AW$3,AT12=$AW$4,AT12=$AW$5,AT12=$AW$6,AT12=$AW$7,AT12=$AX$2),MROUND(AU11*1.03,100),AU11))),"") -> 33800 | AV12: 5746 | AW12: =IF(AT12="","",IF(AT12="TOTAL","",IF(AT12>=$AV$7,ROUND(AU12*$AU$7%,0),ROUND(AU12*$AQ$7%,0)))) -> 2704 | AY12: =IFERROR(IF(AT12="","",IF(AT12="TOTAL","",IF($AO$16=$AO$17,$AO$10,IF(OR(AT12=$AW$2,AT12=$AW$3,AT12=$AW$4,AT12=$AW$5,AT12=$AW$6,AT12=$AW$7,AT12=$AX$2),MROUND(AY11*1.03,100),AY11)))),"") -> 23700 | AZ12: 0 | BA12: =IF(AT12="","",IF(AT12="TOTAL","",IF(AY12="","",IF($AO$16=$AO$17,0,IF(AT12>=$AV$7,ROUND(AY12*$AU$7%,0),ROUND(AY12*$AQ$7%,0)))))) -> 0 | BB12: 0 | BE12: 18550 | BF12: 3675 | BI12: 0 | BJ12: 0
A13: 6 | B13: 6 | C13: 2021-03-01 | D13: =IFERROR(IF($C12="TOTAL","अक्षरें राशि :-",IF($C13="TOTAL",SUM($D$8:D12),IF(AU14="","",AU14))),"") -> 33800 | E13: =IFERROR(IF($C13="TOTAL",SUM($E$8:E12),IF(AV14="","",AV14)),"") -> 5746 | F13: =IFERROR(IF($C13="TOTAL",SUM($F$8:F12),IF(OR(C13=$AM$16,C13=$AM$17,C13=$AM$18,C13=$AM$19,C13=$AM$20,C13=$AM$21,C13=$AM$22,C13=$AM$23,C13=$AM$24),0,IF(AW14="","",AW14))),"") -> 2704 | G13: 42250 | H13: =IFERROR(IF($C13="TOTAL",SUM($H$8:H12),IF(AY14="","",AY14)),"") -> 23700 | I13: =IFERROR(IF($C13="TOTAL",SUM($I$8:I12),IF(AZ14="","",AZ14)),"") -> 0 | J13: =IFERROR(IF($C13="TOTAL",SUM($J$8:J12),IF(OR(C13=$AM$16,C13=$AM$17,C13=$AM$18,C13=$AM$19,C13=$AM$20,C13=$AM$21,C13=$AM$22,C13=$AM$23,C13=$AM$24),0,IF(BA14="","",BA14))),"") -> 0 | K13: 23700 | L13: =IFERROR(IF(C13="","",IF(D13="","",IF(H13="","",IF($C13="TOTAL",SUM($L$8:L12),SUM(D13-H13))))),"") -> 10100 | M13: =IFERROR(IF(C13="","",IF(E13="","",IF(I13="","",IF($C13="TOTAL",SUM($M$8:M12),SUM(E13-I13))))),"") -> 5746 | N13: =IFERROR(IF(C13="","",IF(F13="","",IF(J13="","",IF($C13="TOTAL",SUM($N$8:N12),SUM(F13-J13))))),"") -> 2704 | O13: 18550 | P13: =IFERROR(IF(C13="","",IF($C13="TOTAL",SUM($P$8:P12),IF(AND(C13>$AL$1,$AC$3=$AL$2),BO14,IF($AO$18=$AO$20,SUM(BB14+BJ14),ROUND((D13+E13)*10%,0))))),"") -> 3955 | Q13: =IFERROR(IF(C13="","",IF(H13="","",IF(I13="","",IF($C13="TOTAL",SUM($Q$8:Q12),IF(AND(C13>$AL$1,$AC$3=$AL$2),BO14,IF($AO$18=$AO$20,$AO$21,ROUND((H13+I13)*10%,0))))))),"") -> 2370 | R13: 1585 | S13: =IFERROR(IF(C13="","",IF($AO$16=$AO$17,0,IF($C13="TOTAL",SUM($S$8:S12),IF($AO$19=$AO$31,0,IF(AND($AO$32=$AO$20,C13=$AO$33),$AO$34,S12))))),"") -> 0 | T13: =IFERROR(IF(C13="","",IF($AO$16=$AO$17,0,IF($C13="TOTAL",SUM($T$8:T12),IF($AO$19=$AO$20,$AO$24,0)))),"") -> 0 | U13: 0 | V13: =IF(C13="","",IF($C13="TOTAL",SUM($V$8:V12),IF(AND($AO$2=$AO$20,C13=$AO$1),ROUND(D13/31*$AP$2,0),IF(C13=$AM$6,ROUND((G13)*1/30,0),IF(C13=$AN$6,ROUND((G13)*1/31,0),""))))) ->  | W13: =IF(C13="","",IF($C13="TOTAL",SUM($W$8:W12),IF(AND($AO$2=$AO$20,C13=$AO$1),ROUND(H13/31*$AP$2,0),IF(C13=$AM$6,ROUND((K13)*1/30,0),IF(C13=$AN$6,ROUND((K13)*1/31,0),""))))) ->  | Y13: =IFERROR(IF(C13="","",IF(AND(BH14="",BO14=""),"",IF($C13="TOTAL",SUM($Y$8:Y12),BH14))),"") ->  | Z13: =IFERROR(IF(C13="","",IF($C13="TOTAL",SUM($Z$8:Z12),ROUND(O13*$AO$7%,0))),"") -> 0 | AA13: =IFERROR(IF(C13="","",IF($C13="TOTAL",SUM($AA$8:AA12),IF($AC$3=$AL$2,SUM(U13,X13,Y13,Z13),SUM(R13,U13,X13,Y13,Z13)))),"") -> 0 | AB13: =IFERROR(IF(C13="","",IF($C13="TOTAL",SUM($AB$8:AB12),SUM(O13-AA13))),"") -> 18550 | AK13: 17 | AL13: 17 | AN13: 2017-05-01 | AO13: ='Master Sheet'!D11 -> Fix Pay | AP13: 2021-02-01 | AQ13: 2021-02-01 | AS13: 2021-02-01 | AT13: 2021-02-01 | AU13: 33800 | AV13: =IF(AT13="","",IF(AT13="TOTAL","",ROUND(AU13*AK13%,0))) -> 5746 | AW13: 2704 | AY13: 23700 | AZ13: 0 | BA13: 0 | BB13: 0 | BE13: =IF(AT13="","",IF(AT13="TOTAL","",IF(AY13="","",SUM(O12)-SUM((BF13-$AO$21)+SUM(U12,X12,Z12))))) -> 18550 | BF13: =IF(AT12="","",IF(AT12="TOTAL","",IF(AND($AO$20=$AO$36,C13=$AO$37),$AO$38,BF12))) -> 3675 | BI13: =IFERROR(IF(AND($AO$16=$AO$17,BG13="YES"),ROUND(ROUND(D12*3%,0)*10%,0),IF(AND($AO$16=$AO$15,BG13="YES",$AM$7="NO"),ROUND(ROUND((L12+H12)*3%,0)*10%,0),IF(AND($AO$16=$AO$15,BG13="YES",$AM$7="YES"),ROUND(ROUND((L12+M12)*3%,0)*10%,0),0))),"") -> 0 | BJ13: =IF(AND($AO$16=$AO$17,BG13="YES"),ROUND(D12*3%,0),IF(AND($AO$16=$AO$15,BG13="YES",$AM$7="NO"),ROUND((L12+H12)*3%,0),IF(AND($AO$16=$AO$15,BG13="YES",$AM$7="YES"),ROUND((L12+M12)*3%,0),0))) -> 0
A14: 7 | B14: 7 | C14: 2021-04-01 | D14: =IFERROR(IF($C13="TOTAL","अक्षरें राशि :-",IF($C14="TOTAL",SUM($D$8:D13),IF(AU15="","",AU15))),"") -> 33800 | E14: =IFERROR(IF($C14="TOTAL",SUM($E$8:E13),IF(AV15="","",AV15)),"") -> 5746 | F14: =IFERROR(IF($C14="TOTAL",SUM($F$8:F13),IF(OR(C14=$AM$16,C14=$AM$17,C14=$AM$18,C14=$AM$19,C14=$AM$20,C14=$AM$21,C14=$AM$22,C14=$AM$23,C14=$AM$24),0,IF(AW15="","",AW15))),"") -> 2704 | G14: 42250 | H14: =IFERROR(IF($C14="TOTAL",SUM($H$8:H13),IF(AY15="","",AY15)),"") -> 23700 | I14: =IFERROR(IF($C14="TOTAL",SUM($I$8:I13),IF(AZ15="","",AZ15)),"") -> 0 | J14: =IFERROR(IF($C14="TOTAL",SUM($J$8:J13),IF(OR(C14=$AM$16,C14=$AM$17,C14=$AM$18,C14=$AM$19,C14=$AM$20,C14=$AM$21,C14=$AM$22,C14=$AM$23,C14=$AM$24),0,IF(BA15="","",BA15))),"") -> 0 | K14: 23700 | L14: =IFERROR(IF(C14="","",IF(D14="","",IF(H14="","",IF($C14="TOTAL",SUM($L$8:L13),SUM(D14-H14))))),"") -> 10100 | M14: =IFERROR(IF(C14="","",IF(E14="","",IF(I14="","",IF($C14="TOTAL",SUM($M$8:M13),SUM(E14-I14))))),"") -> 5746 | N14: =IFERROR(IF(C14="","",IF(F14="","",IF(J14="","",IF($C14="TOTAL",SUM($N$8:N13),SUM(F14-J14))))),"") -> 2704 | O14: 18550 | P14: =IFERROR(IF(C14="","",IF($C14="TOTAL",SUM($P$8:P13),IF(AND(C14>$AL$1,$AC$3=$AL$2),BO15,IF($AO$18=$AO$20,SUM(BB15+BJ15),ROUND((D14+E14)*10%,0))))),"") -> 3955 | Q14: =IFERROR(IF(C14="","",IF(H14="","",IF(I14="","",IF($C14="TOTAL",SUM($Q$8:Q13),IF(AND(C14>$AL$1,$AC$3=$AL$2),BO15,IF($AO$18=$AO$20,$AO$21,ROUND((H14+I14)*10%,0))))))),"") -> 2370 | R14: 1585 | S14: =IFERROR(IF(C14="","",IF($AO$16=$AO$17,0,IF($C14="TOTAL",SUM($S$8:S13),IF($AO$19=$AO$31,0,IF(AND($AO$32=$AO$20,C14=$AO$33),$AO$34,S13))))),"") -> 0 | T14: =IFERROR(IF(C14="","",IF($AO$16=$AO$17,0,IF($C14="TOTAL",SUM($T$8:T13),IF($AO$19=$AO$20,$AO$24,0)))),"") -> 0 | U14: 0 | V14: =IF(C14="","",IF($C14="TOTAL",SUM($V$8:V13),IF(AND($AO$2=$AO$20,C14=$AO$1),ROUND(D14/31*$AP$2,0),IF(C14=$AM$6,ROUND((G14)*1/30,0),IF(C14=$AN$6,ROUND((G14)*1/31,0),""))))) ->  | W14: =IF(C14="","",IF($C14="TOTAL",SUM($W$8:W13),IF(AND($AO$2=$AO$20,C14=$AO$1),ROUND(H14/31*$AP$2,0),IF(C14=$AM$6,ROUND((K14)*1/30,0),IF(C14=$AN$6,ROUND((K14)*1/31,0),""))))) ->  | Y14: =IFERROR(IF(C14="","",IF(AND(BH15="",BO15=""),"",IF($C14="TOTAL",SUM($Y$8:Y13),BH15))),"") ->  | Z14: =IFERROR(IF(C14="","",IF($C14="TOTAL",SUM($Z$8:Z13),ROUND(O14*$AO$7%,0))),"") -> 0 | AA14: =IFERROR(IF(C14="","",IF($C14="TOTAL",SUM($AA$8:AA13),IF($AC$3=$AL$2,SUM(U14,X14,Y14,Z14),SUM(R14,U14,X14,Y14,Z14)))),"") -> 0 | AB14: =IFERROR(IF(C14="","",IF($C14="TOTAL",SUM($AB$8:AB13),SUM(O14-AA14))),"") -> 18550 | AK14: 17 | AL14: 17 | AN14: 2017-06-01 | AO14: ='Master Sheet'!K11 -> 32800 | AP14: 2021-03-01 | AQ14: 2021-03-01 | AS14: 2021-03-01 | AT14: 2021-03-01 | AU14: 33800 | AV14: =IF(AT14="","",IF(AT14="TOTAL","",ROUND(AU14*AK14%,0))) -> 5746 | AW14: 2704 | AY14: 23700 | AZ14: 0 | BA14: 0 | BB14: 0 | BE14: 18550 | BF14: 3675 | BI14: 0 | BJ14: 0
A15: 8 | B15: 8 | C15: 2021-05-01 | D15: =IFERROR(IF($C14="TOTAL","अक्षरें राशि :-",IF($C15="TOTAL",SUM($D$8:D14),IF(AU16="","",AU16))),"") -> 33800 | E15: =IFERROR(IF($C15="TOTAL",SUM($E$8:E14),IF(AV16="","",AV16)),"") -> 5746 | F15: =IFERROR(IF($C15="TOTAL",SUM($F$8:F14),IF(OR(C15=$AM$16,C15=$AM$17,C15=$AM$18,C15=$AM$19,C15=$AM$20,C15=$AM$21,C15=$AM$22,C15=$AM$23,C15=$AM$24),0,IF(AW16="","",AW16))),"") -> 2704 | G15: 42250 | H15: =IFERROR(IF($C15="TOTAL",SUM($H$8:H14),IF(AY16="","",AY16)),"") -> 23700 | I15: =IFERROR(IF($C15="TOTAL",SUM($I$8:I14),IF(AZ16="","",AZ16)),"") -> 0 | J15: =IFERROR(IF($C15="TOTAL",SUM($J$8:J14),IF(OR(C15=$AM$16,C15=$AM$17,C15=$AM$18,C15=$AM$19,C15=$AM$20,C15=$AM$21,C15=$AM$22,C15=$AM$23,C15=$AM$24),0,IF(BA16="","",BA16))),"") -> 0 | K15: 23700 | L15: =IFERROR(IF(C15="","",IF(D15="","",IF(H15="","",IF($C15="TOTAL",SUM($L$8:L14),SUM(D15-H15))))),"") -> 10100 | M15: =IFERROR(IF(C15="","",IF(E15="","",IF(I15="","",IF($C15="TOTAL",SUM($M$8:M14),SUM(E15-I15))))),"") -> 5746 | N15: =IFERROR(IF(C15="","",IF(F15="","",IF(J15="","",IF($C15="TOTAL",SUM($N$8:N14),SUM(F15-J15))))),"") -> 2704 | O15: 18550 | P15: =IFERROR(IF(C15="","",IF($C15="TOTAL",SUM($P$8:P14),IF(AND(C15>$AL$1,$AC$3=$AL$2),BO16,IF($AO$18=$AO$20,SUM(BB16+BJ16),ROUND((D15+E15)*10%,0))))),"") -> 3955 | Q15: =IFERROR(IF(C15="","",IF(H15="","",IF(I15="","",IF($C15="TOTAL",SUM($Q$8:Q14),IF(AND(C15>$AL$1,$AC$3=$AL$2),BO16,IF($AO$18=$AO$20,$AO$21,ROUND((H15+I15)*10%,0))))))),"") -> 2370 | R15: 1585 | S15: =IFERROR(IF(C15="","",IF($AO$16=$AO$17,0,IF($C15="TOTAL",SUM($S$8:S14),IF($AO$19=$AO$31,0,IF(AND($AO$32=$AO$20,C15=$AO$33),$AO$34,S14))))),"") -> 0 | T15: =IFERROR(IF(C15="","",IF($AO$16=$AO$17,0,IF($C15="TOTAL",SUM($T$8:T14),IF($AO$19=$AO$20,$AO$24,0)))),"") -> 0 | U15: 0 | V15: =IF(C15="","",IF($C15="TOTAL",SUM($V$8:V14),IF(AND($AO$2=$AO$20,C15=$AO$1),ROUND(D15/31*$AP$2,0),IF(C15=$AM$6,ROUND((G15)*1/30,0),IF(C15=$AN$6,ROUND((G15)*1/31,0),""))))) ->  | W15: =IF(C15="","",IF($C15="TOTAL",SUM($W$8:W14),IF(AND($AO$2=$AO$20,C15=$AO$1),ROUND(H15/31*$AP$2,0),IF(C15=$AM$6,ROUND((K15)*1/30,0),IF(C15=$AN$6,ROUND((K15)*1/31,0),""))))) ->  | Y15: =IFERROR(IF(C15="","",IF(AND(BH16="",BO16=""),"",IF($C15="TOTAL",SUM($Y$8:Y14),BH16))),"") ->  | Z15: =IFERROR(IF(C15="","",IF($C15="TOTAL",SUM($Z$8:Z14),ROUND(O15*$AO$7%,0))),"") -> 0 | AA15: =IFERROR(IF(C15="","",IF($C15="TOTAL",SUM($AA$8:AA14),IF($AC$3=$AL$2,SUM(U15,X15,Y15,Z15),SUM(R15,U15,X15,Y15,Z15)))),"") -> 0 | AB15: =IFERROR(IF(C15="","",IF($C15="TOTAL",SUM($AB$8:AB14),SUM(O15-AA15))),"") -> 18550 | AK15: 17 | AL15: 17 | AN15: 2017-07-01 | AO15: Regular Pay | AP15: 2021-04-01 | AQ15: 2021-04-01 | AS15: 2021-04-01 | AT15: 2021-04-01 | AU15: 33800 | AV15: 5746 | AW15: 2704 | AY15: 23700 | AZ15: 0 | BA15: 0 | BB15: 0 | BE15: 18550 | BF15: 3675 | BI15: 0 | BJ15: 0
A16: 9 | B16: 9 | C16: 2021-06-01 | D16: =IFERROR(IF($C15="TOTAL","अक्षरें राशि :-",IF($C16="TOTAL",SUM($D$8:D15),IF(AU17="","",AU17))),"") -> 33800 | E16: =IFERROR(IF($C16="TOTAL",SUM($E$8:E15),IF(AV17="","",AV17)),"") -> 5746 | F16: =IFERROR(IF($C16="TOTAL",SUM($F$8:F15),IF(OR(C16=$AM$16,C16=$AM$17,C16=$AM$18,C16=$AM$19,C16=$AM$20,C16=$AM$21,C16=$AM$22,C16=$AM$23,C16=$AM$24),0,IF(AW17="","",AW17))),"") -> 2704 | G16: 42250 | H16: =IFERROR(IF($C16="TOTAL",SUM($H$8:H15),IF(AY17="","",AY17)),"") -> 23700 | I16: =IFERROR(IF($C16="TOTAL",SUM($I$8:I15),IF(AZ17="","",AZ17)),"") -> 0 | J16: =IFERROR(IF($C16="TOTAL",SUM($J$8:J15),IF(OR(C16=$AM$16,C16=$AM$17,C16=$AM$18,C16=$AM$19,C16=$AM$20,C16=$AM$21,C16=$AM$22,C16=$AM$23,C16=$AM$24),0,IF(BA17="","",BA17))),"") -> 0 | K16: 23700 | L16: =IFERROR(IF(C16="","",IF(D16="","",IF(H16="","",IF($C16="TOTAL",SUM($L$8:L15),SUM(D16-H16))))),"") -> 10100 | M16: =IFERROR(IF(C16="","",IF(E16="","",IF(I16="","",IF($C16="TOTAL",SUM($M$8:M15),SUM(E16-I16))))),"") -> 5746 | N16: =IFERROR(IF(C16="","",IF(F16="","",IF(J16="","",IF($C16="TOTAL",SUM($N$8:N15),SUM(F16-J16))))),"") -> 2704 | O16: 18550 | P16: =IFERROR(IF(C16="","",IF($C16="TOTAL",SUM($P$8:P15),IF(AND(C16>$AL$1,$AC$3=$AL$2),BO17,IF($AO$18=$AO$20,SUM(BB17+BJ17),ROUND((D16+E16)*10%,0))))),"") -> 3955 | Q16: =IFERROR(IF(C16="","",IF(H16="","",IF(I16="","",IF($C16="TOTAL",SUM($Q$8:Q15),IF(AND(C16>$AL$1,$AC$3=$AL$2),BO17,IF($AO$18=$AO$20,$AO$21,ROUND((H16+I16)*10%,0))))))),"") -> 2370 | R16: 1585 | S16: =IFERROR(IF(C16="","",IF($AO$16=$AO$17,0,IF($C16="TOTAL",SUM($S$8:S15),IF($AO$19=$AO$31,0,IF(AND($AO$32=$AO$20,C16=$AO$33),$AO$34,S15))))),"") -> 0 | T16: =IFERROR(IF(C16="","",IF($AO$16=$AO$17,0,IF($C16="TOTAL",SUM($T$8:T15),IF($AO$19=$AO$20,$AO$24,0)))),"") -> 0 | U16: 0 | V16: =IF(C16="","",IF($C16="TOTAL",SUM($V$8:V15),IF(AND($AO$2=$AO$20,C16=$AO$1),ROUND(D16/31*$AP$2,0),IF(C16=$AM$6,ROUND((G16)*1/30,0),IF(C16=$AN$6,ROUND((G16)*1/31,0),""))))) ->  | W16: =IF(C16="","",IF($C16="TOTAL",SUM($W$8:W15),IF(AND($AO$2=$AO$20,C16=$AO$1),ROUND(H16/31*$AP$2,0),IF(C16=$AM$6,ROUND((K16)*1/30,0),IF(C16=$AN$6,ROUND((K16)*1/31,0),""))))) ->  | Y16: =IFERROR(IF(C16="","",IF(AND(BH17="",BO17=""),"",IF($C16="TOTAL",SUM($Y$8:Y15),BH17))),"") ->  | Z16: =IFERROR(IF(C16="","",IF($C16="TOTAL",SUM($Z$8:Z15),ROUND(O16*$AO$7%,0))),"") -> 0 | AA16: =IFERROR(IF(C16="","",IF($C16="TOTAL",SUM($AA$8:AA15),IF($AC$3=$AL$2,SUM(U16,X16,Y16,Z16),SUM(R16,U16,X16,Y16,Z16)))),"") -> 0 | AB16: =IFERROR(IF(C16="","",IF($C16="TOTAL",SUM($AB$8:AB15),SUM(O16-AA16))),"") -> 18550 | AK16: 17 | AL16: 17 | AM16: 2017-01-01 | AN16: 2017-08-01 | AO16: ='Master Sheet'!D11 -> Fix Pay | AP16: 2021-05-01 | AQ16: 2021-05-01 | AS16: 2021-05-01 | AT16: 2021-05-01 | AU16: 33800 | AV16: 5746 | AW16: 2704 | AY16: 23700 | AZ16: 0 | BA16: 0 | BB16: 0 | BE16: 18550 | BF16: 3675 | BI16: 0 | BJ16: 0
A17: 10 | B17: 10 | C17: 2021-07-01 | D17: =IFERROR(IF($C16="TOTAL","अक्षरें राशि :-",IF($C17="TOTAL",SUM($D$8:D16),IF(AU18="","",AU18))),"") -> 34800 | E17: =IFERROR(IF($C17="TOTAL",SUM($E$8:E16),IF(AV18="","",AV18)),"") -> 10788 | F17: =IFERROR(IF($C17="TOTAL",SUM($F$8:F16),IF(OR(C17=$AM$16,C17=$AM$17,C17=$AM$18,C17=$AM$19,C17=$AM$20,C17=$AM$21,C17=$AM$22,C17=$AM$23,C17=$AM$24),0,IF(AW18="","",AW18))),"") -> 3132 | G17: 48720 | H17: =IFERROR(IF($C17="TOTAL",SUM($H$8:H16),IF(AY18="","",AY18)),"") -> 23700 | I17: =IFERROR(IF($C17="TOTAL",SUM($I$8:I16),IF(AZ18="","",AZ18)),"") -> 0 | J17: =IFERROR(IF($C17="TOTAL",SUM($J$8:J16),IF(OR(C17=$AM$16,C17=$AM$17,C17=$AM$18,C17=$AM$19,C17=$AM$20,C17=$AM$21,C17=$AM$22,C17=$AM$23,C17=$AM$24),0,IF(BA18="","",BA18))),"") -> 0 | K17: 23700 | L17: =IFERROR(IF(C17="","",IF(D17="","",IF(H17="","",IF($C17="TOTAL",SUM($L$8:L16),SUM(D17-H17))))),"") -> 11100 | M17: =IFERROR(IF(C17="","",IF(E17="","",IF(I17="","",IF($C17="TOTAL",SUM($M$8:M16),SUM(E17-I17))))),"") -> 10788 | N17: =IFERROR(IF(C17="","",IF(F17="","",IF(J17="","",IF($C17="TOTAL",SUM($N$8:N16),SUM(F17-J17))))),"") -> 3132 | O17: 25020 | P17: =IFERROR(IF(C17="","",IF($C17="TOTAL",SUM($P$8:P16),IF(AND(C17>$AL$1,$AC$3=$AL$2),BO18,IF($AO$18=$AO$20,SUM(BB18+BJ18),ROUND((D17+E17)*10%,0))))),"") -> 4559 | Q17: =IFERROR(IF(C17="","",IF(H17="","",IF(I17="","",IF($C17="TOTAL",SUM($Q$8:Q16),IF(AND(C17>$AL$1,$AC$3=$AL$2),BO18,IF($AO$18=$AO$20,$AO$21,ROUND((H17+I17)*10%,0))))))),"") -> 2370 | R17: 2189 | S17: =IFERROR(IF(C17="","",IF($AO$16=$AO$17,0,IF($C17="TOTAL",SUM($S$8:S16),IF($AO$19=$AO$31,0,IF(AND($AO$32=$AO$20,C17=$AO$33),$AO$34,S16))))),"") -> 0 | T17: =IFERROR(IF(C17="","",IF($AO$16=$AO$17,0,IF($C17="TOTAL",SUM($T$8:T16),IF($AO$19=$AO$20,$AO$24,0)))),"") -> 0 | U17: 0 | V17: =IF(C17="","",IF($C17="TOTAL",SUM($V$8:V16),IF(AND($AO$2=$AO$20,C17=$AO$1),ROUND(D17/31*$AP$2,0),IF(C17=$AM$6,ROUND((G17)*1/30,0),IF(C17=$AN$6,ROUND((G17)*1/31,0),""))))) ->  | W17: =IF(C17="","",IF($C17="TOTAL",SUM($W$8:W16),IF(AND($AO$2=$AO$20,C17=$AO$1),ROUND(H17/31*$AP$2,0),IF(C17=$AM$6,ROUND((K17)*1/30,0),IF(C17=$AN$6,ROUND((K17)*1/31,0),""))))) ->  | Y17: =IFERROR(IF(C17="","",IF(AND(BH18="",BO18=""),"",IF($C17="TOTAL",SUM($Y$8:Y16),BH18))),"") -> 1044 | Z17: =IFERROR(IF(C17="","",IF($C17="TOTAL",SUM($Z$8:Z16),ROUND(O17*$AO$7%,0))),"") -> 0 | AA17: =IFERROR(IF(C17="","",IF($C17="TOTAL",SUM($AA$8:AA16),IF($AC$3=$AL$2,SUM(U17,X17,Y17,Z17),SUM(R17,U17,X17,Y17,Z17)))),"") -> 1044 | AB17: =IFERROR(IF(C17="","",IF($C17="TOTAL",SUM($AB$8:AB16),SUM(O17-AA17))),"") -> 23976 | AK17: 17 | AL17: 17 | AM17: 2017-02-01 | AN17: 2017-09-01 | AO17: Fix Pay | AP17: 2021-06-01 | AQ17: 2021-06-01 | AS17: 2021-06-01 | AT17: 2021-06-01 | AU17: 33800 | AV17: 5746 | AW17: 2704 | AY17: 23700 | AZ17: 0 | BA17: 0 | BB17: 0 | BE17: 18550 | BF17: 3675 | BI17: 0 | BJ17: 0
A18: 11 | B18: 11 | C18: 2021-08-01 | D18: =IFERROR(IF($C17="TOTAL","अक्षरें राशि :-",IF($C18="TOTAL",SUM($D$8:D17),IF(AU19="","",AU19))),"") -> 34800 | E18: =IFERROR(IF($C18="TOTAL",SUM($E$8:E17),IF(AV19="","",AV19)),"") -> 10788 | F18: =IFERROR(IF($C18="TOTAL",SUM($F$8:F17),IF(OR(C18=$AM$16,C18=$AM$17,C18=$AM$18,C18=$AM$19,C18=$AM$20,C18=$AM$21,C18=$AM$22,C18=$AM$23,C18=$AM$24),0,IF(AW19="","",AW19))),"") -> 3132 | G18: 48720 | H18: =IFERROR(IF($C18="TOTAL",SUM($H$8:H17),IF(AY19="","",AY19)),"") -> 23700 | I18: =IFERROR(IF($C18="TOTAL",SUM($I$8:I17),IF(AZ19="","",AZ19)),"") -> 0 | J18: =IFERROR(IF($C18="TOTAL",SUM($J$8:J17),IF(OR(C18=$AM$16,C18=$AM$17,C18=$AM$18,C18=$AM$19,C18=$AM$20,C18=$AM$21,C18=$AM$22,C18=$AM$23,C18=$AM$24),0,IF(BA19="","",BA19))),"") -> 0 | K18: 23700 | L18: =IFERROR(IF(C18="","",IF(D18="","",IF(H18="","",IF($C18="TOTAL",SUM($L$8:L17),SUM(D18-H18))))),"") -> 11100 | M18: =IFERROR(IF(C18="","",IF(E18="","",IF(I18="","",IF($C18="TOTAL",SUM($M$8:M17),SUM(E18-I18))))),"") -> 10788 | N18: =IFERROR(IF(C18="","",IF(F18="","",IF(J18="","",IF($C18="TOTAL",SUM($N$8:N17),SUM(F18-J18))))),"") -> 3132 | O18: 25020 | P18: =IFERROR(IF(C18="","",IF($C18="TOTAL",SUM($P$8:P17),IF(AND(C18>$AL$1,$AC$3=$AL$2),BO19,IF($AO$18=$AO$20,SUM(BB19+BJ19),ROUND((D18+E18)*10%,0))))),"") -> 4559 | Q18: =IFERROR(IF(C18="","",IF(H18="","",IF(I18="","",IF($C18="TOTAL",SUM($Q$8:Q17),IF(AND(C18>$AL$1,$AC$3=$AL$2),BO19,IF($AO$18=$AO$20,$AO$21,ROUND((H18+I18)*10%,0))))))),"") -> 2370 | R18: 2189 | S18: =IFERROR(IF(C18="","",IF($AO$16=$AO$17,0,IF($C18="TOTAL",SUM($S$8:S17),IF($AO$19=$AO$31,0,IF(AND($AO$32=$AO$20,C18=$AO$33),$AO$34,S17))))),"") -> 0 | T18: =IFERROR(IF(C18="","",IF($AO$16=$AO$17,0,IF($C18="TOTAL",SUM($T$8:T17),IF($AO$19=$AO$20,$AO$24,0)))),"") -> 0 | U18: 0 | V18: =IF(C18="","",IF($C18="TOTAL",SUM($V$8:V17),IF(AND($AO$2=$AO$20,C18=$AO$1),ROUND(D18/31*$AP$2,0),IF(C18=$AM$6,ROUND((G18)*1/30,0),IF(C18=$AN$6,ROUND((G18)*1/31,0),""))))) ->  | W18: =IF(C18="","",IF($C18="TOTAL",SUM($W$8:W17),IF(AND($AO$2=$AO$20,C18=$AO$1),ROUND(H18/31*$AP$2,0),IF(C18=$AM$6,ROUND((K18)*1/30,0),IF(C18=$AN$6,ROUND((K18)*1/31,0),""))))) ->  | Y18: =IFERROR(IF(C18="","",IF(AND(BH19="",BO19=""),"",IF($C18="TOTAL",SUM($Y$8:Y17),BH19))),"") -> 1044 | Z18: =IFERROR(IF(C18="","",IF($C18="TOTAL",SUM($Z$8:Z17),ROUND(O18*$AO$7%,0))),"") -> 0 | AA18: =IFERROR(IF(C18="","",IF($C18="TOTAL",SUM($AA$8:AA17),IF($AC$3=$AL$2,SUM(U18,X18,Y18,Z18),SUM(R18,U18,X18,Y18,Z18)))),"") -> 1044 | AB18: =IFERROR(IF(C18="","",IF($C18="TOTAL",SUM($AB$8:AB17),SUM(O18-AA18))),"") -> 23976 | AK18: 31 | AL18: 31 | AM18: 2017-03-01 | AN18: 2017-10-01 | AO18: ='Master Sheet'!D21 -> NO | AP18: 2021-07-01 | AQ18: 2021-07-01 | AS18: 2021-07-01 | AT18: 2021-07-01 | AU18: 34800 | AV18: 10788 | AW18: 3132 | AY18: 23700 | AZ18: 0 | BA18: 0 | BB18: 0 | BE18: 25020 | BF18: 3675 | BG18: YES | BH18: =IF(BG18="","",IF($AO$16=$AO$17,ROUND((D17)*3%,0),IF(OR(AT18=$AN$63,AT18=$AN$64,AT18=$AN$65),SUM(ROUND((D17-H17)*3%,0)),IF(OR(AT18=$AN$69,AT18=$AN$70,AT18=$AN$71),SUM(ROUND((D17-H17)*3%,0)),"")))) -> 1044 | BI18: 104 | BJ18: 1044
A19: 12 | B19: 12 | C19: 2021-09-01 | D19: =IFERROR(IF($C18="TOTAL","अक्षरें राशि :-",IF($C19="TOTAL",SUM($D$8:D18),IF(AU20="","",AU20))),"") -> 34800 | E19: =IFERROR(IF($C19="TOTAL",SUM($E$8:E18),IF(AV20="","",AV20)),"") -> 10788 | F19: =IFERROR(IF($C19="TOTAL",SUM($F$8:F18),IF(OR(C19=$AM$16,C19=$AM$17,C19=$AM$18,C19=$AM$19,C19=$AM$20,C19=$AM$21,C19=$AM$22,C19=$AM$23,C19=$AM$24),0,IF(AW20="","",AW20))),"") -> 3132 | G19: 48720 | H19: =IFERROR(IF($C19="TOTAL",SUM($H$8:H18),IF(AY20="","",AY20)),"") -> 23700 | I19: =IFERROR(IF($C19="TOTAL",SUM($I$8:I18),IF(AZ20="","",AZ20)),"") -> 0 | J19: =IFERROR(IF($C19="TOTAL",SUM($J$8:J18),IF(OR(C19=$AM$16,C19=$AM$17,C19=$AM$18,C19=$AM$19,C19=$AM$20,C19=$AM$21,C19=$AM$22,C19=$AM$23,C19=$AM$24),0,IF(BA20="","",BA20))),"") -> 0 | K19: 23700 | L19: =IFERROR(IF(C19="","",IF(D19="","",IF(H19="","",IF($C19="TOTAL",SUM($L$8:L18),SUM(D19-H19))))),"") -> 11100 | M19: =IFERROR(IF(C19="","",IF(E19="","",IF(I19="","",IF($C19="TOTAL",SUM($M$8:M18),SUM(E19-I19))))),"") -> 10788 | N19: =IFERROR(IF(C19="","",IF(F19="","",IF(J19="","",IF($C19="TOTAL",SUM($N$8:N18),SUM(F19-J19))))),"") -> 3132 | O19: 25020 | P19: =IFERROR(IF(C19="","",IF($C19="TOTAL",SUM($P$8:P18),IF(AND(C19>$AL$1,$AC$3=$AL$2),BO20,IF($AO$18=$AO$20,SUM(BB20+BJ20),ROUND((D19+E19)*10%,0))))),"") -> 4559 | Q19: =IFERROR(IF(C19="","",IF(H19="","",IF(I19="","",IF($C19="TOTAL",SUM($Q$8:Q18),IF(AND(C19>$AL$1,$AC$3=$AL$2),BO20,IF($AO$18=$AO$20,$AO$21,ROUND((H19+I19)*10%,0))))))),"") -> 2370 | R19: 2189 | S19: =IFERROR(IF(C19="","",IF($AO$16=$AO$17,0,IF($C19="TOTAL",SUM($S$8:S18),IF($AO$19=$AO$31,0,IF(AND($AO$32=$AO$20,C19=$AO$33),$AO$34,S18))))),"") -> 0 | T19: =IFERROR(IF(C19="","",IF($AO$16=$AO$17,0,IF($C19="TOTAL",SUM($T$8:T18),IF($AO$19=$AO$20,$AO$24,0)))),"") -> 0 | U19: 0 | V19: =IF(C19="","",IF($C19="TOTAL",SUM($V$8:V18),IF(AND($AO$2=$AO$20,C19=$AO$1),ROUND(D19/31*$AP$2,0),IF(C19=$AM$6,ROUND((G19)*1/30,0),IF(C19=$AN$6,ROUND((G19)*1/31,0),""))))) ->  | W19: =IF(C19="","",IF($C19="TOTAL",SUM($W$8:W18),IF(AND($AO$2=$AO$20,C19=$AO$1),ROUND(H19/31*$AP$2,0),IF(C19=$AM$6,ROUND((K19)*1/30,0),IF(C19=$AN$6,ROUND((K19)*1/31,0),""))))) ->  | Y19: =IFERROR(IF(C19="","",IF(AND(BH20="",BO20=""),"",IF($C19="TOTAL",SUM($Y$8:Y18),BH20))),"") -> 1044 | Z19: =IFERROR(IF(C19="","",IF($C19="TOTAL",SUM($Z$8:Z18),ROUND(O19*$AO$7%,0))),"") -> 0 | AA19: =IFERROR(IF(C19="","",IF($C19="TOTAL",SUM($AA$8:AA18),IF($AC$3=$AL$2,SUM(U19,X19,Y19,Z19),SUM(R19,U19,X19,Y19,Z19)))),"") -> 1044 | AB19: =IFERROR(IF(C19="","",IF($C19="TOTAL",SUM($AB$8:AB18),SUM(O19-AA19))),"") -> 23976 | AK19: 31 | AL19: 31 | AM19: 2017-04-01 | AN19: 2017-11-01 | AO19: ='Master Sheet'!D17 -> NO | AP19: 2021-08-01 | AQ19: 2021-08-01 | AS19: 2021-08-01 | AT19: 2021-08-01 | AU19: 34800 | AV19: 10788 | AW19: 3132 | AY19: 23700 | AZ19: 0 | BA19: 0 | BB19: 0 | BE19: 25020 | BF19: 3675 | BG19: YES | BH19: 1044 | BI19: 104 | BJ19: 1044
A20: 13 | B20: 13 | C20: 2021-10-01 | D20: =IFERROR(IF($C19="TOTAL","अक्षरें राशि :-",IF($C20="TOTAL",SUM($D$8:D19),IF(AU21="","",AU21))),"") -> 34800 | E20: =IFERROR(IF($C20="TOTAL",SUM($E$8:E19),IF(AV21="","",AV21)),"") -> 10788 | F20: =IFERROR(IF($C20="TOTAL",SUM($F$8:F19),IF(OR(C20=$AM$16,C20=$AM$17,C20=$AM$18,C20=$AM$19,C20=$AM$20,C20=$AM$21,C20=$AM$22,C20=$AM$23,C20=$AM$24),0,IF(AW21="","",AW21))),"") -> 3132 | G20: 48720 | H20: =IFERROR(IF($C20="TOTAL",SUM($H$8:H19),IF(AY21="","",AY21)),"") -> 23700 | I20: =IFERROR(IF($C20="TOTAL",SUM($I$8:I19),IF(AZ21="","",AZ21)),"") -> 0 | J20: =IFERROR(IF($C20="TOTAL",SUM($J$8:J19),IF(OR(C20=$AM$16,C20=$AM$17,C20=$AM$18,C20=$AM$19,C20=$AM$20,C20=$AM$21,C20=$AM$22,C20=$AM$23,C20=$AM$24),0,IF(BA21="","",BA21))),"") -> 0 | K20: 23700 | L20: =IFERROR(IF(C20="","",IF(D20="","",IF(H20="","",IF($C20="TOTAL",SUM($L$8:L19),SUM(D20-H20))))),"") -> 11100 | M20: =IFERROR(IF(C20="","",IF(E20="","",IF(I20="","",IF($C20="TOTAL",SUM($M$8:M19),SUM(E20-I20))))),"") -> 10788 | N20: =IFERROR(IF(C20="","",IF(F20="","",IF(J20="","",IF($C20="TOTAL",SUM($N$8:N19),SUM(F20-J20))))),"") -> 3132 | O20: 25020 | P20: =IFERROR(IF(C20="","",IF($C20="TOTAL",SUM($P$8:P19),IF(AND(C20>$AL$1,$AC$3=$AL$2),BO21,IF($AO$18=$AO$20,SUM(BB21+BJ21),ROUND((D20+E20)*10%,0))))),"") -> 4559 | Q20: =IFERROR(IF(C20="","",IF(H20="","",IF(I20="","",IF($C20="TOTAL",SUM($Q$8:Q19),IF(AND(C20>$AL$1,$AC$3=$AL$2),BO21,IF($AO$18=$AO$20,$AO$21,ROUND((H20+I20)*10%,0))))))),"") -> 2370 | R20: 2189 | S20: =IFERROR(IF(C20="","",IF($AO$16=$AO$17,0,IF($C20="TOTAL",SUM($S$8:S19),IF($AO$19=$AO$31,0,IF(AND($AO$32=$AO$20,C20=$AO$33),$AO$34,S19))))),"") -> 0 | T20: =IFERROR(IF(C20="","",IF($AO$16=$AO$17,0,IF($C20="TOTAL",SUM($T$8:T19),IF($AO$19=$AO$20,$AO$24,0)))),"") -> 0 | U20: 0 | V20: =IF(C20="","",IF($C20="TOTAL",SUM($V$8:V19),IF(AND($AO$2=$AO$20,C20=$AO$1),ROUND(D20/31*$AP$2,0),IF(C20=$AM$6,ROUND((G20)*1/30,0),IF(C20=$AN$6,ROUND((G20)*1/31,0),""))))) ->  | W20: =IF(C20="","",IF($C20="TOTAL",SUM($W$8:W19),IF(AND($AO$2=$AO$20,C20=$AO$1),ROUND(H20/31*$AP$2,0),IF(C20=$AM$6,ROUND((K20)*1/30,0),IF(C20=$AN$6,ROUND((K20)*1/31,0),""))))) ->  | Y20: =IFERROR(IF(C20="","",IF(AND(BH21="",BO21=""),"",IF($C20="TOTAL",SUM($Y$8:Y19),BH21))),"") ->  | Z20: =IFERROR(IF(C20="","",IF($C20="TOTAL",SUM($Z$8:Z19),ROUND(O20*$AO$7%,0))),"") -> 0 | AA20: =IFERROR(IF(C20="","",IF($C20="TOTAL",SUM($AA$8:AA19),IF($AC$3=$AL$2,SUM(U20,X20,Y20,Z20),SUM(R20,U20,X20,Y20,Z20)))),"") -> 0 | AB20: =IFERROR(IF(C20="","",IF($C20="TOTAL",SUM($AB$8:AB19),SUM(O20-AA20))),"") -> 25020 | AK20: 31 | AL20: 31 | AM20: 2017-05-01 | AN20: 2017-12-01 | AO20: YES | AP20: =IF(AND($AO$6>$AP$6),"",DATE(YEAR(AP19),MONTH(AP19)+1,DAY(AP19))) -> 2021-09-01 | AQ20: 2021-09-01 | AS20: 2021-09-01 | AT20: 2021-09-01 | AU20: 34800 | AV20: 10788 | AW20: 3132 | AY20: 23700 | AZ20: 0 | BA20: 0 | BB20: 0 | BE20: 25020 | BF20: 3675 | BG20: YES | BH20: 1044 | BI20: 104 | BJ20: 1044
A21: 14 | B21: 14 | C21: 2021-11-01 | D21: =IFERROR(IF($C20="TOTAL","अक्षरें राशि :-",IF($C21="TOTAL",SUM($D$8:D20),IF(AU22="","",AU22))),"") -> 34800 | E21: =IFERROR(IF($C21="TOTAL",SUM($E$8:E20),IF(AV22="","",AV22)),"") -> 10788 | F21: =IFERROR(IF($C21="TOTAL",SUM($F$8:F20),IF(OR(C21=$AM$16,C21=$AM$17,C21=$AM$18,C21=$AM$19,C21=$AM$20,C21=$AM$21,C21=$AM$22,C21=$AM$23,C21=$AM$24),0,IF(AW22="","",AW22))),"") -> 3132 | G21: 48720 | H21: =IFERROR(IF($C21="TOTAL",SUM($H$8:H20),IF(AY22="","",AY22)),"") -> 23700 | I21: =IFERROR(IF($C21="TOTAL",SUM($I$8:I20),IF(AZ22="","",AZ22)),"") -> 0 | J21: =IFERROR(IF($C21="TOTAL",SUM($J$8:J20),IF(OR(C21=$AM$16,C21=$AM$17,C21=$AM$18,C21=$AM$19,C21=$AM$20,C21=$AM$21,C21=$AM$22,C21=$AM$23,C21=$AM$24),0,IF(BA22="","",BA22))),"") -> 0 | K21: 23700 | L21: =IFERROR(IF(C21="","",IF(D21="","",IF(H21="","",IF($C21="TOTAL",SUM($L$8:L20),SUM(D21-H21))))),"") -> 11100 | M21: =IFERROR(IF(C21="","",IF(E21="","",IF(I21="","",IF($C21="TOTAL",SUM($M$8:M20),SUM(E21-I21))))),"") -> 10788 | N21: =IFERROR(IF(C21="","",IF(F21="","",IF(J21="","",IF($C21="TOTAL",SUM($N$8:N20),SUM(F21-J21))))),"") -> 3132 | O21: 25020 | P21: =IFERROR(IF(C21="","",IF($C21="TOTAL",SUM($P$8:P20),IF(AND(C21>$AL$1,$AC$3=$AL$2),BO22,IF($AO$18=$AO$20,SUM(BB22+BJ22),ROUND((D21+E21)*10%,0))))),"") -> 4559 | Q21: =IFERROR(IF(C21="","",IF(H21="","",IF(I21="","",IF($C21="TOTAL",SUM($Q$8:Q20),IF(AND(C21>$AL$1,$AC$3=$AL$2),BO22,IF($AO$18=$AO$20,$AO$21,ROUND((H21+I21)*10%,0))))))),"") -> 2370 | R21: 2189 | S21: =IFERROR(IF(C21="","",IF($AO$16=$AO$17,0,IF($C21="TOTAL",SUM($S$8:S20),IF($AO$19=$AO$31,0,IF(AND($AO$32=$AO$20,C21=$AO$33),$AO$34,S20))))),"") -> 0 | T21: =IFERROR(IF(C21="","",IF($AO$16=$AO$17,0,IF($C21="TOTAL",SUM($T$8:T20),IF($AO$19=$AO$20,$AO$24,0)))),"") -> 0 | U21: 0 | V21: =IF(C21="","",IF($C21="TOTAL",SUM($V$8:V20),IF(AND($AO$2=$AO$20,C21=$AO$1),ROUND(D21/31*$AP$2,0),IF(C21=$AM$6,ROUND((G21)*1/30,0),IF(C21=$AN$6,ROUND((G21)*1/31,0),""))))) ->  | W21: =IF(C21="","",IF($C21="TOTAL",SUM($W$8:W20),IF(AND($AO$2=$AO$20,C21=$AO$1),ROUND(H21/31*$AP$2,0),IF(C21=$AM$6,ROUND((K21)*1/30,0),IF(C21=$AN$6,ROUND((K21)*1/31,0),""))))) ->  | Y21: =IFERROR(IF(C21="","",IF(AND(BH22="",BO22=""),"",IF($C21="TOTAL",SUM($Y$8:Y20),BH22))),"") ->  | Z21: =IFERROR(IF(C21="","",IF($C21="TOTAL",SUM($Z$8:Z20),ROUND(O21*$AO$7%,0))),"") -> 0 | AA21: =IFERROR(IF(C21="","",IF($C21="TOTAL",SUM($AA$8:AA20),IF($AC$3=$AL$2,SUM(U21,X21,Y21,Z21),SUM(R21,U21,X21,Y21,Z21)))),"") -> 0 | AB21: =IFERROR(IF(C21="","",IF($C21="TOTAL",SUM($AB$8:AB20),SUM(O21-AA21))),"") -> 25020 | AK21: 31 | AL21: 31 | AM21: 2017-06-01 | AN21: 2018-01-01 | AO21: ='Master Sheet'!G21 -> 3675 | AP21: 2021-10-01 | AQ21: 2021-10-01 | AS21: 2021-10-01 | AT21: 2021-10-01 | AU21: 34800 | AV21: 10788 | AW21: 3132 | AY21: 23700 | AZ21: 0 | BA21: 0 | BB21: 0 | BE21: 25020 | BF21: 3675 | BI21: 0 | BJ21: 0
A22: 15 | B22: 15 | C22: 2021-12-01 | D22: =IFERROR(IF($C21="TOTAL","अक्षरें राशि :-",IF($C22="TOTAL",SUM($D$8:D21),IF(AU23="","",AU23))),"") -> 34800 | E22: =IFERROR(IF($C22="TOTAL",SUM($E$8:E21),IF(AV23="","",AV23)),"") -> 10788 | F22: =IFERROR(IF($C22="TOTAL",SUM($F$8:F21),IF(OR(C22=$AM$16,C22=$AM$17,C22=$AM$18,C22=$AM$19,C22=$AM$20,C22=$AM$21,C22=$AM$22,C22=$AM$23,C22=$AM$24),0,IF(AW23="","",AW23))),"") -> 3132 | G22: 48720 | H22: =IFERROR(IF($C22="TOTAL",SUM($H$8:H21),IF(AY23="","",AY23)),"") -> 23700 | I22: =IFERROR(IF($C22="TOTAL",SUM($I$8:I21),IF(AZ23="","",AZ23)),"") -> 0 | J22: =IFERROR(IF($C22="TOTAL",SUM($J$8:J21),IF(OR(C22=$AM$16,C22=$AM$17,C22=$AM$18,C22=$AM$19,C22=$AM$20,C22=$AM$21,C22=$AM$22,C22=$AM$23,C22=$AM$24),0,IF(BA23="","",BA23))),"") -> 0 | K22: 23700 | L22: =IFERROR(IF(C22="","",IF(D22="","",IF(H22="","",IF($C22="TOTAL",SUM($L$8:L21),SUM(D22-H22))))),"") -> 11100 | M22: =IFERROR(IF(C22="","",IF(E22="","",IF(I22="","",IF($C22="TOTAL",SUM($M$8:M21),SUM(E22-I22))))),"") -> 10788 | N22: =IFERROR(IF(C22="","",IF(F22="","",IF(J22="","",IF($C22="TOTAL",SUM($N$8:N21),SUM(F22-J22))))),"") -> 3132 | O22: 25020 | P22: =IFERROR(IF(C22="","",IF($C22="TOTAL",SUM($P$8:P21),IF(AND(C22>$AL$1,$AC$3=$AL$2),BO23,IF($AO$18=$AO$20,SUM(BB23+BJ23),ROUND((D22+E22)*10%,0))))),"") -> 4559 | Q22: =IFERROR(IF(C22="","",IF(H22="","",IF(I22="","",IF($C22="TOTAL",SUM($Q$8:Q21),IF(AND(C22>$AL$1,$AC$3=$AL$2),BO23,IF($AO$18=$AO$20,$AO$21,ROUND((H22+I22)*10%,0))))))),"") -> 2370 | R22: 2189 | S22: =IFERROR(IF(C22="","",IF($AO$16=$AO$17,0,IF($C22="TOTAL",SUM($S$8:S21),IF($AO$19=$AO$31,0,IF(AND($AO$32=$AO$20,C22=$AO$33),$AO$34,S21))))),"") -> 0 | T22: =IFERROR(IF(C22="","",IF($AO$16=$AO$17,0,IF($C22="TOTAL",SUM($T$8:T21),IF($AO$19=$AO$20,$AO$24,0)))),"") -> 0 | U22: 0 | V22: =IF(C22="","",IF($C22="TOTAL",SUM($V$8:V21),IF(AND($AO$2=$AO$20,C22=$AO$1),ROUND(D22/31*$AP$2,0),IF(C22=$AM$6,ROUND((G22)*1/30,0),IF(C22=$AN$6,ROUND((G22)*1/31,0),""))))) ->  | W22: =IF(C22="","",IF($C22="TOTAL",SUM($W$8:W21),IF(AND($AO$2=$AO$20,C22=$AO$1),ROUND(H22/31*$AP$2,0),IF(C22=$AM$6,ROUND((K22)*1/30,0),IF(C22=$AN$6,ROUND((K22)*1/31,0),""))))) ->  | Y22: =IFERROR(IF(C22="","",IF(AND(BH23="",BO23=""),"",IF($C22="TOTAL",SUM($Y$8:Y21),BH23))),"") ->  | Z22: =IFERROR(IF(C22="","",IF($C22="TOTAL",SUM($Z$8:Z21),ROUND(O22*$AO$7%,0))),"") -> 0 | AA22: =IFERROR(IF(C22="","",IF($C22="TOTAL",SUM($AA$8:AA21),IF($AC$3=$AL$2,SUM(U22,X22,Y22,Z22),SUM(R22,U22,X22,Y22,Z22)))),"") -> 0 | AB22: =IFERROR(IF(C22="","",IF($C22="TOTAL",SUM($AB$8:AB21),SUM(O22-AA22))),"") -> 25020 | AK22: 31 | AL22: 31 | AM22: 2017-07-01 | AN22: 2018-02-01 | AO22: ='Master Sheet'!K21 -> 3675 | AP22: 2021-11-01 | AQ22: 2021-11-01 | AS22: 2021-11-01 | AT22: 2021-11-01 | AU22: 34800 | AV22: 10788 | AW22: 3132 | AY22: 23700 | AZ22: 0 | BA22: 0 | BB22: 0 | BE22: 25020 | BF22: 3675 | BI22: 0 | BJ22: 0
A23: 16 | B23: 16 | C23: 2022-01-01 | D23: =IFERROR(IF($C22="TOTAL","अक्षरें राशि :-",IF($C23="TOTAL",SUM($D$8:D22),IF(AU24="","",AU24))),"") -> 34800 | E23: =IFERROR(IF($C23="TOTAL",SUM($E$8:E22),IF(AV24="","",AV24)),"") -> 11832 | F23: =IFERROR(IF($C23="TOTAL",SUM($F$8:F22),IF(OR(C23=$AM$16,C23=$AM$17,C23=$AM$18,C23=$AM$19,C23=$AM$20,C23=$AM$21,C23=$AM$22,C23=$AM$23,C23=$AM$24),0,IF(AW24="","",AW24))),"") -> 3132 | G23: 49764 | H23: =IFERROR(IF($C23="TOTAL",SUM($H$8:H22),IF(AY24="","",AY24)),"") -> 23700 | I23: =IFERROR(IF($C23="TOTAL",SUM($I$8:I22),IF(AZ24="","",AZ24)),"") -> 0 | J23: =IFERROR(IF($C23="TOTAL",SUM($J$8:J22),IF(OR(C23=$AM$16,C23=$AM$17,C23=$AM$18,C23=$AM$19,C23=$AM$20,C23=$AM$21,C23=$AM$22,C23=$AM$23,C23=$AM$24),0,IF(BA24="","",BA24))),"") -> 0 | K23: 23700 | L23: =IFERROR(IF(C23="","",IF(D23="","",IF(H23="","",IF($C23="TOTAL",SUM($L$8:L22),SUM(D23-H23))))),"") -> 11100 | M23: =IFERROR(IF(C23="","",IF(E23="","",IF(I23="","",IF($C23="TOTAL",SUM($M$8:M22),SUM(E23-I23))))),"") -> 11832 | N23: =IFERROR(IF(C23="","",IF(F23="","",IF(J23="","",IF($C23="TOTAL",SUM($N$8:N22),SUM(F23-J23))))),"") -> 3132 | O23: 26064 | P23: =IFERROR(IF(C23="","",IF($C23="TOTAL",SUM($P$8:P22),IF(AND(C23>$AL$1,$AC$3=$AL$2),BO24,IF($AO$18=$AO$20,SUM(BB24+BJ24),ROUND((D23+E23)*10%,0))))),"") -> 4663 | Q23: =IFERROR(IF(C23="","",IF(H23="","",IF(I23="","",IF($C23="TOTAL",SUM($Q$8:Q22),IF(AND(C23>$AL$1,$AC$3=$AL$2),BO24,IF($AO$18=$AO$20,$AO$21,ROUND((H23+I23)*10%,0))))))),"") -> 2370 | R23: 2293 | S23: =IFERROR(IF(C23="","",IF($AO$16=$AO$17,0,IF($C23="TOTAL",SUM($S$8:S22),IF($AO$19=$AO$31,0,IF(AND($AO$32=$AO$20,C23=$AO$33),$AO$34,S22))))),"") -> 0 | T23: =IFERROR(IF(C23="","",IF($AO$16=$AO$17,0,IF($C23="TOTAL",SUM($T$8:T22),IF($AO$19=$AO$20,$AO$24,0)))),"") -> 0 | U23: 0 | V23: =IF(C23="","",IF($C23="TOTAL",SUM($V$8:V22),IF(AND($AO$2=$AO$20,C23=$AO$1),ROUND(D23/31*$AP$2,0),IF(C23=$AM$6,ROUND((G23)*1/30,0),IF(C23=$AN$6,ROUND((G23)*1/31,0),""))))) ->  | W23: =IF(C23="","",IF($C23="TOTAL",SUM($W$8:W22),IF(AND($AO$2=$AO$20,C23=$AO$1),ROUND(H23/31*$AP$2,0),IF(C23=$AM$6,ROUND((K23)*1/30,0),IF(C23=$AN$6,ROUND((K23)*1/31,0),""))))) ->  | Y23: =IFERROR(IF(C23="","",IF(AND(BH24="",BO24=""),"",IF($C23="TOTAL",SUM($Y$8:Y22),BH24))),"") ->  | Z23: =IFERROR(IF(C23="","",IF($C23="TOTAL",SUM($Z$8:Z22),ROUND(O23*$AO$7%,0))),"") -> 0 | AA23: =IFERROR(IF(C23="","",IF($C23="TOTAL",SUM($AA$8:AA22),IF($AC$3=$AL$2,SUM(U23,X23,Y23,Z23),SUM(R23,U23,X23,Y23,Z23)))),"") -> 0 | AB23: =IFERROR(IF(C23="","",IF($C23="TOTAL",SUM($AB$8:AB22),SUM(O23-AA23))),"") -> 26064 | AK23: 31 | AL23: 31 | AM23: 2017-08-01 | AN23: 2018-03-01 | AP23: 2021-12-01 | AQ23: 2021-12-01 | AS23: 2021-12-01 | AT23: 2021-12-01 | AU23: 34800 | AV23: 10788 | AW23: 3132 | AY23: 23700 | AZ23: 0 | BA23: 0 | BB23: 0 | BE23: 25020 | BF23: 3675 | BI23: 0 | BJ23: 0
A24: 17 | B24: 17 | C24: 2022-02-01 | D24: =IFERROR(IF($C23="TOTAL","अक्षरें राशि :-",IF($C24="TOTAL",SUM($D$8:D23),IF(AU25="","",AU25))),"") -> 34800 | E24: =IFERROR(IF($C24="TOTAL",SUM($E$8:E23),IF(AV25="","",AV25)),"") -> 11832 | F24: =IFERROR(IF($C24="TOTAL",SUM($F$8:F23),IF(OR(C24=$AM$16,C24=$AM$17,C24=$AM$18,C24=$AM$19,C24=$AM$20,C24=$AM$21,C24=$AM$22,C24=$AM$23,C24=$AM$24),0,IF(AW25="","",AW25))),"") -> 3132 | G24: 49764 | H24: =IFERROR(IF($C24="TOTAL",SUM($H$8:H23),IF(AY25="","",AY25)),"") -> 23700 | I24: =IFERROR(IF($C24="TOTAL",SUM($I$8:I23),IF(AZ25="","",AZ25)),"") -> 0 | J24: =IFERROR(IF($C24="TOTAL",SUM($J$8:J23),IF(OR(C24=$AM$16,C24=$AM$17,C24=$AM$18,C24=$AM$19,C24=$AM$20,C24=$AM$21,C24=$AM$22,C24=$AM$23,C24=$AM$24),0,IF(BA25="","",BA25))),"") -> 0 | K24: 23700 | L24: =IFERROR(IF(C24="","",IF(D24="","",IF(H24="","",IF($C24="TOTAL",SUM($L$8:L23),SUM(D24-H24))))),"") -> 11100 | M24: =IFERROR(IF(C24="","",IF(E24="","",IF(I24="","",IF($C24="TOTAL",SUM($M$8:M23),SUM(E24-I24))))),"") -> 11832 | N24: =IFERROR(IF(C24="","",IF(F24="","",IF(J24="","",IF($C24="TOTAL",SUM($N$8:N23),SUM(F24-J24))))),"") -> 3132 | O24: 26064 | P24: =IFERROR(IF(C24="","",IF($C24="TOTAL",SUM($P$8:P23),IF(AND(C24>$AL$1,$AC$3=$AL$2),BO25,IF($AO$18=$AO$20,SUM(BB25+BJ25),ROUND((D24+E24)*10%,0))))),"") -> 4663 | Q24: =IFERROR(IF(C24="","",IF(H24="","",IF(I24="","",IF($C24="TOTAL",SUM($Q$8:Q23),IF(AND(C24>$AL$1,$AC$3=$AL$2),BO25,IF($AO$18=$AO$20,$AO$21,ROUND((H24+I24)*10%,0))))))),"") -> 2370 | R24: 2293 | S24: =IFERROR(IF(C24="","",IF($AO$16=$AO$17,0,IF($C24="TOTAL",SUM($S$8:S23),IF($AO$19=$AO$31,0,IF(AND($AO$32=$AO$20,C24=$AO$33),$AO$34,S23))))),"") -> 0 | T24: =IFERROR(IF(C24="","",IF($AO$16=$AO$17,0,IF($C24="TOTAL",SUM($T$8:T23),IF($AO$19=$AO$20,$AO$24,0)))),"") -> 0 | U24: 0 | V24: =IF(C24="","",IF($C24="TOTAL",SUM($V$8:V23),IF(AND($AO$2=$AO$20,C24=$AO$1),ROUND(D24/31*$AP$2,0),IF(C24=$AM$6,ROUND((G24)*1/30,0),IF(C24=$AN$6,ROUND((G24)*1/31,0),""))))) ->  | W24: =IF(C24="","",IF($C24="TOTAL",SUM($W$8:W23),IF(AND($AO$2=$AO$20,C24=$AO$1),ROUND(H24/31*$AP$2,0),IF(C24=$AM$6,ROUND((K24)*1/30,0),IF(C24=$AN$6,ROUND((K24)*1/31,0),""))))) ->  | Y24: =IFERROR(IF(C24="","",IF(AND(BH25="",BO25=""),"",IF($C24="TOTAL",SUM($Y$8:Y23),BH25))),"") ->  | Z24: =IFERROR(IF(C24="","",IF($C24="TOTAL",SUM($Z$8:Z23),ROUND(O24*$AO$7%,0))),"") -> 0 | AA24: =IFERROR(IF(C24="","",IF($C24="TOTAL",SUM($AA$8:AA23),IF($AC$3=$AL$2,SUM(U24,X24,Y24,Z24),SUM(R24,U24,X24,Y24,Z24)))),"") -> 0 | AB24: =IFERROR(IF(C24="","",IF($C24="TOTAL",SUM($AB$8:AB23),SUM(O24-AA24))),"") -> 26064 | AK24: 34 | AL24: 34 | AM24: 2017-09-01 | AN24: 2018-04-01 | AO24: ='Master Sheet'!G17 -> 2100 | AP24: 2022-01-01 | AQ24: 2022-01-01 | AS24: 2022-01-01 | AT24: 2022-01-01 | AU24: 34800 | AV24: 11832 | AW24: 3132 | AY24: 23700 | AZ24: 0 | BA24: 0 | BB24: 0 | BE24: 26064 | BF24: 3675 | BI24: 0 | BJ24: 0
A25: =IF(C25="TOTAL","",IF(B24="","",IF(LEN(C25)>=2,B24+1,0))) -> 18 | B25: 18 | C25: 2022-03-01 | D25: =IFERROR(IF($C24="TOTAL","अक्षरें राशि :-",IF($C25="TOTAL",SUM($D$8:D24),IF(AU26="","",AU26))),"") -> 34800 | E25: =IFERROR(IF($C25="TOTAL",SUM($E$8:E24),IF(AV26="","",AV26)),"") -> 11832 | F25: =IFERROR(IF($C25="TOTAL",SUM($F$8:F24),IF(OR(C25=$AM$16,C25=$AM$17,C25=$AM$18,C25=$AM$19,C25=$AM$20,C25=$AM$21,C25=$AM$22,C25=$AM$23,C25=$AM$24),0,IF(AW26="","",AW26))),"") -> 3132 | G25: 49764 | H25: =IFERROR(IF($C25="TOTAL",SUM($H$8:H24),IF(AY26="","",AY26)),"") -> 23700 | I25: =IFERROR(IF($C25="TOTAL",SUM($I$8:I24),IF(AZ26="","",AZ26)),"") -> 0 | J25: =IFERROR(IF($C25="TOTAL",SUM($J$8:J24),IF(OR(C25=$AM$16,C25=$AM$17,C25=$AM$18,C25=$AM$19,C25=$AM$20,C25=$AM$21,C25=$AM$22,C25=$AM$23,C25=$AM$24),0,IF(BA26="","",BA26))),"") -> 0 | K25: 23700 | L25: =IFERROR(IF(C25="","",IF(D25="","",IF(H25="","",IF($C25="TOTAL",SUM($L$8:L24),SUM(D25-H25))))),"") -> 11100 | M25: =IFERROR(IF(C25="","",IF(E25="","",IF(I25="","",IF($C25="TOTAL",SUM($M$8:M24),SUM(E25-I25))))),"") -> 11832 | N25: =IFERROR(IF(C25="","",IF(F25="","",IF(J25="","",IF($C25="TOTAL",SUM($N$8:N24),SUM(F25-J25))))),"") -> 3132 | O25: 26064 | P25: =IFERROR(IF(C25="","",IF($C25="TOTAL",SUM($P$8:P24),IF(AND(C25>$AL$1,$AC$3=$AL$2),BO26,IF($AO$18=$AO$20,SUM(BB26+BJ26),ROUND((D25+E25)*10%,0))))),"") -> 4663 | Q25: =IFERROR(IF(C25="","",IF(H25="","",IF(I25="","",IF($C25="TOTAL",SUM($Q$8:Q24),IF(AND(C25>$AL$1,$AC$3=$AL$2),BO26,IF($AO$18=$AO$20,$AO$21,ROUND((H25+I25)*10%,0))))))),"") -> 2370 | R25: 2293 | S25: =IFERROR(IF(C25="","",IF($AO$16=$AO$17,0,IF($C25="TOTAL",SUM($S$8:S24),IF($AO$19=$AO$31,0,IF(AND($AO$32=$AO$20,C25=$AO$33),$AO$34,S24))))),"") -> 0 | T25: =IFERROR(IF(C25="","",IF($AO$16=$AO$17,0,IF($C25="TOTAL",SUM($T$8:T24),IF($AO$19=$AO$20,$AO$24,0)))),"") -> 0 | U25: 0 | V25: =IF(C25="","",IF($C25="TOTAL",SUM($V$8:V24),IF(AND($AO$2=$AO$20,C25=$AO$1),ROUND(D25/31*$AP$2,0),IF(C25=$AM$6,ROUND((G25)*1/30,0),IF(C25=$AN$6,ROUND((G25)*1/31,0),""))))) ->  | W25: =IF(C25="","",IF($C25="TOTAL",SUM($W$8:W24),IF(AND($AO$2=$AO$20,C25=$AO$1),ROUND(H25/31*$AP$2,0),IF(C25=$AM$6,ROUND((K25)*1/30,0),IF(C25=$AN$6,ROUND((K25)*1/31,0),""))))) ->  | Y25: =IFERROR(IF(C25="","",IF(AND(BH26="",BO26=""),"",IF($C25="TOTAL",SUM($Y$8:Y24),BH26))),"") ->  | Z25: =IFERROR(IF(C25="","",IF($C25="TOTAL",SUM($Z$8:Z24),ROUND(O25*$AO$7%,0))),"") -> 0 | AA25: =IFERROR(IF(C25="","",IF($C25="TOTAL",SUM($AA$8:AA24),IF($AC$3=$AL$2,SUM(U25,X25,Y25,Z25),SUM(R25,U25,X25,Y25,Z25)))),"") -> 0 | AB25: =IFERROR(IF(C25="","",IF($C25="TOTAL",SUM($AB$8:AB24),SUM(O25-AA25))),"") -> 26064 | AK25: 34 | AL25: 34 | AN25: 2018-05-01 | AO25: ='Master Sheet'!K17 -> 2100 | AP25: 2022-02-01 | AQ25: 2022-02-01 | AS25: 2022-02-01 | AT25: 2022-02-01 | AU25: 34800 | AV25: 11832 | AW25: 3132 | AY25: 23700 | AZ25: 0 | BA25: 0 | BB25: 0 | BE25: 26064 | BF25: 3675 | BI25: 0 | BJ25: 0
A26: =IF(C26="TOTAL","",IF(B25="","",IF(LEN(C26)>=2,B25+1,0))) -> 19 | B26: 19 | C26: 2022-04-01 | D26: =IFERROR(IF($C25="TOTAL","अक्षरें राशि :-",IF($C26="TOTAL",SUM($D$8:D25),IF(AU27="","",AU27))),"") -> 34800 | E26: =IFERROR(IF($C26="TOTAL",SUM($E$8:E25),IF(AV27="","",AV27)),"") -> 11832 | F26: =IFERROR(IF($C26="TOTAL",SUM($F$8:F25),IF(OR(C26=$AM$16,C26=$AM$17,C26=$AM$18,C26=$AM$19,C26=$AM$20,C26=$AM$21,C26=$AM$22,C26=$AM$23,C26=$AM$24),0,IF(AW27="","",AW27))),"") -> 3132 | G26: 49764 | H26: =IFERROR(IF($C26="TOTAL",SUM($H$8:H25),IF(AY27="","",AY27)),"") -> 23700 | I26: =IFERROR(IF($C26="TOTAL",SUM($I$8:I25),IF(AZ27="","",AZ27)),"") -> 0 | J26: =IFERROR(IF($C26="TOTAL",SUM($J$8:J25),IF(OR(C26=$AM$16,C26=$AM$17,C26=$AM$18,C26=$AM$19,C26=$AM$20,C26=$AM$21,C26=$AM$22,C26=$AM$23,C26=$AM$24),0,IF(BA27="","",BA27))),"") -> 0 | K26: 23700 | L26: =IFERROR(IF(C26="","",IF(D26="","",IF(H26="","",IF($C26="TOTAL",SUM($L$8:L25),SUM(D26-H26))))),"") -> 11100 | M26: =IFERROR(IF(C26="","",IF(E26="","",IF(I26="","",IF($C26="TOTAL",SUM($M$8:M25),SUM(E26-I26))))),"") -> 11832 | N26: =IFERROR(IF(C26="","",IF(F26="","",IF(J26="","",IF($C26="TOTAL",SUM($N$8:N25),SUM(F26-J26))))),"") -> 3132 | O26: 26064 | P26: =IFERROR(IF(C26="","",IF($C26="TOTAL",SUM($P$8:P25),IF(AND(C26>$AL$1,$AC$3=$AL$2),BO27,IF($AO$18=$AO$20,SUM(BB27+BJ27),ROUND((D26+E26)*10%,0))))),"") -> 2100 | Q26: =IFERROR(IF(C26="","",IF(H26="","",IF(I26="","",IF($C26="TOTAL",SUM($Q$8:Q25),IF(AND(C26>$AL$1,$AC$3=$AL$2),BO27,IF($AO$18=$AO$20,$AO$21,ROUND((H26+I26)*10%,0))))))),"") -> 2100 | R26: 0 | S26: =IFERROR(IF(C26="","",IF($AO$16=$AO$17,0,IF($C26="TOTAL",SUM($S$8:S25),IF($AO$19=$AO$31,0,IF(AND($AO$32=$AO$20,C26=$AO$33),$AO$34,S25))))),"") -> 0 | T26: =IFERROR(IF(C26="","",IF($AO$16=$AO$17,0,IF($C26="TOTAL",SUM($T$8:T25),IF($AO$19=$AO$20,$AO$24,0)))),"") -> 0 | U26: 0 | V26: =IF(C26="","",IF($C26="TOTAL",SUM($V$8:V25),IF(AND($AO$2=$AO$20,C26=$AO$1),ROUND(D26/31*$AP$2,0),IF(C26=$AM$6,ROUND((G26)*1/30,0),IF(C26=$AN$6,ROUND((G26)*1/31,0),""))))) ->  | W26: =IF(C26="","",IF($C26="TOTAL",SUM($W$8:W25),IF(AND($AO$2=$AO$20,C26=$AO$1),ROUND(H26/31*$AP$2,0),IF(C26=$AM$6,ROUND((K26)*1/30,0),IF(C26=$AN$6,ROUND((K26)*1/31,0),""))))) ->  | Y26: =IFERROR(IF(C26="","",IF(AND(BH27="",BO27=""),"",IF($C26="TOTAL",SUM($Y$8:Y25),BH27))),"") ->  | Z26: =IFERROR(IF(C26="","",IF($C26="TOTAL",SUM($Z$8:Z25),ROUND(O26*$AO$7%,0))),"") -> 0 | AA26: =IFERROR(IF(C26="","",IF($C26="TOTAL",SUM($AA$8:AA25),IF($AC$3=$AL$2,SUM(U26,X26,Y26,Z26),SUM(R26,U26,X26,Y26,Z26)))),"") -> 0 | AB26: =IFERROR(IF(C26="","",IF($C26="TOTAL",SUM($AB$8:AB25),SUM(O26-AA26))),"") -> 26064 | AK26: 34 | AL26: 34 | AN26: 2018-06-01 | AO26: ='Master Sheet'!G15 -> NO | AP26: 2022-03-01 | AQ26: 2022-03-01 | AR26: =IF(AND(AP26=""),"",IF(AND(AP26=$AN$72),$AP$72,IF(AND(AP26=$AN$73),$AN$73,IF(AND(AP26=$AN$74),$AN$74,IF(AND(AP26=$AN$75),$AN$75,IF(AND(AP26=$AN$76),$AN$76,IF(AND(AP26=$AN$77),$AN$77,IF(AND(AP26=$AN$78),$AN$78,IF(AND(AP26=$AN$79),$AN$79,IF(AND(AP26=$AN$80),$AN$80,IF(AND(AP26=$AN$81),$AN$81,IF(AND(AP26=$AN$82),$AN$82,IF(AND(AP26=$AN$83),$AN$83,IF(AND(AP26=$AN$84),$AN$84,IF(AND(AP26=$AN$85),$AN$85,IF(AND(AP26=$AN$86),$AN$86,IF(AND(AP26=$AN$87),$AN$87,IF(AND(AP26=$AN$88),$AN$88,IF(AND(AP26=$AN$89),$AN$89,IF(AND(AP26=$AN$90),$AN$90,IF(AND(AP26=$AN$91),$AN$91,""))))))))))))))))))))) ->  | AS26: 2022-03-01 | AT26: =IFERROR(IF(AS26="","",IF(DATE(YEAR(AS26),MONTH(AS26),DAY(AS26))=DATE(YEAR($AP$6),MONTH($AP$6)+1,DAY($AP$6)),"TOTAL",IF(AS26>$AP$6,"",AS26))),"") -> 2022-03-01 | AU26: 34800 | AV26: 11832 | AW26: 3132 | AY26: 23700 | AZ26: 0 | BA26: 0 | BB26: 0 | BE26: 26064 | BF26: 3675 | BI26: 0 | BJ26: 0
A27: 20 | B27: 20 | C27: 2022-05-01 | D27: =IFERROR(IF($C26="TOTAL","अक्षरें राशि :-",IF($C27="TOTAL",SUM($D$8:D26),IF(AU28="","",AU28))),"") -> 34800 | E27: =IFERROR(IF($C27="TOTAL",SUM($E$8:E26),IF(AV28="","",AV28)),"") -> 11832 | F27: =IFERROR(IF($C27="TOTAL",SUM($F$8:F26),IF(OR(C27=$AM$16,C27=$AM$17,C27=$AM$18,C27=$AM$19,C27=$AM$20,C27=$AM$21,C27=$AM$22,C27=$AM$23,C27=$AM$24),0,IF(AW28="","",AW28))),"") -> 3132 | G27: 49764 | H27: =IFERROR(IF($C27="TOTAL",SUM($H$8:H26),IF(AY28="","",AY28)),"") -> 23700 | I27: =IFERROR(IF($C27="TOTAL",SUM($I$8:I26),IF(AZ28="","",AZ28)),"") -> 0 | J27: =IFERROR(IF($C27="TOTAL",SUM($J$8:J26),IF(OR(C27=$AM$16,C27=$AM$17,C27=$AM$18,C27=$AM$19,C27=$AM$20,C27=$AM$21,C27=$AM$22,C27=$AM$23,C27=$AM$24),0,IF(BA28="","",BA28))),"") -> 0 | K27: 23700 | L27: =IFERROR(IF(C27="","",IF(D27="","",IF(H27="","",IF($C27="TOTAL",SUM($L$8:L26),SUM(D27-H27))))),"") -> 11100 | M27: =IFERROR(IF(C27="","",IF(E27="","",IF(I27="","",IF($C27="TOTAL",SUM($M$8:M26),SUM(E27-I27))))),"") -> 11832 | N27: =IFERROR(IF(C27="","",IF(F27="","",IF(J27="","",IF($C27="TOTAL",SUM($N$8:N26),SUM(F27-J27))))),"") -> 3132 | O27: 26064 | P27: =IFERROR(IF(C27="","",IF($C27="TOTAL",SUM($P$8:P26),IF(AND(C27>$AL$1,$AC$3=$AL$2),BO28,IF($AO$18=$AO$20,SUM(BB28+BJ28),ROUND((D27+E27)*10%,0))))),"") -> 2100 | Q27: =IFERROR(IF(C27="","",IF(H27="","",IF(I27="","",IF($C27="TOTAL",SUM($Q$8:Q26),IF(AND(C27>$AL$1,$AC$3=$AL$2),BO28,IF($AO$18=$AO$20,$AO$21,ROUND((H27+I27)*10%,0))))))),"") -> 2100 | R27: 0 | S27: =IFERROR(IF(C27="","",IF($AO$16=$AO$17,0,IF($C27="TOTAL",SUM($S$8:S26),IF($AO$19=$AO$31,0,IF(AND($AO$32=$AO$20,C27=$AO$33),$AO$34,S26))))),"") -> 0 | T27: =IFERROR(IF(C27="","",IF($AO$16=$AO$17,0,IF($C27="TOTAL",SUM($T$8:T26),IF($AO$19=$AO$20,$AO$24,0)))),"") -> 0 | U27: 0 | V27: =IF(C27="","",IF($C27="TOTAL",SUM($V$8:V26),IF(AND($AO$2=$AO$20,C27=$AO$1),ROUND(D27/31*$AP$2,0),IF(C27=$AM$6,ROUND((G27)*1/30,0),IF(C27=$AN$6,ROUND((G27)*1/31,0),""))))) ->  | W27: =IF(C27="","",IF($C27="TOTAL",SUM($W$8:W26),IF(AND($AO$2=$AO$20,C27=$AO$1),ROUND(H27/31*$AP$2,0),IF(C27=$AM$6,ROUND((K27)*1/30,0),IF(C27=$AN$6,ROUND((K27)*1/31,0),""))))) ->  | Y27: =IFERROR(IF(C27="","",IF(AND(BH28="",BO28=""),"",IF($C27="TOTAL",SUM($Y$8:Y26),BH28))),"") ->  | Z27: =IFERROR(IF(C27="","",IF($C27="TOTAL",SUM($Z$8:Z26),ROUND(O27*$AO$7%,0))),"") -> 0 | AA27: =IFERROR(IF(C27="","",IF($C27="TOTAL",SUM($AA$8:AA26),IF($AC$3=$AL$2,SUM(U27,X27,Y27,Z27),SUM(R27,U27,X27,Y27,Z27)))),"") -> 0 | AB27: =IFERROR(IF(C27="","",IF($C27="TOTAL",SUM($AB$8:AB26),SUM(O27-AA27))),"") -> 26064 | AK27: 34 | AL27: 34 | AN27: 2018-07-01 | AO27: ='Master Sheet'!K15 -> 30500 | AP27: 2022-04-01 | AR27: =IF(AND(AP27=""),"",IF(AND(AP27=$AN$72),$AN$72,IF(AND(AP27=$AN$73),$AN$73,IF(AND(AP27=$AN$74),$AN$74,IF(AND(AP27=$AN$75),$AN$75,IF(AND(AP27=$AN$76),$AN$76,IF(AND(AP27=$AN$77),$AN$77,IF(AND(AP27=$AN$78),$AN$78,IF(AND(AP27=$AN$79),$AN$79,IF(AND(AP27=$AN$80),$AN$80,IF(AND(AP27=$AN$81),$AN$81,IF(AND(AP27=$AN$82),$AN$82,IF(AND(AP27=$AN$83),$AN$83,IF(AND(AP27=$AN$84),$AN$84,IF(AND(AP27=$AN$85),$AN$85,IF(AND(AP27=$AN$86),$AN$86,IF(AND(AP27=$AN$87),$AN$87,IF(AND(AP27=$AN$88),$AN$88,IF(AND(AP27=$AN$89),$AN$89,IF(AND(AP27=$AN$90),$AN$90,IF(AND(AP27=$AN$91),$AN$91,""))))))))))))))))))))) -> 2022-04-01 | AS27: 2022-04-01 | AT27: 2022-04-01 | AU27: 34800 | AV27: 11832 | AW27: 3132 | AY27: 23700 | AZ27: 0 | BA27: 0 | BB27: 0 | BE27: 26064 | BF27: 3675 | BI27: 0 | BJ27: 0 | BO27: 2100
A28: 21 | B28: 21 | C28: 2022-06-01 | D28: =IFERROR(IF($C27="TOTAL","अक्षरें राशि :-",IF($C28="TOTAL",SUM($D$8:D27),IF(AU29="","",AU29))),"") -> 34800 | E28: =IFERROR(IF($C28="TOTAL",SUM($E$8:E27),IF(AV29="","",AV29)),"") -> 11832 | F28: =IFERROR(IF($C28="TOTAL",SUM($F$8:F27),IF(OR(C28=$AM$16,C28=$AM$17,C28=$AM$18,C28=$AM$19,C28=$AM$20,C28=$AM$21,C28=$AM$22,C28=$AM$23,C28=$AM$24),0,IF(AW29="","",AW29))),"") -> 3132 | G28: 49764 | H28: =IFERROR(IF($C28="TOTAL",SUM($H$8:H27),IF(AY29="","",AY29)),"") -> 23700 | I28: =IFERROR(IF($C28="TOTAL",SUM($I$8:I27),IF(AZ29="","",AZ29)),"") -> 0 | J28: =IFERROR(IF($C28="TOTAL",SUM($J$8:J27),IF(OR(C28=$AM$16,C28=$AM$17,C28=$AM$18,C28=$AM$19,C28=$AM$20,C28=$AM$21,C28=$AM$22,C28=$AM$23,C28=$AM$24),0,IF(BA29="","",BA29))),"") -> 0 | K28: 23700 | L28: =IFERROR(IF(C28="","",IF(D28="","",IF(H28="","",IF($C28="TOTAL",SUM($L$8:L27),SUM(D28-H28))))),"") -> 11100 | M28: =IFERROR(IF(C28="","",IF(E28="","",IF(I28="","",IF($C28="TOTAL",SUM($M$8:M27),SUM(E28-I28))))),"") -> 11832 | N28: =IFERROR(IF(C28="","",IF(F28="","",IF(J28="","",IF($C28="TOTAL",SUM($N$8:N27),SUM(F28-J28))))),"") -> 3132 | O28: 26064 | P28: =IFERROR(IF(C28="","",IF($C28="TOTAL",SUM($P$8:P27),IF(AND(C28>$AL$1,$AC$3=$AL$2),BO29,IF($AO$18=$AO$20,SUM(BB29+BJ29),ROUND((D28+E28)*10%,0))))),"") -> 2100 | Q28: =IFERROR(IF(C28="","",IF(H28="","",IF(I28="","",IF($C28="TOTAL",SUM($Q$8:Q27),IF(AND(C28>$AL$1,$AC$3=$AL$2),BO29,IF($AO$18=$AO$20,$AO$21,ROUND((H28+I28)*10%,0))))))),"") -> 2100 | R28: 0 | S28: =IFERROR(IF(C28="","",IF($AO$16=$AO$17,0,IF($C28="TOTAL",SUM($S$8:S27),IF($AO$19=$AO$31,0,IF(AND($AO$32=$AO$20,C28=$AO$33),$AO$34,S27))))),"") -> 0 | T28: =IFERROR(IF(C28="","",IF($AO$16=$AO$17,0,IF($C28="TOTAL",SUM($T$8:T27),IF($AO$19=$AO$20,$AO$24,0)))),"") -> 0 | U28: 0 | V28: =IF(C28="","",IF($C28="TOTAL",SUM($V$8:V27),IF(AND($AO$2=$AO$20,C28=$AO$1),ROUND(D28/31*$AP$2,0),IF(C28=$AM$6,ROUND((G28)*1/30,0),IF(C28=$AN$6,ROUND((G28)*1/31,0),""))))) ->  | W28: =IF(C28="","",IF($C28="TOTAL",SUM($W$8:W27),IF(AND($AO$2=$AO$20,C28=$AO$1),ROUND(H28/31*$AP$2,0),IF(C28=$AM$6,ROUND((K28)*1/30,0),IF(C28=$AN$6,ROUND((K28)*1/31,0),""))))) ->  | Y28: =IFERROR(IF(C28="","",IF(AND(BH29="",BO29=""),"",IF($C28="TOTAL",SUM($Y$8:Y27),BH29))),"") ->  | Z28: =IFERROR(IF(C28="","",IF($C28="TOTAL",SUM($Z$8:Z27),ROUND(O28*$AO$7%,0))),"") -> 0 | AA28: =IFERROR(IF(C28="","",IF($C28="TOTAL",SUM($AA$8:AA27),IF($AC$3=$AL$2,SUM(U28,X28,Y28,Z28),SUM(R28,U28,X28,Y28,Z28)))),"") -> 0 | AB28: =IFERROR(IF(C28="","",IF($C28="TOTAL",SUM($AB$8:AB27),SUM(O28-AA28))),"") -> 26064 | AK28: 34 | AL28: 34 | AN28: 2018-08-01 | AO28: ='Master Sheet'!D25 -> NO | AP28: 2022-05-01 | AR28: =IF(AND(AP28=""),"",IF(AND(AP28=$AN$72),$AN$72,IF(AND(AP28=$AN$73),$AN$73,IF(AND(AP28=$AN$74),$AN$74,IF(AND(AP28=$AN$75),$AN$75,IF(AND(AP28=$AN$76),$AN$76,IF(AND(AP28=$AN$77),$AN$77,IF(AND(AP28=$AN$78),$AN$78,IF(AND(AP28=$AN$79),$AN$79,IF(AND(AP28=$AN$80),$AN$80,IF(AND(AP28=$AN$81),$AN$81,IF(AND(AP28=$AN$82),$AN$82,IF(AND(AP28=$AN$83),$AN$83,IF(AND(AP28=$AN$84),$AN$84,IF(AND(AP28=$AN$85),$AN$85,IF(AND(AP28=$AN$86),$AN$86,IF(AND(AP28=$AN$87),$AN$87,IF(AND(AP28=$AN$88),$AN$88,IF(AND(AP28=$AN$89),$AN$89,IF(AND(AP28=$AN$90),$AN$90,IF(AND(AP28=$AN$91),$AN$91,""))))))))))))))))))))) -> 2022-05-01 | AS28: 2022-05-01 | AT28: 2022-05-01 | AU28: 34800 | AV28: 11832 | AW28: 3132 | AY28: 23700 | AZ28: 0 | BA28: 0 | BB28: 0 | BE28: 26064 | BF28: 3675 | BI28: 0 | BJ28: 0 | BO28: 2100
C29: TOTAL | D29: =IFERROR(IF($C28="TOTAL","अक्षरें राशि :-",IF($C29="TOTAL",SUM($D$8:D28),IF(AU30="","",AU30))),"") -> 717439 | E29: =IFERROR(IF($C29="TOTAL",SUM($E$8:E28),IF(AV30="","",AV30)),"") -> 186693 | F29: =IFERROR(IF($C29="TOTAL",SUM($F$8:F28),IF(OR(C29=$AM$16,C29=$AM$17,C29=$AM$18,C29=$AM$19,C29=$AM$20,C29=$AM$21,C29=$AM$22,C29=$AM$23,C29=$AM$24),0,IF(AW30="","",AW30))),"") -> 61571 | G29: 965703 | H29: =IFERROR(IF($C29="TOTAL",SUM($H$8:H28),IF(AY30="","",AY30)),"") -> 494642 | I29: =IFERROR(IF($C29="TOTAL",SUM($I$8:I28),IF(AZ30="","",AZ30)),"") -> 0 | J29: =IFERROR(IF($C29="TOTAL",SUM($J$8:J28),IF(OR(C29=$AM$16,C29=$AM$17,C29=$AM$18,C29=$AM$19,C29=$AM$20,C29=$AM$21,C29=$AM$22,C29=$AM$23,C29=$AM$24),0,IF(BA30="","",BA30))),"") -> 0 | K29: 494642 | L29: =IFERROR(IF(C29="","",IF(D29="","",IF(H29="","",IF($C29="TOTAL",SUM($L$8:L28),SUM(D29-H29))))),"") -> 222797 | M29: =IFERROR(IF(C29="","",IF(E29="","",IF(I29="","",IF($C29="TOTAL",SUM($M$8:M28),SUM(E29-I29))))),"") -> 186693 | N29: =IFERROR(IF(C29="","",IF(F29="","",IF(J29="","",IF($C29="TOTAL",SUM($N$8:N28),SUM(F29-J29))))),"") -> 61571 | O29: 471061 | P29: =IFERROR(IF(C29="","",IF($C29="TOTAL",SUM($P$8:P28),IF(AND(C29>$AL$1,$AC$3=$AL$2),BO30,IF($AO$18=$AO$20,SUM(BB30+BJ30),ROUND((D29+E29)*10%,0))))),"") -> 82727 | Q29: =IFERROR(IF(C29="","",IF(H29="","",IF(I29="","",IF($C29="TOTAL",SUM($Q$8:Q28),IF(AND(C29>$AL$1,$AC$3=$AL$2),BO30,IF($AO$18=$AO$20,$AO$21,ROUND((H29+I29)*10%,0))))))),"") -> 48654 | R29: 34073 | S29: =IFERROR(IF(C29="","",IF($AO$16=$AO$17,0,IF($C29="TOTAL",SUM($S$8:S28),IF($AO$19=$AO$31,0,IF(AND($AO$32=$AO$20,C29=$AO$33),$AO$34,S28))))),"") -> 0 | T29: =IFERROR(IF(C29="","",IF($AO$16=$AO$17,0,IF($C29="TOTAL",SUM($T$8:T28),IF($AO$19=$AO$20,$AO$24,0)))),"") -> 0 | U29: 0 | V29: =IF(C29="","",IF($C29="TOTAL",SUM($V$8:V28),IF(AND($AO$2=$AO$20,C29=$AO$1),ROUND(D29/31*$AP$2,0),IF(C29=$AM$6,ROUND((G29)*1/30,0),IF(C29=$AN$6,ROUND((G29)*1/31,0),""))))) -> 1187 | W29: =IF(C29="","",IF($C29="TOTAL",SUM($W$8:W28),IF(AND($AO$2=$AO$20,C29=$AO$1),ROUND(H29/31*$AP$2,0),IF(C29=$AM$6,ROUND((K29)*1/30,0),IF(C29=$AN$6,ROUND((K29)*1/31,0),""))))) -> 666 | X29: 521 | Y29: =IFERROR(IF(C29="","",IF(AND(BH30="",BO30=""),"",IF($C29="TOTAL",SUM($Y$8:Y28),BH30))),"") -> 3132 | Z29: =IFERROR(IF(C29="","",IF($C29="TOTAL",SUM($Z$8:Z28),ROUND(O29*$AO$7%,0))),"") -> 0 | AA29: =IFERROR(IF(C29="","",IF($C29="TOTAL",SUM($AA$8:AA28),IF($AC$3=$AL$2,SUM(U29,X29,Y29,Z29),SUM(R29,U29,X29,Y29,Z29)))),"") -> 3653 | AB29: =IFERROR(IF(C29="","",IF($C29="TOTAL",SUM($AB$8:AB28),SUM(O29-AA29))),"") -> 467408 | AK29: 34 | AL29: 34 | AN29: 2018-09-01 | AO29: ='Master Sheet'!K25 -> 41100 | AP29: 2022-06-01 | AR29: 2022-06-01 | AS29: 2022-06-01 | AT29: 2022-06-01 | AU29: 34800 | AV29: 11832 | AW29: 3132 | AY29: 23700 | AZ29: 0 | BA29: 0 | BB29: 0 | BE29: 26064 | BF29: 3675 | BI29: 0 | BJ29: 0 | BO29: 2100
D30: =IFERROR(IF($C29="TOTAL","अक्षरें राशि :-",IF($C30="TOTAL",SUM($D$8:D29),IF(AU31="","",AU31))),"") -> अक्षरें राशि :- | E30: =IFERROR(IF($C30="TOTAL",SUM($E$8:E29),IF(AV31="","",AV31)),"") ->  | F30: =IFERROR(IF($C30="TOTAL",SUM($F$8:F29),IF(OR(C30=$AM$16,C30=$AM$17,C30=$AM$18,C30=$AM$19,C30=$AM$20,C30=$AM$21,C30=$AM$22,C30=$AM$23,C30=$AM$24),0,IF(AW31="","",AW31))),"") ->  | H30: =IFERROR(IF($C30="TOTAL",SUM($H$8:H29),IF(AY31="","",AY31)),"") ->  | I30: =IFERROR(IF($C30="TOTAL",SUM($I$8:I29),IF(AZ31="","",AZ31)),"") ->  | J30: =IFERROR(IF($C30="TOTAL",SUM($J$8:J29),IF(OR(C30=$AM$16,C30=$AM$17,C30=$AM$18,C30=$AM$19,C30=$AM$20,C30=$AM$21,C30=$AM$22,C30=$AM$23,C30=$AM$24),0,IF(BA31="","",BA31))),"") ->  | L30: =IFERROR(IF(C30="","",IF(D30="","",IF(H30="","",IF($C30="TOTAL",SUM($L$8:L29),SUM(D30-H30))))),"") ->  | M30: =IFERROR(IF(C30="","",IF(E30="","",IF(I30="","",IF($C30="TOTAL",SUM($M$8:M29),SUM(E30-I30))))),"") ->  | N30: =IFERROR(IF(C30="","",IF(F30="","",IF(J30="","",IF($C30="TOTAL",SUM($N$8:N29),SUM(F30-J30))))),"") ->  | P30: =IFERROR(IF(C30="","",IF($C30="TOTAL",SUM($P$8:P29),IF(AND(C30>$AL$1,$AC$3=$AL$2),BO31,IF($AO$18=$AO$20,SUM(BB31+BJ31),ROUND((D30+E30)*10%,0))))),"") ->  | Q30: =IFERROR(IF(C30="","",IF(H30="","",IF(I30="","",IF($C30="TOTAL",SUM($Q$8:Q29),IF(AND(C30>$AL$1,$AC$3=$AL$2),BO31,IF($AO$18=$AO$20,$AO$21,ROUND((H30+I30)*10%,0))))))),"") ->  | S30: =IFERROR(IF(C30="","",IF($AO$16=$AO$17,0,IF($C30="TOTAL",SUM($S$8:S29),IF($AO$19=$AO$31,0,IF(AND($AO$32=$AO$20,C30=$AO$33),$AO$34,S29))))),"") ->  | T30: =IFERROR(IF(C30="","",IF($AO$16=$AO$17,0,IF($C30="TOTAL",SUM($T$8:T29),IF($AO$19=$AO$20,$AO$24,0)))),"") ->  | V30: =IF(C30="","",IF($C30="TOTAL",SUM($V$8:V29),IF(AND($AO$2=$AO$20,C30=$AO$1),ROUND(D30/31*$AP$2,0),IF(C30=$AM$6,ROUND((G30)*1/30,0),IF(C30=$AN$6,ROUND((G30)*1/31,0),""))))) ->  | W30: =IF(C30="","",IF($C30="TOTAL",SUM($W$8:W29),IF(AND($AO$2=$AO$20,C30=$AO$1),ROUND(H30/31*$AP$2,0),IF(C30=$AM$6,ROUND((K30)*1/30,0),IF(C30=$AN$6,ROUND((K30)*1/31,0),""))))) ->  | Y30: =IFERROR(IF(C30="","",IF(AND(BH31="",BO31=""),"",IF($C30="TOTAL",SUM($Y$8:Y29),BH31))),"") ->  | Z30: =IFERROR(IF(C30="","",IF($C30="TOTAL",SUM($Z$8:Z29),ROUND(O30*$AO$7%,0))),"") ->  | AA30: =IFERROR(IF(C30="","",IF($C30="TOTAL",SUM($AA$8:AA29),IF($AC$3=$AL$2,SUM(U30,X30,Y30,Z30),SUM(R30,U30,X30,Y30,Z30)))),"") ->  | AB30: =IFERROR(IF(C30="","",IF($C30="TOTAL",SUM($AB$8:AB29),SUM(O30-AA30))),"") ->  | AK30: 34 | AL30: 34 | AN30: 2018-10-01 | AO30: ='Master Sheet'!G25 -> 2021-04-01 | AP30: 2022-07-01 | AR30: 2022-07-01 | AS30: 2022-07-01 | AT30: TOTAL | AU30: 34800 | BF30: 3675 | BI30: 0 | BJ30: 0 | BO30: 2100
D31: =IFERROR(IF($C30="TOTAL","अक्षरें राशि :-",IF($C31="TOTAL",SUM($D$8:D30),IF(AU32="","",AU32))),"") ->  | E31: =IFERROR(IF($C31="TOTAL",SUM($E$8:E30),IF(AV32="","",AV32)),"") ->  | F31: =IFERROR(IF($C31="TOTAL",SUM($F$8:F30),IF(OR(C31=$AM$16,C31=$AM$17,C31=$AM$18,C31=$AM$19,C31=$AM$20,C31=$AM$21,C31=$AM$22,C31=$AM$23,C31=$AM$24),0,IF(AW32="","",AW32))),"") ->  | H31: =IFERROR(IF($C31="TOTAL",SUM($H$8:H30),IF(AY32="","",AY32)),"") ->  | I31: =IFERROR(IF($C31="TOTAL",SUM($I$8:I30),IF(AZ32="","",AZ32)),"") ->  | J31: =IFERROR(IF($C31="TOTAL",SUM($J$8:J30),IF(OR(C31=$AM$16,C31=$AM$17,C31=$AM$18,C31=$AM$19,C31=$AM$20,C31=$AM$21,C31=$AM$22,C31=$AM$23,C31=$AM$24),0,IF(BA32="","",BA32))),"") ->  | L31: =IFERROR(IF(C31="","",IF(D31="","",IF(H31="","",IF($C31="TOTAL",SUM($L$8:L30),SUM(D31-H31))))),"") ->  | M31: =IFERROR(IF(C31="","",IF(E31="","",IF(I31="","",IF($C31="TOTAL",SUM($M$8:M30),SUM(E31-I31))))),"") ->  | N31: =IFERROR(IF(C31="","",IF(F31="","",IF(J31="","",IF($C31="TOTAL",SUM($N$8:N30),SUM(F31-J31))))),"") ->  | P31: =IFERROR(IF(C31="","",IF($C31="TOTAL",SUM($P$8:P30),IF(AND(C31>$AL$1,$AC$3=$AL$2),BO32,IF($AO$18=$AO$20,SUM(BB32+BJ32),ROUND((D31+E31)*10%,0))))),"") ->  | Q31: =IFERROR(IF(C31="","",IF(H31="","",IF(I31="","",IF($C31="TOTAL",SUM($Q$8:Q30),IF(AND(C31>$AL$1,$AC$3=$AL$2),BO32,IF($AO$18=$AO$20,$AO$21,ROUND((H31+I31)*10%,0))))))),"") ->  | S31: =IFERROR(IF(C31="","",IF($AO$16=$AO$17,0,IF($C31="TOTAL",SUM($S$8:S30),IF($AO$19=$AO$31,0,IF(AND($AO$32=$AO$20,C31=$AO$33),$AO$34,S30))))),"") ->  | T31: =IFERROR(IF(C31="","",IF($AO$16=$AO$17,0,IF($C31="TOTAL",SUM($T$8:T30),IF($AO$19=$AO$20,$AO$24,0)))),"") ->  | V31: =IF(C31="","",IF($C31="TOTAL",SUM($V$8:V30),IF(AND($AO$2=$AO$20,C31=$AO$1),ROUND(D31/31*$AP$2,0),IF(C31=$AM$6,ROUND((G31)*1/30,0),IF(C31=$AN$6,ROUND((G31)*1/31,0),""))))) ->  | W31: =IF(C31="","",IF($C31="TOTAL",SUM($W$8:W30),IF(AND($AO$2=$AO$20,C31=$AO$1),ROUND(H31/31*$AP$2,0),IF(C31=$AM$6,ROUND((K31)*1/30,0),IF(C31=$AN$6,ROUND((K31)*1/31,0),""))))) ->  | Y31: =IFERROR(IF(C31="","",IF(AND(BH32="",BO32=""),"",IF($C31="TOTAL",SUM($Y$8:Y30),BH32))),"") ->  | Z31: =IFERROR(IF(C31="","",IF($C31="TOTAL",SUM($Z$8:Z30),ROUND(O31*$AO$7%,0))),"") ->  | AA31: =IFERROR(IF(C31="","",IF($C31="TOTAL",SUM($AA$8:AA30),IF($AC$3=$AL$2,SUM(U31,X31,Y31,Z31),SUM(R31,U31,X31,Y31,Z31)))),"") ->  | AB31: =IFERROR(IF(C31="","",IF($C31="TOTAL",SUM($AB$8:AB30),SUM(O31-AA31))),"") ->  | AK31: 34 | AL31: 34 | AN31: 2018-11-01 | AO31: NO | AP31: 2022-08-01 | AR31: 2022-08-01 | AS31: 2022-08-01 | BI31: 0 | BJ31: 0 | BO31: 2100
D32: =IFERROR(IF($C31="TOTAL","अक्षरें राशि :-",IF($C32="TOTAL",SUM($D$8:D31),IF(AU33="","",AU33))),"") ->  | E32: =IFERROR(IF($C32="TOTAL",SUM($E$8:E31),IF(AV33="","",AV33)),"") ->  | F32: =IFERROR(IF($C32="TOTAL",SUM($F$8:F31),IF(OR(C32=$AM$16,C32=$AM$17,C32=$AM$18,C32=$AM$19,C32=$AM$20,C32=$AM$21,C32=$AM$22,C32=$AM$23,C32=$AM$24),0,IF(AW33="","",AW33))),"") ->  | H32: =IFERROR(IF($C32="TOTAL",SUM($H$8:H31),IF(AY33="","",AY33)),"") ->  | I32: =IFERROR(IF($C32="TOTAL",SUM($I$8:I31),IF(AZ33="","",AZ33)),"") ->  | J32: =IFERROR(IF($C32="TOTAL",SUM($J$8:J31),IF(OR(C32=$AM$16,C32=$AM$17,C32=$AM$18,C32=$AM$19,C32=$AM$20,C32=$AM$21,C32=$AM$22,C32=$AM$23,C32=$AM$24),0,IF(BA33="","",BA33))),"") ->  | L32: =IFERROR(IF(C32="","",IF(D32="","",IF(H32="","",IF($C32="TOTAL",SUM($L$8:L31),SUM(D32-H32))))),"") ->  | M32: =IFERROR(IF(C32="","",IF(E32="","",IF(I32="","",IF($C32="TOTAL",SUM($M$8:M31),SUM(E32-I32))))),"") ->  | N32: =IFERROR(IF(C32="","",IF(F32="","",IF(J32="","",IF($C32="TOTAL",SUM($N$8:N31),SUM(F32-J32))))),"") ->  | P32: =IFERROR(IF(C32="","",IF($C32="TOTAL",SUM($P$8:P31),IF(AND(C32>$AL$1,$AC$3=$AL$2),BO33,IF($AO$18=$AO$20,SUM(BB33+BJ33),ROUND((D32+E32)*10%,0))))),"") ->  | Q32: =IFERROR(IF(C32="","",IF(H32="","",IF(I32="","",IF($C32="TOTAL",SUM($Q$8:Q31),IF(AND(C32>$AL$1,$AC$3=$AL$2),BO33,IF($AO$18=$AO$20,$AO$21,ROUND((H32+I32)*10%,0))))))),"") ->  | S32: =IFERROR(IF(C32="","",IF($AO$16=$AO$17,0,IF($C32="TOTAL",SUM($S$8:S31),IF($AO$19=$AO$31,0,IF(AND($AO$32=$AO$20,C32=$AO$33),$AO$34,S31))))),"") ->  | T32: =IFERROR(IF(C32="","",IF($AO$16=$AO$17,0,IF($C32="TOTAL",SUM($T$8:T31),IF($AO$19=$AO$20,$AO$24,0)))),"") ->  | V32: =IF(C32="","",IF($C32="TOTAL",SUM($V$8:V31),IF(AND($AO$2=$AO$20,C32=$AO$1),ROUND(D32/31*$AP$2,0),IF(C32=$AM$6,ROUND((G32)*1/30,0),IF(C32=$AN$6,ROUND((G32)*1/31,0),""))))) ->  | W32: =IF(C32="","",IF($C32="TOTAL",SUM($W$8:W31),IF(AND($AO$2=$AO$20,C32=$AO$1),ROUND(H32/31*$AP$2,0),IF(C32=$AM$6,ROUND((K32)*1/30,0),IF(C32=$AN$6,ROUND((K32)*1/31,0),""))))) ->  | Y32: =IFERROR(IF(C32="","",IF(AND(BH33="",BO33=""),"",IF($C32="TOTAL",SUM($Y$8:Y31),BH33))),"") ->  | Z32: =IFERROR(IF(C32="","",IF($C32="TOTAL",SUM($Z$8:Z31),ROUND(O32*$AO$7%,0))),"") ->  | AA32: =IFERROR(IF(C32="","",IF($C32="TOTAL",SUM($AA$8:AA31),IF($AC$3=$AL$2,SUM(U32,X32,Y32,Z32),SUM(R32,U32,X32,Y32,Z32)))),"") ->  | AB32: =IFERROR(IF(C32="","",IF($C32="TOTAL",SUM($AB$8:AB31),SUM(O32-AA32))),"") ->  | AK32: 34 | AL32: 34 | AN32: 2018-12-01 | AO32: ='Master Sheet'!D19 -> NO | AP32: 2022-09-01 | AR32: 2022-09-01 | AS32: 2022-09-01 | BI32: 0 | BJ32: 0 | BO32: 2100
D33: =IFERROR(IF($C32="TOTAL","अक्षरें राशि :-",IF($C33="TOTAL",SUM($D$8:D32),IF(AU34="","",AU34))),"") ->  | E33: =IFERROR(IF($C33="TOTAL",SUM($E$8:E32),IF(AV34="","",AV34)),"") ->  | F33: =IFERROR(IF($C33="TOTAL",SUM($F$8:F32),IF(OR(C33=$AM$16,C33=$AM$17,C33=$AM$18,C33=$AM$19,C33=$AM$20,C33=$AM$21,C33=$AM$22,C33=$AM$23,C33=$AM$24),0,IF(AW34="","",AW34))),"") ->  | H33: =IFERROR(IF($C33="TOTAL",SUM($H$8:H32),IF(AY34="","",AY34)),"") ->  | I33: =IFERROR(IF($C33="TOTAL",SUM($I$8:I32),IF(AZ34="","",AZ34)),"") ->  | J33: =IFERROR(IF($C33="TOTAL",SUM($J$8:J32),IF(OR(C33=$AM$16,C33=$AM$17,C33=$AM$18,C33=$AM$19,C33=$AM$20,C33=$AM$21,C33=$AM$22,C33=$AM$23,C33=$AM$24),0,IF(BA34="","",BA34))),"") ->  | L33: =IFERROR(IF(C33="","",IF(D33="","",IF(H33="","",IF($C33="TOTAL",SUM($L$8:L32),SUM(D33-H33))))),"") ->  | M33: =IFERROR(IF(C33="","",IF(E33="","",IF(I33="","",IF($C33="TOTAL",SUM($M$8:M32),SUM(E33-I33))))),"") ->  | N33: =IFERROR(IF(C33="","",IF(F33="","",IF(J33="","",IF($C33="TOTAL",SUM($N$8:N32),SUM(F33-J33))))),"") ->  | P33: =IFERROR(IF(C33="","",IF($C33="TOTAL",SUM($P$8:P32),IF(AND(C33>$AL$1,$AC$3=$AL$2),BO34,IF($AO$18=$AO$20,SUM(BB34+BJ34),ROUND((D33+E33)*10%,0))))),"") ->  | Q33: =IFERROR(IF(C33="","",IF(H33="","",IF(I33="","",IF($C33="TOTAL",SUM($Q$8:Q32),IF(AND(C33>$AL$1,$AC$3=$AL$2),BO34,IF($AO$18=$AO$20,$AO$21,ROUND((H33+I33)*10%,0))))))),"") ->  | S33: =IFERROR(IF(C33="","",IF($AO$16=$AO$17,0,IF($C33="TOTAL",SUM($S$8:S32),IF($AO$19=$AO$31,0,IF(AND($AO$32=$AO$20,C33=$AO$33),$AO$34,S32))))),"") ->  | T33: =IFERROR(IF(C33="","",IF($AO$16=$AO$17,0,IF($C33="TOTAL",SUM($T$8:T32),IF($AO$19=$AO$20,$AO$24,0)))),"") ->  | V33: =IF(C33="","",IF($C33="TOTAL",SUM($V$8:V32),IF(AND($AO$2=$AO$20,C33=$AO$1),ROUND(D33/31*$AP$2,0),IF(C33=$AM$6,ROUND((G33)*1/30,0),IF(C33=$AN$6,ROUND((G33)*1/31,0),""))))) ->  | W33: =IF(C33="","",IF($C33="TOTAL",SUM($W$8:W32),IF(AND($AO$2=$AO$20,C33=$AO$1),ROUND(H33/31*$AP$2,0),IF(C33=$AM$6,ROUND((K33)*1/30,0),IF(C33=$AN$6,ROUND((K33)*1/31,0),""))))) ->  | Y33: =IFERROR(IF(C33="","",IF(AND(BH34="",BO34=""),"",IF($C33="TOTAL",SUM($Y$8:Y32),BH34))),"") ->  | Z33: =IFERROR(IF(C33="","",IF($C33="TOTAL",SUM($Z$8:Z32),ROUND(O33*$AO$7%,0))),"") ->  | AA33: =IFERROR(IF(C33="","",IF($C33="TOTAL",SUM($AA$8:AA32),IF($AC$3=$AL$2,SUM(U33,X33,Y33,Z33),SUM(R33,U33,X33,Y33,Z33)))),"") ->  | AB33: =IFERROR(IF(C33="","",IF($C33="TOTAL",SUM($AB$8:AB32),SUM(O33-AA33))),"") ->  | AK33: 34 | AL33: 34 | AN33: 2019-01-01 | AO33: ='Master Sheet'!G19 -> 43525 | AP33: 2022-10-01 | AR33: 2022-10-01 | AS33: 2022-10-01 | BI33: 0 | BJ33: 0 | BO33: 2100
D34: =IFERROR(IF($C33="TOTAL","अक्षरें राशि :-",IF($C34="TOTAL",SUM($D$8:D33),IF(AU35="","",AU35))),"") ->  | E34: =IFERROR(IF($C34="TOTAL",SUM($E$8:E33),IF(AV35="","",AV35)),"") ->  | F34: =IFERROR(IF($C34="TOTAL",SUM($F$8:F33),IF(OR(C34=$AM$16,C34=$AM$17,C34=$AM$18,C34=$AM$19,C34=$AM$20,C34=$AM$21,C34=$AM$22,C34=$AM$23,C34=$AM$24),0,IF(AW35="","",AW35))),"") ->  | H34: =IFERROR(IF($C34="TOTAL",SUM($H$8:H33),IF(AY35="","",AY35)),"") ->  | I34: =IFERROR(IF($C34="TOTAL",SUM($I$8:I33),IF(AZ35="","",AZ35)),"") ->  | J34: =IFERROR(IF($C34="TOTAL",SUM($J$8:J33),IF(OR(C34=$AM$16,C34=$AM$17,C34=$AM$18,C34=$AM$19,C34=$AM$20,C34=$AM$21,C34=$AM$22,C34=$AM$23,C34=$AM$24),0,IF(BA35="","",BA35))),"") ->  | L34: =IFERROR(IF(C34="","",IF(D34="","",IF(H34="","",IF($C34="TOTAL",SUM($L$8:L33),SUM(D34-H34))))),"") ->  | M34: =IFERROR(IF(C34="","",IF(E34="","",IF(I34="","",IF($C34="TOTAL",SUM($M$8:M33),SUM(E34-I34))))),"") ->  | N34: =IFERROR(IF(C34="","",IF(F34="","",IF(J34="","",IF($C34="TOTAL",SUM($N$8:N33),SUM(F34-J34))))),"") ->  | P34: =IFERROR(IF(C34="","",IF($C34="TOTAL",SUM($P$8:P33),IF(AND(C34>$AL$1,$AC$3=$AL$2),BO35,IF($AO$18=$AO$20,SUM(BB35+BJ35),ROUND((D34+E34)*10%,0))))),"") ->  | Q34: =IFERROR(IF(C34="","",IF(H34="","",IF(I34="","",IF($C34="TOTAL",SUM($Q$8:Q33),IF(AND(C34>$AL$1,$AC$3=$AL$2),BO35,IF($AO$18=$AO$20,$AO$21,ROUND((H34+I34)*10%,0))))))),"") ->  | S34: =IFERROR(IF(C34="","",IF($AO$16=$AO$17,0,IF($C34="TOTAL",SUM($S$8:S33),IF($AO$19=$AO$31,0,IF(AND($AO$32=$AO$20,C34=$AO$33),$AO$34,S33))))),"") ->  | T34: =IFERROR(IF(C34="","",IF($AO$16=$AO$17,0,IF($C34="TOTAL",SUM($T$8:T33),IF($AO$19=$AO$20,$AO$24,0)))),"") ->  | V34: =IF(C34="","",IF($C34="TOTAL",SUM($V$8:V33),IF(AND($AO$2=$AO$20,C34=$AO$1),ROUND(D34/31*$AP$2,0),IF(C34=$AM$6,ROUND((G34)*1/30,0),IF(C34=$AN$6,ROUND((G34)*1/31,0),""))))) ->  | W34: =IF(C34="","",IF($C34="TOTAL",SUM($W$8:W33),IF(AND($AO$2=$AO$20,C34=$AO$1),ROUND(H34/31*$AP$2,0),IF(C34=$AM$6,ROUND((K34)*1/30,0),IF(C34=$AN$6,ROUND((K34)*1/31,0),""))))) ->  | Y34: =IFERROR(IF(C34="","",IF(AND(BH35="",BO35=""),"",IF($C34="TOTAL",SUM($Y$8:Y33),BH35))),"") ->  | Z34: =IFERROR(IF(C34="","",IF($C34="TOTAL",SUM($Z$8:Z33),ROUND(O34*$AO$7%,0))),"") ->  | AA34: =IFERROR(IF(C34="","",IF($C34="TOTAL",SUM($AA$8:AA33),IF($AC$3=$AL$2,SUM(U34,X34,Y34,Z34),SUM(R34,U34,X34,Y34,Z34)))),"") ->  | AB34: =IFERROR(IF(C34="","",IF($C34="TOTAL",SUM($AB$8:AB33),SUM(O34-AA34))),"") ->  | AK34: 34 | AL34: 34 | AN34: 2019-02-01 | AO34: ='Master Sheet'!K19 -> 3000 | AP34: 2022-11-01 | AR34: 2022-11-01 | AS34: 2022-11-01 | BI34: 0 | BJ34: 0 | BO34: 2100
D35: =IFERROR(IF($C34="TOTAL","अक्षरें राशि :-",IF($C35="TOTAL",SUM($D$8:D34),IF(AU36="","",AU36))),"") ->  | E35: =IFERROR(IF($C35="TOTAL",SUM($E$8:E34),IF(AV36="","",AV36)),"") ->  | F35: =IFERROR(IF($C35="TOTAL",SUM($F$8:F34),IF(OR(C35=$AM$16,C35=$AM$17,C35=$AM$18,C35=$AM$19,C35=$AM$20,C35=$AM$21,C35=$AM$22,C35=$AM$23,C35=$AM$24),0,IF(AW36="","",AW36))),"") ->  | H35: =IFERROR(IF($C35="TOTAL",SUM($H$8:H34),IF(AY36="","",AY36)),"") ->  | I35: =IFERROR(IF($C35="TOTAL",SUM($I$8:I34),IF(AZ36="","",AZ36)),"") ->  | J35: =IFERROR(IF($C35="TOTAL",SUM($J$8:J34),IF(OR(C35=$AM$16,C35=$AM$17,C35=$AM$18,C35=$AM$19,C35=$AM$20,C35=$AM$21,C35=$AM$22,C35=$AM$23,C35=$AM$24),0,IF(BA36="","",BA36))),"") ->  | L35: =IFERROR(IF(C35="","",IF(D35="","",IF(H35="","",IF($C35="TOTAL",SUM($L$8:L34),SUM(D35-H35))))),"") ->  | M35: =IFERROR(IF(C35="","",IF(E35="","",IF(I35="","",IF($C35="TOTAL",SUM($M$8:M34),SUM(E35-I35))))),"") ->  | N35: =IFERROR(IF(C35="","",IF(F35="","",IF(J35="","",IF($C35="TOTAL",SUM($N$8:N34),SUM(F35-J35))))),"") ->  | P35: =IFERROR(IF(C35="","",IF($C35="TOTAL",SUM($P$8:P34),IF(AND(C35>$AL$1,$AC$3=$AL$2),BO36,IF($AO$18=$AO$20,SUM(BB36+BJ36),ROUND((D35+E35)*10%,0))))),"") ->  | Q35: =IFERROR(IF(C35="","",IF(H35="","",IF(I35="","",IF($C35="TOTAL",SUM($Q$8:Q34),IF(AND(C35>$AL$1,$AC$3=$AL$2),BO36,IF($AO$18=$AO$20,$AO$21,ROUND((H35+I35)*10%,0))))))),"") ->  | S35: =IFERROR(IF(C35="","",IF($AO$16=$AO$17,0,IF($C35="TOTAL",SUM($S$8:S34),IF($AO$19=$AO$31,0,IF(AND($AO$32=$AO$20,C35=$AO$33),$AO$34,S34))))),"") ->  | T35: =IFERROR(IF(C35="","",IF($AO$16=$AO$17,0,IF($C35="TOTAL",SUM($T$8:T34),IF($AO$19=$AO$20,$AO$24,0)))),"") ->  | V35: =IF(C35="","",IF($C35="TOTAL",SUM($V$8:V34),IF(AND($AO$2=$AO$20,C35=$AO$1),ROUND(D35/31*$AP$2,0),IF(C35=$AM$6,ROUND((G35)*1/30,0),IF(C35=$AN$6,ROUND((G35)*1/31,0),""))))) ->  | W35: =IF(C35="","",IF($C35="TOTAL",SUM($W$8:W34),IF(AND($AO$2=$AO$20,C35=$AO$1),ROUND(H35/31*$AP$2,0),IF(C35=$AM$6,ROUND((K35)*1/30,0),IF(C35=$AN$6,ROUND((K35)*1/31,0),""))))) ->  | Y35: =IFERROR(IF(C35="","",IF(AND(BH36="",BO36=""),"",IF($C35="TOTAL",SUM($Y$8:Y34),BH36))),"") ->  | Z35: =IFERROR(IF(C35="","",IF($C35="TOTAL",SUM($Z$8:Z34),ROUND(O35*$AO$7%,0))),"") ->  | AA35: =IFERROR(IF(C35="","",IF($C35="TOTAL",SUM($AA$8:AA34),IF($AC$3=$AL$2,SUM(U35,X35,Y35,Z35),SUM(R35,U35,X35,Y35,Z35)))),"") ->  | AB35: =IFERROR(IF(C35="","",IF($C35="TOTAL",SUM($AB$8:AB34),SUM(O35-AA35))),"") ->  | AK35: 34 | AL35: 34 | AN35: 2019-03-01 | AP35: 2022-12-01 | AR35: 2022-12-01 | AS35: 2022-12-01 | BI35: 0 | BJ35: 0 | BO35: 2100
D36: =IFERROR(IF($C35="TOTAL","अक्षरें राशि :-",IF($C36="TOTAL",SUM($D$8:D35),IF(AU37="","",AU37))),"") ->  | E36: =IFERROR(IF($C36="TOTAL",SUM($E$8:E35),IF(AV37="","",AV37)),"") ->  | F36: =IFERROR(IF($C36="TOTAL",SUM($F$8:F35),IF(OR(C36=$AM$16,C36=$AM$17,C36=$AM$18,C36=$AM$19,C36=$AM$20,C36=$AM$21,C36=$AM$22,C36=$AM$23,C36=$AM$24),0,IF(AW37="","",AW37))),"") ->  | H36: =IFERROR(IF($C36="TOTAL",SUM($H$8:H35),IF(AY37="","",AY37)),"") ->  | I36: =IFERROR(IF($C36="TOTAL",SUM($I$8:I35),IF(AZ37="","",AZ37)),"") ->  | J36: =IFERROR(IF($C36="TOTAL",SUM($J$8:J35),IF(OR(C36=$AM$16,C36=$AM$17,C36=$AM$18,C36=$AM$19,C36=$AM$20,C36=$AM$21,C36=$AM$22,C36=$AM$23,C36=$AM$24),0,IF(BA37="","",BA37))),"") ->  | L36: =IFERROR(IF(C36="","",IF(D36="","",IF(H36="","",IF($C36="TOTAL",SUM($L$8:L35),SUM(D36-H36))))),"") ->  | M36: =IFERROR(IF(C36="","",IF(E36="","",IF(I36="","",IF($C36="TOTAL",SUM($M$8:M35),SUM(E36-I36))))),"") ->  | N36: =IFERROR(IF(C36="","",IF(F36="","",IF(J36="","",IF($C36="TOTAL",SUM($N$8:N35),SUM(F36-J36))))),"") ->  | P36: =IFERROR(IF(C36="","",IF($C36="TOTAL",SUM($P$8:P35),IF(AND(C36>$AL$1,$AC$3=$AL$2),BO37,IF($AO$18=$AO$20,SUM(BB37+BJ37),ROUND((D36+E36)*10%,0))))),"") ->  | Q36: =IFERROR(IF(C36="","",IF(H36="","",IF(I36="","",IF($C36="TOTAL",SUM($Q$8:Q35),IF(AND(C36>$AL$1,$AC$3=$AL$2),BO37,IF($AO$18=$AO$20,$AO$21,ROUND((H36+I36)*10%,0))))))),"") ->  | S36: =IFERROR(IF(C36="","",IF($AO$16=$AO$17,0,IF($C36="TOTAL",SUM($S$8:S35),IF($AO$19=$AO$31,0,IF(AND($AO$32=$AO$20,C36=$AO$33),$AO$34,S35))))),"") ->  | T36: =IFERROR(IF(C36="","",IF($AO$16=$AO$17,0,IF($C36="TOTAL",SUM($T$8:T35),IF($AO$19=$AO$20,$AO$24,0)))),"") ->  | V36: =IF(C36="","",IF($C36="TOTAL",SUM($V$8:V35),IF(AND($AO$2=$AO$20,C36=$AO$1),ROUND(D36/31*$AP$2,0),IF(C36=$AM$6,ROUND((G36)*1/30,0),IF(C36=$AN$6,ROUND((G36)*1/31,0),""))))) ->  | W36: =IF(C36="","",IF($C36="TOTAL",SUM($W$8:W35),IF(AND($AO$2=$AO$20,C36=$AO$1),ROUND(H36/31*$AP$2,0),IF(C36=$AM$6,ROUND((K36)*1/30,0),IF(C36=$AN$6,ROUND((K36)*1/31,0),""))))) ->  | Y36: =IFERROR(IF(C36="","",IF(AND(BH37="",BO37=""),"",IF($C36="TOTAL",SUM($Y$8:Y35),BH37))),"") ->  | Z36: =IFERROR(IF(C36="","",IF($C36="TOTAL",SUM($Z$8:Z35),ROUND(O36*$AO$7%,0))),"") ->  | AA36: =IFERROR(IF(C36="","",IF($C36="TOTAL",SUM($AA$8:AA35),IF($AC$3=$AL$2,SUM(U36,X36,Y36,Z36),SUM(R36,U36,X36,Y36,Z36)))),"") ->  | AB36: =IFERROR(IF(C36="","",IF($C36="TOTAL",SUM($AB$8:AB35),SUM(O36-AA36))),"") ->  | AK36: 34 | AL36: 34 | AN36: 2019-04-01 | AO36: ='Master Sheet'!D23 -> NO | AP36: 2023-01-01 | AR36: 2023-01-01 | AS36: 2023-01-01 | BI36: 0 | BJ36: 0 | BO36: 2100
D37: =IFERROR(IF($C36="TOTAL","अक्षरें राशि :-",IF($C37="TOTAL",SUM($D$8:D36),IF(AU38="","",AU38))),"") ->  | E37: =IFERROR(IF($C37="TOTAL",SUM($E$8:E36),IF(AV38="","",AV38)),"") ->  | F37: =IFERROR(IF($C37="TOTAL",SUM($F$8:F36),IF(OR(C37=$AM$16,C37=$AM$17,C37=$AM$18,C37=$AM$19,C37=$AM$20,C37=$AM$21,C37=$AM$22,C37=$AM$23,C37=$AM$24),0,IF(AW38="","",AW38))),"") ->  | H37: =IFERROR(IF($C37="TOTAL",SUM($H$8:H36),IF(AY38="","",AY38)),"") ->  | I37: =IFERROR(IF($C37="TOTAL",SUM($I$8:I36),IF(AZ38="","",AZ38)),"") ->  | J37: =IFERROR(IF($C37="TOTAL",SUM($J$8:J36),IF(OR(C37=$AM$16,C37=$AM$17,C37=$AM$18,C37=$AM$19,C37=$AM$20,C37=$AM$21,C37=$AM$22,C37=$AM$23,C37=$AM$24),0,IF(BA38="","",BA38))),"") ->  | L37: =IFERROR(IF(C37="","",IF(D37="","",IF(H37="","",IF($C37="TOTAL",SUM($L$8:L36),SUM(D37-H37))))),"") ->  | M37: =IFERROR(IF(C37="","",IF(E37="","",IF(I37="","",IF($C37="TOTAL",SUM($M$8:M36),SUM(E37-I37))))),"") ->  | N37: =IFERROR(IF(C37="","",IF(F37="","",IF(J37="","",IF($C37="TOTAL",SUM($N$8:N36),SUM(F37-J37))))),"") ->  | P37: =IFERROR(IF(C37="","",IF($C37="TOTAL",SUM($P$8:P36),IF(AND(C37>$AL$1,$AC$3=$AL$2),BO38,IF($AO$18=$AO$20,SUM(BB38+BJ38),ROUND((D37+E37)*10%,0))))),"") ->  | Q37: =IFERROR(IF(C37="","",IF(H37="","",IF(I37="","",IF($C37="TOTAL",SUM($Q$8:Q36),IF(AND(C37>$AL$1,$AC$3=$AL$2),BO38,IF($AO$18=$AO$20,$AO$21,ROUND((H37+I37)*10%,0))))))),"") ->  | S37: =IFERROR(IF(C37="","",IF($AO$16=$AO$17,0,IF($C37="TOTAL",SUM($S$8:S36),IF($AO$19=$AO$31,0,IF(AND($AO$32=$AO$20,C37=$AO$33),$AO$34,S36))))),"") ->  | T37: =IFERROR(IF(C37="","",IF($AO$16=$AO$17,0,IF($C37="TOTAL",SUM($T$8:T36),IF($AO$19=$AO$20,$AO$24,0)))),"") ->  | V37: =IF(C37="","",IF($C37="TOTAL",SUM($V$8:V36),IF(AND($AO$2=$AO$20,C37=$AO$1),ROUND(D37/31*$AP$2,0),IF(C37=$AM$6,ROUND((G37)*1/30,0),IF(C37=$AN$6,ROUND((G37)*1/31,0),""))))) ->  | W37: =IF(C37="","",IF($C37="TOTAL",SUM($W$8:W36),IF(AND($AO$2=$AO$20,C37=$AO$1),ROUND(H37/31*$AP$2,0),IF(C37=$AM$6,ROUND((K37)*1/30,0),IF(C37=$AN$6,ROUND((K37)*1/31,0),""))))) ->  | Y37: =IFERROR(IF(C37="","",IF(AND(BH38="",BO38=""),"",IF($C37="TOTAL",SUM($Y$8:Y36),BH38))),"") ->  | Z37: =IFERROR(IF(C37="","",IF($C37="TOTAL",SUM($Z$8:Z36),ROUND(O37*$AO$7%,0))),"") ->  | AA37: =IFERROR(IF(C37="","",IF($C37="TOTAL",SUM($AA$8:AA36),IF($AC$3=$AL$2,SUM(U37,X37,Y37,Z37),SUM(R37,U37,X37,Y37,Z37)))),"") ->  | AB37: =IFERROR(IF(C37="","",IF($C37="TOTAL",SUM($AB$8:AB36),SUM(O37-AA37))),"") ->  | AK37: 34 | AL37: 34 | AN37: 2019-05-01 | AO37: ='Master Sheet'!G23 -> 44287 | AP37: 2023-02-01 | AR37: 2023-02-01 | AS37: 2023-02-01 | BI37: 0 | BJ37: 0 | BO37: 2100
D38: =IFERROR(IF($C37="TOTAL","अक्षरें राशि :-",IF($C38="TOTAL",SUM($D$8:D37),IF(AU39="","",AU39))),"") ->  | E38: =IFERROR(IF($C38="TOTAL",SUM($E$8:E37),IF(AV39="","",AV39)),"") ->  | F38: =IFERROR(IF($C38="TOTAL",SUM($F$8:F37),IF(OR(C38=$AM$16,C38=$AM$17,C38=$AM$18,C38=$AM$19,C38=$AM$20,C38=$AM$21,C38=$AM$22,C38=$AM$23,C38=$AM$24),0,IF(AW39="","",AW39))),"") ->  | H38: =IFERROR(IF($C38="TOTAL",SUM($H$8:H37),IF(AY39="","",AY39)),"") ->  | I38: =IFERROR(IF($C38="TOTAL",SUM($I$8:I37),IF(AZ39="","",AZ39)),"") ->  | J38: =IFERROR(IF($C38="TOTAL",SUM($J$8:J37),IF(OR(C38=$AM$16,C38=$AM$17,C38=$AM$18,C38=$AM$19,C38=$AM$20,C38=$AM$21,C38=$AM$22,C38=$AM$23,C38=$AM$24),0,IF(BA39="","",BA39))),"") ->  | L38: =IFERROR(IF(C38="","",IF(D38="","",IF(H38="","",IF($C38="TOTAL",SUM($L$8:L37),SUM(D38-H38))))),"") ->  | M38: =IFERROR(IF(C38="","",IF(E38="","",IF(I38="","",IF($C38="TOTAL",SUM($M$8:M37),SUM(E38-I38))))),"") ->  | N38: =IFERROR(IF(C38="","",IF(F38="","",IF(J38="","",IF($C38="TOTAL",SUM($N$8:N37),SUM(F38-J38))))),"") ->  | P38: =IFERROR(IF(C38="","",IF($C38="TOTAL",SUM($P$8:P37),IF(AND(C38>$AL$1,$AC$3=$AL$2),BO39,IF($AO$18=$AO$20,SUM(BB39+BJ39),ROUND((D38+E38)*10%,0))))),"") ->  | Q38: =IFERROR(IF(C38="","",IF(H38="","",IF(I38="","",IF($C38="TOTAL",SUM($Q$8:Q37),IF(AND(C38>$AL$1,$AC$3=$AL$2),BO39,IF($AO$18=$AO$20,$AO$21,ROUND((H38+I38)*10%,0))))))),"") ->  | S38: =IFERROR(IF(C38="","",IF($AO$16=$AO$17,0,IF($C38="TOTAL",SUM($S$8:S37),IF($AO$19=$AO$31,0,IF(AND($AO$32=$AO$20,C38=$AO$33),$AO$34,S37))))),"") ->  | T38: =IFERROR(IF(C38="","",IF($AO$16=$AO$17,0,IF($C38="TOTAL",SUM($T$8:T37),IF($AO$19=$AO$20,$AO$24,0)))),"") ->  | V38: =IF(C38="","",IF($C38="TOTAL",SUM($V$8:V37),IF(AND($AO$2=$AO$20,C38=$AO$1),ROUND(D38/31*$AP$2,0),IF(C38=$AM$6,ROUND((G38)*1/30,0),IF(C38=$AN$6,ROUND((G38)*1/31,0),""))))) ->  | W38: =IF(C38="","",IF($C38="TOTAL",SUM($W$8:W37),IF(AND($AO$2=$AO$20,C38=$AO$1),ROUND(H38/31*$AP$2,0),IF(C38=$AM$6,ROUND((K38)*1/30,0),IF(C38=$AN$6,ROUND((K38)*1/31,0),""))))) ->  | Y38: =IFERROR(IF(C38="","",IF(AND(BH39="",BO39=""),"",IF($C38="TOTAL",SUM($Y$8:Y37),BH39))),"") ->  | Z38: =IFERROR(IF(C38="","",IF($C38="TOTAL",SUM($Z$8:Z37),ROUND(O38*$AO$7%,0))),"") ->  | AA38: =IFERROR(IF(C38="","",IF($C38="TOTAL",SUM($AA$8:AA37),IF($AC$3=$AL$2,SUM(U38,X38,Y38,Z38),SUM(R38,U38,X38,Y38,Z38)))),"") ->  | AB38: =IFERROR(IF(C38="","",IF($C38="TOTAL",SUM($AB$8:AB37),SUM(O38-AA38))),"") ->  | AK38: 34 | AL38: 34 | AN38: 2019-06-01 | AO38: ='Master Sheet'!K23 -> 5000 | AP38: 2023-03-01 | AR38: 2023-03-01 | AS38: 2023-03-01 | BI38: 0 | BJ38: 0 | BO38: 2100
D39: =IFERROR(IF($C38="TOTAL","अक्षरें राशि :-",IF($C39="TOTAL",SUM($D$8:D38),IF(AU40="","",AU40))),"") ->  | E39: =IFERROR(IF($C39="TOTAL",SUM($E$8:E38),IF(AV40="","",AV40)),"") ->  | F39: =IFERROR(IF($C39="TOTAL",SUM($F$8:F38),IF(OR(C39=$AM$16,C39=$AM$17,C39=$AM$18,C39=$AM$19,C39=$AM$20,C39=$AM$21,C39=$AM$22,C39=$AM$23,C39=$AM$24),0,IF(AW40="","",AW40))),"") ->  | H39: =IFERROR(IF($C39="TOTAL",SUM($H$8:H38),IF(AY40="","",AY40)),"") ->  | I39: =IFERROR(IF($C39="TOTAL",SUM($I$8:I38),IF(AZ40="","",AZ40)),"") ->  | J39: =IFERROR(IF($C39="TOTAL",SUM($J$8:J38),IF(OR(C39=$AM$16,C39=$AM$17,C39=$AM$18,C39=$AM$19,C39=$AM$20,C39=$AM$21,C39=$AM$22,C39=$AM$23,C39=$AM$24),0,IF(BA40="","",BA40))),"") ->  | L39: =IFERROR(IF(C39="","",IF(D39="","",IF(H39="","",IF($C39="TOTAL",SUM($L$8:L38),SUM(D39-H39))))),"") ->  | M39: =IFERROR(IF(C39="","",IF(E39="","",IF(I39="","",IF($C39="TOTAL",SUM($M$8:M38),SUM(E39-I39))))),"") ->  | N39: =IFERROR(IF(C39="","",IF(F39="","",IF(J39="","",IF($C39="TOTAL",SUM($N$8:N38),SUM(F39-J39))))),"") ->  | P39: =IFERROR(IF(C39="","",IF($C39="TOTAL",SUM($P$8:P38),IF(AND(C39>$AL$1,$AC$3=$AL$2),BO40,IF($AO$18=$AO$20,SUM(BB40+BJ40),ROUND((D39+E39)*10%,0))))),"") ->  | Q39: =IFERROR(IF(C39="","",IF(H39="","",IF(I39="","",IF($C39="TOTAL",SUM($Q$8:Q38),IF(AND(C39>$AL$1,$AC$3=$AL$2),BO40,IF($AO$18=$AO$20,$AO$21,ROUND((H39+I39)*10%,0))))))),"") ->  | S39: =IFERROR(IF(C39="","",IF($AO$16=$AO$17,0,IF($C39="TOTAL",SUM($S$8:S38),IF($AO$19=$AO$31,0,IF(AND($AO$32=$AO$20,C39=$AO$33),$AO$34,S38))))),"") ->  | T39: =IFERROR(IF(C39="","",IF($AO$16=$AO$17,0,IF($C39="TOTAL",SUM($T$8:T38),IF($AO$19=$AO$20,$AO$24,0)))),"") ->  | V39: =IF(C39="","",IF($C39="TOTAL",SUM($V$8:V38),IF(AND($AO$2=$AO$20,C39=$AO$1),ROUND(D39/31*$AP$2,0),IF(C39=$AM$6,ROUND((G39)*1/30,0),IF(C39=$AN$6,ROUND((G39)*1/31,0),""))))) ->  | W39: =IF(C39="","",IF($C39="TOTAL",SUM($W$8:W38),IF(AND($AO$2=$AO$20,C39=$AO$1),ROUND(H39/31*$AP$2,0),IF(C39=$AM$6,ROUND((K39)*1/30,0),IF(C39=$AN$6,ROUND((K39)*1/31,0),""))))) ->  | Y39: =IFERROR(IF(C39="","",IF(AND(BH40="",BO40=""),"",IF($C39="TOTAL",SUM($Y$8:Y38),BH40))),"") ->  | Z39: =IFERROR(IF(C39="","",IF($C39="TOTAL",SUM($Z$8:Z38),ROUND(O39*$AO$7%,0))),"") ->  | AA39: =IFERROR(IF(C39="","",IF($C39="TOTAL",SUM($AA$8:AA38),IF($AC$3=$AL$2,SUM(U39,X39,Y39,Z39),SUM(R39,U39,X39,Y39,Z39)))),"") ->  | AB39: =IFERROR(IF(C39="","",IF($C39="TOTAL",SUM($AB$8:AB38),SUM(O39-AA39))),"") ->  | AK39: 34 | AL39: 34 | AN39: 2019-07-01 | AP39: 2023-04-01 | AR39: 2023-04-01 | AS39: 2023-04-01 | BI39: 0 | BJ39: 0 | BO39: 2100
D40: =IFERROR(IF($C39="TOTAL","अक्षरें राशि :-",IF($C40="TOTAL",SUM($D$8:D39),IF(AU41="","",AU41))),"") ->  | E40: =IFERROR(IF($C40="TOTAL",SUM($E$8:E39),IF(AV41="","",AV41)),"") ->  | F40: =IFERROR(IF($C40="TOTAL",SUM($F$8:F39),IF(OR(C40=$AM$16,C40=$AM$17,C40=$AM$18,C40=$AM$19,C40=$AM$20,C40=$AM$21,C40=$AM$22,C40=$AM$23,C40=$AM$24),0,IF(AW41="","",AW41))),"") ->  | H40: =IFERROR(IF($C40="TOTAL",SUM($H$8:H39),IF(AY41="","",AY41)),"") ->  | I40: =IFERROR(IF($C40="TOTAL",SUM($I$8:I39),IF(AZ41="","",AZ41)),"") ->  | J40: =IFERROR(IF($C40="TOTAL",SUM($J$8:J39),IF(OR(C40=$AM$16,C40=$AM$17,C40=$AM$18,C40=$AM$19,C40=$AM$20,C40=$AM$21,C40=$AM$22,C40=$AM$23,C40=$AM$24),0,IF(BA41="","",BA41))),"") ->  | L40: =IFERROR(IF(C40="","",IF(D40="","",IF(H40="","",IF($C40="TOTAL",SUM($L$8:L39),SUM(D40-H40))))),"") ->  | M40: =IFERROR(IF(C40="","",IF(E40="","",IF(I40="","",IF($C40="TOTAL",SUM($M$8:M39),SUM(E40-I40))))),"") ->  | N40: =IFERROR(IF(C40="","",IF(F40="","",IF(J40="","",IF($C40="TOTAL",SUM($N$8:N39),SUM(F40-J40))))),"") ->  | P40: =IFERROR(IF(C40="","",IF($C40="TOTAL",SUM($P$8:P39),IF(AND(C40>$AL$1,$AC$3=$AL$2),BO41,IF($AO$18=$AO$20,SUM(BB41+BJ41),ROUND((D40+E40)*10%,0))))),"") ->  | Q40: =IFERROR(IF(C40="","",IF(H40="","",IF(I40="","",IF($C40="TOTAL",SUM($Q$8:Q39),IF(AND(C40>$AL$1,$AC$3=$AL$2),BO41,IF($AO$18=$AO$20,$AO$21,ROUND((H40+I40)*10%,0))))))),"") ->  | S40: =IFERROR(IF(C40="","",IF($AO$16=$AO$17,0,IF($C40="TOTAL",SUM($S$8:S39),IF($AO$19=$AO$31,0,IF(AND($AO$32=$AO$20,C40=$AO$33),$AO$34,S39))))),"") ->  | T40: =IFERROR(IF(C40="","",IF($AO$16=$AO$17,0,IF($C40="TOTAL",SUM($T$8:T39),IF($AO$19=$AO$20,$AO$24,0)))),"") ->  | V40: =IF(C40="","",IF($C40="TOTAL",SUM($V$8:V39),IF(AND($AO$2=$AO$20,C40=$AO$1),ROUND(D40/31*$AP$2,0),IF(C40=$AM$6,ROUND((G40)*1/30,0),IF(C40=$AN$6,ROUND((G40)*1/31,0),""))))) ->  | W40: =IF(C40="","",IF($C40="TOTAL",SUM($W$8:W39),IF(AND($AO$2=$AO$20,C40=$AO$1),ROUND(H40/31*$AP$2,0),IF(C40=$AM$6,ROUND((K40)*1/30,0),IF(C40=$AN$6,ROUND((K40)*1/31,0),""))))) ->  | Y40: =IFERROR(IF(C40="","",IF(AND(BH41="",BO41=""),"",IF($C40="TOTAL",SUM($Y$8:Y39),BH41))),"") ->  | Z40: =IFERROR(IF(C40="","",IF($C40="TOTAL",SUM($Z$8:Z39),ROUND(O40*$AO$7%,0))),"") ->  | AA40: =IFERROR(IF(C40="","",IF($C40="TOTAL",SUM($AA$8:AA39),IF($AC$3=$AL$2,SUM(U40,X40,Y40,Z40),SUM(R40,U40,X40,Y40,Z40)))),"") ->  | AB40: =IFERROR(IF(C40="","",IF($C40="TOTAL",SUM($AB$8:AB39),SUM(O40-AA40))),"") ->  | AK40: 34 | AL40: 34 | AN40: 2019-08-01 | AP40: 2023-05-01 | AR40: 2023-05-01 | AS40: 2023-05-01 | BI40: 0 | BJ40: 0 | BO40: 2100
D41: =IFERROR(IF($C40="TOTAL","अक्षरें राशि :-",IF($C41="TOTAL",SUM($D$8:D40),IF(AU42="","",AU42))),"") ->  | E41: =IFERROR(IF($C41="TOTAL",SUM($E$8:E40),IF(AV42="","",AV42)),"") ->  | F41: =IFERROR(IF($C41="TOTAL",SUM($F$8:F40),IF(OR(C41=$AM$16,C41=$AM$17,C41=$AM$18,C41=$AM$19,C41=$AM$20,C41=$AM$21,C41=$AM$22,C41=$AM$23,C41=$AM$24),0,IF(AW42="","",AW42))),"") ->  | H41: =IFERROR(IF($C41="TOTAL",SUM($H$8:H40),IF(AY42="","",AY42)),"") ->  | I41: =IFERROR(IF($C41="TOTAL",SUM($I$8:I40),IF(AZ42="","",AZ42)),"") ->  | J41: =IFERROR(IF($C41="TOTAL",SUM($J$8:J40),IF(OR(C41=$AM$16,C41=$AM$17,C41=$AM$18,C41=$AM$19,C41=$AM$20,C41=$AM$21,C41=$AM$22,C41=$AM$23,C41=$AM$24),0,IF(BA42="","",BA42))),"") ->  | L41: =IFERROR(IF(C41="","",IF(D41="","",IF(H41="","",IF($C41="TOTAL",SUM($L$8:L40),SUM(D41-H41))))),"") ->  | M41: =IFERROR(IF(C41="","",IF(E41="","",IF(I41="","",IF($C41="TOTAL",SUM($M$8:M40),SUM(E41-I41))))),"") ->  | N41: =IFERROR(IF(C41="","",IF(F41="","",IF(J41="","",IF($C41="TOTAL",SUM($N$8:N40),SUM(F41-J41))))),"") ->  | P41: =IFERROR(IF(C41="","",IF($C41="TOTAL",SUM($P$8:P40),IF(AND(C41>$AL$1,$AC$3=$AL$2),BO42,IF($AO$18=$AO$20,SUM(BB42+BJ42),ROUND((D41+E41)*10%,0))))),"") ->  | Q41: =IFERROR(IF(C41="","",IF(H41="","",IF(I41="","",IF($C41="TOTAL",SUM($Q$8:Q40),IF(AND(C41>$AL$1,$AC$3=$AL$2),BO42,IF($AO$18=$AO$20,$AO$21,ROUND((H41+I41)*10%,0))))))),"") ->  | S41: =IFERROR(IF(C41="","",IF($AO$16=$AO$17,0,IF($C41="TOTAL",SUM($S$8:S40),IF($AO$19=$AO$31,0,IF(AND($AO$32=$AO$20,C41=$AO$33),$AO$34,S40))))),"") ->  | T41: =IFERROR(IF(C41="","",IF($AO$16=$AO$17,0,IF($C41="TOTAL",SUM($T$8:T40),IF($AO$19=$AO$20,$AO$24,0)))),"") ->  | V41: =IF(C41="","",IF($C41="TOTAL",SUM($V$8:V40),IF(AND($AO$2=$AO$20,C41=$AO$1),ROUND(D41/31*$AP$2,0),IF(C41=$AM$6,ROUND((G41)*1/30,0),IF(C41=$AN$6,ROUND((G41)*1/31,0),""))))) ->  | W41: =IF(C41="","",IF($C41="TOTAL",SUM($W$8:W40),IF(AND($AO$2=$AO$20,C41=$AO$1),ROUND(H41/31*$AP$2,0),IF(C41=$AM$6,ROUND((K41)*1/30,0),IF(C41=$AN$6,ROUND((K41)*1/31,0),""))))) ->  | Y41: =IFERROR(IF(C41="","",IF(AND(BH42="",BO42=""),"",IF($C41="TOTAL",SUM($Y$8:Y40),BH42))),"") ->  | Z41: =IFERROR(IF(C41="","",IF($C41="TOTAL",SUM($Z$8:Z40),ROUND(O41*$AO$7%,0))),"") ->  | AA41: =IFERROR(IF(C41="","",IF($C41="TOTAL",SUM($AA$8:AA40),IF($AC$3=$AL$2,SUM(U41,X41,Y41,Z41),SUM(R41,U41,X41,Y41,Z41)))),"") ->  | AB41: =IFERROR(IF(C41="","",IF($C41="TOTAL",SUM($AB$8:AB40),SUM(O41-AA41))),"") ->  | AK41: 34 | AL41: 34 | AN41: 2019-09-01 | AP41: 2023-06-01 | AR41: 2023-06-01 | AS41: 2023-06-01 | BI41: 0 | BJ41: 0 | BO41: 2100
D42: =IFERROR(IF($C41="TOTAL","अक्षरें राशि :-",IF($C42="TOTAL",SUM($D$8:D41),IF(AU43="","",AU43))),"") ->  | E42: =IFERROR(IF($C42="TOTAL",SUM($E$8:E41),IF(AV43="","",AV43)),"") ->  | F42: =IFERROR(IF($C42="TOTAL",SUM($F$8:F41),IF(OR(C42=$AM$16,C42=$AM$17,C42=$AM$18,C42=$AM$19,C42=$AM$20,C42=$AM$21,C42=$AM$22,C42=$AM$23,C42=$AM$24),0,IF(AW43="","",AW43))),"") ->  | H42: =IFERROR(IF($C42="TOTAL",SUM($H$8:H41),IF(AY43="","",AY43)),"") ->  | I42: =IFERROR(IF($C42="TOTAL",SUM($I$8:I41),IF(AZ43="","",AZ43)),"") ->  | J42: =IFERROR(IF($C42="TOTAL",SUM($J$8:J41),IF(OR(C42=$AM$16,C42=$AM$17,C42=$AM$18,C42=$AM$19,C42=$AM$20,C42=$AM$21,C42=$AM$22,C42=$AM$23,C42=$AM$24),0,IF(BA43="","",BA43))),"") ->  | L42: =IFERROR(IF(C42="","",IF(D42="","",IF(H42="","",IF($C42="TOTAL",SUM($L$8:L41),SUM(D42-H42))))),"") ->  | M42: =IFERROR(IF(C42="","",IF(E42="","",IF(I42="","",IF($C42="TOTAL",SUM($M$8:M41),SUM(E42-I42))))),"") ->  | N42: =IFERROR(IF(C42="","",IF(F42="","",IF(J42="","",IF($C42="TOTAL",SUM($N$8:N41),SUM(F42-J42))))),"") ->  | P42: =IFERROR(IF(C42="","",IF($C42="TOTAL",SUM($P$8:P41),IF(AND(C42>$AL$1,$AC$3=$AL$2),BO43,IF($AO$18=$AO$20,SUM(BB43+BJ43),ROUND((D42+E42)*10%,0))))),"") ->  | Q42: =IFERROR(IF(C42="","",IF(H42="","",IF(I42="","",IF($C42="TOTAL",SUM($Q$8:Q41),IF(AND(C42>$AL$1,$AC$3=$AL$2),BO43,IF($AO$18=$AO$20,$AO$21,ROUND((H42+I42)*10%,0))))))),"") ->  | S42: =IFERROR(IF(C42="","",IF($AO$16=$AO$17,0,IF($C42="TOTAL",SUM($S$8:S41),IF($AO$19=$AO$31,0,IF(AND($AO$32=$AO$20,C42=$AO$33),$AO$34,S41))))),"") ->  | T42: =IFERROR(IF(C42="","",IF($AO$16=$AO$17,0,IF($C42="TOTAL",SUM($T$8:T41),IF($AO$19=$AO$20,$AO$24,0)))),"") ->  | V42: =IF(C42="","",IF($C42="TOTAL",SUM($V$8:V41),IF(AND($AO$2=$AO$20,C42=$AO$1),ROUND(D42/31*$AP$2,0),IF(C42=$AM$6,ROUND((G42)*1/30,0),IF(C42=$AN$6,ROUND((G42)*1/31,0),""))))) ->  | W42: =IF(C42="","",IF($C42="TOTAL",SUM($W$8:W41),IF(AND($AO$2=$AO$20,C42=$AO$1),ROUND(H42/31*$AP$2,0),IF(C42=$AM$6,ROUND((K42)*1/30,0),IF(C42=$AN$6,ROUND((K42)*1/31,0),""))))) ->  | Y42: =IFERROR(IF(C42="","",IF(AND(BH43="",BO43=""),"",IF($C42="TOTAL",SUM($Y$8:Y41),BH43))),"") ->  | Z42: =IFERROR(IF(C42="","",IF($C42="TOTAL",SUM($Z$8:Z41),ROUND(O42*$AO$7%,0))),"") ->  | AA42: =IFERROR(IF(C42="","",IF($C42="TOTAL",SUM($AA$8:AA41),IF($AC$3=$AL$2,SUM(U42,X42,Y42,Z42),SUM(R42,U42,X42,Y42,Z42)))),"") ->  | AB42: =IFERROR(IF(C42="","",IF($C42="TOTAL",SUM($AB$8:AB41),SUM(O42-AA42))),"") ->  | AK42: 34 | AL42: 34 | AN42: 2019-10-01 | AP42: 2023-07-01 | AR42: 2023-07-01 | AS42: 2023-07-01 | BI42: 0 | BJ42: 0 | BO42: 2100
D43: =IFERROR(IF($C42="TOTAL","अक्षरें राशि :-",IF($C43="TOTAL",SUM($D$8:D42),IF(AU44="","",AU44))),"") ->  | E43: =IFERROR(IF($C43="TOTAL",SUM($E$8:E42),IF(AV44="","",AV44)),"") ->  | F43: =IFERROR(IF($C43="TOTAL",SUM($F$8:F42),IF(OR(C43=$AM$16,C43=$AM$17,C43=$AM$18,C43=$AM$19,C43=$AM$20,C43=$AM$21,C43=$AM$22,C43=$AM$23,C43=$AM$24),0,IF(AW44="","",AW44))),"") ->  | H43: =IFERROR(IF($C43="TOTAL",SUM($H$8:H42),IF(AY44="","",AY44)),"") ->  | I43: =IFERROR(IF($C43="TOTAL",SUM($I$8:I42),IF(AZ44="","",AZ44)),"") ->  | J43: =IFERROR(IF($C43="TOTAL",SUM($J$8:J42),IF(OR(C43=$AM$16,C43=$AM$17,C43=$AM$18,C43=$AM$19,C43=$AM$20,C43=$AM$21,C43=$AM$22,C43=$AM$23,C43=$AM$24),0,IF(BA44="","",BA44))),"") ->  | L43: =IFERROR(IF(C43="","",IF(D43="","",IF(H43="","",IF($C43="TOTAL",SUM($L$8:L42),SUM(D43-H43))))),"") ->  | M43: =IFERROR(IF(C43="","",IF(E43="","",IF(I43="","",IF($C43="TOTAL",SUM($M$8:M42),SUM(E43-I43))))),"") ->  | N43: =IFERROR(IF(C43="","",IF(F43="","",IF(J43="","",IF($C43="TOTAL",SUM($N$8:N42),SUM(F43-J43))))),"") ->  | P43: =IFERROR(IF(C43="","",IF($C43="TOTAL",SUM($P$8:P42),IF(AND(C43>$AL$1,$AC$3=$AL$2),BO44,IF($AO$18=$AO$20,SUM(BB44+BJ44),ROUND((D43+E43)*10%,0))))),"") ->  | Q43: =IFERROR(IF(C43="","",IF(H43="","",IF(I43="","",IF($C43="TOTAL",SUM($Q$8:Q42),IF(AND(C43>$AL$1,$AC$3=$AL$2),BO44,IF($AO$18=$AO$20,$AO$21,ROUND((H43+I43)*10%,0))))))),"") ->  | S43: =IFERROR(IF(C43="","",IF($AO$16=$AO$17,0,IF($C43="TOTAL",SUM($S$8:S42),IF($AO$19=$AO$31,0,IF(AND($AO$32=$AO$20,C43=$AO$33),$AO$34,S42))))),"") ->  | T43: =IFERROR(IF(C43="","",IF($AO$16=$AO$17,0,IF($C43="TOTAL",SUM($T$8:T42),IF($AO$19=$AO$20,$AO$24,0)))),"") ->  | V43: =IF(C43="","",IF($C43="TOTAL",SUM($V$8:V42),IF(AND($AO$2=$AO$20,C43=$AO$1),ROUND(D43/31*$AP$2,0),IF(C43=$AM$6,ROUND((G43)*1/30,0),IF(C43=$AN$6,ROUND((G43)*1/31,0),""))))) ->  | W43: =IF(C43="","",IF($C43="TOTAL",SUM($W$8:W42),IF(AND($AO$2=$AO$20,C43=$AO$1),ROUND(H43/31*$AP$2,0),IF(C43=$AM$6,ROUND((K43)*1/30,0),IF(C43=$AN$6,ROUND((K43)*1/31,0),""))))) ->  | Y43: =IFERROR(IF(C43="","",IF(AND(BH44="",BO44=""),"",IF($C43="TOTAL",SUM($Y$8:Y42),BH44))),"") ->  | Z43: =IFERROR(IF(C43="","",IF($C43="TOTAL",SUM($Z$8:Z42),ROUND(O43*$AO$7%,0))),"") ->  | AA43: =IFERROR(IF(C43="","",IF($C43="TOTAL",SUM($AA$8:AA42),IF($AC$3=$AL$2,SUM(U43,X43,Y43,Z43),SUM(R43,U43,X43,Y43,Z43)))),"") ->  | AB43: =IFERROR(IF(C43="","",IF($C43="TOTAL",SUM($AB$8:AB42),SUM(O43-AA43))),"") ->  | AK43: 34 | AL43: 34 | AN43: 2019-11-01 | AP43: 2023-08-01 | AR43: 2023-08-01 | AS43: 2023-08-01 | BI43: 0 | BJ43: 0 | BO43: 2100
D44: =IFERROR(IF($C43="TOTAL","अक्षरें राशि :-",IF($C44="TOTAL",SUM($D$8:D43),IF(AU45="","",AU45))),"") ->  | E44: =IFERROR(IF($C44="TOTAL",SUM($E$8:E43),IF(AV45="","",AV45)),"") ->  | F44: =IFERROR(IF($C44="TOTAL",SUM($F$8:F43),IF(OR(C44=$AM$16,C44=$AM$17,C44=$AM$18,C44=$AM$19,C44=$AM$20,C44=$AM$21,C44=$AM$22,C44=$AM$23,C44=$AM$24),0,IF(AW45="","",AW45))),"") ->  | H44: =IFERROR(IF($C44="TOTAL",SUM($H$8:H43),IF(AY45="","",AY45)),"") ->  | I44: =IFERROR(IF($C44="TOTAL",SUM($I$8:I43),IF(AZ45="","",AZ45)),"") ->  | J44: =IFERROR(IF($C44="TOTAL",SUM($J$8:J43),IF(OR(C44=$AM$16,C44=$AM$17,C44=$AM$18,C44=$AM$19,C44=$AM$20,C44=$AM$21,C44=$AM$22,C44=$AM$23,C44=$AM$24),0,IF(BA45="","",BA45))),"") ->  | L44: =IFERROR(IF(C44="","",IF(D44="","",IF(H44="","",IF($C44="TOTAL",SUM($L$8:L43),SUM(D44-H44))))),"") ->  | M44: =IFERROR(IF(C44="","",IF(E44="","",IF(I44="","",IF($C44="TOTAL",SUM($M$8:M43),SUM(E44-I44))))),"") ->  | N44: =IFERROR(IF(C44="","",IF(F44="","",IF(J44="","",IF($C44="TOTAL",SUM($N$8:N43),SUM(F44-J44))))),"") ->  | P44: =IFERROR(IF(C44="","",IF($C44="TOTAL",SUM($P$8:P43),IF(AND(C44>$AL$1,$AC$3=$AL$2),BO45,IF($AO$18=$AO$20,SUM(BB45+BJ45),ROUND((D44+E44)*10%,0))))),"") ->  | Q44: =IFERROR(IF(C44="","",IF(H44="","",IF(I44="","",IF($C44="TOTAL",SUM($Q$8:Q43),IF(AND(C44>$AL$1,$AC$3=$AL$2),BO45,IF($AO$18=$AO$20,$AO$21,ROUND((H44+I44)*10%,0))))))),"") ->  | S44: =IFERROR(IF(C44="","",IF($AO$16=$AO$17,0,IF($C44="TOTAL",SUM($S$8:S43),IF($AO$19=$AO$31,0,IF(AND($AO$32=$AO$20,C44=$AO$33),$AO$34,S43))))),"") ->  | T44: =IFERROR(IF(C44="","",IF($AO$16=$AO$17,0,IF($C44="TOTAL",SUM($T$8:T43),IF($AO$19=$AO$20,$AO$24,0)))),"") ->  | V44: =IF(C44="","",IF($C44="TOTAL",SUM($V$8:V43),IF(AND($AO$2=$AO$20,C44=$AO$1),ROUND(D44/31*$AP$2,0),IF(C44=$AM$6,ROUND((G44)*1/30,0),IF(C44=$AN$6,ROUND((G44)*1/31,0),""))))) ->  | W44: =IF(C44="","",IF($C44="TOTAL",SUM($W$8:W43),IF(AND($AO$2=$AO$20,C44=$AO$1),ROUND(H44/31*$AP$2,0),IF(C44=$AM$6,ROUND((K44)*1/30,0),IF(C44=$AN$6,ROUND((K44)*1/31,0),""))))) ->  | Y44: =IFERROR(IF(C44="","",IF(AND(BH45="",BO45=""),"",IF($C44="TOTAL",SUM($Y$8:Y43),BH45))),"") ->  | Z44: =IFERROR(IF(C44="","",IF($C44="TOTAL",SUM($Z$8:Z43),ROUND(O44*$AO$7%,0))),"") ->  | AA44: =IFERROR(IF(C44="","",IF($C44="TOTAL",SUM($AA$8:AA43),IF($AC$3=$AL$2,SUM(U44,X44,Y44,Z44),SUM(R44,U44,X44,Y44,Z44)))),"") ->  | AB44: =IFERROR(IF(C44="","",IF($C44="TOTAL",SUM($AB$8:AB43),SUM(O44-AA44))),"") ->  | AK44: 34 | AL44: 34 | AN44: 2019-12-01 | AP44: 2023-09-01 | AR44: 2023-09-01 | AS44: 2023-09-01 | BI44: 0 | BJ44: 0 | BO44: 2100
D45: =IFERROR(IF($C44="TOTAL","अक्षरें राशि :-",IF($C45="TOTAL",SUM($D$8:D44),IF(AU46="","",AU46))),"") ->  | E45: =IFERROR(IF($C45="TOTAL",SUM($E$8:E44),IF(AV46="","",AV46)),"") ->  | F45: =IFERROR(IF($C45="TOTAL",SUM($F$8:F44),IF(OR(C45=$AM$16,C45=$AM$17,C45=$AM$18,C45=$AM$19,C45=$AM$20,C45=$AM$21,C45=$AM$22,C45=$AM$23,C45=$AM$24),0,IF(AW46="","",AW46))),"") ->  | H45: =IFERROR(IF($C45="TOTAL",SUM($H$8:H44),IF(AY46="","",AY46)),"") ->  | I45: =IFERROR(IF($C45="TOTAL",SUM($I$8:I44),IF(AZ46="","",AZ46)),"") ->  | J45: =IFERROR(IF($C45="TOTAL",SUM($J$8:J44),IF(OR(C45=$AM$16,C45=$AM$17,C45=$AM$18,C45=$AM$19,C45=$AM$20,C45=$AM$21,C45=$AM$22,C45=$AM$23,C45=$AM$24),0,IF(BA46="","",BA46))),"") ->  | L45: =IFERROR(IF(C45="","",IF(D45="","",IF(H45="","",IF($C45="TOTAL",SUM($L$8:L44),SUM(D45-H45))))),"") ->  | M45: =IFERROR(IF(C45="","",IF(E45="","",IF(I45="","",IF($C45="TOTAL",SUM($M$8:M44),SUM(E45-I45))))),"") ->  | N45: =IFERROR(IF(C45="","",IF(F45="","",IF(J45="","",IF($C45="TOTAL",SUM($N$8:N44),SUM(F45-J45))))),"") ->  | P45: =IFERROR(IF(C45="","",IF($C45="TOTAL",SUM($P$8:P44),IF(AND(C45>$AL$1,$AC$3=$AL$2),BO46,IF($AO$18=$AO$20,SUM(BB46+BJ46),ROUND((D45+E45)*10%,0))))),"") ->  | Q45: =IFERROR(IF(C45="","",IF(H45="","",IF(I45="","",IF($C45="TOTAL",SUM($Q$8:Q44),IF(AND(C45>$AL$1,$AC$3=$AL$2),BO46,IF($AO$18=$AO$20,$AO$21,ROUND((H45+I45)*10%,0))))))),"") ->  | S45: =IFERROR(IF(C45="","",IF($AO$16=$AO$17,0,IF($C45="TOTAL",SUM($S$8:S44),IF($AO$19=$AO$31,0,IF(AND($AO$32=$AO$20,C45=$AO$33),$AO$34,S44))))),"") ->  | T45: =IFERROR(IF(C45="","",IF($AO$16=$AO$17,0,IF($C45="TOTAL",SUM($T$8:T44),IF($AO$19=$AO$20,$AO$24,0)))),"") ->  | V45: =IF(C45="","",IF($C45="TOTAL",SUM($V$8:V44),IF(AND($AO$2=$AO$20,C45=$AO$1),ROUND(D45/31*$AP$2,0),IF(C45=$AM$6,ROUND((G45)*1/30,0),IF(C45=$AN$6,ROUND((G45)*1/31,0),""))))) ->  | W45: =IF(C45="","",IF($C45="TOTAL",SUM($W$8:W44),IF(AND($AO$2=$AO$20,C45=$AO$1),ROUND(H45/31*$AP$2,0),IF(C45=$AM$6,ROUND((K45)*1/30,0),IF(C45=$AN$6,ROUND((K45)*1/31,0),""))))) ->  | Y45: =IFERROR(IF(C45="","",IF(AND(BH46="",BO46=""),"",IF($C45="TOTAL",SUM($Y$8:Y44),BH46))),"") ->  | Z45: =IFERROR(IF(C45="","",IF($C45="TOTAL",SUM($Z$8:Z44),ROUND(O45*$AO$7%,0))),"") ->  | AA45: =IFERROR(IF(C45="","",IF($C45="TOTAL",SUM($AA$8:AA44),IF($AC$3=$AL$2,SUM(U45,X45,Y45,Z45),SUM(R45,U45,X45,Y45,Z45)))),"") ->  | AB45: =IFERROR(IF(C45="","",IF($C45="TOTAL",SUM($AB$8:AB44),SUM(O45-AA45))),"") ->  | AK45: 34 | AL45: 34 | AN45: 2020-01-01 | AP45: 2023-10-01 | AR45: 2023-10-01 | AS45: 2023-10-01 | BI45: 0 | BJ45: 0 | BO45: 2100
D46: =IFERROR(IF($C45="TOTAL","अक्षरें राशि :-",IF($C46="TOTAL",SUM($D$8:D45),IF(AU47="","",AU47))),"") ->  | E46: =IFERROR(IF($C46="TOTAL",SUM($E$8:E45),IF(AV47="","",AV47)),"") ->  | F46: =IFERROR(IF($C46="TOTAL",SUM($F$8:F45),IF(OR(C46=$AM$16,C46=$AM$17,C46=$AM$18,C46=$AM$19,C46=$AM$20,C46=$AM$21,C46=$AM$22,C46=$AM$23,C46=$AM$24),0,IF(AW47="","",AW47))),"") ->  | H46: =IFERROR(IF($C46="TOTAL",SUM($H$8:H45),IF(AY47="","",AY47)),"") ->  | I46: =IFERROR(IF($C46="TOTAL",SUM($I$8:I45),IF(AZ47="","",AZ47)),"") ->  | J46: =IFERROR(IF($C46="TOTAL",SUM($J$8:J45),IF(OR(C46=$AM$16,C46=$AM$17,C46=$AM$18,C46=$AM$19,C46=$AM$20,C46=$AM$21,C46=$AM$22,C46=$AM$23,C46=$AM$24),0,IF(BA47="","",BA47))),"") ->  | L46: =IFERROR(IF(C46="","",IF(D46="","",IF(H46="","",IF($C46="TOTAL",SUM($L$8:L45),SUM(D46-H46))))),"") ->  | M46: =IFERROR(IF(C46="","",IF(E46="","",IF(I46="","",IF($C46="TOTAL",SUM($M$8:M45),SUM(E46-I46))))),"") ->  | N46: =IFERROR(IF(C46="","",IF(F46="","",IF(J46="","",IF($C46="TOTAL",SUM($N$8:N45),SUM(F46-J46))))),"") ->  | P46: =IFERROR(IF(C46="","",IF($C46="TOTAL",SUM($P$8:P45),IF(AND(C46>$AL$1,$AC$3=$AL$2),BO47,IF($AO$18=$AO$20,SUM(BB47+BJ47),ROUND((D46+E46)*10%,0))))),"") ->  | Q46: =IFERROR(IF(C46="","",IF(H46="","",IF(I46="","",IF($C46="TOTAL",SUM($Q$8:Q45),IF(AND(C46>$AL$1,$AC$3=$AL$2),BO47,IF($AO$18=$AO$20,$AO$21,ROUND((H46+I46)*10%,0))))))),"") ->  | S46: =IFERROR(IF(C46="","",IF($AO$16=$AO$17,0,IF($C46="TOTAL",SUM($S$8:S45),IF($AO$19=$AO$31,0,IF(AND($AO$32=$AO$20,C46=$AO$33),$AO$34,S45))))),"") ->  | T46: =IFERROR(IF(C46="","",IF($AO$16=$AO$17,0,IF($C46="TOTAL",SUM($T$8:T45),IF($AO$19=$AO$20,$AO$24,0)))),"") ->  | V46: =IF(C46="","",IF($C46="TOTAL",SUM($V$8:V45),IF(AND($AO$2=$AO$20,C46=$AO$1),ROUND(D46/31*$AP$2,0),IF(C46=$AM$6,ROUND((G46)*1/30,0),IF(C46=$AN$6,ROUND((G46)*1/31,0),""))))) ->  | W46: =IF(C46="","",IF($C46="TOTAL",SUM($W$8:W45),IF(AND($AO$2=$AO$20,C46=$AO$1),ROUND(H46/31*$AP$2,0),IF(C46=$AM$6,ROUND((K46)*1/30,0),IF(C46=$AN$6,ROUND((K46)*1/31,0),""))))) ->  | Y46: =IFERROR(IF(C46="","",IF(AND(BH47="",BO47=""),"",IF($C46="TOTAL",SUM($Y$8:Y45),BH47))),"") ->  | Z46: =IFERROR(IF(C46="","",IF($C46="TOTAL",SUM($Z$8:Z45),ROUND(O46*$AO$7%,0))),"") ->  | AA46: =IFERROR(IF(C46="","",IF($C46="TOTAL",SUM($AA$8:AA45),IF($AC$3=$AL$2,SUM(U46,X46,Y46,Z46),SUM(R46,U46,X46,Y46,Z46)))),"") ->  | AB46: =IFERROR(IF(C46="","",IF($C46="TOTAL",SUM($AB$8:AB45),SUM(O46-AA46))),"") ->  | AK46: 34 | AL46: 34 | AN46: 2020-02-01 | AP46: 2023-11-01 | AR46: 2023-11-01 | AS46: 2023-11-01 | BI46: 0 | BJ46: 0 | BO46: 2100
D47: =IFERROR(IF($C46="TOTAL","अक्षरें राशि :-",IF($C47="TOTAL",SUM($D$8:D46),IF(AU48="","",AU48))),"") ->  | E47: =IFERROR(IF($C47="TOTAL",SUM($E$8:E46),IF(AV48="","",AV48)),"") ->  | F47: =IFERROR(IF($C47="TOTAL",SUM($F$8:F46),IF(OR(C47=$AM$16,C47=$AM$17,C47=$AM$18,C47=$AM$19,C47=$AM$20,C47=$AM$21,C47=$AM$22,C47=$AM$23,C47=$AM$24),0,IF(AW48="","",AW48))),"") ->  | H47: =IFERROR(IF($C47="TOTAL",SUM($H$8:H46),IF(AY48="","",AY48)),"") ->  | I47: =IFERROR(IF($C47="TOTAL",SUM($I$8:I46),IF(AZ48="","",AZ48)),"") ->  | J47: =IFERROR(IF($C47="TOTAL",SUM($J$8:J46),IF(OR(C47=$AM$16,C47=$AM$17,C47=$AM$18,C47=$AM$19,C47=$AM$20,C47=$AM$21,C47=$AM$22,C47=$AM$23,C47=$AM$24),0,IF(BA48="","",BA48))),"") ->  | L47: =IFERROR(IF(C47="","",IF(D47="","",IF(H47="","",IF($C47="TOTAL",SUM($L$8:L46),SUM(D47-H47))))),"") ->  | M47: =IFERROR(IF(C47="","",IF(E47="","",IF(I47="","",IF($C47="TOTAL",SUM($M$8:M46),SUM(E47-I47))))),"") ->  | N47: =IFERROR(IF(C47="","",IF(F47="","",IF(J47="","",IF($C47="TOTAL",SUM($N$8:N46),SUM(F47-J47))))),"") ->  | P47: =IFERROR(IF(C47="","",IF($C47="TOTAL",SUM($P$8:P46),IF(AND(C47>$AL$1,$AC$3=$AL$2),BO48,IF($AO$18=$AO$20,SUM(BB48+BJ48),ROUND((D47+E47)*10%,0))))),"") ->  | Q47: =IFERROR(IF(C47="","",IF(H47="","",IF(I47="","",IF($C47="TOTAL",SUM($Q$8:Q46),IF(AND(C47>$AL$1,$AC$3=$AL$2),BO48,IF($AO$18=$AO$20,$AO$21,ROUND((H47+I47)*10%,0))))))),"") ->  | S47: =IFERROR(IF(C47="","",IF($AO$16=$AO$17,0,IF($C47="TOTAL",SUM($S$8:S46),IF($AO$19=$AO$31,0,IF(AND($AO$32=$AO$20,C47=$AO$33),$AO$34,S46))))),"") ->  | T47: =IFERROR(IF(C47="","",IF($AO$16=$AO$17,0,IF($C47="TOTAL",SUM($T$8:T46),IF($AO$19=$AO$20,$AO$24,0)))),"") ->  | V47: =IF(C47="","",IF($C47="TOTAL",SUM($V$8:V46),IF(AND($AO$2=$AO$20,C47=$AO$1),ROUND(D47/31*$AP$2,0),IF(C47=$AM$6,ROUND((G47)*1/30,0),IF(C47=$AN$6,ROUND((G47)*1/31,0),""))))) ->  | W47: =IF(C47="","",IF($C47="TOTAL",SUM($W$8:W46),IF(AND($AO$2=$AO$20,C47=$AO$1),ROUND(H47/31*$AP$2,0),IF(C47=$AM$6,ROUND((K47)*1/30,0),IF(C47=$AN$6,ROUND((K47)*1/31,0),""))))) ->  | Y47: =IFERROR(IF(C47="","",IF(AND(BH48="",BO48=""),"",IF($C47="TOTAL",SUM($Y$8:Y46),BH48))),"") ->  | Z47: =IFERROR(IF(C47="","",IF($C47="TOTAL",SUM($Z$8:Z46),ROUND(O47*$AO$7%,0))),"") ->  | AA47: =IFERROR(IF(C47="","",IF($C47="TOTAL",SUM($AA$8:AA46),IF($AC$3=$AL$2,SUM(U47,X47,Y47,Z47),SUM(R47,U47,X47,Y47,Z47)))),"") ->  | AB47: =IFERROR(IF(C47="","",IF($C47="TOTAL",SUM($AB$8:AB46),SUM(O47-AA47))),"") ->  | AK47: 34 | AL47: 34 | AN47: 2020-03-01 | AP47: 2023-12-01 | BI47: 0 | BJ47: 0 | BO47: 2100
D48: =IFERROR(IF($C47="TOTAL","अक्षरें राशि :-",IF($C48="TOTAL",SUM($D$8:D47),IF(AU49="","",AU49))),"") ->  | E48: =IFERROR(IF($C48="TOTAL",SUM($E$8:E47),IF(AV49="","",AV49)),"") ->  | F48: =IFERROR(IF($C48="TOTAL",SUM($F$8:F47),IF(OR(C48=$AM$16,C48=$AM$17,C48=$AM$18,C48=$AM$19,C48=$AM$20,C48=$AM$21,C48=$AM$22,C48=$AM$23,C48=$AM$24),0,IF(AW49="","",AW49))),"") ->  | H48: =IFERROR(IF($C48="TOTAL",SUM($H$8:H47),IF(AY49="","",AY49)),"") ->  | I48: =IFERROR(IF($C48="TOTAL",SUM($I$8:I47),IF(AZ49="","",AZ49)),"") ->  | J48: =IFERROR(IF($C48="TOTAL",SUM($J$8:J47),IF(OR(C48=$AM$16,C48=$AM$17,C48=$AM$18,C48=$AM$19,C48=$AM$20,C48=$AM$21,C48=$AM$22,C48=$AM$23,C48=$AM$24),0,IF(BA49="","",BA49))),"") ->  | L48: =IFERROR(IF(C48="","",IF(D48="","",IF(H48="","",IF($C48="TOTAL",SUM($L$8:L47),SUM(D48-H48))))),"") ->  | M48: =IFERROR(IF(C48="","",IF(E48="","",IF(I48="","",IF($C48="TOTAL",SUM($M$8:M47),SUM(E48-I48))))),"") ->  | N48: =IFERROR(IF(C48="","",IF(F48="","",IF(J48="","",IF($C48="TOTAL",SUM($N$8:N47),SUM(F48-J48))))),"") ->  | P48: =IFERROR(IF(C48="","",IF($C48="TOTAL",SUM($P$8:P47),IF(AND(C48>$AL$1,$AC$3=$AL$2),BO49,IF($AO$18=$AO$20,SUM(BB49+BJ49),ROUND((D48+E48)*10%,0))))),"") ->  | Q48: =IFERROR(IF(C48="","",IF(H48="","",IF(I48="","",IF($C48="TOTAL",SUM($Q$8:Q47),IF(AND(C48>$AL$1,$AC$3=$AL$2),BO49,IF($AO$18=$AO$20,$AO$21,ROUND((H48+I48)*10%,0))))))),"") ->  | S48: =IFERROR(IF(C48="","",IF($AO$16=$AO$17,0,IF($C48="TOTAL",SUM($S$8:S47),IF($AO$19=$AO$31,0,IF(AND($AO$32=$AO$20,C48=$AO$33),$AO$34,S47))))),"") ->  | T48: =IFERROR(IF(C48="","",IF($AO$16=$AO$17,0,IF($C48="TOTAL",SUM($T$8:T47),IF($AO$19=$AO$20,$AO$24,0)))),"") ->  | V48: =IF(C48="","",IF($C48="TOTAL",SUM($V$8:V47),IF(AND($AO$2=$AO$20,C48=$AO$1),ROUND(D48/31*$AP$2,0),IF(C48=$AM$6,ROUND((G48)*1/30,0),IF(C48=$AN$6,ROUND((G48)*1/31,0),""))))) ->  | W48: =IF(C48="","",IF($C48="TOTAL",SUM($W$8:W47),IF(AND($AO$2=$AO$20,C48=$AO$1),ROUND(H48/31*$AP$2,0),IF(C48=$AM$6,ROUND((K48)*1/30,0),IF(C48=$AN$6,ROUND((K48)*1/31,0),""))))) ->  | Y48: =IFERROR(IF(C48="","",IF(AND(BH49="",BO49=""),"",IF($C48="TOTAL",SUM($Y$8:Y47),BH49))),"") ->  | Z48: =IFERROR(IF(C48="","",IF($C48="TOTAL",SUM($Z$8:Z47),ROUND(O48*$AO$7%,0))),"") ->  | AA48: =IFERROR(IF(C48="","",IF($C48="TOTAL",SUM($AA$8:AA47),IF($AC$3=$AL$2,SUM(U48,X48,Y48,Z48),SUM(R48,U48,X48,Y48,Z48)))),"") ->  | AB48: =IFERROR(IF(C48="","",IF($C48="TOTAL",SUM($AB$8:AB47),SUM(O48-AA48))),"") ->  | AK48: 34 | AL48: 34 | AN48: 2020-04-01 | AP48: 2024-01-01 | BI48: 0 | BJ48: 0 | BO48: 2100
D49: =IFERROR(IF($C48="TOTAL","अक्षरें राशि :-",IF($C49="TOTAL",SUM($D$8:D48),IF(AU50="","",AU50))),"") ->  | E49: =IFERROR(IF($C49="TOTAL",SUM($E$8:E48),IF(AV50="","",AV50)),"") ->  | F49: =IFERROR(IF($C49="TOTAL",SUM($F$8:F48),IF(OR(C49=$AM$16,C49=$AM$17,C49=$AM$18,C49=$AM$19,C49=$AM$20,C49=$AM$21,C49=$AM$22,C49=$AM$23,C49=$AM$24),0,IF(AW50="","",AW50))),"") ->  | H49: =IFERROR(IF($C49="TOTAL",SUM($H$8:H48),IF(AY50="","",AY50)),"") ->  | I49: =IFERROR(IF($C49="TOTAL",SUM($I$8:I48),IF(AZ50="","",AZ50)),"") ->  | J49: =IFERROR(IF($C49="TOTAL",SUM($J$8:J48),IF(OR(C49=$AM$16,C49=$AM$17,C49=$AM$18,C49=$AM$19,C49=$AM$20,C49=$AM$21,C49=$AM$22,C49=$AM$23,C49=$AM$24),0,IF(BA50="","",BA50))),"") ->  | L49: =IFERROR(IF(C49="","",IF(D49="","",IF(H49="","",IF($C49="TOTAL",SUM($L$8:L48),SUM(D49-H49))))),"") ->  | M49: =IFERROR(IF(C49="","",IF(E49="","",IF(I49="","",IF($C49="TOTAL",SUM($M$8:M48),SUM(E49-I49))))),"") ->  | N49: =IFERROR(IF(C49="","",IF(F49="","",IF(J49="","",IF($C49="TOTAL",SUM($N$8:N48),SUM(F49-J49))))),"") ->  | P49: =IFERROR(IF(C49="","",IF($C49="TOTAL",SUM($P$8:P48),IF(AND(C49>$AL$1,$AC$3=$AL$2),BO50,IF($AO$18=$AO$20,SUM(BB50+BJ50),ROUND((D49+E49)*10%,0))))),"") ->  | Q49: =IFERROR(IF(C49="","",IF(H49="","",IF(I49="","",IF($C49="TOTAL",SUM($Q$8:Q48),IF(AND(C49>$AL$1,$AC$3=$AL$2),BO50,IF($AO$18=$AO$20,$AO$21,ROUND((H49+I49)*10%,0))))))),"") ->  | S49: =IFERROR(IF(C49="","",IF($AO$16=$AO$17,0,IF($C49="TOTAL",SUM($S$8:S48),IF($AO$19=$AO$31,0,IF(AND($AO$32=$AO$20,C49=$AO$33),$AO$34,S48))))),"") ->  | T49: =IFERROR(IF(C49="","",IF($AO$16=$AO$17,0,IF($C49="TOTAL",SUM($T$8:T48),IF($AO$19=$AO$20,$AO$24,0)))),"") ->  | V49: =IF(C49="","",IF($C49="TOTAL",SUM($V$8:V48),IF(AND($AO$2=$AO$20,C49=$AO$1),ROUND(D49/31*$AP$2,0),IF(C49=$AM$6,ROUND((G49)*1/30,0),IF(C49=$AN$6,ROUND((G49)*1/31,0),""))))) ->  | W49: =IF(C49="","",IF($C49="TOTAL",SUM($W$8:W48),IF(AND($AO$2=$AO$20,C49=$AO$1),ROUND(H49/31*$AP$2,0),IF(C49=$AM$6,ROUND((K49)*1/30,0),IF(C49=$AN$6,ROUND((K49)*1/31,0),""))))) ->  | Y49: =IFERROR(IF(C49="","",IF(AND(BH50="",BO50=""),"",IF($C49="TOTAL",SUM($Y$8:Y48),BH50))),"") ->  | Z49: =IFERROR(IF(C49="","",IF($C49="TOTAL",SUM($Z$8:Z48),ROUND(O49*$AO$7%,0))),"") ->  | AA49: =IFERROR(IF(C49="","",IF($C49="TOTAL",SUM($AA$8:AA48),IF($AC$3=$AL$2,SUM(U49,X49,Y49,Z49),SUM(R49,U49,X49,Y49,Z49)))),"") ->  | AB49: =IFERROR(IF(C49="","",IF($C49="TOTAL",SUM($AB$8:AB48),SUM(O49-AA49))),"") ->  | AK49: 34 | AL49: 34 | AN49: 2020-05-01 | AP49: 2024-02-01 | BI49: 0 | BJ49: 0 | BO49: 2100
D50: =IFERROR(IF($C49="TOTAL","अक्षरें राशि :-",IF($C50="TOTAL",SUM($D$8:D49),IF(AU51="","",AU51))),"") ->  | E50: =IFERROR(IF($C50="TOTAL",SUM($E$8:E49),IF(AV51="","",AV51)),"") ->  | F50: =IFERROR(IF($C50="TOTAL",SUM($F$8:F49),IF(OR(C50=$AM$16,C50=$AM$17,C50=$AM$18,C50=$AM$19,C50=$AM$20,C50=$AM$21,C50=$AM$22,C50=$AM$23,C50=$AM$24),0,IF(AW51="","",AW51))),"") ->  | H50: =IFERROR(IF($C50="TOTAL",SUM($H$8:H49),IF(AY51="","",AY51)),"") ->  | I50: =IFERROR(IF($C50="TOTAL",SUM($I$8:I49),IF(AZ51="","",AZ51)),"") ->  | J50: =IFERROR(IF($C50="TOTAL",SUM($J$8:J49),IF(OR(C50=$AM$16,C50=$AM$17,C50=$AM$18,C50=$AM$19,C50=$AM$20,C50=$AM$21,C50=$AM$22,C50=$AM$23,C50=$AM$24),0,IF(BA51="","",BA51))),"") ->  | L50: =IFERROR(IF(C50="","",IF(D50="","",IF(H50="","",IF($C50="TOTAL",SUM($L$8:L49),SUM(D50-H50))))),"") ->  | M50: =IFERROR(IF(C50="","",IF(E50="","",IF(I50="","",IF($C50="TOTAL",SUM($M$8:M49),SUM(E50-I50))))),"") ->  | N50: =IFERROR(IF(C50="","",IF(F50="","",IF(J50="","",IF($C50="TOTAL",SUM($N$8:N49),SUM(F50-J50))))),"") ->  | P50: =IFERROR(IF(C50="","",IF($C50="TOTAL",SUM($P$8:P49),IF(AND(C50>$AL$1,$AC$3=$AL$2),BO51,IF($AO$18=$AO$20,SUM(BB51+BJ51),ROUND((D50+E50)*10%,0))))),"") ->  | Q50: =IFERROR(IF(C50="","",IF(H50="","",IF(I50="","",IF($C50="TOTAL",SUM($Q$8:Q49),IF(AND(C50>$AL$1,$AC$3=$AL$2),BO51,IF($AO$18=$AO$20,$AO$21,ROUND((H50+I50)*10%,0))))))),"") ->  | S50: =IFERROR(IF(C50="","",IF($AO$16=$AO$17,0,IF($C50="TOTAL",SUM($S$8:S49),IF($AO$19=$AO$31,0,IF(AND($AO$32=$AO$20,C50=$AO$33),$AO$34,S49))))),"") ->  | T50: =IFERROR(IF(C50="","",IF($AO$16=$AO$17,0,IF($C50="TOTAL",SUM($T$8:T49),IF($AO$19=$AO$20,$AO$24,0)))),"") ->  | V50: =IF(C50="","",IF($C50="TOTAL",SUM($V$8:V49),IF(AND($AO$2=$AO$20,C50=$AO$1),ROUND(D50/31*$AP$2,0),IF(C50=$AM$6,ROUND((G50)*1/30,0),IF(C50=$AN$6,ROUND((G50)*1/31,0),""))))) ->  | W50: =IF(C50="","",IF($C50="TOTAL",SUM($W$8:W49),IF(AND($AO$2=$AO$20,C50=$AO$1),ROUND(H50/31*$AP$2,0),IF(C50=$AM$6,ROUND((K50)*1/30,0),IF(C50=$AN$6,ROUND((K50)*1/31,0),""))))) ->  | Y50: =IFERROR(IF(C50="","",IF(AND(BH51="",BO51=""),"",IF($C50="TOTAL",SUM($Y$8:Y49),BH51))),"") ->  | Z50: =IFERROR(IF(C50="","",IF($C50="TOTAL",SUM($Z$8:Z49),ROUND(O50*$AO$7%,0))),"") ->  | AA50: =IFERROR(IF(C50="","",IF($C50="TOTAL",SUM($AA$8:AA49),IF($AC$3=$AL$2,SUM(U50,X50,Y50,Z50),SUM(R50,U50,X50,Y50,Z50)))),"") ->  | AB50: =IFERROR(IF(C50="","",IF($C50="TOTAL",SUM($AB$8:AB49),SUM(O50-AA50))),"") ->  | AK50: 34 | AL50: 34 | AN50: 2020-06-01 | AP50: 2024-03-01 | BI50: 0 | BJ50: 0 | BO50: 2100
D51: =IFERROR(IF($C50="TOTAL","अक्षरें राशि :-",IF($C51="TOTAL",SUM($D$8:D50),IF(AU52="","",AU52))),"") ->  | E51: =IFERROR(IF($C51="TOTAL",SUM($E$8:E50),IF(AV52="","",AV52)),"") ->  | F51: =IFERROR(IF($C51="TOTAL",SUM($F$8:F50),IF(OR(C51=$AM$16,C51=$AM$17,C51=$AM$18,C51=$AM$19,C51=$AM$20,C51=$AM$21,C51=$AM$22,C51=$AM$23,C51=$AM$24),0,IF(AW52="","",AW52))),"") ->  | H51: =IFERROR(IF($C51="TOTAL",SUM($H$8:H50),IF(AY52="","",AY52)),"") ->  | I51: =IFERROR(IF($C51="TOTAL",SUM($I$8:I50),IF(AZ52="","",AZ52)),"") ->  | J51: =IFERROR(IF($C51="TOTAL",SUM($J$8:J50),IF(OR(C51=$AM$16,C51=$AM$17,C51=$AM$18,C51=$AM$19,C51=$AM$20,C51=$AM$21,C51=$AM$22,C51=$AM$23,C51=$AM$24),0,IF(BA52="","",BA52))),"") ->  | L51: =IFERROR(IF(C51="","",IF(D51="","",IF(H51="","",IF($C51="TOTAL",SUM($L$8:L50),SUM(D51-H51))))),"") ->  | M51: =IFERROR(IF(C51="","",IF(E51="","",IF(I51="","",IF($C51="TOTAL",SUM($M$8:M50),SUM(E51-I51))))),"") ->  | N51: =IFERROR(IF(C51="","",IF(F51="","",IF(J51="","",IF($C51="TOTAL",SUM($N$8:N50),SUM(F51-J51))))),"") ->  | P51: =IFERROR(IF(C51="","",IF($C51="TOTAL",SUM($P$8:P50),IF(AND(C51>$AL$1,$AC$3=$AL$2),BO52,IF($AO$18=$AO$20,SUM(BB52+BJ52),ROUND((D51+E51)*10%,0))))),"") ->  | Q51: =IFERROR(IF(C51="","",IF(H51="","",IF(I51="","",IF($C51="TOTAL",SUM($Q$8:Q50),IF(AND(C51>$AL$1,$AC$3=$AL$2),BO52,IF($AO$18=$AO$20,$AO$21,ROUND((H51+I51)*10%,0))))))),"") ->  | S51: =IFERROR(IF(C51="","",IF($AO$16=$AO$17,0,IF($C51="TOTAL",SUM($S$8:S50),IF($AO$19=$AO$31,0,IF(AND($AO$32=$AO$20,C51=$AO$33),$AO$34,S50))))),"") ->  | T51: =IFERROR(IF(C51="","",IF($AO$16=$AO$17,0,IF($C51="TOTAL",SUM($T$8:T50),IF($AO$19=$AO$20,$AO$24,0)))),"") ->  | V51: =IF(C51="","",IF($C51="TOTAL",SUM($V$8:V50),IF(AND($AO$2=$AO$20,C51=$AO$1),ROUND(D51/31*$AP$2,0),IF(C51=$AM$6,ROUND((G51)*1/30,0),IF(C51=$AN$6,ROUND((G51)*1/31,0),""))))) ->  | W51: =IF(C51="","",IF($C51="TOTAL",SUM($W$8:W50),IF(AND($AO$2=$AO$20,C51=$AO$1),ROUND(H51/31*$AP$2,0),IF(C51=$AM$6,ROUND((K51)*1/30,0),IF(C51=$AN$6,ROUND((K51)*1/31,0),""))))) ->  | Y51: =IFERROR(IF(C51="","",IF(AND(BH52="",BO52=""),"",IF($C51="TOTAL",SUM($Y$8:Y50),BH52))),"") ->  | Z51: =IFERROR(IF(C51="","",IF($C51="TOTAL",SUM($Z$8:Z50),ROUND(O51*$AO$7%,0))),"") ->  | AA51: =IFERROR(IF(C51="","",IF($C51="TOTAL",SUM($AA$8:AA50),IF($AC$3=$AL$2,SUM(U51,X51,Y51,Z51),SUM(R51,U51,X51,Y51,Z51)))),"") ->  | AB51: =IFERROR(IF(C51="","",IF($C51="TOTAL",SUM($AB$8:AB50),SUM(O51-AA51))),"") ->  | AK51: 34 | AL51: 34 | AN51: 2020-07-01 | AP51: 2024-04-01 | BI51: 0 | BJ51: 0 | BO51: 2100
D52: =IFERROR(IF($C51="TOTAL","अक्षरें राशि :-",IF($C52="TOTAL",SUM($D$8:D51),IF(AU53="","",AU53))),"") ->  | E52: =IFERROR(IF($C52="TOTAL",SUM($E$8:E51),IF(AV53="","",AV53)),"") ->  | F52: =IFERROR(IF($C52="TOTAL",SUM($F$8:F51),IF(OR(C52=$AM$16,C52=$AM$17,C52=$AM$18,C52=$AM$19,C52=$AM$20,C52=$AM$21,C52=$AM$22,C52=$AM$23,C52=$AM$24),0,IF(AW53="","",AW53))),"") ->  | H52: =IFERROR(IF($C52="TOTAL",SUM($H$8:H51),IF(AY53="","",AY53)),"") ->  | I52: =IFERROR(IF($C52="TOTAL",SUM($I$8:I51),IF(AZ53="","",AZ53)),"") ->  | J52: =IFERROR(IF($C52="TOTAL",SUM($J$8:J51),IF(OR(C52=$AM$16,C52=$AM$17,C52=$AM$18,C52=$AM$19,C52=$AM$20,C52=$AM$21,C52=$AM$22,C52=$AM$23,C52=$AM$24),0,IF(BA53="","",BA53))),"") ->  | L52: =IFERROR(IF(C52="","",IF(D52="","",IF(H52="","",IF($C52="TOTAL",SUM($L$8:L51),SUM(D52-H52))))),"") ->  | M52: =IFERROR(IF(C52="","",IF(E52="","",IF(I52="","",IF($C52="TOTAL",SUM($M$8:M51),SUM(E52-I52))))),"") ->  | N52: =IFERROR(IF(C52="","",IF(F52="","",IF(J52="","",IF($C52="TOTAL",SUM($N$8:N51),SUM(F52-J52))))),"") ->  | P52: =IFERROR(IF(C52="","",IF($C52="TOTAL",SUM($P$8:P51),IF(AND(C52>$AL$1,$AC$3=$AL$2),BO53,IF($AO$18=$AO$20,SUM(BB53+BJ53),ROUND((D52+E52)*10%,0))))),"") ->  | Q52: =IFERROR(IF(C52="","",IF(H52="","",IF(I52="","",IF($C52="TOTAL",SUM($Q$8:Q51),IF(AND(C52>$AL$1,$AC$3=$AL$2),BO53,IF($AO$18=$AO$20,$AO$21,ROUND((H52+I52)*10%,0))))))),"") ->  | S52: =IFERROR(IF(C52="","",IF($AO$16=$AO$17,0,IF($C52="TOTAL",SUM($S$8:S51),IF($AO$19=$AO$31,0,IF(AND($AO$32=$AO$20,C52=$AO$33),$AO$34,S51))))),"") ->  | T52: =IFERROR(IF(C52="","",IF($AO$16=$AO$17,0,IF($C52="TOTAL",SUM($T$8:T51),IF($AO$19=$AO$20,$AO$24,0)))),"") ->  | V52: =IF(C52="","",IF($C52="TOTAL",SUM($V$8:V51),IF(AND($AO$2=$AO$20,C52=$AO$1),ROUND(D52/31*$AP$2,0),IF(C52=$AM$6,ROUND((G52)*1/30,0),IF(C52=$AN$6,ROUND((G52)*1/31,0),""))))) ->  | W52: =IF(C52="","",IF($C52="TOTAL",SUM($W$8:W51),IF(AND($AO$2=$AO$20,C52=$AO$1),ROUND(H52/31*$AP$2,0),IF(C52=$AM$6,ROUND((K52)*1/30,0),IF(C52=$AN$6,ROUND((K52)*1/31,0),""))))) ->  | Y52: =IFERROR(IF(C52="","",IF(AND(BH53="",BO53=""),"",IF($C52="TOTAL",SUM($Y$8:Y51),BH53))),"") ->  | Z52: =IFERROR(IF(C52="","",IF($C52="TOTAL",SUM($Z$8:Z51),ROUND(O52*$AO$7%,0))),"") ->  | AA52: =IFERROR(IF(C52="","",IF($C52="TOTAL",SUM($AA$8:AA51),IF($AC$3=$AL$2,SUM(U52,X52,Y52,Z52),SUM(R52,U52,X52,Y52,Z52)))),"") ->  | AB52: =IFERROR(IF(C52="","",IF($C52="TOTAL",SUM($AB$8:AB51),SUM(O52-AA52))),"") ->  | AK52: 34 | AL52: 34 | AN52: 2020-08-01 | AP52: 2024-05-01 | BI52: 0 | BJ52: 0 | BO52: 2100
D53: =IFERROR(IF($C52="TOTAL","अक्षरें राशि :-",IF($C53="TOTAL",SUM($D$8:D52),IF(AU54="","",AU54))),"") ->  | E53: =IFERROR(IF($C53="TOTAL",SUM($E$8:E52),IF(AV54="","",AV54)),"") ->  | F53: =IFERROR(IF($C53="TOTAL",SUM($F$8:F52),IF(OR(C53=$AM$16,C53=$AM$17,C53=$AM$18,C53=$AM$19,C53=$AM$20,C53=$AM$21,C53=$AM$22,C53=$AM$23,C53=$AM$24),0,IF(AW54="","",AW54))),"") ->  | H53: =IFERROR(IF($C53="TOTAL",SUM($H$8:H52),IF(AY54="","",AY54)),"") ->  | I53: =IFERROR(IF($C53="TOTAL",SUM($I$8:I52),IF(AZ54="","",AZ54)),"") ->  | J53: =IFERROR(IF($C53="TOTAL",SUM($J$8:J52),IF(OR(C53=$AM$16,C53=$AM$17,C53=$AM$18,C53=$AM$19,C53=$AM$20,C53=$AM$21,C53=$AM$22,C53=$AM$23,C53=$AM$24),0,IF(BA54="","",BA54))),"") ->  | L53: =IFERROR(IF(C53="","",IF(D53="","",IF(H53="","",IF($C53="TOTAL",SUM($L$8:L52),SUM(D53-H53))))),"") ->  | M53: =IFERROR(IF(C53="","",IF(E53="","",IF(I53="","",IF($C53="TOTAL",SUM($M$8:M52),SUM(E53-I53))))),"") ->  | N53: =IFERROR(IF(C53="","",IF(F53="","",IF(J53="","",IF($C53="TOTAL",SUM($N$8:N52),SUM(F53-J53))))),"") ->  | P53: =IFERROR(IF(C53="","",IF($C53="TOTAL",SUM($P$8:P52),IF(AND(C53>$AL$1,$AC$3=$AL$2),BO54,IF($AO$18=$AO$20,SUM(BB54+BJ54),ROUND((D53+E53)*10%,0))))),"") ->  | Q53: =IFERROR(IF(C53="","",IF(H53="","",IF(I53="","",IF($C53="TOTAL",SUM($Q$8:Q52),IF(AND(C53>$AL$1,$AC$3=$AL$2),BO54,IF($AO$18=$AO$20,$AO$21,ROUND((H53+I53)*10%,0))))))),"") ->  | S53: =IFERROR(IF(C53="","",IF($AO$16=$AO$17,0,IF($C53="TOTAL",SUM($S$8:S52),IF($AO$19=$AO$31,0,IF(AND($AO$32=$AO$20,C53=$AO$33),$AO$34,S52))))),"") ->  | T53: =IFERROR(IF(C53="","",IF($AO$16=$AO$17,0,IF($C53="TOTAL",SUM($T$8:T52),IF($AO$19=$AO$20,$AO$24,0)))),"") ->  | V53: =IF(C53="","",IF($C53="TOTAL",SUM($V$8:V52),IF(AND($AO$2=$AO$20,C53=$AO$1),ROUND(D53/31*$AP$2,0),IF(C53=$AM$6,ROUND((G53)*1/30,0),IF(C53=$AN$6,ROUND((G53)*1/31,0),""))))) ->  | W53: =IF(C53="","",IF($C53="TOTAL",SUM($W$8:W52),IF(AND($AO$2=$AO$20,C53=$AO$1),ROUND(H53/31*$AP$2,0),IF(C53=$AM$6,ROUND((K53)*1/30,0),IF(C53=$AN$6,ROUND((K53)*1/31,0),""))))) ->  | Y53: =IFERROR(IF(C53="","",IF(AND(BH54="",BO54=""),"",IF($C53="TOTAL",SUM($Y$8:Y52),BH54))),"") ->  | Z53: =IFERROR(IF(C53="","",IF($C53="TOTAL",SUM($Z$8:Z52),ROUND(O53*$AO$7%,0))),"") ->  | AA53: =IFERROR(IF(C53="","",IF($C53="TOTAL",SUM($AA$8:AA52),IF($AC$3=$AL$2,SUM(U53,X53,Y53,Z53),SUM(R53,U53,X53,Y53,Z53)))),"") ->  | AB53: =IFERROR(IF(C53="","",IF($C53="TOTAL",SUM($AB$8:AB52),SUM(O53-AA53))),"") ->  | AK53: 34 | AL53: 34 | AN53: 2020-09-01 | AP53: 2024-06-01 | BI53: 0 | BJ53: 0 | BO53: 2100
D54: =IFERROR(IF($C53="TOTAL","अक्षरें राशि :-",IF($C54="TOTAL",SUM($D$8:D53),IF(AU55="","",AU55))),"") ->  | E54: =IFERROR(IF($C54="TOTAL",SUM($E$8:E53),IF(AV55="","",AV55)),"") ->  | F54: =IFERROR(IF($C54="TOTAL",SUM($F$8:F53),IF(OR(C54=$AM$16,C54=$AM$17,C54=$AM$18,C54=$AM$19,C54=$AM$20,C54=$AM$21,C54=$AM$22,C54=$AM$23,C54=$AM$24),0,IF(AW55="","",AW55))),"") ->  | H54: =IFERROR(IF($C54="TOTAL",SUM($H$8:H53),IF(AY55="","",AY55)),"") ->  | I54: =IFERROR(IF($C54="TOTAL",SUM($I$8:I53),IF(AZ55="","",AZ55)),"") ->  | J54: =IFERROR(IF($C54="TOTAL",SUM($J$8:J53),IF(OR(C54=$AM$16,C54=$AM$17,C54=$AM$18,C54=$AM$19,C54=$AM$20,C54=$AM$21,C54=$AM$22,C54=$AM$23,C54=$AM$24),0,IF(BA55="","",BA55))),"") ->  | L54: =IFERROR(IF(C54="","",IF(D54="","",IF(H54="","",IF($C54="TOTAL",SUM($L$8:L53),SUM(D54-H54))))),"") ->  | M54: =IFERROR(IF(C54="","",IF(E54="","",IF(I54="","",IF($C54="TOTAL",SUM($M$8:M53),SUM(E54-I54))))),"") ->  | N54: =IFERROR(IF(C54="","",IF(F54="","",IF(J54="","",IF($C54="TOTAL",SUM($N$8:N53),SUM(F54-J54))))),"") ->  | P54: =IFERROR(IF(C54="","",IF($C54="TOTAL",SUM($P$8:P53),IF(AND(C54>$AL$1,$AC$3=$AL$2),BO55,IF($AO$18=$AO$20,SUM(BB55+BJ55),ROUND((D54+E54)*10%,0))))),"") ->  | Q54: =IFERROR(IF(C54="","",IF(H54="","",IF(I54="","",IF($C54="TOTAL",SUM($Q$8:Q53),IF(AND(C54>$AL$1,$AC$3=$AL$2),BO55,IF($AO$18=$AO$20,$AO$21,ROUND((H54+I54)*10%,0))))))),"") ->  | S54: =IFERROR(IF(C54="","",IF($AO$16=$AO$17,0,IF($C54="TOTAL",SUM($S$8:S53),IF($AO$19=$AO$31,0,IF(AND($AO$32=$AO$20,C54=$AO$33),$AO$34,S53))))),"") ->  | T54: =IFERROR(IF(C54="","",IF($AO$16=$AO$17,0,IF($C54="TOTAL",SUM($T$8:T53),IF($AO$19=$AO$20,$AO$24,0)))),"") ->  | V54: =IF(C54="","",IF($C54="TOTAL",SUM($V$8:V53),IF(AND($AO$2=$AO$20,C54=$AO$1),ROUND(D54/31*$AP$2,0),IF(C54=$AM$6,ROUND((G54)*1/30,0),IF(C54=$AN$6,ROUND((G54)*1/31,0),""))))) ->  | W54: =IF(C54="","",IF($C54="TOTAL",SUM($W$8:W53),IF(AND($AO$2=$AO$20,C54=$AO$1),ROUND(H54/31*$AP$2,0),IF(C54=$AM$6,ROUND((K54)*1/30,0),IF(C54=$AN$6,ROUND((K54)*1/31,0),""))))) ->  | Y54: =IFERROR(IF(C54="","",IF(AND(BH55="",BO55=""),"",IF($C54="TOTAL",SUM($Y$8:Y53),BH55))),"") ->  | Z54: =IFERROR(IF(C54="","",IF($C54="TOTAL",SUM($Z$8:Z53),ROUND(O54*$AO$7%,0))),"") ->  | AA54: =IFERROR(IF(C54="","",IF($C54="TOTAL",SUM($AA$8:AA53),IF($AC$3=$AL$2,SUM(U54,X54,Y54,Z54),SUM(R54,U54,X54,Y54,Z54)))),"") ->  | AB54: =IFERROR(IF(C54="","",IF($C54="TOTAL",SUM($AB$8:AB53),SUM(O54-AA54))),"") ->  | AK54: 34 | AL54: 34 | AN54: 2020-10-01 | AP54: 2024-07-01 | BI54: 0 | BJ54: 0 | BO54: 2100
D55: =IFERROR(IF($C54="TOTAL","अक्षरें राशि :-",IF($C55="TOTAL",SUM($D$8:D54),IF(AU56="","",AU56))),"") ->  | E55: =IFERROR(IF($C55="TOTAL",SUM($E$8:E54),IF(AV56="","",AV56)),"") ->  | F55: =IFERROR(IF($C55="TOTAL",SUM($F$8:F54),IF(OR(C55=$AM$16,C55=$AM$17,C55=$AM$18,C55=$AM$19,C55=$AM$20,C55=$AM$21,C55=$AM$22,C55=$AM$23,C55=$AM$24),0,IF(AW56="","",AW56))),"") ->  | H55: =IFERROR(IF($C55="TOTAL",SUM($H$8:H54),IF(AY56="","",AY56)),"") ->  | I55: =IFERROR(IF($C55="TOTAL",SUM($I$8:I54),IF(AZ56="","",AZ56)),"") ->  | J55: =IFERROR(IF($C55="TOTAL",SUM($J$8:J54),IF(OR(C55=$AM$16,C55=$AM$17,C55=$AM$18,C55=$AM$19,C55=$AM$20,C55=$AM$21,C55=$AM$22,C55=$AM$23,C55=$AM$24),0,IF(BA56="","",BA56))),"") ->  | L55: =IFERROR(IF(C55="","",IF(D55="","",IF(H55="","",IF($C55="TOTAL",SUM($L$8:L54),SUM(D55-H55))))),"") ->  | M55: =IFERROR(IF(C55="","",IF(E55="","",IF(I55="","",IF($C55="TOTAL",SUM($M$8:M54),SUM(E55-I55))))),"") ->  | N55: =IFERROR(IF(C55="","",IF(F55="","",IF(J55="","",IF($C55="TOTAL",SUM($N$8:N54),SUM(F55-J55))))),"") ->  | P55: =IFERROR(IF(C55="","",IF($C55="TOTAL",SUM($P$8:P54),IF(AND(C55>$AL$1,$AC$3=$AL$2),BO56,IF($AO$18=$AO$20,SUM(BB56+BJ56),ROUND((D55+E55)*10%,0))))),"") ->  | Q55: =IFERROR(IF(C55="","",IF(H55="","",IF(I55="","",IF($C55="TOTAL",SUM($Q$8:Q54),IF(AND(C55>$AL$1,$AC$3=$AL$2),BO56,IF($AO$18=$AO$20,$AO$21,ROUND((H55+I55)*10%,0))))))),"") ->  | S55: =IFERROR(IF(C55="","",IF($AO$16=$AO$17,0,IF($C55="TOTAL",SUM($S$8:S54),IF($AO$19=$AO$31,0,IF(AND($AO$32=$AO$20,C55=$AO$33),$AO$34,S54))))),"") ->  | T55: =IFERROR(IF(C55="","",IF($AO$16=$AO$17,0,IF($C55="TOTAL",SUM($T$8:T54),IF($AO$19=$AO$20,$AO$24,0)))),"") ->  | V55: =IF(C55="","",IF($C55="TOTAL",SUM($V$8:V54),IF(AND($AO$2=$AO$20,C55=$AO$1),ROUND(D55/31*$AP$2,0),IF(C55=$AM$6,ROUND((G55)*1/30,0),IF(C55=$AN$6,ROUND((G55)*1/31,0),""))))) ->  | W55: =IF(C55="","",IF($C55="TOTAL",SUM($W$8:W54),IF(AND($AO$2=$AO$20,C55=$AO$1),ROUND(H55/31*$AP$2,0),IF(C55=$AM$6,ROUND((K55)*1/30,0),IF(C55=$AN$6,ROUND((K55)*1/31,0),""))))) ->  | Y55: =IFERROR(IF(C55="","",IF(AND(BH56="",BO56=""),"",IF($C55="TOTAL",SUM($Y$8:Y54),BH56))),"") ->  | Z55: =IFERROR(IF(C55="","",IF($C55="TOTAL",SUM($Z$8:Z54),ROUND(O55*$AO$7%,0))),"") ->  | AA55: =IFERROR(IF(C55="","",IF($C55="TOTAL",SUM($AA$8:AA54),IF($AC$3=$AL$2,SUM(U55,X55,Y55,Z55),SUM(R55,U55,X55,Y55,Z55)))),"") ->  | AB55: =IFERROR(IF(C55="","",IF($C55="TOTAL",SUM($AB$8:AB54),SUM(O55-AA55))),"") ->  | AK55: 34 | AL55: 34 | AN55: 2020-11-01 | AP55: 2024-08-01 | BI55: 0 | BJ55: 0 | BO55: 2100
D56: =IFERROR(IF($C55="TOTAL","अक्षरें राशि :-",IF($C56="TOTAL",SUM($D$8:D55),IF(AU57="","",AU57))),"") ->  | E56: =IFERROR(IF($C56="TOTAL",SUM($E$8:E55),IF(AV57="","",AV57)),"") ->  | F56: =IFERROR(IF($C56="TOTAL",SUM($F$8:F55),IF(OR(C56=$AM$16,C56=$AM$17,C56=$AM$18,C56=$AM$19,C56=$AM$20,C56=$AM$21,C56=$AM$22,C56=$AM$23,C56=$AM$24),0,IF(AW57="","",AW57))),"") ->  | H56: =IFERROR(IF($C56="TOTAL",SUM($H$8:H55),IF(AY57="","",AY57)),"") ->  | I56: =IFERROR(IF($C56="TOTAL",SUM($I$8:I55),IF(AZ57="","",AZ57)),"") ->  | J56: =IFERROR(IF($C56="TOTAL",SUM($J$8:J55),IF(OR(C56=$AM$16,C56=$AM$17,C56=$AM$18,C56=$AM$19,C56=$AM$20,C56=$AM$21,C56=$AM$22,C56=$AM$23,C56=$AM$24),0,IF(BA57="","",BA57))),"") ->  | L56: =IFERROR(IF(C56="","",IF(D56="","",IF(H56="","",IF($C56="TOTAL",SUM($L$8:L55),SUM(D56-H56))))),"") ->  | M56: =IFERROR(IF(C56="","",IF(E56="","",IF(I56="","",IF($C56="TOTAL",SUM($M$8:M55),SUM(E56-I56))))),"") ->  | N56: =IFERROR(IF(C56="","",IF(F56="","",IF(J56="","",IF($C56="TOTAL",SUM($N$8:N55),SUM(F56-J56))))),"") ->  | P56: =IFERROR(IF(C56="","",IF($C56="TOTAL",SUM($P$8:P55),IF(AND(C56>$AL$1,$AC$3=$AL$2),BO57,IF($AO$18=$AO$20,SUM(BB57+BJ57),ROUND((D56+E56)*10%,0))))),"") ->  | Q56: =IFERROR(IF(C56="","",IF(H56="","",IF(I56="","",IF($C56="TOTAL",SUM($Q$8:Q55),IF(AND(C56>$AL$1,$AC$3=$AL$2),BO57,IF($AO$18=$AO$20,$AO$21,ROUND((H56+I56)*10%,0))))))),"") ->  | S56: =IFERROR(IF(C56="","",IF($AO$16=$AO$17,0,IF($C56="TOTAL",SUM($S$8:S55),IF($AO$19=$AO$31,0,IF(AND($AO$32=$AO$20,C56=$AO$33),$AO$34,S55))))),"") ->  | T56: =IFERROR(IF(C56="","",IF($AO$16=$AO$17,0,IF($C56="TOTAL",SUM($T$8:T55),IF($AO$19=$AO$20,$AO$24,0)))),"") ->  | V56: =IF(C56="","",IF($C56="TOTAL",SUM($V$8:V55),IF(AND($AO$2=$AO$20,C56=$AO$1),ROUND(D56/31*$AP$2,0),IF(C56=$AM$6,ROUND((G56)*1/30,0),IF(C56=$AN$6,ROUND((G56)*1/31,0),""))))) ->  | W56: =IF(C56="","",IF($C56="TOTAL",SUM($W$8:W55),IF(AND($AO$2=$AO$20,C56=$AO$1),ROUND(H56/31*$AP$2,0),IF(C56=$AM$6,ROUND((K56)*1/30,0),IF(C56=$AN$6,ROUND((K56)*1/31,0),""))))) ->  | Y56: =IFERROR(IF(C56="","",IF(AND(BH57="",BO57=""),"",IF($C56="TOTAL",SUM($Y$8:Y55),BH57))),"") ->  | Z56: =IFERROR(IF(C56="","",IF($C56="TOTAL",SUM($Z$8:Z55),ROUND(O56*$AO$7%,0))),"") ->  | AA56: =IFERROR(IF(C56="","",IF($C56="TOTAL",SUM($AA$8:AA55),IF($AC$3=$AL$2,SUM(U56,X56,Y56,Z56),SUM(R56,U56,X56,Y56,Z56)))),"") ->  | AB56: =IFERROR(IF(C56="","",IF($C56="TOTAL",SUM($AB$8:AB55),SUM(O56-AA56))),"") ->  | AK56: 34 | AL56: 34 | AN56: 2020-12-01 | AP56: 2024-09-01 | BI56: 0 | BJ56: 0 | BO56: 2100
D57: =IFERROR(IF($C56="TOTAL","अक्षरें राशि :-",IF($C57="TOTAL",SUM($D$8:D56),IF(AU58="","",AU58))),"") ->  | E57: =IFERROR(IF($C57="TOTAL",SUM($E$8:E56),IF(AV58="","",AV58)),"") ->  | F57: =IFERROR(IF($C57="TOTAL",SUM($F$8:F56),IF(OR(C57=$AM$16,C57=$AM$17,C57=$AM$18,C57=$AM$19,C57=$AM$20,C57=$AM$21,C57=$AM$22,C57=$AM$23,C57=$AM$24),0,IF(AW58="","",AW58))),"") ->  | H57: =IFERROR(IF($C57="TOTAL",SUM($H$8:H56),IF(AY58="","",AY58)),"") ->  | I57: =IFERROR(IF($C57="TOTAL",SUM($I$8:I56),IF(AZ58="","",AZ58)),"") ->  | J57: =IFERROR(IF($C57="TOTAL",SUM($J$8:J56),IF(OR(C57=$AM$16,C57=$AM$17,C57=$AM$18,C57=$AM$19,C57=$AM$20,C57=$AM$21,C57=$AM$22,C57=$AM$23,C57=$AM$24),0,IF(BA58="","",BA58))),"") ->  | L57: =IFERROR(IF(C57="","",IF(D57="","",IF(H57="","",IF($C57="TOTAL",SUM($L$8:L56),SUM(D57-H57))))),"") ->  | M57: =IFERROR(IF(C57="","",IF(E57="","",IF(I57="","",IF($C57="TOTAL",SUM($M$8:M56),SUM(E57-I57))))),"") ->  | N57: =IFERROR(IF(C57="","",IF(F57="","",IF(J57="","",IF($C57="TOTAL",SUM($N$8:N56),SUM(F57-J57))))),"") ->  | P57: =IFERROR(IF(C57="","",IF($C57="TOTAL",SUM($P$8:P56),IF(AND(C57>$AL$1,$AC$3=$AL$2),BO58,IF($AO$18=$AO$20,SUM(BB58+BJ58),ROUND((D57+E57)*10%,0))))),"") ->  | Q57: =IFERROR(IF(C57="","",IF(H57="","",IF(I57="","",IF($C57="TOTAL",SUM($Q$8:Q56),IF(AND(C57>$AL$1,$AC$3=$AL$2),BO58,IF($AO$18=$AO$20,$AO$21,ROUND((H57+I57)*10%,0))))))),"") ->  | S57: =IFERROR(IF(C57="","",IF($AO$16=$AO$17,0,IF($C57="TOTAL",SUM($S$8:S56),IF($AO$19=$AO$31,0,IF(AND($AO$32=$AO$20,C57=$AO$33),$AO$34,S56))))),"") ->  | T57: =IFERROR(IF(C57="","",IF($AO$16=$AO$17,0,IF($C57="TOTAL",SUM($T$8:T56),IF($AO$19=$AO$20,$AO$24,0)))),"") ->  | V57: =IF(C57="","",IF($C57="TOTAL",SUM($V$8:V56),IF(AND($AO$2=$AO$20,C57=$AO$1),ROUND(D57/31*$AP$2,0),IF(C57=$AM$6,ROUND((G57)*1/30,0),IF(C57=$AN$6,ROUND((G57)*1/31,0),""))))) ->  | W57: =IF(C57="","",IF($C57="TOTAL",SUM($W$8:W56),IF(AND($AO$2=$AO$20,C57=$AO$1),ROUND(H57/31*$AP$2,0),IF(C57=$AM$6,ROUND((K57)*1/30,0),IF(C57=$AN$6,ROUND((K57)*1/31,0),""))))) ->  | Y57: =IFERROR(IF(C57="","",IF(AND(BH58="",BO58=""),"",IF($C57="TOTAL",SUM($Y$8:Y56),BH58))),"") ->  | Z57: =IFERROR(IF(C57="","",IF($C57="TOTAL",SUM($Z$8:Z56),ROUND(O57*$AO$7%,0))),"") ->  | AA57: =IFERROR(IF(C57="","",IF($C57="TOTAL",SUM($AA$8:AA56),IF($AC$3=$AL$2,SUM(U57,X57,Y57,Z57),SUM(R57,U57,X57,Y57,Z57)))),"") ->  | AB57: =IFERROR(IF(C57="","",IF($C57="TOTAL",SUM($AB$8:AB56),SUM(O57-AA57))),"") ->  | AK57: 34 | AL57: 34 | AN57: 2021-01-01 | AP57: 2024-10-01 | BI57: 0 | BJ57: 0 | BO57: 2100
D58: =IFERROR(IF($C57="TOTAL","अक्षरें राशि :-",IF($C58="TOTAL",SUM($D$8:D57),IF(AU59="","",AU59))),"") ->  | E58: =IFERROR(IF($C58="TOTAL",SUM($E$8:E57),IF(AV59="","",AV59)),"") ->  | F58: =IFERROR(IF($C58="TOTAL",SUM($F$8:F57),IF(OR(C58=$AM$16,C58=$AM$17,C58=$AM$18,C58=$AM$19,C58=$AM$20,C58=$AM$21,C58=$AM$22,C58=$AM$23,C58=$AM$24),0,IF(AW59="","",AW59))),"") ->  | H58: =IFERROR(IF($C58="TOTAL",SUM($H$8:H57),IF(AY59="","",AY59)),"") ->  | I58: =IFERROR(IF($C58="TOTAL",SUM($I$8:I57),IF(AZ59="","",AZ59)),"") ->  | J58: =IFERROR(IF($C58="TOTAL",SUM($J$8:J57),IF(OR(C58=$AM$16,C58=$AM$17,C58=$AM$18,C58=$AM$19,C58=$AM$20,C58=$AM$21,C58=$AM$22,C58=$AM$23,C58=$AM$24),0,IF(BA59="","",BA59))),"") ->  | L58: =IFERROR(IF(C58="","",IF(D58="","",IF(H58="","",IF($C58="TOTAL",SUM($L$8:L57),SUM(D58-H58))))),"") ->  | M58: =IFERROR(IF(C58="","",IF(E58="","",IF(I58="","",IF($C58="TOTAL",SUM($M$8:M57),SUM(E58-I58))))),"") ->  | N58: =IFERROR(IF(C58="","",IF(F58="","",IF(J58="","",IF($C58="TOTAL",SUM($N$8:N57),SUM(F58-J58))))),"") ->  | P58: =IFERROR(IF(C58="","",IF($C58="TOTAL",SUM($P$8:P57),IF(AND(C58>$AL$1,$AC$3=$AL$2),BO59,IF($AO$18=$AO$20,SUM(BB59+BJ59),ROUND((D58+E58)*10%,0))))),"") ->  | Q58: =IFERROR(IF(C58="","",IF(H58="","",IF(I58="","",IF($C58="TOTAL",SUM($Q$8:Q57),IF(AND(C58>$AL$1,$AC$3=$AL$2),BO59,IF($AO$18=$AO$20,$AO$21,ROUND((H58+I58)*10%,0))))))),"") ->  | S58: =IFERROR(IF(C58="","",IF($AO$16=$AO$17,0,IF($C58="TOTAL",SUM($S$8:S57),IF($AO$19=$AO$31,0,IF(AND($AO$32=$AO$20,C58=$AO$33),$AO$34,S57))))),"") ->  | T58: =IFERROR(IF(C58="","",IF($AO$16=$AO$17,0,IF($C58="TOTAL",SUM($T$8:T57),IF($AO$19=$AO$20,$AO$24,0)))),"") ->  | V58: =IF(C58="","",IF($C58="TOTAL",SUM($V$8:V57),IF(AND($AO$2=$AO$20,C58=$AO$1),ROUND(D58/31*$AP$2,0),IF(C58=$AM$6,ROUND((G58)*1/30,0),IF(C58=$AN$6,ROUND((G58)*1/31,0),""))))) ->  | W58: =IF(C58="","",IF($C58="TOTAL",SUM($W$8:W57),IF(AND($AO$2=$AO$20,C58=$AO$1),ROUND(H58/31*$AP$2,0),IF(C58=$AM$6,ROUND((K58)*1/30,0),IF(C58=$AN$6,ROUND((K58)*1/31,0),""))))) ->  | Y58: =IFERROR(IF(C58="","",IF(AND(BH59="",BO59=""),"",IF($C58="TOTAL",SUM($Y$8:Y57),BH59))),"") ->  | Z58: =IFERROR(IF(C58="","",IF($C58="TOTAL",SUM($Z$8:Z57),ROUND(O58*$AO$7%,0))),"") ->  | AA58: =IFERROR(IF(C58="","",IF($C58="TOTAL",SUM($AA$8:AA57),IF($AC$3=$AL$2,SUM(U58,X58,Y58,Z58),SUM(R58,U58,X58,Y58,Z58)))),"") ->  | AB58: =IFERROR(IF(C58="","",IF($C58="TOTAL",SUM($AB$8:AB57),SUM(O58-AA58))),"") ->  | AK58: 34 | AL58: 34 | AN58: 2021-02-01 | AP58: 2024-11-01 | BI58: 0 | BJ58: 0 | BO58: 2100
D59: =IFERROR(IF($C58="TOTAL","अक्षरें राशि :-",IF($C59="TOTAL",SUM($D$8:D58),IF(AU60="","",AU60))),"") ->  | E59: =IFERROR(IF($C59="TOTAL",SUM($E$8:E58),IF(AV60="","",AV60)),"") ->  | F59: =IFERROR(IF($C59="TOTAL",SUM($F$8:F58),IF(OR(C59=$AM$16,C59=$AM$17,C59=$AM$18,C59=$AM$19,C59=$AM$20,C59=$AM$21,C59=$AM$22,C59=$AM$23,C59=$AM$24),0,IF(AW60="","",AW60))),"") ->  | H59: =IFERROR(IF($C59="TOTAL",SUM($H$8:H58),IF(AY60="","",AY60)),"") ->  | I59: =IFERROR(IF($C59="TOTAL",SUM($I$8:I58),IF(AZ60="","",AZ60)),"") ->  | J59: =IFERROR(IF($C59="TOTAL",SUM($J$8:J58),IF(OR(C59=$AM$16,C59=$AM$17,C59=$AM$18,C59=$AM$19,C59=$AM$20,C59=$AM$21,C59=$AM$22,C59=$AM$23,C59=$AM$24),0,IF(BA60="","",BA60))),"") ->  | L59: =IFERROR(IF(C59="","",IF(D59="","",IF(H59="","",IF($C59="TOTAL",SUM($L$8:L58),SUM(D59-H59))))),"") ->  | M59: =IFERROR(IF(C59="","",IF(E59="","",IF(I59="","",IF($C59="TOTAL",SUM($M$8:M58),SUM(E59-I59))))),"") ->  | N59: =IFERROR(IF(C59="","",IF(F59="","",IF(J59="","",IF($C59="TOTAL",SUM($N$8:N58),SUM(F59-J59))))),"") ->  | P59: =IFERROR(IF(C59="","",IF($C59="TOTAL",SUM($P$8:P58),IF(AND(C59>$AL$1,$AC$3=$AL$2),BO60,IF($AO$18=$AO$20,SUM(BB60+BJ60),ROUND((D59+E59)*10%,0))))),"") ->  | Q59: =IFERROR(IF(C59="","",IF(H59="","",IF(I59="","",IF($C59="TOTAL",SUM($Q$8:Q58),IF(AND(C59>$AL$1,$AC$3=$AL$2),BO60,IF($AO$18=$AO$20,$AO$21,ROUND((H59+I59)*10%,0))))))),"") ->  | S59: =IFERROR(IF(C59="","",IF($AO$16=$AO$17,0,IF($C59="TOTAL",SUM($S$8:S58),IF($AO$19=$AO$31,0,IF(AND($AO$32=$AO$20,C59=$AO$33),$AO$34,S58))))),"") ->  | T59: =IFERROR(IF(C59="","",IF($AO$16=$AO$17,0,IF($C59="TOTAL",SUM($T$8:T58),IF($AO$19=$AO$20,$AO$24,0)))),"") ->  | V59: =IF(C59="","",IF($C59="TOTAL",SUM($V$8:V58),IF(AND($AO$2=$AO$20,C59=$AO$1),ROUND(D59/31*$AP$2,0),IF(C59=$AM$6,ROUND((G59)*1/30,0),IF(C59=$AN$6,ROUND((G59)*1/31,0),""))))) ->  | W59: =IF(C59="","",IF($C59="TOTAL",SUM($W$8:W58),IF(AND($AO$2=$AO$20,C59=$AO$1),ROUND(H59/31*$AP$2,0),IF(C59=$AM$6,ROUND((K59)*1/30,0),IF(C59=$AN$6,ROUND((K59)*1/31,0),""))))) ->  | Y59: =IFERROR(IF(C59="","",IF(AND(BH60="",BO60=""),"",IF($C59="TOTAL",SUM($Y$8:Y58),BH60))),"") ->  | Z59: =IFERROR(IF(C59="","",IF($C59="TOTAL",SUM($Z$8:Z58),ROUND(O59*$AO$7%,0))),"") ->  | AA59: =IFERROR(IF(C59="","",IF($C59="TOTAL",SUM($AA$8:AA58),IF($AC$3=$AL$2,SUM(U59,X59,Y59,Z59),SUM(R59,U59,X59,Y59,Z59)))),"") ->  | AB59: =IFERROR(IF(C59="","",IF($C59="TOTAL",SUM($AB$8:AB58),SUM(O59-AA59))),"") ->  | AK59: 34 | AL59: 34 | AN59: 2021-03-01 | AP59: 2024-12-01 | BI59: 0 | BJ59: 0 | BO59: 2100
D60: =IFERROR(IF($C59="TOTAL","अक्षरें राशि :-",IF($C60="TOTAL",SUM($D$8:D59),IF(AU61="","",AU61))),"") ->  | E60: =IFERROR(IF($C60="TOTAL",SUM($E$8:E59),IF(AV61="","",AV61)),"") ->  | F60: =IFERROR(IF($C60="TOTAL",SUM($F$8:F59),IF(OR(C60=$AM$16,C60=$AM$17,C60=$AM$18,C60=$AM$19,C60=$AM$20,C60=$AM$21,C60=$AM$22,C60=$AM$23,C60=$AM$24),0,IF(AW61="","",AW61))),"") ->  | H60: =IFERROR(IF($C60="TOTAL",SUM($H$8:H59),IF(AY61="","",AY61)),"") ->  | I60: =IFERROR(IF($C60="TOTAL",SUM($I$8:I59),IF(AZ61="","",AZ61)),"") ->  | J60: =IFERROR(IF($C60="TOTAL",SUM($J$8:J59),IF(OR(C60=$AM$16,C60=$AM$17,C60=$AM$18,C60=$AM$19,C60=$AM$20,C60=$AM$21,C60=$AM$22,C60=$AM$23,C60=$AM$24),0,IF(BA61="","",BA61))),"") ->  | L60: =IFERROR(IF(C60="","",IF(D60="","",IF(H60="","",IF($C60="TOTAL",SUM($L$8:L59),SUM(D60-H60))))),"") ->  | M60: =IFERROR(IF(C60="","",IF(E60="","",IF(I60="","",IF($C60="TOTAL",SUM($M$8:M59),SUM(E60-I60))))),"") ->  | N60: =IFERROR(IF(C60="","",IF(F60="","",IF(J60="","",IF($C60="TOTAL",SUM($N$8:N59),SUM(F60-J60))))),"") ->  | P60: =IFERROR(IF(C60="","",IF($C60="TOTAL",SUM($P$8:P59),IF(AND(C60>$AL$1,$AC$3=$AL$2),BO61,IF($AO$18=$AO$20,SUM(BB61+BJ61),ROUND((D60+E60)*10%,0))))),"") ->  | Q60: =IFERROR(IF(C60="","",IF(H60="","",IF(I60="","",IF($C60="TOTAL",SUM($Q$8:Q59),IF(AND(C60>$AL$1,$AC$3=$AL$2),BO61,IF($AO$18=$AO$20,$AO$21,ROUND((H60+I60)*10%,0))))))),"") ->  | S60: =IFERROR(IF(C60="","",IF($AO$16=$AO$17,0,IF($C60="TOTAL",SUM($S$8:S59),IF($AO$19=$AO$31,0,IF(AND($AO$32=$AO$20,C60=$AO$33),$AO$34,S59))))),"") ->  | T60: =IFERROR(IF(C60="","",IF($AO$16=$AO$17,0,IF($C60="TOTAL",SUM($T$8:T59),IF($AO$19=$AO$20,$AO$24,0)))),"") ->  | V60: =IF(C60="","",IF($C60="TOTAL",SUM($V$8:V59),IF(AND($AO$2=$AO$20,C60=$AO$1),ROUND(D60/31*$AP$2,0),IF(C60=$AM$6,ROUND((G60)*1/30,0),IF(C60=$AN$6,ROUND((G60)*1/31,0),""))))) ->  | W60: =IF(C60="","",IF($C60="TOTAL",SUM($W$8:W59),IF(AND($AO$2=$AO$20,C60=$AO$1),ROUND(H60/31*$AP$2,0),IF(C60=$AM$6,ROUND((K60)*1/30,0),IF(C60=$AN$6,ROUND((K60)*1/31,0),""))))) ->  | Y60: =IFERROR(IF(C60="","",IF(AND(BH61="",BO61=""),"",IF($C60="TOTAL",SUM($Y$8:Y59),BH61))),"") ->  | Z60: =IFERROR(IF(C60="","",IF($C60="TOTAL",SUM($Z$8:Z59),ROUND(O60*$AO$7%,0))),"") ->  | AA60: =IFERROR(IF(C60="","",IF($C60="TOTAL",SUM($AA$8:AA59),IF($AC$3=$AL$2,SUM(U60,X60,Y60,Z60),SUM(R60,U60,X60,Y60,Z60)))),"") ->  | AB60: =IFERROR(IF(C60="","",IF($C60="TOTAL",SUM($AB$8:AB59),SUM(O60-AA60))),"") ->  | AK60: 34 | AL60: 34 | AN60: 2021-04-01 | AP60: 2025-01-01 | BI60: 0 | BJ60: 0 | BO60: 2100
D61: =IFERROR(IF($C60="TOTAL","अक्षरें राशि :-",IF($C61="TOTAL",SUM($D$8:D60),IF(AU62="","",AU62))),"") ->  | E61: =IFERROR(IF($C61="TOTAL",SUM($E$8:E60),IF(AV62="","",AV62)),"") ->  | F61: =IFERROR(IF($C61="TOTAL",SUM($F$8:F60),IF(OR(C61=$AM$16,C61=$AM$17,C61=$AM$18,C61=$AM$19,C61=$AM$20,C61=$AM$21,C61=$AM$22,C61=$AM$23,C61=$AM$24),0,IF(AW62="","",AW62))),"") ->  | H61: =IFERROR(IF($C61="TOTAL",SUM($H$8:H60),IF(AY62="","",AY62)),"") ->  | I61: =IFERROR(IF($C61="TOTAL",SUM($I$8:I60),IF(AZ62="","",AZ62)),"") ->  | J61: =IFERROR(IF($C61="TOTAL",SUM($J$8:J60),IF(OR(C61=$AM$16,C61=$AM$17,C61=$AM$18,C61=$AM$19,C61=$AM$20,C61=$AM$21,C61=$AM$22,C61=$AM$23,C61=$AM$24),0,IF(BA62="","",BA62))),"") ->  | L61: =IFERROR(IF(C61="","",IF(D61="","",IF(H61="","",IF($C61="TOTAL",SUM($L$8:L60),SUM(D61-H61))))),"") ->  | M61: =IFERROR(IF(C61="","",IF(E61="","",IF(I61="","",IF($C61="TOTAL",SUM($M$8:M60),SUM(E61-I61))))),"") ->  | N61: =IFERROR(IF(C61="","",IF(F61="","",IF(J61="","",IF($C61="TOTAL",SUM($N$8:N60),SUM(F61-J61))))),"") ->  | P61: =IFERROR(IF(C61="","",IF($C61="TOTAL",SUM($P$8:P60),IF(AND(C61>$AL$1,$AC$3=$AL$2),BO62,IF($AO$18=$AO$20,SUM(BB62+BJ62),ROUND((D61+E61)*10%,0))))),"") ->  | Q61: =IFERROR(IF(C61="","",IF(H61="","",IF(I61="","",IF($C61="TOTAL",SUM($Q$8:Q60),IF(AND(C61>$AL$1,$AC$3=$AL$2),BO62,IF($AO$18=$AO$20,$AO$21,ROUND((H61+I61)*10%,0))))))),"") ->  | S61: =IFERROR(IF(C61="","",IF($AO$16=$AO$17,0,IF($C61="TOTAL",SUM($S$8:S60),IF($AO$19=$AO$31,0,IF(AND($AO$32=$AO$20,C61=$AO$33),$AO$34,S60))))),"") ->  | T61: =IFERROR(IF(C61="","",IF($AO$16=$AO$17,0,IF($C61="TOTAL",SUM($T$8:T60),IF($AO$19=$AO$20,$AO$24,0)))),"") ->  | V61: =IF(C61="","",IF($C61="TOTAL",SUM($V$8:V60),IF(AND($AO$2=$AO$20,C61=$AO$1),ROUND(D61/31*$AP$2,0),IF(C61=$AM$6,ROUND((G61)*1/30,0),IF(C61=$AN$6,ROUND((G61)*1/31,0),""))))) ->  | W61: =IF(C61="","",IF($C61="TOTAL",SUM($W$8:W60),IF(AND($AO$2=$AO$20,C61=$AO$1),ROUND(H61/31*$AP$2,0),IF(C61=$AM$6,ROUND((K61)*1/30,0),IF(C61=$AN$6,ROUND((K61)*1/31,0),""))))) ->  | Y61: =IFERROR(IF(C61="","",IF(AND(BH62="",BO62=""),"",IF($C61="TOTAL",SUM($Y$8:Y60),BH62))),"") ->  | Z61: =IFERROR(IF(C61="","",IF($C61="TOTAL",SUM($Z$8:Z60),ROUND(O61*$AO$7%,0))),"") ->  | AA61: =IFERROR(IF(C61="","",IF($C61="TOTAL",SUM($AA$8:AA60),IF($AC$3=$AL$2,SUM(U61,X61,Y61,Z61),SUM(R61,U61,X61,Y61,Z61)))),"") ->  | AB61: =IFERROR(IF(C61="","",IF($C61="TOTAL",SUM($AB$8:AB60),SUM(O61-AA61))),"") ->  | AK61: 34 | AL61: 34 | AN61: 2021-05-01 | AP61: 2025-02-01 | BI61: 0 | BJ61: 0 | BL61: =SUM(ROUND(D62*34%,0))-SUM(ROUND(D62*31%,0)) ->  | BO61: 2100
D62: =IFERROR(IF($C61="TOTAL","अक्षरें राशि :-",IF($C62="TOTAL",SUM($D$8:D61),IF(AU63="","",AU63))),"") ->  | E62: =IFERROR(IF($C62="TOTAL",SUM($E$8:E61),IF(AV63="","",AV63)),"") ->  | F62: =IFERROR(IF($C62="TOTAL",SUM($F$8:F61),IF(OR(C62=$AM$16,C62=$AM$17,C62=$AM$18,C62=$AM$19,C62=$AM$20,C62=$AM$21,C62=$AM$22,C62=$AM$23,C62=$AM$24),0,IF(AW63="","",AW63))),"") ->  | H62: =IFERROR(IF($C62="TOTAL",SUM($H$8:H61),IF(AY63="","",AY63)),"") ->  | I62: =IFERROR(IF($C62="TOTAL",SUM($I$8:I61),IF(AZ63="","",AZ63)),"") ->  | J62: =IFERROR(IF($C62="TOTAL",SUM($J$8:J61),IF(OR(C62=$AM$16,C62=$AM$17,C62=$AM$18,C62=$AM$19,C62=$AM$20,C62=$AM$21,C62=$AM$22,C62=$AM$23,C62=$AM$24),0,IF(BA63="","",BA63))),"") ->  | L62: =IFERROR(IF(C62="","",IF(D62="","",IF(H62="","",IF($C62="TOTAL",SUM($L$8:L61),SUM(D62-H62))))),"") ->  | M62: =IFERROR(IF(C62="","",IF(E62="","",IF(I62="","",IF($C62="TOTAL",SUM($M$8:M61),SUM(E62-I62))))),"") ->  | N62: =IFERROR(IF(C62="","",IF(F62="","",IF(J62="","",IF($C62="TOTAL",SUM($N$8:N61),SUM(F62-J62))))),"") ->  | P62: =IFERROR(IF(C62="","",IF($C62="TOTAL",SUM($P$8:P61),IF(AND(C62>$AL$1,$AC$3=$AL$2),BO63,IF($AO$18=$AO$20,SUM(BB63+BJ63),ROUND((D62+E62)*10%,0))))),"") ->  | Q62: =IFERROR(IF(C62="","",IF(H62="","",IF(I62="","",IF($C62="TOTAL",SUM($Q$8:Q61),IF(AND(C62>$AL$1,$AC$3=$AL$2),BO63,IF($AO$18=$AO$20,$AO$21,ROUND((H62+I62)*10%,0))))))),"") ->  | R62: =IFERROR(IF(C62="","",SUM(P62-Q62)),"") ->  | S62: =IFERROR(IF(C62="","",IF($AO$16=$AO$17,0,IF($C62="TOTAL",SUM($S$8:S61),IF($AO$19=$AO$31,0,IF(AND($AO$32=$AO$20,C62=$AO$33),$AO$34,S61))))),"") ->  | T62: =IFERROR(IF(C62="","",IF($AO$16=$AO$17,0,IF($C62="TOTAL",SUM($T$8:T61),IF($AO$19=$AO$20,$AO$24,0)))),"") ->  | V62: =IF(C62="","",IF($C62="TOTAL",SUM($V$8:V61),IF(AND($AO$2=$AO$20,C62=$AO$1),ROUND(D62/31*$AP$2,0),IF(C62=$AM$6,ROUND((G62)*1/30,0),IF(C62=$AN$6,ROUND((G62)*1/31,0),""))))) ->  | W62: =IF(C62="","",IF($C62="TOTAL",SUM($W$8:W61),IF(AND($AO$2=$AO$20,C62=$AO$1),ROUND(H62/31*$AP$2,0),IF(C62=$AM$6,ROUND((K62)*1/30,0),IF(C62=$AN$6,ROUND((K62)*1/31,0),""))))) ->  | Y62: =IFERROR(IF(C62="","",IF(AND(BH63="",BO63=""),"",IF($C62="TOTAL",SUM($Y$8:Y61),BH63))),"") ->  | Z62: =IFERROR(IF(C62="","",IF($C62="TOTAL",SUM($Z$8:Z61),ROUND(O62*$AO$7%,0))),"") ->  | AA62: =IFERROR(IF(C62="","",IF($C62="TOTAL",SUM($AA$8:AA61),IF($AC$3=$AL$2,SUM(U62,X62,Y62,Z62),SUM(R62,U62,X62,Y62,Z62)))),"") ->  | AB62: =IFERROR(IF(C62="","",IF($C62="TOTAL",SUM($AB$8:AB61),SUM(O62-AA62))),"") ->  | AK62: 34 | AL62: 34 | AN62: 2021-06-01 | AP62: 2025-03-01 | BI62: 0 | BJ62: 0 | BO62: 2100
D63: =IFERROR(IF($C62="TOTAL","अक्षरें राशि :-",IF($C63="TOTAL",SUM($D$8:D62),IF(AU64="","",AU64))),"") ->  | E63: =IFERROR(IF($C63="TOTAL",SUM($E$8:E62),IF(AV64="","",AV64)),"") ->  | F63: =IFERROR(IF($C63="TOTAL",SUM($F$8:F62),IF(OR(C63=$AM$16,C63=$AM$17,C63=$AM$18,C63=$AM$19,C63=$AM$20,C63=$AM$21,C63=$AM$22,C63=$AM$23,C63=$AM$24),0,IF(AW64="","",AW64))),"") ->  | H63: =IFERROR(IF($C63="TOTAL",SUM($H$8:H62),IF(AY64="","",AY64)),"") ->  | I63: =IFERROR(IF($C63="TOTAL",SUM($I$8:I62),IF(AZ64="","",AZ64)),"") ->  | J63: =IFERROR(IF($C63="TOTAL",SUM($J$8:J62),IF(OR(C63=$AM$16,C63=$AM$17,C63=$AM$18,C63=$AM$19,C63=$AM$20,C63=$AM$21,C63=$AM$22,C63=$AM$23,C63=$AM$24),0,IF(BA64="","",BA64))),"") ->  | L63: =IFERROR(IF(C63="","",IF(D63="","",IF(H63="","",IF($C63="TOTAL",SUM($L$8:L62),SUM(D63-H63))))),"") ->  | M63: =IFERROR(IF(C63="","",IF(E63="","",IF(I63="","",IF($C63="TOTAL",SUM($M$8:M62),SUM(E63-I63))))),"") ->  | N63: =IFERROR(IF(C63="","",IF(F63="","",IF(J63="","",IF($C63="TOTAL",SUM($N$8:N62),SUM(F63-J63))))),"") ->  | P63: =IFERROR(IF(C63="","",IF($C63="TOTAL",SUM($P$8:P62),IF(AND(C63>$AL$1,$AC$3=$AL$2),BO64,IF($AO$18=$AO$20,SUM(BB64+BJ64),ROUND((D63+E63)*10%,0))))),"") ->  | Q63: =IFERROR(IF(C63="","",IF(H63="","",IF(I63="","",IF($C63="TOTAL",SUM($Q$8:Q62),IF(AND(C63>$AL$1,$AC$3=$AL$2),BO64,IF($AO$18=$AO$20,$AO$21,ROUND((H63+I63)*10%,0))))))),"") ->  | S63: =IFERROR(IF(C63="","",IF($AO$16=$AO$17,0,IF($C63="TOTAL",SUM($S$8:S62),IF($AO$19=$AO$31,0,IF(AND($AO$32=$AO$20,C63=$AO$33),$AO$34,S62))))),"") ->  | T63: =IFERROR(IF(C63="","",IF($AO$16=$AO$17,0,IF($C63="TOTAL",SUM($T$8:T62),IF($AO$19=$AO$20,$AO$24,0)))),"") ->  | V63: =IF(C63="","",IF($C63="TOTAL",SUM($V$8:V62),IF(AND($AO$2=$AO$20,C63=$AO$1),ROUND(D63/31*$AP$2,0),IF(C63=$AM$6,ROUND((G63)*1/30,0),IF(C63=$AN$6,ROUND((G63)*1/31,0),""))))) ->  | W63: =IF(C63="","",IF($C63="TOTAL",SUM($W$8:W62),IF(AND($AO$2=$AO$20,C63=$AO$1),ROUND(H63/31*$AP$2,0),IF(C63=$AM$6,ROUND((K63)*1/30,0),IF(C63=$AN$6,ROUND((K63)*1/31,0),""))))) ->  | Y63: =IFERROR(IF(C63="","",IF(AND(BH64="",BO64=""),"",IF($C63="TOTAL",SUM($Y$8:Y62),BH64))),"") ->  | Z63: =IFERROR(IF(C63="","",IF($C63="TOTAL",SUM($Z$8:Z62),ROUND(O63*$AO$7%,0))),"") ->  | AA63: =IFERROR(IF(C63="","",IF($C63="TOTAL",SUM($AA$8:AA62),IF($AC$3=$AL$2,SUM(U63,X63,Y63,Z63),SUM(R63,U63,X63,Y63,Z63)))),"") ->  | AB63: =IFERROR(IF(C63="","",IF($C63="TOTAL",SUM($AB$8:AB62),SUM(O63-AA63))),"") ->  | AK63: 34 | AL63: 34 | AN63: 2021-07-01 | AP63: 2025-04-01 | BG63: =IF(OR(AT63=$AN$63,AT63=$AN$64,AT63=$AN$65),"YES","") ->  | BI63: 0 | BJ63: 0 | BK63: =SUM(ROUND(D62*3%,0)) ->  | BL63: =IF($AM$7="NO",ROUND((H62+L62)*3%,0)-ROUND(ROUND((L62+H62)*3%,0)*10%,0),ROUND((L62+M62)*3%,0)-ROUND(ROUND((L62+M62)*3%,0)*10%,0)) ->  | BM63: =ROUND((L62+M62)*3%,0)-ROUND(ROUND((L62+M62)*3%,0)*10%,0) ->  | BN63: =IF(AND($AO$16=$AO$17,BG63="YES"),SUM(ROUND(D62*3%,0))-ROUND(ROUND(D62*3%,0)*10%,0),IF(AND($AO$16=$AO$15,BG63="YES",$AM$7="NO"),ROUND((H62+L62)*3%,0)-ROUND(ROUND((L62+H62)*3%,0)*10%,0),IF(AND($AO$16=$AO$15,BG63="YES",$AM$7="YES"),ROUND((L62+M62)*3%,0)-ROUND(ROUND((L62+M62)*3%,0)*10%,0),""))) ->  | BO63: 2100 | BP63: =IF(C62="","",IF($C62="TOTAL",1,2)) -> 
D64: =IFERROR(IF($C63="TOTAL","अक्षरें राशि :-",IF($C64="TOTAL",SUM($D$8:D63),IF(AU65="","",AU65))),"") ->  | E64: =IFERROR(IF($C64="TOTAL",SUM($E$8:E63),IF(AV65="","",AV65)),"") ->  | F64: =IFERROR(IF($C64="TOTAL",SUM($F$8:F63),IF(OR(C64=$AM$16,C64=$AM$17,C64=$AM$18,C64=$AM$19,C64=$AM$20,C64=$AM$21,C64=$AM$22,C64=$AM$23,C64=$AM$24),0,IF(AW65="","",AW65))),"") ->  | H64: =IFERROR(IF($C64="TOTAL",SUM($H$8:H63),IF(AY65="","",AY65)),"") ->  | I64: =IFERROR(IF($C64="TOTAL",SUM($I$8:I63),IF(AZ65="","",AZ65)),"") ->  | J64: =IFERROR(IF($C64="TOTAL",SUM($J$8:J63),IF(OR(C64=$AM$16,C64=$AM$17,C64=$AM$18,C64=$AM$19,C64=$AM$20,C64=$AM$21,C64=$AM$22,C64=$AM$23,C64=$AM$24),0,IF(BA65="","",BA65))),"") ->  | L64: =IFERROR(IF(C64="","",IF(D64="","",IF(H64="","",IF($C64="TOTAL",SUM($L$8:L63),SUM(D64-H64))))),"") ->  | M64: =IFERROR(IF(C64="","",IF(E64="","",IF(I64="","",IF($C64="TOTAL",SUM($M$8:M63),SUM(E64-I64))))),"") ->  | N64: =IFERROR(IF(C64="","",IF(F64="","",IF(J64="","",IF($C64="TOTAL",SUM($N$8:N63),SUM(F64-J64))))),"") ->  | P64: =IFERROR(IF(C64="","",IF($C64="TOTAL",SUM($P$8:P63),IF(AND(C64>$AL$1,$AC$3=$AL$2),BO65,IF($AO$18=$AO$20,SUM(BB65+BJ65),ROUND((D64+E64)*10%,0))))),"") ->  | Q64: =IFERROR(IF(C64="","",IF(H64="","",IF(I64="","",IF($C64="TOTAL",SUM($Q$8:Q63),IF(AND(C64>$AL$1,$AC$3=$AL$2),BO65,IF($AO$18=$AO$20,$AO$21,ROUND((H64+I64)*10%,0))))))),"") ->  | S64: =IFERROR(IF(C64="","",IF($AO$16=$AO$17,0,IF($C64="TOTAL",SUM($S$8:S63),IF($AO$19=$AO$31,0,IF(AND($AO$32=$AO$20,C64=$AO$33),$AO$34,S63))))),"") ->  | T64: =IFERROR(IF(C64="","",IF($AO$16=$AO$17,0,IF($C64="TOTAL",SUM($T$8:T63),IF($AO$19=$AO$20,$AO$24,0)))),"") ->  | V64: =IF(C64="","",IF($C64="TOTAL",SUM($V$8:V63),IF(AND($AO$2=$AO$20,C64=$AO$1),ROUND(D64/31*$AP$2,0),IF(C64=$AM$6,ROUND((G64)*1/30,0),IF(C64=$AN$6,ROUND((G64)*1/31,0),""))))) ->  | W64: =IF(C64="","",IF($C64="TOTAL",SUM($W$8:W63),IF(AND($AO$2=$AO$20,C64=$AO$1),ROUND(H64/31*$AP$2,0),IF(C64=$AM$6,ROUND((K64)*1/30,0),IF(C64=$AN$6,ROUND((K64)*1/31,0),""))))) ->  | Y64: =IFERROR(IF(C64="","",IF(AND(BH65="",BO65=""),"",IF($C64="TOTAL",SUM($Y$8:Y63),BH65))),"") ->  | Z64: =IFERROR(IF(C64="","",IF($C64="TOTAL",SUM($Z$8:Z63),ROUND(O64*$AO$7%,0))),"") ->  | AA64: =IFERROR(IF(C64="","",IF($C64="TOTAL",SUM($AA$8:AA63),IF($AC$3=$AL$2,SUM(U64,X64,Y64,Z64),SUM(R64,U64,X64,Y64,Z64)))),"") ->  | AB64: =IFERROR(IF(C64="","",IF($C64="TOTAL",SUM($AB$8:AB63),SUM(O64-AA64))),"") ->  | AK64: 34 | AL64: 34 | AN64: 2021-08-01 | AP64: 2025-05-01 | BI64: 0 | BJ64: 0 | BK64: =ROUND(ROUND(L63*3%,0)*10%,0) ->  | BM64: =ROUND(ROUND((L64+H64)*3%,0)*10%,0) ->  | BN64: =ROUND((H62+L62)*3%,0)-ROUND(ROUND((L62+H62)*3%,0)*10%,0) ->  | BO64: 2100
D65: =IFERROR(IF($C64="TOTAL","अक्षरें राशि :-",IF($C65="TOTAL",SUM($D$8:D64),IF(AU66="","",AU66))),"") ->  | E65: =IFERROR(IF($C65="TOTAL",SUM($E$8:E64),IF(AV66="","",AV66)),"") ->  | F65: =IFERROR(IF($C65="TOTAL",SUM($F$8:F64),IF(OR(C65=$AM$16,C65=$AM$17,C65=$AM$18,C65=$AM$19,C65=$AM$20,C65=$AM$21,C65=$AM$22,C65=$AM$23,C65=$AM$24),0,IF(AW66="","",AW66))),"") ->  | H65: =IFERROR(IF($C65="TOTAL",SUM($H$8:H64),IF(AY66="","",AY66)),"") ->  | I65: =IFERROR(IF($C65="TOTAL",SUM($I$8:I64),IF(AZ66="","",AZ66)),"") ->  | J65: =IFERROR(IF($C65="TOTAL",SUM($J$8:J64),IF(OR(C65=$AM$16,C65=$AM$17,C65=$AM$18,C65=$AM$19,C65=$AM$20,C65=$AM$21,C65=$AM$22,C65=$AM$23,C65=$AM$24),0,IF(BA66="","",BA66))),"") ->  | L65: =IFERROR(IF(C65="","",IF(D65="","",IF(H65="","",IF($C65="TOTAL",SUM($L$8:L64),SUM(D65-H65))))),"") ->  | M65: =IFERROR(IF(C65="","",IF(E65="","",IF(I65="","",IF($C65="TOTAL",SUM($M$8:M64),SUM(E65-I65))))),"") ->  | N65: =IFERROR(IF(C65="","",IF(F65="","",IF(J65="","",IF($C65="TOTAL",SUM($N$8:N64),SUM(F65-J65))))),"") ->  | P65: =IFERROR(IF(C65="","",IF($C65="TOTAL",SUM($P$8:P64),IF(AND(C65>$AL$1,$AC$3=$AL$2),BO66,IF($AO$18=$AO$20,SUM(BB66+BJ66),ROUND((D65+E65)*10%,0))))),"") ->  | Q65: =IFERROR(IF(C65="","",IF(H65="","",IF(I65="","",IF($C65="TOTAL",SUM($Q$8:Q64),IF(AND(C65>$AL$1,$AC$3=$AL$2),BO66,IF($AO$18=$AO$20,$AO$21,ROUND((H65+I65)*10%,0))))))),"") ->  | S65: =IFERROR(IF(C65="","",IF($AO$16=$AO$17,0,IF($C65="TOTAL",SUM($S$8:S64),IF($AO$19=$AO$31,0,IF(AND($AO$32=$AO$20,C65=$AO$33),$AO$34,S64))))),"") ->  | T65: =IFERROR(IF(C65="","",IF($AO$16=$AO$17,0,IF($C65="TOTAL",SUM($T$8:T64),IF($AO$19=$AO$20,$AO$24,0)))),"") ->  | V65: =IF(C65="","",IF($C65="TOTAL",SUM($V$8:V64),IF(AND($AO$2=$AO$20,C65=$AO$1),ROUND(D65/31*$AP$2,0),IF(C65=$AM$6,ROUND((G65)*1/30,0),IF(C65=$AN$6,ROUND((G65)*1/31,0),""))))) ->  | W65: =IF(C65="","",IF($C65="TOTAL",SUM($W$8:W64),IF(AND($AO$2=$AO$20,C65=$AO$1),ROUND(H65/31*$AP$2,0),IF(C65=$AM$6,ROUND((K65)*1/30,0),IF(C65=$AN$6,ROUND((K65)*1/31,0),""))))) ->  | Y65: =IFERROR(IF(C65="","",IF(AND(BH66="",BO66=""),"",IF($C65="TOTAL",SUM($Y$8:Y64),BH66))),"") ->  | Z65: =IFERROR(IF(C65="","",IF($C65="TOTAL",SUM($Z$8:Z64),ROUND(O65*$AO$7%,0))),"") ->  | AA65: =IFERROR(IF(C65="","",IF($C65="TOTAL",SUM($AA$8:AA64),IF($AC$3=$AL$2,SUM(U65,X65,Y65,Z65),SUM(R65,U65,X65,Y65,Z65)))),"") ->  | AB65: =IFERROR(IF(C65="","",IF($C65="TOTAL",SUM($AB$8:AB64),SUM(O65-AA65))),"") ->  | AK65: 34 | AL65: 34 | AN65: 2021-09-01 | AP65: 2025-06-01 | BI65: 0 | BJ65: 0 | BK65: =SUM(ROUND(L64*3%,0))-ROUND(ROUND(L64*3%,0)*10%,0) ->  | BL65: =SUM(ROUND(L64*3%,0))-ROUND(ROUND(L64*3%,0)*10%,0) ->  | BO65: 2100
C66: =IFERROR(IF(AT67="","",AT67),"") ->  | D66: =IFERROR(IF($C65="TOTAL","अक्षरें राशि :-",IF($C66="TOTAL",SUM($D$8:D65),IF(AU67="","",AU67))),"") ->  | E66: =IFERROR(IF($C66="TOTAL",SUM($E$8:E65),IF(AV67="","",AV67)),"") ->  | F66: =IFERROR(IF($C66="TOTAL",SUM($F$8:F65),IF(OR(C66=$AM$16,C66=$AM$17,C66=$AM$18,C66=$AM$19,C66=$AM$20,C66=$AM$21,C66=$AM$22,C66=$AM$23,C66=$AM$24),0,IF(AW67="","",AW67))),"") ->  | G66: =IF(C66="","",SUM(D66:F66)) ->  | H66: =IFERROR(IF($C66="TOTAL",SUM($H$8:H65),IF(AY67="","",AY67)),"") ->  | I66: =IFERROR(IF($C66="TOTAL",SUM($I$8:I65),IF(AZ67="","",AZ67)),"") ->  | J66: =IFERROR(IF($C66="TOTAL",SUM($J$8:J65),IF(OR(C66=$AM$16,C66=$AM$17,C66=$AM$18,C66=$AM$19,C66=$AM$20,C66=$AM$21,C66=$AM$22,C66=$AM$23,C66=$AM$24),0,IF(BA67="","",BA67))),"") ->  | L66: =IFERROR(IF(C66="","",IF(D66="","",IF(H66="","",IF($C66="TOTAL",SUM($L$8:L65),SUM(D66-H66))))),"") ->  | M66: =IFERROR(IF(C66="","",IF(E66="","",IF(I66="","",IF($C66="TOTAL",SUM($M$8:M65),SUM(E66-I66))))),"") ->  | N66: =IFERROR(IF(C66="","",IF(F66="","",IF(J66="","",IF($C66="TOTAL",SUM($N$8:N65),SUM(F66-J66))))),"") ->  | P66: =IFERROR(IF(C66="","",IF($C66="TOTAL",SUM($P$8:P65),IF(AND(C66>$AL$1,$AC$3=$AL$2),BO67,IF($AO$18=$AO$20,SUM(BB67+BJ67),ROUND((D66+E66)*10%,0))))),"") ->  | Q66: =IFERROR(IF(C66="","",IF(H66="","",IF(I66="","",IF($C66="TOTAL",SUM($Q$8:Q65),IF(AND(C66>$AL$1,$AC$3=$AL$2),BO67,IF($AO$18=$AO$20,$AO$21,ROUND((H66+I66)*10%,0))))))),"") ->  | S66: =IFERROR(IF(C66="","",IF($AO$16=$AO$17,0,IF($C66="TOTAL",SUM($S$8:S65),IF($AO$19=$AO$31,0,IF(AND($AO$32=$AO$20,C66=$AO$33),$AO$34,S65))))),"") ->  | T66: =IFERROR(IF(C66="","",IF($AO$16=$AO$17,0,IF($C66="TOTAL",SUM($T$8:T65),IF($AO$19=$AO$20,$AO$24,0)))),"") ->  | V66: =IF(C66="","",IF($C66="TOTAL",SUM($V$8:V65),IF(AND($AO$2=$AO$20,C66=$AO$1),ROUND(D66/31*$AP$2,0),IF(C66=$AM$6,ROUND((G66)*1/30,0),IF(C66=$AN$6,ROUND((G66)*1/31,0),""))))) ->  | W66: =IF(C66="","",IF($C66="TOTAL",SUM($W$8:W65),IF(AND($AO$2=$AO$20,C66=$AO$1),ROUND(H66/31*$AP$2,0),IF(C66=$AM$6,ROUND((K66)*1/30,0),IF(C66=$AN$6,ROUND((K66)*1/31,0),""))))) ->  | Y66: =IFERROR(IF(C66="","",IF(AND(BH67="",BO67=""),"",IF($C66="TOTAL",SUM($Y$8:Y65),BH67))),"") ->  | Z66: =IFERROR(IF(C66="","",IF($C66="TOTAL",SUM($Z$8:Z65),ROUND(O66*$AO$7%,0))),"") ->  | AA66: =IFERROR(IF(C66="","",IF($C66="TOTAL",SUM($AA$8:AA65),IF($AC$3=$AL$2,SUM(U66,X66,Y66,Z66),SUM(R66,U66,X66,Y66,Z66)))),"") ->  | AB66: =IFERROR(IF(C66="","",IF($C66="TOTAL",SUM($AB$8:AB65),SUM(O66-AA66))),"") ->  | AK66: 34 | AL66: 34 | AN66: 2021-10-01 | AP66: 2025-07-01 | BI66: 0 | BJ66: 0 | BO66: 2100
C67: =IFERROR(IF(AT68="","",AT68),"") ->  | D67: =IFERROR(IF($C66="TOTAL","अक्षरें राशि :-",IF($C67="TOTAL",SUM($D$8:D66),IF(AU68="","",AU68))),"") ->  | E67: =IFERROR(IF($C67="TOTAL",SUM($E$8:E66),IF(AV68="","",AV68)),"") ->  | F67: =IFERROR(IF($C67="TOTAL",SUM($F$8:F66),IF(OR(C67=$AM$16,C67=$AM$17,C67=$AM$18,C67=$AM$19,C67=$AM$20,C67=$AM$21,C67=$AM$22,C67=$AM$23,C67=$AM$24),0,IF(AW68="","",AW68))),"") ->  | H67: =IFERROR(IF($C67="TOTAL",SUM($H$8:H66),IF(AY68="","",AY68)),"") ->  | I67: =IFERROR(IF($C67="TOTAL",SUM($I$8:I66),IF(AZ68="","",AZ68)),"") ->  | J67: =IFERROR(IF($C67="TOTAL",SUM($J$8:J66),IF(OR(C67=$AM$16,C67=$AM$17,C67=$AM$18,C67=$AM$19,C67=$AM$20,C67=$AM$21,C67=$AM$22,C67=$AM$23,C67=$AM$24),0,IF(BA68="","",BA68))),"") ->  | L67: =IFERROR(IF(C67="","",IF(D67="","",IF(H67="","",IF($C67="TOTAL",SUM($L$8:L66),SUM(D67-H67))))),"") ->  | M67: =IFERROR(IF(C67="","",IF(E67="","",IF(I67="","",IF($C67="TOTAL",SUM($M$8:M66),SUM(E67-I67))))),"") ->  | N67: =IFERROR(IF(C67="","",IF(F67="","",IF(J67="","",IF($C67="TOTAL",SUM($N$8:N66),SUM(F67-J67))))),"") ->  | P67: =IFERROR(IF(C67="","",IF($C67="TOTAL",SUM($P$8:P66),IF(AND(C67>$AL$1,$AC$3=$AL$2),BO68,IF($AO$18=$AO$20,SUM(BB68+BJ68),ROUND((D67+E67)*10%,0))))),"") ->  | Q67: =IFERROR(IF(C67="","",IF(H67="","",IF(I67="","",IF($C67="TOTAL",SUM($Q$8:Q66),IF(AND(C67>$AL$1,$AC$3=$AL$2),BO68,IF($AO$18=$AO$20,$AO$21,ROUND((H67+I67)*10%,0))))))),"") ->  | S67: =IFERROR(IF(C67="","",IF($AO$16=$AO$17,0,IF($C67="TOTAL",SUM($S$8:S66),IF($AO$19=$AO$31,0,IF(AND($AO$32=$AO$20,C67=$AO$33),$AO$34,S66))))),"") ->  | T67: =IFERROR(IF(C67="","",IF($AO$16=$AO$17,0,IF($C67="TOTAL",SUM($T$8:T66),IF($AO$19=$AO$20,$AO$24,0)))),"") ->  | V67: =IF(C67="","",IF($C67="TOTAL",SUM($V$8:V66),IF(AND($AO$2=$AO$20,C67=$AO$1),ROUND(D67/31*$AP$2,0),IF(C67=$AM$6,ROUND((G67)*1/30,0),IF(C67=$AN$6,ROUND((G67)*1/31,0),""))))) ->  | W67: =IF(C67="","",IF($C67="TOTAL",SUM($W$8:W66),IF(AND($AO$2=$AO$20,C67=$AO$1),ROUND(H67/31*$AP$2,0),IF(C67=$AM$6,ROUND((K67)*1/30,0),IF(C67=$AN$6,ROUND((K67)*1/31,0),""))))) ->  | Y67: =IFERROR(IF(C67="","",IF(AND(BH68="",BO68=""),"",IF($C67="TOTAL",SUM($Y$8:Y66),BH68))),"") ->  | Z67: =IFERROR(IF(C67="","",IF($C67="TOTAL",SUM($Z$8:Z66),ROUND(O67*$AO$7%,0))),"") ->  | AA67: =IFERROR(IF(C67="","",IF($C67="TOTAL",SUM($AA$8:AA66),IF($AC$3=$AL$2,SUM(U67,X67,Y67,Z67),SUM(R67,U67,X67,Y67,Z67)))),"") ->  | AB67: =IFERROR(IF(C67="","",IF($C67="TOTAL",SUM($AB$8:AB66),SUM(O67-AA67))),"") ->  | AK67: 34 | AL67: 34 | AN67: 2021-11-01 | AP67: 2025-08-01 | BI67: 0 | BJ67: 0 | BO67: 2100
D68: =IFERROR(IF($C67="TOTAL","अक्षरें राशि :-",IF($C68="TOTAL",SUM($D$8:D67),IF(AU69="","",AU69))),"") ->  | E68: =IFERROR(IF($C68="TOTAL",SUM($E$8:E67),IF(AV69="","",AV69)),"") ->  | F68: =IFERROR(IF($C68="TOTAL",SUM($F$8:F67),IF(AW69="","",AW69)),"") ->  | H68: =IFERROR(IF($C68="TOTAL",SUM($H$8:H67),IF(AY69="","",AY69)),"") ->  | I68: =IFERROR(IF($C68="TOTAL",SUM($I$8:I67),IF(AZ69="","",AZ69)),"") ->  | J68: =IFERROR(IF($C68="TOTAL",SUM($J$8:J67),IF(BA69="","",BA69)),"") ->  | L68: =IFERROR(IF(C68="","",IF(D68="","",IF(H68="","",IF($C68="TOTAL",SUM($L$8:L67),SUM(D68-H68))))),"") ->  | M68: =IFERROR(IF(C68="","",IF(E68="","",IF(I68="","",IF($C68="TOTAL",SUM($M$8:M67),SUM(E68-I68))))),"") ->  | N68: =IFERROR(IF(C68="","",IF(F68="","",IF(J68="","",IF($C68="TOTAL",SUM($N$8:N67),SUM(F68-J68))))),"") ->  | P68: =IFERROR(IF(C68="","",IF($C68="TOTAL",SUM($P$8:P67),IF(AND(C68>$AL$1,$AC$3=$AL$2),BO69,IF($AO$18=$AO$20,SUM(BB69+BJ69),ROUND((D68+E68)*10%,0))))),"") ->  | Q68: =IFERROR(IF(C68="","",IF(H68="","",IF(I68="","",IF($C68="TOTAL",SUM($Q$8:Q67),IF(AND(C68>$AL$1,$AC$3=$AL$2),BO69,IF($AO$18=$AO$20,$AO$21,ROUND((H68+I68)*10%,0))))))),"") ->  | S68: =IFERROR(IF(C68="","",IF($AO$16=$AO$17,0,IF($C68="TOTAL",SUM($S$8:S67),IF($AO$19=$AO$20,$AO$25,0)))),"") ->  | T68: =IFERROR(IF(C68="","",IF($AO$16=$AO$17,0,IF($C68="TOTAL",SUM($T$8:T67),IF($AO$19=$AO$20,$AO$24,0)))),"") ->  | V68: =IF(C68="","",IF($C68="TOTAL",SUM($V$8:V67),IF(AND($AO$2=$AO$20,C68=$AO$1),ROUND(D68/31*$AP$2,0),IF(C68=$AM$6,ROUND((G68)*1/30,0),IF(C68=$AN$6,ROUND((G68)*1/31,0),""))))) ->  | W68: =IF(C68="","",IF($C68="TOTAL",SUM($W$8:W67),IF(AND($AO$2=$AO$20,C68=$AO$1),ROUND(H68/31*$AP$2,0),IF(C68=$AM$6,ROUND((K68)*1/30,0),IF(C68=$AN$6,ROUND((K68)*1/31,0),""))))) ->  | Y68: =IFERROR(IF(C68="","",IF(AND(BH69="",BO69=""),"",IF($C68="TOTAL",SUM($Y$8:Y67),BH69))),"") ->  | Z68: =IFERROR(IF(C68="","",IF($C68="TOTAL",SUM($Z$8:Z67),ROUND(O68*$AO$7%,0))),"") ->  | AA68: =IFERROR(IF(C68="","",IF($C68="TOTAL",SUM($AA$8:AA67),IF($AC$3=$AL$2,SUM(U68,X68,Y68,Z68),SUM(R68,U68,X68,Y68,Z68)))),"") ->  | AB68: =IFERROR(IF(C68="","",IF($C68="TOTAL",SUM($AB$8:AB67),SUM(O68-AA68))),"") ->  | AK68: 34 | AL68: 34 | AN68: 2021-12-01 | AP68: 2025-09-01 | BI68: 0 | BJ68: 0 | BO68: 2100
C69: =IFERROR(IF(AT70="","",AT70),"") ->  | D69: =IFERROR(IF($C68="TOTAL","अक्षरें राशि :-",IF($C69="TOTAL",SUM($D$8:D68),IF(AU70="","",AU70))),"") ->  | E69: =IFERROR(IF($C69="TOTAL",SUM($E$8:E68),IF(AV70="","",AV70)),"") ->  | F69: =IFERROR(IF($C69="TOTAL",SUM($F$8:F68),IF(AW70="","",AW70)),"") ->  | G69: =IF(C69="","",SUM(D69:F69)) ->  | H69: =IFERROR(IF($C69="TOTAL",SUM($H$8:H68),IF(AY70="","",AY70)),"") ->  | I69: =IFERROR(IF($C69="TOTAL",SUM($I$8:I68),IF(AZ70="","",AZ70)),"") ->  | J69: =IFERROR(IF($C69="TOTAL",SUM($J$8:J68),IF(BA70="","",BA70)),"") ->  | K69: =IF(C69="","",SUM(H69:J69)) ->  | L69: =IFERROR(IF(C69="","",IF(D69="","",IF(H69="","",IF($C69="TOTAL",SUM($L$8:L68),SUM(D69-H69))))),"") ->  | M69: =IFERROR(IF(C69="","",IF(E69="","",IF(I69="","",IF($C69="TOTAL",SUM($M$8:M68),SUM(E69-I69))))),"") ->  | N69: =IFERROR(IF(C69="","",IF(F69="","",IF(J69="","",IF($C69="TOTAL",SUM($N$8:N68),SUM(F69-J69))))),"") ->  | O69: =IFERROR(IF(C69="","",IF(G69="","",IF(K69="","",SUM(G69-K69)))),"") ->  | P69: =IFERROR(IF(C69="","",IF($C69="TOTAL",SUM($P$8:P68),IF(AND(C69>$AL$1,$AC$3=$AL$2),BO70,IF($AO$18=$AO$20,SUM(BB70+BJ70),ROUND((D69+E69)*10%,0))))),"") ->  | Q69: =IFERROR(IF(C69="","",IF(H69="","",IF(I69="","",IF($C69="TOTAL",SUM($Q$8:Q68),IF(AND(C69>$AL$1,$AC$3=$AL$2),BO70,IF($AO$18=$AO$20,$AO$21,ROUND((H69+I69)*10%,0))))))),"") ->  | R69: =IFERROR(IF(C69="","",SUM(P69-Q69)),"") ->  | S69: =IFERROR(IF(C69="","",IF($AO$16=$AO$17,0,IF($C69="TOTAL",SUM($S$8:S68),IF($AO$19=$AO$20,$AO$25,0)))),"") ->  | T69: =IFERROR(IF(C69="","",IF($AO$16=$AO$17,0,IF($C69="TOTAL",SUM($T$8:T68),IF($AO$19=$AO$20,$AO$24,0)))),"") ->  | U69: =IFERROR(IF(C69="","",SUM(S69-T69)),"") ->  | V69: =IF(C69="","",IF($C69="TOTAL",SUM($V$8:V68),IF(AND($AO$2=$AO$20,C69=$AO$1),ROUND(D69/31*$AP$2,0),IF(C69=$AM$6,ROUND((G69)*1/30,0),IF(C69=$AN$6,ROUND((G69)*1/31,0),""))))) ->  | W69: =IF(C69="","",IF($C69="TOTAL",SUM($W$8:W68),IF(AND($AO$2=$AO$20,C69=$AO$1),ROUND(H69/31*$AP$2,0),IF(C69=$AM$6,ROUND((K69)*1/30,0),IF(C69=$AN$6,ROUND((K69)*1/31,0),""))))) ->  | X69: =IFERROR(IF(C69="","",SUM(V69-W69)),"") ->  | Y69: =IFERROR(IF(C69="","",IF(AND(BH70="",BO70=""),"",IF($C69="TOTAL",SUM($Y$8:Y68),BH70))),"") ->  | Z69: =IFERROR(IF(C69="","",IF($C69="TOTAL",SUM($Z$8:Z68),ROUND(O69*$AO$7%,0))),"") ->  | AA69: =IFERROR(IF(C69="","",IF($C69="TOTAL",SUM($AA$8:AA68),IF($AC$3=$AL$2,SUM(U69,X69,Y69,Z69),SUM(R69,U69,X69,Y69,Z69)))),"") ->  | AB69: =IFERROR(IF(C69="","",IF($C69="TOTAL",SUM($AB$8:AB68),SUM(O69-AA69))),"") ->  | AK69: 34 | AL69: 34 | AN69: 2022-01-01 | AP69: 2025-10-01 | BI69: 0 | BJ69: 0 | BO69: 2100
D70: =IFERROR(IF($C69="TOTAL","अक्षरें राशि :-",IF($C70="TOTAL",SUM($D$8:D69),IF(AU71="","",AU71))),"") ->  | E70: =IFERROR(IF($C70="TOTAL",SUM($E$8:E69),IF(AV71="","",AV71)),"") ->  | F70: =IFERROR(IF($C70="TOTAL",SUM($F$8:F69),IF(AW71="","",AW71)),"") ->  | H70: =IFERROR(IF($C70="TOTAL",SUM($H$8:H69),IF(AY71="","",AY71)),"") ->  | I70: =IFERROR(IF($C70="TOTAL",SUM($I$8:I69),IF(AZ71="","",AZ71)),"") ->  | J70: =IFERROR(IF($C70="TOTAL",SUM($J$8:J69),IF(BA71="","",BA71)),"") ->  | L70: =IFERROR(IF(C70="","",IF(D70="","",IF(H70="","",IF($C70="TOTAL",SUM($L$8:L69),SUM(D70-H70))))),"") ->  | M70: =IFERROR(IF(C70="","",IF(E70="","",IF(I70="","",IF($C70="TOTAL",SUM($M$8:M69),SUM(E70-I70))))),"") ->  | N70: =IFERROR(IF(C70="","",IF(F70="","",IF(J70="","",IF($C70="TOTAL",SUM($N$8:N69),SUM(F70-J70))))),"") ->  | P70: =IFERROR(IF(C70="","",IF($C70="TOTAL",SUM($P$8:P69),IF(AND(C70>$AL$1,$AC$3=$AL$2),BO71,IF($AO$18=$AO$20,SUM(BB71+BJ71),ROUND((D70+E70)*10%,0))))),"") ->  | Q70: =IFERROR(IF(C70="","",IF(H70="","",IF(I70="","",IF($C70="TOTAL",SUM($Q$8:Q69),IF(AND(C70>$AL$1,$AC$3=$AL$2),BO71,IF($AO$18=$AO$20,$AO$21,ROUND((H70+I70)*10%,0))))))),"") ->  | S70: =IFERROR(IF(C70="","",IF($AO$16=$AO$17,0,IF($C70="TOTAL",SUM($S$8:S69),IF($AO$19=$AO$20,$AO$25,0)))),"") ->  | T70: =IFERROR(IF(C70="","",IF($AO$16=$AO$17,0,IF($C70="TOTAL",SUM($T$8:T69),IF($AO$19=$AO$20,$AO$24,0)))),"") ->  | V70: =IF(C70="","",IF($C70="TOTAL",SUM($V$8:V69),IF(AND($AO$2=$AO$20,C70=$AO$1),ROUND(D70/31*$AP$2,0),IF(C70=$AM$6,ROUND((G70)*1/30,0),IF(C70=$AN$6,ROUND((G70)*1/31,0),""))))) ->  | W70: =IF(C70="","",IF($C70="TOTAL",SUM($W$8:W69),IF(AND($AO$2=$AO$20,C70=$AO$1),ROUND(H70/31*$AP$2,0),IF(C70=$AM$6,ROUND((K70)*1/30,0),IF(C70=$AN$6,ROUND((K70)*1/31,0),""))))) ->  | Y70: =IFERROR(IF(C70="","",IF(AND(BH71="",BO71=""),"",IF($C70="TOTAL",SUM($Y$8:Y69),BH71))),"") ->  | Z70: =IFERROR(IF(C70="","",IF($C70="TOTAL",SUM($Z$8:Z69),ROUND(O70*$AO$7%,0))),"") ->  | AA70: =IFERROR(IF(C70="","",IF($C70="TOTAL",SUM($AA$8:AA69),IF($AC$3=$AL$2,SUM(U70,X70,Y70,Z70),SUM(R70,U70,X70,Y70,Z70)))),"") ->  | AB70: =IFERROR(IF(C70="","",IF($C70="TOTAL",SUM($AB$8:AB69),SUM(O70-AA70))),"") ->  | AK70: 34 | AL70: 34 | AN70: 2022-02-01 | AP70: 2025-11-01 | BI70: 0 | BJ70: 0 | BO70: 2100
D71: =IFERROR(IF($C70="TOTAL","अक्षरें राशि :-",IF($C71="TOTAL",SUM($D$8:D70),IF(AU72="","",AU72))),"") ->  | E71: =IFERROR(IF($C71="TOTAL",SUM($E$8:E70),IF(AV72="","",AV72)),"") ->  | F71: =IFERROR(IF($C71="TOTAL",SUM($F$8:F70),IF(AW72="","",AW72)),"") ->  | H71: =IFERROR(IF($C71="TOTAL",SUM($H$8:H70),IF(AY72="","",AY72)),"") ->  | I71: =IFERROR(IF($C71="TOTAL",SUM($I$8:I70),IF(AZ72="","",AZ72)),"") ->  | J71: =IFERROR(IF($C71="TOTAL",SUM($J$8:J70),IF(BA72="","",BA72)),"") ->  | L71: =IFERROR(IF(C71="","",IF(D71="","",IF(H71="","",IF($C71="TOTAL",SUM($L$8:L70),SUM(D71-H71))))),"") ->  | M71: =IFERROR(IF(C71="","",IF(E71="","",IF(I71="","",IF($C71="TOTAL",SUM($M$8:M70),SUM(E71-I71))))),"") ->  | N71: =IFERROR(IF(C71="","",IF(F71="","",IF(J71="","",IF($C71="TOTAL",SUM($N$8:N70),SUM(F71-J71))))),"") ->  | P71: =IFERROR(IF(C71="","",IF($C71="TOTAL",SUM($P$8:P70),IF(AND(C71>$AL$1,$AC$3=$AL$2),BO72,IF($AO$18=$AO$20,SUM(BB72+BJ72),ROUND((D71+E71)*10%,0))))),"") ->  | Q71: =IFERROR(IF(C71="","",IF(H71="","",IF(I71="","",IF($C71="TOTAL",SUM($Q$8:Q70),IF(AND(C71>$AL$1,$AC$3=$AL$2),BO72,IF($AO$18=$AO$20,$AO$21,ROUND((H71+I71)*10%,0))))))),"") ->  | S71: =IFERROR(IF(C71="","",IF($AO$16=$AO$17,0,IF($C71="TOTAL",SUM($S$8:S70),IF($AO$19=$AO$20,$AO$25,0)))),"") ->  | T71: =IFERROR(IF(C71="","",IF($AO$16=$AO$17,0,IF($C71="TOTAL",SUM($T$8:T70),IF($AO$19=$AO$20,$AO$24,0)))),"") ->  | V71: =IF(C71="","",IF($C71="TOTAL",SUM($V$8:V70),IF(AND($AO$2=$AO$20,C71=$AO$1),ROUND(D71/31*$AP$2,0),IF(C71=$AM$6,ROUND((G71)*1/30,0),IF(C71=$AN$6,ROUND((G71)*1/31,0),""))))) ->  | W71: =IF(C71="","",IF($C71="TOTAL",SUM($W$8:W70),IF(AND($AO$2=$AO$20,C71=$AO$1),ROUND(H71/31*$AP$2,0),IF(C71=$AM$6,ROUND((K71)*1/30,0),IF(C71=$AN$6,ROUND((K71)*1/31,0),""))))) ->  | Y71: =IFERROR(IF(C71="","",IF(AND(BH72="",BO72=""),"",IF($C71="TOTAL",SUM($Y$8:Y70),BH72))),"") ->  | Z71: =IFERROR(IF(C71="","",IF($C71="TOTAL",SUM($Z$8:Z70),ROUND(O71*$AO$7%,0))),"") ->  | AA71: =IFERROR(IF(C71="","",IF($C71="TOTAL",SUM($AA$8:AA70),IF($AC$3=$AL$2,SUM(U71,X71,Y71,Z71),SUM(R71,U71,X71,Y71,Z71)))),"") ->  | AB71: =IFERROR(IF(C71="","",IF($C71="TOTAL",SUM($AB$8:AB70),SUM(O71-AA71))),"") ->  | AK71: 34 | AL71: 34 | AN71: 2022-03-01 | AP71: 2025-12-01 | AQ71: =IF(AND(AP71=""),"",IF(AND(AP71=$AN$9),$AN$9,IF(AND(AP71=$AN$10),$AN$10,IF(AND(AP71=$AN$11),$AN$11,IF(AND(AP71=$AN$12),$AN$12,IF(AND(AP71=$AN$13),$AN$13,IF(AND(AP71=$AN$14),$AN$14,IF(AND(AP71=$AN$15),$AN$15,IF(AND(AP71=$AN$16),$AN$16,IF(AND(AP71=$AN$17),$AN$17,IF(AND(AP71=$AN$18),$AN$18,IF(AND(AP71=$AN$19),$AN$19,IF(AND(AP71=$AN$20),$AN$20,IF(AND(AP71=$AN$21),$AN$21,IF(AND(AP71=$AN$22),$AN$22,IF(AND(AP71=$AN$23),$AN$23,IF(AND(AP71=$AN$24),$AN$24,IF(AND(AP71=$AN$25),$AN$25,IF(AND(AP71=$AN$26),$AN$26,IF(AND(AP71=$AN$27),$AN$27,IF(AND(AP71=$AN$28),$AN$28,IF(AND(AP71=$AN$29),$AN$29,IF(AND(AP71=$AN$30),$AN$30,IF(AND(AP71=$AN$31),$AN$31,IF(AND(AP71=$AN$32),$AN$32,IF(AND(AP71=$AN$33),$AN$33,IF(AND(AP71=$AN$34),$AN$34,IF(AND(AP71=$AN$35),$AN$35,IF(AND(AP71=$AN$36),$AN$36,IF(AND(AP71=$AN$37),$AN$37,IF(AND(AP71=$AN$38),$AN$38,IF(AND(AP71=$AN$39),$AN$39,IF(AND(AP71=$AN$40),$AN$40,IF(AND(AP71=$AN$41),$AN$41,IF(AND(AP71=$AN$42),$AN$42,IF(AND(AP71=$AN$43),$AN$43,IF(AND(AP71=$AN$44),$AN$44,IF(AND(AP71=$AN$45),$AN$45,IF(AND(AP71=$AN$46),$AN$46,IF(AND(AP71=$AN$47),$AN$47,IF(AND(AP71=$AN$48),$AN$48,IF(AND(AP71=$AN$49),$AN$49,IF(AND(AP71=$AN$50),$AN$50,IF(AND(AP71=$AN$51),$AN$51,IF(AND(AP71=$AN$52),$AN$52,IF(AND(AP71=$AN$53),$AN$53,IF(AND(AP71=$AN$54),$AN$54,IF(AND(AP71=$AN$55),$AN$55,IF(AND(AP71=$AN$56),$AN$56,IF(AND(AP71=$AN$57),$AN$57,IF(AND(AP71=$AN$58),$AN$58,IF(AND(AP71=$AN$59),$AN$59,IF(AND(AP71=$AN$60),$AN$60,IF(AND(AP71=$AN$61),$AN$61,IF(AND(AP71=$AN$62),$AN$62,IF(AND(AP71=$AN$63),$AN$63,IF(AND(AP71=$AN$64),$AN$64,IF(AND(AP71=$AN$65),$AN$65,IF(AND(AP71=$AN$66),$AN$66,IF(AND(AP71=$AN$67),$AN$67,IF(AND(AP71=$AN$68),$AN$68,IF(AND(AP71=$AN$69),$AN$69,IF(AND(AP71=$AN$70),$AN$70,IF(AND(AP71=$AN$71),$AN$71,"")))))))))))))))))))))))))))))))))))))))))))))))))))))))))))))))) ->  | BI71: 0 | BJ71: 0 | BO71: 2100
D72: =IFERROR(IF($C71="TOTAL","अक्षरें राशि :-",IF($C72="TOTAL",SUM($D$8:D71),IF(AU73="","",AU73))),"") ->  | E72: =IFERROR(IF($C72="TOTAL",SUM($E$8:E71),IF(AV73="","",AV73)),"") ->  | F72: =IFERROR(IF($C72="TOTAL",SUM($F$8:F71),IF(AW73="","",AW73)),"") ->  | H72: =IFERROR(IF($C72="TOTAL",SUM($H$8:H71),IF(AY73="","",AY73)),"") ->  | I72: =IFERROR(IF($C72="TOTAL",SUM($I$8:I71),IF(AZ73="","",AZ73)),"") ->  | J72: =IFERROR(IF($C72="TOTAL",SUM($J$8:J71),IF(BA73="","",BA73)),"") ->  | L72: =IFERROR(IF(C72="","",IF(D72="","",IF(H72="","",IF($C72="TOTAL",SUM($L$8:L71),SUM(D72-H72))))),"") ->  | M72: =IFERROR(IF(C72="","",IF(E72="","",IF(I72="","",IF($C72="TOTAL",SUM($M$8:M71),SUM(E72-I72))))),"") ->  | N72: =IFERROR(IF(C72="","",IF(F72="","",IF(J72="","",IF($C72="TOTAL",SUM($N$8:N71),SUM(F72-J72))))),"") ->  | P72: =IFERROR(IF(C72="","",IF($C72="TOTAL",SUM($P$8:P71),IF(AND(C72>$AL$1,$AC$3=$AL$2),BO73,IF($AO$18=$AO$20,SUM(BB73+BJ73),ROUND((D72+E72)*10%,0))))),"") ->  | Q72: =IFERROR(IF(C72="","",IF(H72="","",IF(I72="","",IF($C72="TOTAL",SUM($Q$8:Q71),IF(AND(C72>$AL$1,$AC$3=$AL$2),BO73,IF($AO$18=$AO$20,$AO$21,ROUND((H72+I72)*10%,0))))))),"") ->  | S72: =IFERROR(IF(C72="","",IF($AO$16=$AO$17,0,IF($C72="TOTAL",SUM($S$8:S71),IF($AO$19=$AO$20,$AO$25,0)))),"") ->  | T72: =IFERROR(IF(C72="","",IF($AO$16=$AO$17,0,IF($C72="TOTAL",SUM($T$8:T71),IF($AO$19=$AO$20,$AO$24,0)))),"") ->  | V72: =IF(C72="","",IF($C72="TOTAL",SUM($V$8:V71),IF(AND($AO$2=$AO$20,C72=$AO$1),ROUND(D72/31*$AP$2,0),IF(C72=$AM$6,ROUND((G72)*1/30,0),IF(C72=$AN$6,ROUND((G72)*1/31,0),""))))) ->  | W72: =IF(C72="","",IF($C72="TOTAL",SUM($W$8:W71),IF(AND($AO$2=$AO$20,C72=$AO$1),ROUND(H72/31*$AP$2,0),IF(C72=$AM$6,ROUND((K72)*1/30,0),IF(C72=$AN$6,ROUND((K72)*1/31,0),""))))) ->  | Y72: =IFERROR(IF(C72="","",IF(AND(BH73="",BO73=""),"",IF($C72="TOTAL",SUM($Y$8:Y71),BH73))),"") ->  | Z72: =IFERROR(IF(C72="","",IF($C72="TOTAL",SUM($Z$8:Z71),ROUND(O72*$AO$7%,0))),"") ->  | AA72: =IFERROR(IF(C72="","",IF($C72="TOTAL",SUM($AA$8:AA71),IF($AC$3=$AL$2,SUM(U72,X72,Y72,Z72),SUM(R72,U72,X72,Y72,Z72)))),"") ->  | AB72: =IFERROR(IF(C72="","",IF($C72="TOTAL",SUM($AB$8:AB71),SUM(O72-AA72))),"") ->  | AK72: 34 | AL72: 34 | AN72: 2022-04-01 | AP72: 2026-01-01 | AQ72: =IF(AND(AP72=""),"",IF(AND(AP72=$AN$9),$AN$9,IF(AND(AP72=$AN$10),$AN$10,IF(AND(AP72=$AN$11),$AN$11,IF(AND(AP72=$AN$12),$AN$12,IF(AND(AP72=$AN$13),$AN$13,IF(AND(AP72=$AN$14),$AN$14,IF(AND(AP72=$AN$15),$AN$15,IF(AND(AP72=$AN$16),$AN$16,IF(AND(AP72=$AN$17),$AN$17,IF(AND(AP72=$AN$18),$AN$18,IF(AND(AP72=$AN$19),$AN$19,IF(AND(AP72=$AN$20),$AN$20,IF(AND(AP72=$AN$21),$AN$21,IF(AND(AP72=$AN$22),$AN$22,IF(AND(AP72=$AN$23),$AN$23,IF(AND(AP72=$AN$24),$AN$24,IF(AND(AP72=$AN$25),$AN$25,IF(AND(AP72=$AN$26),$AN$26,IF(AND(AP72=$AN$27),$AN$27,IF(AND(AP72=$AN$28),$AN$28,IF(AND(AP72=$AN$29),$AN$29,IF(AND(AP72=$AN$30),$AN$30,IF(AND(AP72=$AN$31),$AN$31,IF(AND(AP72=$AN$32),$AN$32,IF(AND(AP72=$AN$33),$AN$33,IF(AND(AP72=$AN$34),$AN$34,IF(AND(AP72=$AN$35),$AN$35,IF(AND(AP72=$AN$36),$AN$36,IF(AND(AP72=$AN$37),$AN$37,IF(AND(AP72=$AN$38),$AN$38,IF(AND(AP72=$AN$39),$AN$39,IF(AND(AP72=$AN$40),$AN$40,IF(AND(AP72=$AN$41),$AN$41,IF(AND(AP72=$AN$42),$AN$42,IF(AND(AP72=$AN$43),$AN$43,IF(AND(AP72=$AN$44),$AN$44,IF(AND(AP72=$AN$45),$AN$45,IF(AND(AP72=$AN$46),$AN$46,IF(AND(AP72=$AN$47),$AN$47,IF(AND(AP72=$AN$48),$AN$48,IF(AND(AP72=$AN$49),$AN$49,IF(AND(AP72=$AN$50),$AN$50,IF(AND(AP72=$AN$51),$AN$51,IF(AND(AP72=$AN$52),$AN$52,IF(AND(AP72=$AN$53),$AN$53,IF(AND(AP72=$AN$54),$AN$54,IF(AND(AP72=$AN$55),$AN$55,IF(AND(AP72=$AN$56),$AN$56,IF(AND(AP72=$AN$57),$AN$57,IF(AND(AP72=$AN$58),$AN$58,IF(AND(AP72=$AN$59),$AN$59,IF(AND(AP72=$AN$60),$AN$60,IF(AND(AP72=$AN$61),$AN$61,IF(AND(AP72=$AN$62),$AN$62,IF(AND(AP72=$AN$63),$AN$63,IF(AND(AP72=$AN$64),$AN$64,IF(AND(AP72=$AN$65),$AN$65,IF(AND(AP72=$AN$66),$AN$66,IF(AND(AP72=$AN$67),$AN$67,IF(AND(AP72=$AN$68),$AN$68,IF(AND(AP72=$AN$69),$AN$69,IF(AND(AP72=$AN$70),$AN$70,IF(AND(AP72=$AN$71),$AN$71,"")))))))))))))))))))))))))))))))))))))))))))))))))))))))))))))))) ->  | AR72: =IF(AND(AP72=""),"",IF(AND(AP72=$AN$72),$AP$72,IF(AND(AP72=$AN$73),$AN$73,IF(AND(AP72=$AN$74),$AN$74,IF(AND(AP72=$AN$75),$AN$75,IF(AND(AP72=$AN$76),$AN$76,IF(AND(AP72=$AN$77),$AN$77,IF(AND(AP72=$AN$78),$AN$78,IF(AND(AP72=$AN$79),$AN$79,IF(AND(AP72=$AN$80),$AN$80,IF(AND(AP72=$AN$81),$AN$81,IF(AND(AP72=$AN$82),$AN$82,IF(AND(AP72=$AN$83),$AN$83,IF(AND(AP72=$AN$84),$AN$84,IF(AND(AP72=$AN$85),$AN$85,IF(AND(AP72=$AN$86),$AN$86,IF(AND(AP72=$AN$87),$AN$87,IF(AND(AP72=$AN$88),$AN$88,IF(AND(AP72=$AN$89),$AN$89,IF(AND(AP72=$AN$90),$AN$90,IF(AND(AP72=$AN$91),$AN$91,IF(AND(AP72=$AN$92),$AN$92,"")))))))))))))))))))))) ->  | BI72: 0 | BJ72: 0 | BO72: 2100
B73: =IFERROR(IF(A73="","",IF(A73=0,"",A73)),"") ->  | C73: =IFERROR(IF(AT74="","",AT74),"") ->  | D73: =IFERROR(IF($C72="TOTAL","अक्षरें राशि :-",IF($C73="TOTAL",SUM($D$8:D72),IF(AU74="","",AU74))),"") ->  | E73: =IFERROR(IF($C73="TOTAL",SUM($E$8:E72),IF(AV74="","",AV74)),"") ->  | F73: =IFERROR(IF($C73="TOTAL",SUM($F$8:F72),IF(AW74="","",AW74)),"") ->  | G73: =IF(C73="","",SUM(D73:F73)) ->  | H73: =IFERROR(IF($C73="TOTAL",SUM($H$8:H72),IF(AY74="","",AY74)),"") ->  | I73: =IFERROR(IF($C73="TOTAL",SUM($I$8:I72),IF(AZ74="","",AZ74)),"") ->  | J73: =IFERROR(IF($C73="TOTAL",SUM($J$8:J72),IF(BA74="","",BA74)),"") ->  | K73: =IF(C73="","",SUM(H73:J73)) ->  | L73: =IFERROR(IF(C73="","",IF(D73="","",IF(H73="","",IF($C73="TOTAL",SUM($L$8:L72),SUM(D73-H73))))),"") ->  | M73: =IFERROR(IF(C73="","",IF(E73="","",IF(I73="","",IF($C73="TOTAL",SUM($M$8:M72),SUM(E73-I73))))),"") ->  | N73: =IFERROR(IF(C73="","",IF(F73="","",IF(J73="","",IF($C73="TOTAL",SUM($N$8:N72),SUM(F73-J73))))),"") ->  | O73: =IFERROR(IF(C73="","",IF(G73="","",IF(K73="","",SUM(G73-K73)))),"") ->  | P73: =IFERROR(IF(C73="","",IF($C73="TOTAL",SUM($P$8:P72),IF(AND(C73>$AL$1,$AC$3=$AL$2),BO74,IF($AO$18=$AO$20,SUM(BB74+BJ74),ROUND((D73+E73)*10%,0))))),"") ->  | Q73: =IFERROR(IF(C73="","",IF(H73="","",IF(I73="","",IF($C73="TOTAL",SUM($Q$8:Q72),IF(AND(C73>$AL$1,$AC$3=$AL$2),BO74,IF($AO$18=$AO$20,$AO$21,ROUND((H73+I73)*10%,0))))))),"") ->  | R73: =IFERROR(IF(C73="","",SUM(P73-Q73)),"") ->  | S73: =IFERROR(IF(C73="","",IF($AO$16=$AO$17,0,IF($C73="TOTAL",SUM($S$8:S72),IF($AO$19=$AO$20,$AO$25,0)))),"") ->  | T73: =IFERROR(IF(C73="","",IF($AO$16=$AO$17,0,IF($C73="TOTAL",SUM($T$8:T72),IF($AO$19=$AO$20,$AO$24,0)))),"") ->  | U73: =IFERROR(IF(C73="","",SUM(S73-T73)),"") ->  | V73: =IF(C73="","",IF($C73="TOTAL",SUM($V$8:V72),IF(AND($AO$2=$AO$20,C73=$AO$1),ROUND(D73/31*$AP$2,0),IF(C73=$AM$6,ROUND((G73)*1/30,0),IF(C73=$AN$6,ROUND((G73)*1/31,0),""))))) ->  | W73: =IF(C73="","",IF($C73="TOTAL",SUM($W$8:W72),IF(AND($AO$2=$AO$20,C73=$AO$1),ROUND(H73/31*$AP$2,0),IF(C73=$AM$6,ROUND((K73)*1/30,0),IF(C73=$AN$6,ROUND((K73)*1/31,0),""))))) ->  | X73: =IFERROR(IF(C73="","",SUM(V73-W73)),"") ->  | Y73: =IFERROR(IF(C73="","",IF(AND(BH74="",BO74=""),"",IF($C73="TOTAL",SUM($Y$8:Y72),BH74))),"") ->  | Z73: =IFERROR(IF(C73="","",IF($C73="TOTAL",SUM($Z$8:Z72),ROUND(O73*$AO$7%,0))),"") ->  | AA73: =IFERROR(IF(C73="","",IF($C73="TOTAL",SUM($AA$8:AA72),IF($AC$3=$AL$2,SUM(U73,X73,Y73,Z73),SUM(R73,U73,X73,Y73,Z73)))),"") ->  | AB73: =IFERROR(IF(C73="","",IF($C73="TOTAL",SUM($AB$8:AB72),SUM(O73-AA73))),"") ->  | AK73: 34 | AL73: 34 | AN73: 2022-05-01 | AP73: 2026-02-01 | AR73: =IF(AND(AP73=""),"",IF(AND(AP73=$AN$72),$AP$72,IF(AND(AP73=$AN$73),$AN$73,IF(AND(AP73=$AN$74),$AN$74,IF(AND(AP73=$AN$75),$AN$75,IF(AND(AP73=$AN$76),$AN$76,IF(AND(AP73=$AN$77),$AN$77,IF(AND(AP73=$AN$78),$AN$78,IF(AND(AP73=$AN$79),$AN$79,IF(AND(AP73=$AN$80),$AN$80,IF(AND(AP73=$AN$81),$AN$81,IF(AND(AP73=$AN$82),$AN$82,IF(AND(AP73=$AN$83),$AN$83,IF(AND(AP73=$AN$84),$AN$84,IF(AND(AP73=$AN$85),$AN$85,IF(AND(AP73=$AN$86),$AN$86,IF(AND(AP73=$AN$87),$AN$87,IF(AND(AP73=$AN$88),$AN$88,IF(AND(AP73=$AN$89),$AN$89,IF(AND(AP73=$AN$90),$AN$90,IF(AND(AP73=$AN$91),$AN$91,IF(AND(AP73=$AN$92),$AN$92,"")))))))))))))))))))))) ->  | AT73: =IFERROR(IF(AS73="","",IF(DATE(YEAR(AS73),MONTH(AS73),DAY(AS73))=DATE(YEAR($AP$6),MONTH($AP$6)+1,DAY($AP$6)),"TOTAL",IF(AS73>$AP$6,"",AS73))),"") ->  | BI73: 0 | BJ73: 0 | BO73: 2100
D74: =IFERROR(IF($C73="TOTAL","अक्षरें राशि :-",IF($C74="TOTAL",SUM($D$8:D73),IF(AU75="","",AU75))),"") ->  | E74: =IFERROR(IF($C74="TOTAL",SUM($E$8:E73),IF(AV75="","",AV75)),"") ->  | F74: =IFERROR(IF($C74="TOTAL",SUM($F$8:F73),IF(AW75="","",AW75)),"") ->  | H74: =IFERROR(IF($C74="TOTAL",SUM($H$8:H73),IF(AY75="","",AY75)),"") ->  | I74: =IFERROR(IF($C74="TOTAL",SUM($I$8:I73),IF(AZ75="","",AZ75)),"") ->  | J74: =IFERROR(IF($C74="TOTAL",SUM($J$8:J73),IF(BA75="","",BA75)),"") ->  | L74: =IFERROR(IF(C74="","",IF(D74="","",IF(H74="","",IF($C74="TOTAL",SUM($L$8:L73),SUM(D74-H74))))),"") ->  | M74: =IFERROR(IF(C74="","",IF(E74="","",IF(I74="","",IF($C74="TOTAL",SUM($M$8:M73),SUM(E74-I74))))),"") ->  | N74: =IFERROR(IF(C74="","",IF(F74="","",IF(J74="","",IF($C74="TOTAL",SUM($N$8:N73),SUM(F74-J74))))),"") ->  | P74: =IFERROR(IF(C74="","",IF($C74="TOTAL",SUM($P$8:P73),IF(AND(C74>$AL$1,$AC$3=$AL$2),BO75,IF($AO$18=$AO$20,SUM(BB75+BJ75),ROUND((D74+E74)*10%,0))))),"") ->  | Q74: =IFERROR(IF(C74="","",IF(H74="","",IF(I74="","",IF($C74="TOTAL",SUM($Q$8:Q73),IF(AND(C74>$AL$1,$AC$3=$AL$2),BO75,IF($AO$18=$AO$20,$AO$21,ROUND((H74+I74)*10%,0))))))),"") ->  | S74: =IFERROR(IF(C74="","",IF($AO$16=$AO$17,0,IF($C74="TOTAL",SUM($S$8:S73),IF($AO$19=$AO$20,$AO$25,0)))),"") ->  | T74: =IFERROR(IF(C74="","",IF($AO$16=$AO$17,0,IF($C74="TOTAL",SUM($T$8:T73),IF($AO$19=$AO$20,$AO$24,0)))),"") ->  | V74: =IF(C74="","",IF($C74="TOTAL",SUM($V$8:V73),IF(AND($AO$2=$AO$20,C74=$AO$1),ROUND(D74/31*$AP$2,0),IF(C74=$AM$6,ROUND((G74)*1/30,0),IF(C74=$AN$6,ROUND((G74)*1/31,0),""))))) ->  | W74: =IF(C74="","",IF($C74="TOTAL",SUM($W$8:W73),IF(AND($AO$2=$AO$20,C74=$AO$1),ROUND(H74/31*$AP$2,0),IF(C74=$AM$6,ROUND((K74)*1/30,0),IF(C74=$AN$6,ROUND((K74)*1/31,0),""))))) ->  | Y74: =IFERROR(IF(C74="","",IF(AND(BH75="",BO75=""),"",IF($C74="TOTAL",SUM($Y$8:Y73),BH75))),"") ->  | Z74: =IFERROR(IF(C74="","",IF($C74="TOTAL",SUM($Z$8:Z73),ROUND(O74*$AO$7%,0))),"") ->  | AA74: =IFERROR(IF(C74="","",IF($C74="TOTAL",SUM($AA$8:AA73),IF($AC$3=$AL$2,SUM(U74,X74,Y74,Z74),SUM(R74,U74,X74,Y74,Z74)))),"") ->  | AB74: =IFERROR(IF(C74="","",IF($C74="TOTAL",SUM($AB$8:AB73),SUM(O74-AA74))),"") ->  | AK74: =IF(OR(AT74=$AN$9,AT74=$AN$10,AT74=$AN$11,AT74=$AN$12,AT74=$AN$13,AT74=$AN$14),4,IF(OR(AT74=$AN$15,AT74=$AN$16,AT74=$AN$17,AT74=$AN$18,AT74=$AN$19,AT74=$AN$20),5,IF(OR(AT74=$AN$21,AT74=$AN$22,AT74=$AN$23,AT74=$AN$24,AT74=$AN$25,AT74=$AN$26),7,IF(OR(AT74=$AN$27,AT74=$AN$28,AT74=$AN$29,AT74=$AN$30,AT74=$AN$31,AT74=$AN$32),9,IF(OR(AT74=$AN$33,AT74=$AN$34,AT74=$AN$35,AT74=$AN$36,AT74=$AN$37,AT74=$AN$38),12,IF(OR(AT74=$AN$39,AT74=$AN$40,AT74=$AN$41,AT74=$AN$42,AT74=$AN$43,AT74=$AN$44,AT74=$AN$45,AT74=$AN$46,AT74=$AN$47,AT74=$AN$48,AT74=$AN$49,AT74=$AN$50,AT74=$AN$51,AT74=$AN$52,AT74=$AN$53,AT74=$AN$54,AT74=$AN$55,AT74=$AN$56,AT74=$AN$57,AT74=$AN$58,AT74=$AN$59,AT74=$AN$60,AT74=$AN$61,AT74=$AN$62),17,IF(OR(AT74=$AN$63,AT74=$AN$64,AT74=$AN$65,AT74=$AN$66,AT74=$AN$67,AT74=$AN$68),31,34))))))) -> 34 | AL74: =IF(OR(AT74=$AN$9,AT74=$AN$10,AT74=$AN$11,AT74=$AN$12,AT74=$AN$13,AT74=$AN$14),4,IF(OR(AT74=$AN$15,AT74=$AN$16,AT74=$AN$17,AT74=$AN$18,AT74=$AN$19,AT74=$AN$20),5,IF(OR(AT74=$AN$21,AT74=$AN$22,AT74=$AN$23,AT74=$AN$24,AT74=$AN$25,AT74=$AN$26),7,IF(OR(AT74=$AN$27,AT74=$AN$28,AT74=$AN$29,AT74=$AN$30,AT74=$AN$31,AT74=$AN$32),9,IF(OR(AT74=$AN$33,AT74=$AN$34,AT74=$AN$35,AT74=$AN$36,AT74=$AN$37,AT74=$AN$38),12,IF(OR(AT74=$AN$39,AT74=$AN$40,AT74=$AN$41,AT74=$AN$42,AT74=$AN$43,AT74=$AN$44,AT74=$AN$45,AT74=$AN$46,AT74=$AN$47,AT74=$AN$48,AT74=$AN$49,AT74=$AN$50,AT74=$AN$51,AT74=$AN$52,AT74=$AN$53,AT74=$AN$54,AT74=$AN$55,AT74=$AN$56,AT74=$AN$57,AT74=$AN$58,AT74=$AN$59,AT74=$AN$60,AT74=$AN$61,AT74=$AN$62),17,IF(OR(AT74=$AN$63,AT74=$AN$64,AT74=$AN$65,AT74=$AN$66,AT74=$AN$67,AT74=$AN$68),31,34))))))) -> 34 | AN74: 2022-06-01 | AP74: 2026-03-01 | AQ74: =IF(AND(AP74=""),"",IF(AND(AP74=$AN$9),$AN$9,IF(AND(AP74=$AN$10),$AN$10,IF(AND(AP74=$AN$11),$AN$11,IF(AND(AP74=$AN$12),$AN$12,IF(AND(AP74=$AN$13),$AN$13,IF(AND(AP74=$AN$14),$AN$14,IF(AND(AP74=$AN$15),$AN$15,IF(AND(AP74=$AN$16),$AN$16,IF(AND(AP74=$AN$17),$AN$17,IF(AND(AP74=$AN$18),$AN$18,IF(AND(AP74=$AN$19),$AN$19,IF(AND(AP74=$AN$20),$AN$20,IF(AND(AP74=$AN$21),$AN$21,IF(AND(AP74=$AN$22),$AN$22,IF(AND(AP74=$AN$23),$AN$23,IF(AND(AP74=$AN$24),$AN$24,IF(AND(AP74=$AN$25),$AN$25,IF(AND(AP74=$AN$26),$AN$26,IF(AND(AP74=$AN$27),$AN$27,IF(AND(AP74=$AN$28),$AN$28,IF(AND(AP74=$AN$29),$AN$29,IF(AND(AP74=$AN$30),$AN$30,IF(AND(AP74=$AN$31),$AN$31,IF(AND(AP74=$AN$32),$AN$32,IF(AND(AP74=$AN$33),$AN$33,IF(AND(AP74=$AN$34),$AN$34,IF(AND(AP74=$AN$35),$AN$35,IF(AND(AP74=$AN$36),$AN$36,IF(AND(AP74=$AN$37),$AN$37,IF(AND(AP74=$AN$38),$AN$38,IF(AND(AP74=$AN$39),$AN$39,IF(AND(AP74=$AN$40),$AN$40,IF(AND(AP74=$AN$41),$AN$41,IF(AND(AP74=$AN$42),$AN$42,IF(AND(AP74=$AN$43),$AN$43,IF(AND(AP74=$AN$44),$AN$44,IF(AND(AP74=$AN$45),$AN$45,IF(AND(AP74=$AN$46),$AN$46,IF(AND(AP74=$AN$47),$AN$47,IF(AND(AP74=$AN$48),$AN$48,IF(AND(AP74=$AN$49),$AN$49,IF(AND(AP74=$AN$50),$AN$50,IF(AND(AP74=$AN$51),$AN$51,IF(AND(AP74=$AN$52),$AN$52,IF(AND(AP74=$AN$53),$AN$53,IF(AND(AP74=$AN$54),$AN$54,IF(AND(AP74=$AN$55),$AN$55,IF(AND(AP74=$AN$56),$AN$56,IF(AND(AP74=$AN$57),$AN$57,IF(AND(AP74=$AN$58),$AN$58,IF(AND(AP74=$AN$59),$AN$59,IF(AND(AP74=$AN$60),$AN$60,IF(AND(AP74=$AN$61),$AN$61,IF(AND(AP74=$AN$62),$AN$62,IF(AND(AP74=$AN$63),$AN$63,IF(AND(AP74=$AN$64),$AN$64,IF(AND(AP74=$AN$65),$AN$65,IF(AND(AP74=$AN$66),$AN$66,IF(AND(AP74=$AN$67),$AN$67,IF(AND(AP74=$AN$68),$AN$68,IF(AND(AP74=$AN$69),$AN$69,IF(AND(AP74=$AN$70),$AN$70,IF(AND(AP74=$AN$71),$AN$71,"")))))))))))))))))))))))))))))))))))))))))))))))))))))))))))))))) ->  | AS74: =IFERROR(IF(AND(AQ74="",AR74=""),"",IF(AQ74="",AR74,AQ74)),"") ->  | AT74: =IFERROR(IF(AS74="","",IF(DATE(YEAR(AS74),MONTH(AS74),DAY(AS74))=DATE(YEAR($AP$6),MONTH($AP$6)+1,DAY($AP$6)),"TOTAL",IF(AS74>$AP$6,"",AS74))),"") ->  | AZ74: =IF(AT74="","",IF(AT74="TOTAL","",IF(AY74="","",IF($AO$16=$AO$17,0,ROUND(AY74*AL74%,0))))) ->  | BB74: =IF(AT74="","",IF(AT74="TOTAL","",IF(AY74="","",IF($AO$16=$AO$17,0,IF(OR(C73=$AM$16,C73=$AM$17,C73=$AM$18,C73=$AM$19,C73=$AM$20,C73=$AM$21,C73=$AM$22,C73=$AM$23,C73=$AM$24),SUM(BE74+BF74),BF74))))) ->  | BG74: =IF(OR(AT74=$AN$63,AT74=$AN$64,AT74=$AN$65),"YES","") ->  | BH74: =IF(BG74="","",IF($AO$16=$AO$17,ROUND((D73)*3%,0),IF(OR(AT74=$AN$63,AT74=$AN$64,AT74=$AN$65),SUM(ROUND((D73-H73)*3%,0)),IF(OR(AT74=$AN$69,AT74=$AN$70,AT74=$AN$71),SUM(ROUND((D73-H73)*3%,0)),"")))) ->  | BI74: 0 | BJ74: 0 | BO74: =IF(AND(AT74>$AL$1,$AC$3=$AL$2),$AS$1,"") -> 2100
D75: =IFERROR(IF($C74="TOTAL","अक्षरें राशि :-",IF($C75="TOTAL",SUM($D$8:D74),IF(AU76="","",AU76))),"") ->  | E75: =IFERROR(IF($C75="TOTAL",SUM($E$8:E74),IF(AV76="","",AV76)),"") ->  | F75: =IFERROR(IF($C75="TOTAL",SUM($F$8:F74),IF(AW76="","",AW76)),"") ->  | H75: =IFERROR(IF($C75="TOTAL",SUM($H$8:H74),IF(AY76="","",AY76)),"") ->  | I75: =IFERROR(IF($C75="TOTAL",SUM($I$8:I74),IF(AZ76="","",AZ76)),"") ->  | J75: =IFERROR(IF($C75="TOTAL",SUM($J$8:J74),IF(BA76="","",BA76)),"") ->  | L75: =IFERROR(IF(C75="","",IF(D75="","",IF(H75="","",IF($C75="TOTAL",SUM($L$8:L74),SUM(D75-H75))))),"") ->  | M75: =IFERROR(IF(C75="","",IF(E75="","",IF(I75="","",IF($C75="TOTAL",SUM($M$8:M74),SUM(E75-I75))))),"") ->  | N75: =IFERROR(IF(C75="","",IF(F75="","",IF(J75="","",IF($C75="TOTAL",SUM($N$8:N74),SUM(F75-J75))))),"") ->  | P75: =IFERROR(IF(C75="","",IF($C75="TOTAL",SUM($P$8:P74),IF(AND(C75>$AL$1,$AC$3=$AL$2),BO76,IF($AO$18=$AO$20,SUM(BB76+BJ76),ROUND((D75+E75)*10%,0))))),"") ->  | Q75: =IFERROR(IF(C75="","",IF(H75="","",IF(I75="","",IF($C75="TOTAL",SUM($Q$8:Q74),IF(AND(C75>$AL$1,$AC$3=$AL$2),BO76,IF($AO$18=$AO$20,$AO$21,ROUND((H75+I75)*10%,0))))))),"") ->  | S75: =IFERROR(IF(C75="","",IF($AO$16=$AO$17,0,IF($C75="TOTAL",SUM($S$8:S74),IF($AO$19=$AO$20,$AO$25,0)))),"") ->  | T75: =IFERROR(IF(C75="","",IF($AO$16=$AO$17,0,IF($C75="TOTAL",SUM($T$8:T74),IF($AO$19=$AO$20,$AO$24,0)))),"") ->  | V75: =IF(C75="","",IF($C75="TOTAL",SUM($V$8:V74),IF(AND($AO$2=$AO$20,C75=$AO$1),ROUND(D75/31*$AP$2,0),IF(C75=$AM$6,ROUND((G75)*1/30,0),IF(C75=$AN$6,ROUND((G75)*1/31,0),""))))) ->  | W75: =IF(C75="","",IF($C75="TOTAL",SUM($W$8:W74),IF(AND($AO$2=$AO$20,C75=$AO$1),ROUND(H75/31*$AP$2,0),IF(C75=$AM$6,ROUND((K75)*1/30,0),IF(C75=$AN$6,ROUND((K75)*1/31,0),""))))) ->  | Y75: =IFERROR(IF(C75="","",IF(AND(BH76="",BO76=""),"",IF($C75="TOTAL",SUM($Y$8:Y74),BH76))),"") ->  | Z75: =IFERROR(IF(C75="","",IF($C75="TOTAL",SUM($Z$8:Z74),ROUND(O75*$AO$7%,0))),"") ->  | AA75: =IFERROR(IF(C75="","",IF($C75="TOTAL",SUM($AA$8:AA74),IF($AC$3=$AL$2,SUM(U75,X75,Y75,Z75),SUM(R75,U75,X75,Y75,Z75)))),"") ->  | AB75: =IFERROR(IF(C75="","",IF($C75="TOTAL",SUM($AB$8:AB74),SUM(O75-AA75))),"") ->  | AK75: 34 | AL75: 34 | AN75: 2022-07-01 | AP75: 2026-04-01 | AT75: =IFERROR(IF(AS75="","",IF(DATE(YEAR(AS75),MONTH(AS75),DAY(AS75))=DATE(YEAR($AP$6),MONTH($AP$6)+1,DAY($AP$6)),"TOTAL",IF(AS75>$AP$6,"",AS75))),"") ->  | BI75: 0 | BJ75: 0 | BO75: 2100
A76: =IF(C76="TOTAL","",IF(B75="","",IF(LEN(C76)>=2,B75+1,0))) ->  | D76: =IFERROR(IF($C75="TOTAL","अक्षरें राशि :-",IF($C76="TOTAL",SUM($D$8:D75),IF(AU77="","",AU77))),"") ->  | E76: =IFERROR(IF($C76="TOTAL",SUM($E$8:E75),IF(AV77="","",AV77)),"") ->  | F76: =IFERROR(IF($C76="TOTAL",SUM($F$8:F75),IF(AW77="","",AW77)),"") ->  | H76: =IFERROR(IF($C76="TOTAL",SUM($H$8:H75),IF(AY77="","",AY77)),"") ->  | I76: =IFERROR(IF($C76="TOTAL",SUM($I$8:I75),IF(AZ77="","",AZ77)),"") ->  | J76: =IFERROR(IF($C76="TOTAL",SUM($J$8:J75),IF(BA77="","",BA77)),"") ->  | L76: =IFERROR(IF(C76="","",IF(D76="","",IF(H76="","",IF($C76="TOTAL",SUM($L$8:L75),SUM(D76-H76))))),"") ->  | M76: =IFERROR(IF(C76="","",IF(E76="","",IF(I76="","",IF($C76="TOTAL",SUM($M$8:M75),SUM(E76-I76))))),"") ->  | N76: =IFERROR(IF(C76="","",IF(F76="","",IF(J76="","",IF($C76="TOTAL",SUM($N$8:N75),SUM(F76-J76))))),"") ->  | P76: =IFERROR(IF(C76="","",IF($C76="TOTAL",SUM($P$8:P75),IF(AND(C76>$AL$1,$AC$3=$AL$2),BO77,IF($AO$18=$AO$20,SUM(BB77+BJ77),ROUND((D76+E76)*10%,0))))),"") ->  | Q76: =IFERROR(IF(C76="","",IF(H76="","",IF(I76="","",IF($C76="TOTAL",SUM($Q$8:Q75),IF(AND(C76>$AL$1,$AC$3=$AL$2),BO77,IF($AO$18=$AO$20,$AO$21,ROUND((H76+I76)*10%,0))))))),"") ->  | S76: =IFERROR(IF(C76="","",IF($AO$16=$AO$17,0,IF($C76="TOTAL",SUM($S$8:S75),IF($AO$19=$AO$20,$AO$25,0)))),"") ->  | T76: =IFERROR(IF(C76="","",IF($AO$16=$AO$17,0,IF($C76="TOTAL",SUM($T$8:T75),IF($AO$19=$AO$20,$AO$24,0)))),"") ->  | V76: =IF(C76="","",IF($C76="TOTAL",SUM($V$8:V75),IF(AND($AO$2=$AO$20,C76=$AO$1),ROUND(D76/31*$AP$2,0),IF(C76=$AM$6,ROUND((G76)*1/30,0),IF(C76=$AN$6,ROUND((G76)*1/31,0),""))))) ->  | W76: =IF(C76="","",IF($C76="TOTAL",SUM($W$8:W75),IF(AND($AO$2=$AO$20,C76=$AO$1),ROUND(H76/31*$AP$2,0),IF(C76=$AM$6,ROUND((K76)*1/30,0),IF(C76=$AN$6,ROUND((K76)*1/31,0),""))))) ->  | Y76: =IFERROR(IF(C76="","",IF(AND(BH77="",BO77=""),"",IF($C76="TOTAL",SUM($Y$8:Y75),BH77))),"") ->  | Z76: =IFERROR(IF(C76="","",IF($C76="TOTAL",SUM($Z$8:Z75),ROUND(O76*$AO$7%,0))),"") ->  | AA76: =IFERROR(IF(C76="","",IF($C76="TOTAL",SUM($AA$8:AA75),IF($AC$3=$AL$2,SUM(U76,X76,Y76,Z76),SUM(R76,U76,X76,Y76,Z76)))),"") ->  | AB76: =IFERROR(IF(C76="","",IF($C76="TOTAL",SUM($AB$8:AB75),SUM(O76-AA76))),"") ->  | AK76: 34 | AL76: 34 | AN76: 2022-08-01 | AP76: 2026-05-01 | AU76: =IFERROR(IF(AT76="","",IF(AND($AO$20=$AO$28,$AO$30=AT76),$AO$29,IF(OR(AT76=$AW$2,AT76=$AW$3,AT76=$AW$4,AT76=$AW$5,AT76=$AW$6,AT76=$AW$7,AT76=$AX$2),MROUND(AU75*1.03,100),AU75))),"") ->  | AW76: =IF(AT76="","",IF(AT76="TOTAL","",IF(AT76>=$AV$7,ROUND(AU76*$AU$7%,0),ROUND(AU76*$AQ$7%,0)))) ->  | AY76: =IFERROR(IF(AT76="","",IF(AT76="TOTAL","",IF($AO$16=$AO$17,$AO$10,IF(OR(AT76=$AW$2,AT76=$AW$3,AT76=$AW$4,AT76=$AW$5,AT76=$AW$6,AT76=$AW$7,AT76=$AX$2),MROUND(AY75*1.03,100),AY75)))),"") ->  | BA76: =IF(AT76="","",IF(AT76="TOTAL","",IF(AY76="","",IF($AO$16=$AO$17,0,IF(AT76>=$AV$7,ROUND(AY76*$AU$7%,0),ROUND(AY76*$AQ$7%,0)))))) ->  | BI76: 0 | BJ76: 0 | BO76: 2100
D77: =IFERROR(IF($C76="TOTAL","अक्षरें राशि :-",IF($C77="TOTAL",SUM($D$8:D76),IF(AU78="","",AU78))),"") ->  | E77: =IFERROR(IF($C77="TOTAL",SUM($E$8:E76),IF(AV78="","",AV78)),"") ->  | F77: =IFERROR(IF($C77="TOTAL",SUM($F$8:F76),IF(AW78="","",AW78)),"") ->  | H77: =IFERROR(IF($C77="TOTAL",SUM($H$8:H76),IF(AY78="","",AY78)),"") ->  | I77: =IFERROR(IF($C77="TOTAL",SUM($I$8:I76),IF(AZ78="","",AZ78)),"") ->  | J77: =IFERROR(IF($C77="TOTAL",SUM($J$8:J76),IF(BA78="","",BA78)),"") ->  | L77: =IFERROR(IF(C77="","",IF(D77="","",IF(H77="","",IF($C77="TOTAL",SUM($L$8:L76),SUM(D77-H77))))),"") ->  | M77: =IFERROR(IF(C77="","",IF(E77="","",IF(I77="","",IF($C77="TOTAL",SUM($M$8:M76),SUM(E77-I77))))),"") ->  | N77: =IFERROR(IF(C77="","",IF(F77="","",IF(J77="","",IF($C77="TOTAL",SUM($N$8:N76),SUM(F77-J77))))),"") ->  | P77: =IFERROR(IF(C77="","",IF($C77="TOTAL",SUM($P$8:P76),IF(AND(C77>$AL$1,$AC$3=$AL$2),BO78,IF($AO$18=$AO$20,SUM(BB78+BJ78),ROUND((D77+E77)*10%,0))))),"") ->  | Q77: =IFERROR(IF(C77="","",IF(H77="","",IF(I77="","",IF($C77="TOTAL",SUM($Q$8:Q76),IF(AND(C77>$AL$1,$AC$3=$AL$2),BO78,IF($AO$18=$AO$20,$AO$21,ROUND((H77+I77)*10%,0))))))),"") ->  | S77: =IFERROR(IF(C77="","",IF($AO$16=$AO$17,0,IF($C77="TOTAL",SUM($S$8:S76),IF($AO$19=$AO$20,$AO$25,0)))),"") ->  | T77: =IFERROR(IF(C77="","",IF($AO$16=$AO$17,0,IF($C77="TOTAL",SUM($T$8:T76),IF($AO$19=$AO$20,$AO$24,0)))),"") ->  | V77: =IF(C77="","",IF($C77="TOTAL",SUM($V$8:V76),IF(AND($AO$2=$AO$20,C77=$AO$1),ROUND(D77/31*$AP$2,0),IF(C77=$AM$6,ROUND((G77)*1/30,0),IF(C77=$AN$6,ROUND((G77)*1/31,0),""))))) ->  | W77: =IF(C77="","",IF($C77="TOTAL",SUM($W$8:W76),IF(AND($AO$2=$AO$20,C77=$AO$1),ROUND(H77/31*$AP$2,0),IF(C77=$AM$6,ROUND((K77)*1/30,0),IF(C77=$AN$6,ROUND((K77)*1/31,0),""))))) ->  | Y77: =IFERROR(IF(C77="","",IF(AND(BH78="",BO78=""),"",IF($C77="TOTAL",SUM($Y$8:Y76),BH78))),"") ->  | Z77: =IFERROR(IF(C77="","",IF($C77="TOTAL",SUM($Z$8:Z76),ROUND(O77*$AO$7%,0))),"") ->  | AA77: =IFERROR(IF(C77="","",IF($C77="TOTAL",SUM($AA$8:AA76),IF($AC$3=$AL$2,SUM(U77,X77,Y77,Z77),SUM(R77,U77,X77,Y77,Z77)))),"") ->  | AB77: =IFERROR(IF(C77="","",IF($C77="TOTAL",SUM($AB$8:AB76),SUM(O77-AA77))),"") ->  | AK77: 34 | AL77: 34 | AN77: 2022-09-01 | AP77: 2026-06-01 | BE77: =IF(AT77="","",IF(AT77="TOTAL","",IF(AY77="","",SUM(O76)-SUM((BF77-$AO$21)+SUM(U76,X76,Z76))))) ->  | BF77: =IF(AT76="","",IF(AT76="TOTAL","",IF(AND($AO$20=$AO$36,C77=$AO$37),$AO$38,BF76))) ->  | BI77: =IFERROR(IF(AND($AO$16=$AO$17,BG77="YES"),ROUND(ROUND(D76*3%,0)*10%,0),IF(AND($AO$16=$AO$15,BG77="YES",$AM$7="NO"),ROUND(ROUND((L76+H76)*3%,0)*10%,0),IF(AND($AO$16=$AO$15,BG77="YES",$AM$7="YES"),ROUND(ROUND((L76+M76)*3%,0)*10%,0),0))),"") -> 0 | BJ77: =IF(AND($AO$16=$AO$17,BG77="YES"),ROUND(D76*3%,0),IF(AND($AO$16=$AO$15,BG77="YES",$AM$7="NO"),ROUND((L76+H76)*3%,0),IF(AND($AO$16=$AO$15,BG77="YES",$AM$7="YES"),ROUND((L76+M76)*3%,0),0))) -> 0 | BO77: 2100
D78: =IFERROR(IF($C77="TOTAL","अक्षरें राशि :-",IF($C78="TOTAL",SUM($D$8:D77),IF(AU79="","",AU79))),"") ->  | E78: =IFERROR(IF($C78="TOTAL",SUM($E$8:E77),IF(AV79="","",AV79)),"") ->  | F78: =IFERROR(IF($C78="TOTAL",SUM($F$8:F77),IF(AW79="","",AW79)),"") ->  | H78: =IFERROR(IF($C78="TOTAL",SUM($H$8:H77),IF(AY79="","",AY79)),"") ->  | I78: =IFERROR(IF($C78="TOTAL",SUM($I$8:I77),IF(AZ79="","",AZ79)),"") ->  | J78: =IFERROR(IF($C78="TOTAL",SUM($J$8:J77),IF(BA79="","",BA79)),"") ->  | L78: =IFERROR(IF(C78="","",IF(D78="","",IF(H78="","",IF($C78="TOTAL",SUM($L$8:L77),SUM(D78-H78))))),"") ->  | M78: =IFERROR(IF(C78="","",IF(E78="","",IF(I78="","",IF($C78="TOTAL",SUM($M$8:M77),SUM(E78-I78))))),"") ->  | N78: =IFERROR(IF(C78="","",IF(F78="","",IF(J78="","",IF($C78="TOTAL",SUM($N$8:N77),SUM(F78-J78))))),"") ->  | P78: =IFERROR(IF(C78="","",IF($C78="TOTAL",SUM($P$8:P77),IF(AND(C78>$AL$1,$AC$3=$AL$2),BO79,IF($AO$18=$AO$20,SUM(BB79+BJ79),ROUND((D78+E78)*10%,0))))),"") ->  | Q78: =IFERROR(IF(C78="","",IF(H78="","",IF(I78="","",IF($C78="TOTAL",SUM($Q$8:Q77),IF(AND(C78>$AL$1,$AC$3=$AL$2),BO79,IF($AO$18=$AO$20,$AO$21,ROUND((H78+I78)*10%,0))))))),"") ->  | S78: =IFERROR(IF(C78="","",IF($AO$16=$AO$17,0,IF($C78="TOTAL",SUM($S$8:S77),IF($AO$19=$AO$20,$AO$25,0)))),"") ->  | T78: =IFERROR(IF(C78="","",IF($AO$16=$AO$17,0,IF($C78="TOTAL",SUM($T$8:T77),IF($AO$19=$AO$20,$AO$24,0)))),"") ->  | V78: =IF(C78="","",IF($C78="TOTAL",SUM($V$8:V77),IF(AND($AO$2=$AO$20,C78=$AO$1),ROUND(D78/31*$AP$2,0),IF(C78=$AM$6,ROUND((G78)*1/30,0),IF(C78=$AN$6,ROUND((G78)*1/31,0),""))))) ->  | W78: =IF(C78="","",IF($C78="TOTAL",SUM($W$8:W77),IF(AND($AO$2=$AO$20,C78=$AO$1),ROUND(H78/31*$AP$2,0),IF(C78=$AM$6,ROUND((K78)*1/30,0),IF(C78=$AN$6,ROUND((K78)*1/31,0),""))))) ->  | Y78: =IFERROR(IF(C78="","",IF(AND(BH79="",BO79=""),"",IF($C78="TOTAL",SUM($Y$8:Y77),BH79))),"") ->  | Z78: =IFERROR(IF(C78="","",IF($C78="TOTAL",SUM($Z$8:Z77),ROUND(O78*$AO$7%,0))),"") ->  | AA78: =IFERROR(IF(C78="","",IF($C78="TOTAL",SUM($AA$8:AA77),IF($AC$3=$AL$2,SUM(U78,X78,Y78,Z78),SUM(R78,U78,X78,Y78,Z78)))),"") ->  | AB78: =IFERROR(IF(C78="","",IF($C78="TOTAL",SUM($AB$8:AB77),SUM(O78-AA78))),"") ->  | AK78: 34 | AL78: 34 | AN78: 2022-10-01 | AP78: 2026-07-01 | AV78: =IF(AT78="","",IF(AT78="TOTAL","",ROUND(AU78*AK78%,0))) ->  | BI78: 0 | BJ78: 0 | BO78: 2100
D79: =IFERROR(IF($C78="TOTAL","अक्षरें राशि :-",IF($C79="TOTAL",SUM($D$8:D78),IF(AU80="","",AU80))),"") ->  | E79: =IFERROR(IF($C79="TOTAL",SUM($E$8:E78),IF(AV80="","",AV80)),"") ->  | F79: =IFERROR(IF($C79="TOTAL",SUM($F$8:F78),IF(AW80="","",AW80)),"") ->  | H79: =IFERROR(IF($C79="TOTAL",SUM($H$8:H78),IF(AY80="","",AY80)),"") ->  | I79: =IFERROR(IF($C79="TOTAL",SUM($I$8:I78),IF(AZ80="","",AZ80)),"") ->  | J79: =IFERROR(IF($C79="TOTAL",SUM($J$8:J78),IF(BA80="","",BA80)),"") ->  | L79: =IFERROR(IF(C79="","",IF(D79="","",IF(H79="","",IF($C79="TOTAL",SUM($L$8:L78),SUM(D79-H79))))),"") ->  | M79: =IFERROR(IF(C79="","",IF(E79="","",IF(I79="","",IF($C79="TOTAL",SUM($M$8:M78),SUM(E79-I79))))),"") ->  | N79: =IFERROR(IF(C79="","",IF(F79="","",IF(J79="","",IF($C79="TOTAL",SUM($N$8:N78),SUM(F79-J79))))),"") ->  | P79: =IFERROR(IF(C79="","",IF($C79="TOTAL",SUM($P$8:P78),IF(AND(C79>$AL$1,$AC$3=$AL$2),BO80,IF($AO$18=$AO$20,SUM(BB80+BJ80),ROUND((D79+E79)*10%,0))))),"") ->  | Q79: =IFERROR(IF(C79="","",IF(H79="","",IF(I79="","",IF($C79="TOTAL",SUM($Q$8:Q78),IF(AND(C79>$AL$1,$AC$3=$AL$2),BO80,IF($AO$18=$AO$20,$AO$21,ROUND((H79+I79)*10%,0))))))),"") ->  | S79: =IFERROR(IF(C79="","",IF($AO$16=$AO$17,0,IF($C79="TOTAL",SUM($S$8:S78),IF($AO$19=$AO$20,$AO$25,0)))),"") ->  | T79: =IFERROR(IF(C79="","",IF($AO$16=$AO$17,0,IF($C79="TOTAL",SUM($T$8:T78),IF($AO$19=$AO$20,$AO$24,0)))),"") ->  | V79: =IF(C79="","",IF($C79="TOTAL",SUM($V$8:V78),IF(AND($AO$2=$AO$20,C79=$AO$1),ROUND(D79/31*$AP$2,0),IF(C79=$AM$6,ROUND((G79)*1/30,0),IF(C79=$AN$6,ROUND((G79)*1/31,0),""))))) ->  | W79: =IF(C79="","",IF($C79="TOTAL",SUM($W$8:W78),IF(AND($AO$2=$AO$20,C79=$AO$1),ROUND(H79/31*$AP$2,0),IF(C79=$AM$6,ROUND((K79)*1/30,0),IF(C79=$AN$6,ROUND((K79)*1/31,0),""))))) ->  | Y79: =IFERROR(IF(C79="","",IF(AND(BH80="",BO80=""),"",IF($C79="TOTAL",SUM($Y$8:Y78),BH80))),"") ->  | Z79: =IFERROR(IF(C79="","",IF($C79="TOTAL",SUM($Z$8:Z78),ROUND(O79*$AO$7%,0))),"") ->  | AA79: =IFERROR(IF(C79="","",IF($C79="TOTAL",SUM($AA$8:AA78),IF($AC$3=$AL$2,SUM(U79,X79,Y79,Z79),SUM(R79,U79,X79,Y79,Z79)))),"") ->  | AB79: =IFERROR(IF(C79="","",IF($C79="TOTAL",SUM($AB$8:AB78),SUM(O79-AA79))),"") ->  | AK79: 34 | AL79: 34 | AN79: 2022-11-01 | AP79: 2026-08-01 | BI79: 0 | BJ79: 0 | BO79: 2100
D80: =IFERROR(IF($C79="TOTAL","अक्षरें राशि :-",IF($C80="TOTAL",SUM($D$8:D79),IF(AU81="","",AU81))),"") ->  | E80: =IFERROR(IF($C80="TOTAL",SUM($E$8:E79),IF(AV81="","",AV81)),"") ->  | F80: =IFERROR(IF($C80="TOTAL",SUM($F$8:F79),IF(AW81="","",AW81)),"") ->  | H80: =IFERROR(IF($C80="TOTAL",SUM($H$8:H79),IF(AY81="","",AY81)),"") ->  | I80: =IFERROR(IF($C80="TOTAL",SUM($I$8:I79),IF(AZ81="","",AZ81)),"") ->  | J80: =IFERROR(IF($C80="TOTAL",SUM($J$8:J79),IF(BA81="","",BA81)),"") ->  | L80: =IFERROR(IF(C80="","",IF(D80="","",IF(H80="","",IF($C80="TOTAL",SUM($L$8:L79),SUM(D80-H80))))),"") ->  | M80: =IFERROR(IF(C80="","",IF(E80="","",IF(I80="","",IF($C80="TOTAL",SUM($M$8:M79),SUM(E80-I80))))),"") ->  | N80: =IFERROR(IF(C80="","",IF(F80="","",IF(J80="","",IF($C80="TOTAL",SUM($N$8:N79),SUM(F80-J80))))),"") ->  | P80: =IFERROR(IF(C80="","",IF($C80="TOTAL",SUM($P$8:P79),IF(AND(C80>$AL$1,$AC$3=$AL$2),BO81,IF($AO$18=$AO$20,SUM(BB81+BJ81),ROUND((D80+E80)*10%,0))))),"") ->  | Q80: =IFERROR(IF(C80="","",IF(H80="","",IF(I80="","",IF($C80="TOTAL",SUM($Q$8:Q79),IF(AND(C80>$AL$1,$AC$3=$AL$2),BO81,IF($AO$18=$AO$20,$AO$21,ROUND((H80+I80)*10%,0))))))),"") ->  | S80: =IFERROR(IF(C80="","",IF($AO$16=$AO$17,0,IF($C80="TOTAL",SUM($S$8:S79),IF($AO$19=$AO$20,$AO$25,0)))),"") ->  | T80: =IFERROR(IF(C80="","",IF($AO$16=$AO$17,0,IF($C80="TOTAL",SUM($T$8:T79),IF($AO$19=$AO$20,$AO$24,0)))),"") ->  | V80: =IF(C80="","",IF($C80="TOTAL",SUM($V$8:V79),IF(AND($AO$2=$AO$20,C80=$AO$1),ROUND(D80/31*$AP$2,0),IF(C80=$AM$6,ROUND((G80)*1/30,0),IF(C80=$AN$6,ROUND((G80)*1/31,0),""))))) ->  | W80: =IF(C80="","",IF($C80="TOTAL",SUM($W$8:W79),IF(AND($AO$2=$AO$20,C80=$AO$1),ROUND(H80/31*$AP$2,0),IF(C80=$AM$6,ROUND((K80)*1/30,0),IF(C80=$AN$6,ROUND((K80)*1/31,0),""))))) ->  | Y80: =IFERROR(IF(C80="","",IF(AND(BH81="",BO81=""),"",IF($C80="TOTAL",SUM($Y$8:Y79),BH81))),"") ->  | Z80: =IFERROR(IF(C80="","",IF($C80="TOTAL",SUM($Z$8:Z79),ROUND(O80*$AO$7%,0))),"") ->  | AA80: =IFERROR(IF(C80="","",IF($C80="TOTAL",SUM($AA$8:AA79),IF($AC$3=$AL$2,SUM(U80,X80,Y80,Z80),SUM(R80,U80,X80,Y80,Z80)))),"") ->  | AB80: =IFERROR(IF(C80="","",IF($C80="TOTAL",SUM($AB$8:AB79),SUM(O80-AA80))),"") ->  | AK80: 34 | AL80: 34 | AN80: 2022-12-01 | AP80: =IF(AND($AO$6>$AP$6),"",DATE(YEAR(AP79),MONTH(AP79)+1,DAY(AP79))) -> 2026-09-01 | BI80: 0 | BJ80: 0 | BO80: 2100
C81: =IFERROR(IF(AT82="","",AT82),"") ->  | D81: =IFERROR(IF($C80="TOTAL","अक्षरें राशि :-",IF($C81="TOTAL",SUM($D$8:D80),IF(AU82="","",AU82))),"") ->  | E81: =IFERROR(IF($C81="TOTAL",SUM($E$8:E80),IF(AV82="","",AV82)),"") ->  | F81: =IFERROR(IF($C81="TOTAL",SUM($F$8:F80),IF(AW82="","",AW82)),"") ->  | G81: =IF(C81="","",SUM(D81:F81)) ->  | H81: =IFERROR(IF($C81="TOTAL",SUM($H$8:H80),IF(AY82="","",AY82)),"") ->  | I81: =IFERROR(IF($C81="TOTAL",SUM($I$8:I80),IF(AZ82="","",AZ82)),"") ->  | J81: =IFERROR(IF($C81="TOTAL",SUM($J$8:J80),IF(BA82="","",BA82)),"") ->  | K81: =IF(C81="","",SUM(H81:J81)) ->  | L81: =IFERROR(IF(C81="","",IF(D81="","",IF(H81="","",IF($C81="TOTAL",SUM($L$8:L80),SUM(D81-H81))))),"") ->  | M81: =IFERROR(IF(C81="","",IF(E81="","",IF(I81="","",IF($C81="TOTAL",SUM($M$8:M80),SUM(E81-I81))))),"") ->  | N81: =IFERROR(IF(C81="","",IF(F81="","",IF(J81="","",IF($C81="TOTAL",SUM($N$8:N80),SUM(F81-J81))))),"") ->  | O81: =IFERROR(IF(C81="","",IF(G81="","",IF(K81="","",SUM(G81-K81)))),"") ->  | P81: =IFERROR(IF(C81="","",IF($C81="TOTAL",SUM($P$8:P80),IF(AND(C81>$AL$1,$AC$3=$AL$2),BO82,IF($AO$18=$AO$20,SUM(BB82+BJ82),ROUND((D81+E81)*10%,0))))),"") ->  | Q81: =IFERROR(IF(C81="","",IF(H81="","",IF(I81="","",IF($C81="TOTAL",SUM($Q$8:Q80),IF(AND(C81>$AL$1,$AC$3=$AL$2),BO82,IF($AO$18=$AO$20,$AO$21,ROUND((H81+I81)*10%,0))))))),"") ->  | R81: =IFERROR(IF(C81="","",SUM(P81-Q81)),"") ->  | S81: =IFERROR(IF(C81="","",IF($AO$16=$AO$17,0,IF($C81="TOTAL",SUM($S$8:S80),IF($AO$19=$AO$20,$AO$25,0)))),"") ->  | T81: =IFERROR(IF(C81="","",IF($AO$16=$AO$17,0,IF($C81="TOTAL",SUM($T$8:T80),IF($AO$19=$AO$20,$AO$24,0)))),"") ->  | U81: =IFERROR(IF(C81="","",SUM(S81-T81)),"") ->  | V81: =IF(C81="","",IF($C81="TOTAL",SUM($V$8:V80),IF(AND($AO$2=$AO$20,C81=$AO$1),ROUND(D81/31*$AP$2,0),IF(C81=$AM$6,ROUND((G81)*1/30,0),IF(C81=$AN$6,ROUND((G81)*1/31,0),""))))) ->  | W81: =IF(C81="","",IF($C81="TOTAL",SUM($W$8:W80),IF(AND($AO$2=$AO$20,C81=$AO$1),ROUND(H81/31*$AP$2,0),IF(C81=$AM$6,ROUND((K81)*1/30,0),IF(C81=$AN$6,ROUND((K81)*1/31,0),""))))) ->  | X81: =IFERROR(IF(C81="","",SUM(V81-W81)),"") ->  | Y81: =IFERROR(IF(C81="","",IF(AND(BH82="",BO82=""),"",IF($C81="TOTAL",SUM($Y$8:Y80),BH82))),"") ->  | Z81: =IFERROR(IF(C81="","",IF($C81="TOTAL",SUM($Z$8:Z80),ROUND(O81*$AO$7%,0))),"") ->  | AA81: =IFERROR(IF(C81="","",IF($C81="TOTAL",SUM($AA$8:AA80),IF($AC$3=$AL$2,SUM(U81,X81,Y81,Z81),SUM(R81,U81,X81,Y81,Z81)))),"") ->  | AB81: =IFERROR(IF(C81="","",IF($C81="TOTAL",SUM($AB$8:AB80),SUM(O81-AA81))),"") ->  | AK81: 34 | AL81: 34 | AN81: 2023-01-01 | AP81: 2026-10-01 | BI81: 0 | BJ81: 0 | BO81: 2100
D82: =IFERROR(IF($C81="TOTAL","अक्षरें राशि :-",IF($C82="TOTAL",SUM($D$8:D81),IF(AU83="","",AU83))),"") ->  | E82: =IFERROR(IF($C82="TOTAL",SUM($E$8:E81),IF(AV83="","",AV83)),"") ->  | F82: =IFERROR(IF($C82="TOTAL",SUM($F$8:F81),IF(AW83="","",AW83)),"") ->  | H82: =IFERROR(IF($C82="TOTAL",SUM($H$8:H81),IF(AY83="","",AY83)),"") ->  | I82: =IFERROR(IF($C82="TOTAL",SUM($I$8:I81),IF(AZ83="","",AZ83)),"") ->  | J82: =IFERROR(IF($C82="TOTAL",SUM($J$8:J81),IF(BA83="","",BA83)),"") ->  | L82: =IFERROR(IF(C82="","",IF(D82="","",IF(H82="","",IF($C82="TOTAL",SUM($L$8:L81),SUM(D82-H82))))),"") ->  | M82: =IFERROR(IF(C82="","",IF(E82="","",IF(I82="","",IF($C82="TOTAL",SUM($M$8:M81),SUM(E82-I82))))),"") ->  | N82: =IFERROR(IF(C82="","",IF(F82="","",IF(J82="","",IF($C82="TOTAL",SUM($N$8:N81),SUM(F82-J82))))),"") ->  | P82: =IFERROR(IF(C82="","",IF($C82="TOTAL",SUM($P$8:P81),IF(AND(C82>$AL$1,$AC$3=$AL$2),BO83,IF($AO$18=$AO$20,SUM(BB83+BJ83),ROUND((D82+E82)*10%,0))))),"") ->  | Q82: =IFERROR(IF(C82="","",IF(H82="","",IF(I82="","",IF($C82="TOTAL",SUM($Q$8:Q81),IF(AND(C82>$AL$1,$AC$3=$AL$2),BO83,IF($AO$18=$AO$20,$AO$21,ROUND((H82+I82)*10%,0))))))),"") ->  | S82: =IFERROR(IF(C82="","",IF($AO$16=$AO$17,0,IF($C82="TOTAL",SUM($S$8:S81),IF($AO$19=$AO$20,$AO$25,0)))),"") ->  | T82: =IFERROR(IF(C82="","",IF($AO$16=$AO$17,0,IF($C82="TOTAL",SUM($T$8:T81),IF($AO$19=$AO$20,$AO$24,0)))),"") ->  | V82: =IF(C82="","",IF($C82="TOTAL",SUM($V$8:V81),IF(AND($AO$2=$AO$20,C82=$AO$1),ROUND(D82/31*$AP$2,0),IF(C82=$AM$6,ROUND((G82)*1/30,0),IF(C82=$AN$6,ROUND((G82)*1/31,0),""))))) ->  | W82: =IF(C82="","",IF($C82="TOTAL",SUM($W$8:W81),IF(AND($AO$2=$AO$20,C82=$AO$1),ROUND(H82/31*$AP$2,0),IF(C82=$AM$6,ROUND((K82)*1/30,0),IF(C82=$AN$6,ROUND((K82)*1/31,0),""))))) ->  | Y82: =IFERROR(IF(C82="","",IF(AND(BH83="",BO83=""),"",IF($C82="TOTAL",SUM($Y$8:Y81),BH83))),"") ->  | Z82: =IFERROR(IF(C82="","",IF($C82="TOTAL",SUM($Z$8:Z81),ROUND(O82*$AO$7%,0))),"") ->  | AA82: =IFERROR(IF(C82="","",IF($C82="TOTAL",SUM($AA$8:AA81),IF($AC$3=$AL$2,SUM(U82,X82,Y82,Z82),SUM(R82,U82,X82,Y82,Z82)))),"") ->  | AB82: =IFERROR(IF(C82="","",IF($C82="TOTAL",SUM($AB$8:AB81),SUM(O82-AA82))),"") ->  | AK82: =IF(OR(AT82=$AN$9,AT82=$AN$10,AT82=$AN$11,AT82=$AN$12,AT82=$AN$13,AT82=$AN$14),4,IF(OR(AT82=$AN$15,AT82=$AN$16,AT82=$AN$17,AT82=$AN$18,AT82=$AN$19,AT82=$AN$20),5,IF(OR(AT82=$AN$21,AT82=$AN$22,AT82=$AN$23,AT82=$AN$24,AT82=$AN$25,AT82=$AN$26),7,IF(OR(AT82=$AN$27,AT82=$AN$28,AT82=$AN$29,AT82=$AN$30,AT82=$AN$31,AT82=$AN$32),9,IF(OR(AT82=$AN$33,AT82=$AN$34,AT82=$AN$35,AT82=$AN$36,AT82=$AN$37,AT82=$AN$38),12,IF(OR(AT82=$AN$39,AT82=$AN$40,AT82=$AN$41,AT82=$AN$42,AT82=$AN$43,AT82=$AN$44,AT82=$AN$45,AT82=$AN$46,AT82=$AN$47,AT82=$AN$48,AT82=$AN$49,AT82=$AN$50,AT82=$AN$51,AT82=$AN$52,AT82=$AN$53,AT82=$AN$54,AT82=$AN$55,AT82=$AN$56,AT82=$AN$57,AT82=$AN$58,AT82=$AN$59,AT82=$AN$60,AT82=$AN$61,AT82=$AN$62),17,IF(OR(AT82=$AN$63,AT82=$AN$64,AT82=$AN$65,AT82=$AN$66,AT82=$AN$67,AT82=$AN$68),31,34))))))) -> 34 | AL82: =IF(OR(AT82=$AN$9,AT82=$AN$10,AT82=$AN$11,AT82=$AN$12,AT82=$AN$13,AT82=$AN$14),4,IF(OR(AT82=$AN$15,AT82=$AN$16,AT82=$AN$17,AT82=$AN$18,AT82=$AN$19,AT82=$AN$20),5,IF(OR(AT82=$AN$21,AT82=$AN$22,AT82=$AN$23,AT82=$AN$24,AT82=$AN$25,AT82=$AN$26),7,IF(OR(AT82=$AN$27,AT82=$AN$28,AT82=$AN$29,AT82=$AN$30,AT82=$AN$31,AT82=$AN$32),9,IF(OR(AT82=$AN$33,AT82=$AN$34,AT82=$AN$35,AT82=$AN$36,AT82=$AN$37,AT82=$AN$38),12,IF(OR(AT82=$AN$39,AT82=$AN$40,AT82=$AN$41,AT82=$AN$42,AT82=$AN$43,AT82=$AN$44,AT82=$AN$45,AT82=$AN$46,AT82=$AN$47,AT82=$AN$48,AT82=$AN$49,AT82=$AN$50,AT82=$AN$51,AT82=$AN$52,AT82=$AN$53,AT82=$AN$54,AT82=$AN$55,AT82=$AN$56,AT82=$AN$57,AT82=$AN$58,AT82=$AN$59,AT82=$AN$60,AT82=$AN$61,AT82=$AN$62),17,IF(OR(AT82=$AN$63,AT82=$AN$64,AT82=$AN$65,AT82=$AN$66,AT82=$AN$67,AT82=$AN$68),31,34))))))) -> 34 | AN82: 2023-02-01 | AP82: 2026-11-01 | BI82: 0 | BJ82: 0 | BO82: 2100
D83: =IFERROR(IF($C82="TOTAL","अक्षरें राशि :-",IF($C83="TOTAL",SUM($D$8:D82),IF(AU84="","",AU84))),"") ->  | E83: =IFERROR(IF($C83="TOTAL",SUM($E$8:E82),IF(AV84="","",AV84)),"") ->  | F83: =IFERROR(IF($C83="TOTAL",SUM($F$8:F82),IF(AW84="","",AW84)),"") ->  | H83: =IFERROR(IF($C83="TOTAL",SUM($H$8:H82),IF(AY84="","",AY84)),"") ->  | I83: =IFERROR(IF($C83="TOTAL",SUM($I$8:I82),IF(AZ84="","",AZ84)),"") ->  | J83: =IFERROR(IF($C83="TOTAL",SUM($J$8:J82),IF(BA84="","",BA84)),"") ->  | L83: =IFERROR(IF(C83="","",IF(D83="","",IF(H83="","",IF($C83="TOTAL",SUM($L$8:L82),SUM(D83-H83))))),"") ->  | M83: =IFERROR(IF(C83="","",IF(E83="","",IF(I83="","",IF($C83="TOTAL",SUM($M$8:M82),SUM(E83-I83))))),"") ->  | N83: =IFERROR(IF(C83="","",IF(F83="","",IF(J83="","",IF($C83="TOTAL",SUM($N$8:N82),SUM(F83-J83))))),"") ->  | P83: =IFERROR(IF(C83="","",IF($C83="TOTAL",SUM($P$8:P82),IF(AND(C83>$AL$1,$AC$3=$AL$2),BO84,IF($AO$18=$AO$20,SUM(BB84+BJ84),ROUND((D83+E83)*10%,0))))),"") ->  | Q83: =IFERROR(IF(C83="","",IF(H83="","",IF(I83="","",IF($C83="TOTAL",SUM($Q$8:Q82),IF(AND(C83>$AL$1,$AC$3=$AL$2),BO84,IF($AO$18=$AO$20,$AO$21,ROUND((H83+I83)*10%,0))))))),"") ->  | S83: =IFERROR(IF(C83="","",IF($AO$16=$AO$17,0,IF($C83="TOTAL",SUM($S$8:S82),IF($AO$19=$AO$20,$AO$25,0)))),"") ->  | T83: =IFERROR(IF(C83="","",IF($AO$16=$AO$17,0,IF($C83="TOTAL",SUM($T$8:T82),IF($AO$19=$AO$20,$AO$24,0)))),"") ->  | V83: =IF(C83="","",IF($C83="TOTAL",SUM($V$8:V82),IF(AND($AO$2=$AO$20,C83=$AO$1),ROUND(D83/31*$AP$2,0),IF(C83=$AM$6,ROUND((G83)*1/30,0),IF(C83=$AN$6,ROUND((G83)*1/31,0),""))))) ->  | W83: =IF(C83="","",IF($C83="TOTAL",SUM($W$8:W82),IF(AND($AO$2=$AO$20,C83=$AO$1),ROUND(H83/31*$AP$2,0),IF(C83=$AM$6,ROUND((K83)*1/30,0),IF(C83=$AN$6,ROUND((K83)*1/31,0),""))))) ->  | Y83: =IFERROR(IF(C83="","",IF(AND(BH84="",BO84=""),"",IF($C83="TOTAL",SUM($Y$8:Y82),BH84))),"") ->  | Z83: =IFERROR(IF(C83="","",IF($C83="TOTAL",SUM($Z$8:Z82),ROUND(O83*$AO$7%,0))),"") ->  | AA83: =IFERROR(IF(C83="","",IF($C83="TOTAL",SUM($AA$8:AA82),IF($AC$3=$AL$2,SUM(U83,X83,Y83,Z83),SUM(R83,U83,X83,Y83,Z83)))),"") ->  | AB83: =IFERROR(IF(C83="","",IF($C83="TOTAL",SUM($AB$8:AB82),SUM(O83-AA83))),"") ->  | AK83: 34 | AL83: 34 | AN83: 2023-03-01 | AP83: 2026-12-01 | BI83: 0 | BJ83: 0 | BO83: 2100
A84: =IF(C84="TOTAL","",IF(B83="","",IF(LEN(C84)>=2,B83+1,0))) ->  | D84: =IFERROR(IF($C83="TOTAL","अक्षरें राशि :-",IF($C84="TOTAL",SUM($D$8:D83),IF(AU85="","",AU85))),"") ->  | E84: =IFERROR(IF($C84="TOTAL",SUM($E$8:E83),IF(AV85="","",AV85)),"") ->  | F84: =IFERROR(IF($C84="TOTAL",SUM($F$8:F83),IF(AW85="","",AW85)),"") ->  | H84: =IFERROR(IF($C84="TOTAL",SUM($H$8:H83),IF(AY85="","",AY85)),"") ->  | I84: =IFERROR(IF($C84="TOTAL",SUM($I$8:I83),IF(AZ85="","",AZ85)),"") ->  | J84: =IFERROR(IF($C84="TOTAL",SUM($J$8:J83),IF(BA85="","",BA85)),"") ->  | L84: =IFERROR(IF(C84="","",IF(D84="","",IF(H84="","",IF($C84="TOTAL",SUM($L$8:L83),SUM(D84-H84))))),"") ->  | M84: =IFERROR(IF(C84="","",IF(E84="","",IF(I84="","",IF($C84="TOTAL",SUM($M$8:M83),SUM(E84-I84))))),"") ->  | N84: =IFERROR(IF(C84="","",IF(F84="","",IF(J84="","",IF($C84="TOTAL",SUM($N$8:N83),SUM(F84-J84))))),"") ->  | P84: =IFERROR(IF(C84="","",IF($C84="TOTAL",SUM($P$8:P83),IF(AND(C84>$AL$1,$AC$3=$AL$2),BO85,IF($AO$18=$AO$20,SUM(BB85+BJ85),ROUND((D84+E84)*10%,0))))),"") ->  | Q84: =IFERROR(IF(C84="","",IF(H84="","",IF(I84="","",IF($C84="TOTAL",SUM($Q$8:Q83),IF(AND(C84>$AL$1,$AC$3=$AL$2),BO85,IF($AO$18=$AO$20,$AO$21,ROUND((H84+I84)*10%,0))))))),"") ->  | S84: =IFERROR(IF(C84="","",IF($AO$16=$AO$17,0,IF($C84="TOTAL",SUM($S$8:S83),IF($AO$19=$AO$20,$AO$25,0)))),"") ->  | T84: =IFERROR(IF(C84="","",IF($AO$16=$AO$17,0,IF($C84="TOTAL",SUM($T$8:T83),IF($AO$19=$AO$20,$AO$24,0)))),"") ->  | V84: =IF(C84="","",IF($C84="TOTAL",SUM($V$8:V83),IF(AND($AO$2=$AO$20,C84=$AO$1),ROUND(D84/31*$AP$2,0),IF(C84=$AM$6,ROUND((G84)*1/30,0),IF(C84=$AN$6,ROUND((G84)*1/31,0),""))))) ->  | W84: =IF(C84="","",IF($C84="TOTAL",SUM($W$8:W83),IF(AND($AO$2=$AO$20,C84=$AO$1),ROUND(H84/31*$AP$2,0),IF(C84=$AM$6,ROUND((K84)*1/30,0),IF(C84=$AN$6,ROUND((K84)*1/31,0),""))))) ->  | Y84: =IFERROR(IF(C84="","",IF(AND(BH85="",BO85=""),"",IF($C84="TOTAL",SUM($Y$8:Y83),BH85))),"") ->  | Z84: =IFERROR(IF(C84="","",IF($C84="TOTAL",SUM($Z$8:Z83),ROUND(O84*$AO$7%,0))),"") ->  | AA84: =IFERROR(IF(C84="","",IF($C84="TOTAL",SUM($AA$8:AA83),IF($AC$3=$AL$2,SUM(U84,X84,Y84,Z84),SUM(R84,U84,X84,Y84,Z84)))),"") ->  | AB84: =IFERROR(IF(C84="","",IF($C84="TOTAL",SUM($AB$8:AB83),SUM(O84-AA84))),"") ->  | AK84: 34 | AL84: 34 | AN84: 2023-04-01 | AP84: =IF(AND($AO$6>$AP$6),"",DATE(YEAR(AP83),MONTH(AP83)+1,DAY(AP83))) -> 2027-01-01 | AT84: =IFERROR(IF(AS84="","",IF(DATE(YEAR(AS84),MONTH(AS84),DAY(AS84))=DATE(YEAR($AP$6),MONTH($AP$6)+1,DAY($AP$6)),"TOTAL",IF(AS84>$AP$6,"",AS84))),"") ->  | BI84: 0 | BJ84: 0 | BO84: 2100
D85: =IFERROR(IF($C84="TOTAL","अक्षरें राशि :-",IF($C85="TOTAL",SUM($D$8:D84),IF(AU86="","",AU86))),"") ->  | E85: =IFERROR(IF($C85="TOTAL",SUM($E$8:E84),IF(AV86="","",AV86)),"") ->  | F85: =IFERROR(IF($C85="TOTAL",SUM($F$8:F84),IF(AW86="","",AW86)),"") ->  | H85: =IFERROR(IF($C85="TOTAL",SUM($H$8:H84),IF(AY86="","",AY86)),"") ->  | I85: =IFERROR(IF($C85="TOTAL",SUM($I$8:I84),IF(AZ86="","",AZ86)),"") ->  | J85: =IFERROR(IF($C85="TOTAL",SUM($J$8:J84),IF(BA86="","",BA86)),"") ->  | L85: =IFERROR(IF(C85="","",IF(D85="","",IF(H85="","",IF($C85="TOTAL",SUM($L$8:L84),SUM(D85-H85))))),"") ->  | M85: =IFERROR(IF(C85="","",IF(E85="","",IF(I85="","",IF($C85="TOTAL",SUM($M$8:M84),SUM(E85-I85))))),"") ->  | N85: =IFERROR(IF(C85="","",IF(F85="","",IF(J85="","",IF($C85="TOTAL",SUM($N$8:N84),SUM(F85-J85))))),"") ->  | P85: =IFERROR(IF(C85="","",IF($C85="TOTAL",SUM($P$8:P84),IF(AND(C85>$AL$1,$AC$3=$AL$2),BO86,IF($AO$18=$AO$20,SUM(BB86+BJ86),ROUND((D85+E85)*10%,0))))),"") ->  | Q85: =IFERROR(IF(C85="","",IF(H85="","",IF(I85="","",IF($C85="TOTAL",SUM($Q$8:Q84),IF(AND(C85>$AL$1,$AC$3=$AL$2),BO86,IF($AO$18=$AO$20,$AO$21,ROUND((H85+I85)*10%,0))))))),"") ->  | S85: =IFERROR(IF(C85="","",IF($AO$16=$AO$17,0,IF($C85="TOTAL",SUM($S$8:S84),IF($AO$19=$AO$20,$AO$25,0)))),"") ->  | T85: =IFERROR(IF(C85="","",IF($AO$16=$AO$17,0,IF($C85="TOTAL",SUM($T$8:T84),IF($AO$19=$AO$20,$AO$24,0)))),"") ->  | V85: =IF(C85="","",IF($C85="TOTAL",SUM($V$8:V84),IF(AND($AO$2=$AO$20,C85=$AO$1),ROUND(D85/31*$AP$2,0),IF(C85=$AM$6,ROUND((G85)*1/30,0),IF(C85=$AN$6,ROUND((G85)*1/31,0),""))))) ->  | W85: =IF(C85="","",IF($C85="TOTAL",SUM($W$8:W84),IF(AND($AO$2=$AO$20,C85=$AO$1),ROUND(H85/31*$AP$2,0),IF(C85=$AM$6,ROUND((K85)*1/30,0),IF(C85=$AN$6,ROUND((K85)*1/31,0),""))))) ->  | Y85: =IFERROR(IF(C85="","",IF(AND(BH86="",BO86=""),"",IF($C85="TOTAL",SUM($Y$8:Y84),BH86))),"") ->  | Z85: =IFERROR(IF(C85="","",IF($C85="TOTAL",SUM($Z$8:Z84),ROUND(O85*$AO$7%,0))),"") ->  | AA85: =IFERROR(IF(C85="","",IF($C85="TOTAL",SUM($AA$8:AA84),IF($AC$3=$AL$2,SUM(U85,X85,Y85,Z85),SUM(R85,U85,X85,Y85,Z85)))),"") ->  | AB85: =IFERROR(IF(C85="","",IF($C85="TOTAL",SUM($AB$8:AB84),SUM(O85-AA85))),"") ->  | AK85: 34 | AL85: 34 | AN85: 2023-05-01 | AP85: 2027-02-01 | AT85: =IFERROR(IF(AS85="","",IF(DATE(YEAR(AS85),MONTH(AS85),DAY(AS85))=DATE(YEAR($AP$6),MONTH($AP$6)+1,DAY($AP$6)),"TOTAL",IF(AS85>$AP$6,"",AS85))),"") ->  | BI85: 0 | BJ85: 0 | BO85: 2100
D86: =IFERROR(IF($C85="TOTAL","अक्षरें राशि :-",IF($C86="TOTAL",SUM($D$8:D85),IF(AU87="","",AU87))),"") ->  | E86: =IFERROR(IF($C86="TOTAL",SUM($E$8:E85),IF(AV87="","",AV87)),"") ->  | F86: =IFERROR(IF($C86="TOTAL",SUM($F$8:F85),IF(AW87="","",AW87)),"") ->  | H86: =IFERROR(IF($C86="TOTAL",SUM($H$8:H85),IF(AY87="","",AY87)),"") ->  | I86: =IFERROR(IF($C86="TOTAL",SUM($I$8:I85),IF(AZ87="","",AZ87)),"") ->  | J86: =IFERROR(IF($C86="TOTAL",SUM($J$8:J85),IF(BA87="","",BA87)),"") ->  | L86: =IFERROR(IF(C86="","",IF(D86="","",IF(H86="","",IF($C86="TOTAL",SUM($L$8:L85),SUM(D86-H86))))),"") ->  | M86: =IFERROR(IF(C86="","",IF(E86="","",IF(I86="","",IF($C86="TOTAL",SUM($M$8:M85),SUM(E86-I86))))),"") ->  | N86: =IFERROR(IF(C86="","",IF(F86="","",IF(J86="","",IF($C86="TOTAL",SUM($N$8:N85),SUM(F86-J86))))),"") ->  | P86: =IFERROR(IF(C86="","",IF($C86="TOTAL",SUM($P$8:P85),IF(AND(C86>$AL$1,$AC$3=$AL$2),BO87,IF($AO$18=$AO$20,SUM(BB87+BJ87),ROUND((D86+E86)*10%,0))))),"") ->  | Q86: =IFERROR(IF(C86="","",IF(H86="","",IF(I86="","",IF($C86="TOTAL",SUM($Q$8:Q85),IF(AND(C86>$AL$1,$AC$3=$AL$2),BO87,IF($AO$18=$AO$20,$AO$21,ROUND((H86+I86)*10%,0))))))),"") ->  | S86: =IFERROR(IF(C86="","",IF($AO$16=$AO$17,0,IF($C86="TOTAL",SUM($S$8:S85),IF($AO$19=$AO$20,$AO$25,0)))),"") ->  | T86: =IFERROR(IF(C86="","",IF($AO$16=$AO$17,0,IF($C86="TOTAL",SUM($T$8:T85),IF($AO$19=$AO$20,$AO$24,0)))),"") ->  | V86: =IF(C86="","",IF($C86="TOTAL",SUM($V$8:V85),IF(AND($AO$2=$AO$20,C86=$AO$1),ROUND(D86/31*$AP$2,0),IF(C86=$AM$6,ROUND((G86)*1/30,0),IF(C86=$AN$6,ROUND((G86)*1/31,0),""))))) ->  | W86: =IF(C86="","",IF($C86="TOTAL",SUM($W$8:W85),IF(AND($AO$2=$AO$20,C86=$AO$1),ROUND(H86/31*$AP$2,0),IF(C86=$AM$6,ROUND((K86)*1/30,0),IF(C86=$AN$6,ROUND((K86)*1/31,0),""))))) ->  | Y86: =IFERROR(IF(C86="","",IF(AND(BH87="",BO87=""),"",IF($C86="TOTAL",SUM($Y$8:Y85),BH87))),"") ->  | Z86: =IFERROR(IF(C86="","",IF($C86="TOTAL",SUM($Z$8:Z85),ROUND(O86*$AO$7%,0))),"") ->  | AA86: =IFERROR(IF(C86="","",IF($C86="TOTAL",SUM($AA$8:AA85),IF($AC$3=$AL$2,SUM(U86,X86,Y86,Z86),SUM(R86,U86,X86,Y86,Z86)))),"") ->  | AB86: =IFERROR(IF(C86="","",IF($C86="TOTAL",SUM($AB$8:AB85),SUM(O86-AA86))),"") ->  | AK86: 34 | AL86: 34 | AN86: 2023-06-01 | AP86: 2027-03-01 | AZ86: =IF(AT86="","",IF(AT86="TOTAL","",IF(AY86="","",IF($AO$16=$AO$17,0,ROUND(AY86*AL86%,0))))) ->  | BI86: 0 | BJ86: 0 | BO86: 2100
D87: =IFERROR(IF($C86="TOTAL","अक्षरें राशि :-",IF($C87="TOTAL",SUM($D$8:D86),IF(AU88="","",AU88))),"") ->  | E87: =IFERROR(IF($C87="TOTAL",SUM($E$8:E86),IF(AV88="","",AV88)),"") ->  | F87: =IFERROR(IF($C87="TOTAL",SUM($F$8:F86),IF(AW88="","",AW88)),"") ->  | H87: =IFERROR(IF($C87="TOTAL",SUM($H$8:H86),IF(AY88="","",AY88)),"") ->  | I87: =IFERROR(IF($C87="TOTAL",SUM($I$8:I86),IF(AZ88="","",AZ88)),"") ->  | J87: =IFERROR(IF($C87="TOTAL",SUM($J$8:J86),IF(BA88="","",BA88)),"") ->  | L87: =IFERROR(IF(C87="","",IF(D87="","",IF(H87="","",IF($C87="TOTAL",SUM($L$8:L86),SUM(D87-H87))))),"") ->  | M87: =IFERROR(IF(C87="","",IF(E87="","",IF(I87="","",IF($C87="TOTAL",SUM($M$8:M86),SUM(E87-I87))))),"") ->  | N87: =IFERROR(IF(C87="","",IF(F87="","",IF(J87="","",IF($C87="TOTAL",SUM($N$8:N86),SUM(F87-J87))))),"") ->  | P87: =IFERROR(IF(C87="","",IF($C87="TOTAL",SUM($P$8:P86),IF(AND(C87>$AL$1,$AC$3=$AL$2),BO88,IF($AO$18=$AO$20,SUM(BB88+BJ88),ROUND((D87+E87)*10%,0))))),"") ->  | Q87: =IFERROR(IF(C87="","",IF(H87="","",IF(I87="","",IF($C87="TOTAL",SUM($Q$8:Q86),IF(AND(C87>$AL$1,$AC$3=$AL$2),BO88,IF($AO$18=$AO$20,$AO$21,ROUND((H87+I87)*10%,0))))))),"") ->  | S87: =IFERROR(IF(C87="","",IF($AO$16=$AO$17,0,IF($C87="TOTAL",SUM($S$8:S86),IF($AO$19=$AO$20,$AO$25,0)))),"") ->  | T87: =IFERROR(IF(C87="","",IF($AO$16=$AO$17,0,IF($C87="TOTAL",SUM($T$8:T86),IF($AO$19=$AO$20,$AO$24,0)))),"") ->  | V87: =IF(C87="","",IF($C87="TOTAL",SUM($V$8:V86),IF(AND($AO$2=$AO$20,C87=$AO$1),ROUND(D87/31*$AP$2,0),IF(C87=$AM$6,ROUND((G87)*1/30,0),IF(C87=$AN$6,ROUND((G87)*1/31,0),""))))) ->  | W87: =IF(C87="","",IF($C87="TOTAL",SUM($W$8:W86),IF(AND($AO$2=$AO$20,C87=$AO$1),ROUND(H87/31*$AP$2,0),IF(C87=$AM$6,ROUND((K87)*1/30,0),IF(C87=$AN$6,ROUND((K87)*1/31,0),""))))) ->  | Y87: =IFERROR(IF(C87="","",IF(AND(BH88="",BO88=""),"",IF($C87="TOTAL",SUM($Y$8:Y86),BH88))),"") ->  | Z87: =IFERROR(IF(C87="","",IF($C87="TOTAL",SUM($Z$8:Z86),ROUND(O87*$AO$7%,0))),"") ->  | AA87: =IFERROR(IF(C87="","",IF($C87="TOTAL",SUM($AA$8:AA86),IF($AC$3=$AL$2,SUM(U87,X87,Y87,Z87),SUM(R87,U87,X87,Y87,Z87)))),"") ->  | AB87: =IFERROR(IF(C87="","",IF($C87="TOTAL",SUM($AB$8:AB86),SUM(O87-AA87))),"") ->  | AK87: 34 | AL87: 34 | AN87: 2023-07-01 | AP87: 2027-04-01 | BI87: 0 | BJ87: 0 | BO87: 2100
D88: =IFERROR(IF($C87="TOTAL","अक्षरें राशि :-",IF($C88="TOTAL",SUM($D$8:D87),IF(AU89="","",AU89))),"") ->  | E88: =IFERROR(IF($C88="TOTAL",SUM($E$8:E87),IF(AV89="","",AV89)),"") ->  | F88: =IFERROR(IF($C88="TOTAL",SUM($F$8:F87),IF(AW89="","",AW89)),"") ->  | H88: =IFERROR(IF($C88="TOTAL",SUM($H$8:H87),IF(AY89="","",AY89)),"") ->  | I88: =IFERROR(IF($C88="TOTAL",SUM($I$8:I87),IF(AZ89="","",AZ89)),"") ->  | J88: =IFERROR(IF($C88="TOTAL",SUM($J$8:J87),IF(BA89="","",BA89)),"") ->  | L88: =IFERROR(IF(C88="","",IF(D88="","",IF(H88="","",IF($C88="TOTAL",SUM($L$8:L87),SUM(D88-H88))))),"") ->  | M88: =IFERROR(IF(C88="","",IF(E88="","",IF(I88="","",IF($C88="TOTAL",SUM($M$8:M87),SUM(E88-I88))))),"") ->  | N88: =IFERROR(IF(C88="","",IF(F88="","",IF(J88="","",IF($C88="TOTAL",SUM($N$8:N87),SUM(F88-J88))))),"") ->  | P88: =IFERROR(IF(C88="","",IF($C88="TOTAL",SUM($P$8:P87),IF(AND(C88>$AL$1,$AC$3=$AL$2),BO89,IF($AO$18=$AO$20,SUM(BB89+BJ89),ROUND((D88+E88)*10%,0))))),"") ->  | Q88: =IFERROR(IF(C88="","",IF(H88="","",IF(I88="","",IF($C88="TOTAL",SUM($Q$8:Q87),IF(AND(C88>$AL$1,$AC$3=$AL$2),BO89,IF($AO$18=$AO$20,$AO$21,ROUND((H88+I88)*10%,0))))))),"") ->  | S88: =IFERROR(IF(C88="","",IF($AO$16=$AO$17,0,IF($C88="TOTAL",SUM($S$8:S87),IF($AO$19=$AO$20,$AO$25,0)))),"") ->  | T88: =IFERROR(IF(C88="","",IF($AO$16=$AO$17,0,IF($C88="TOTAL",SUM($T$8:T87),IF($AO$19=$AO$20,$AO$24,0)))),"") ->  | V88: =IF(C88="","",IF($C88="TOTAL",SUM($V$8:V87),IF(AND($AO$2=$AO$20,C88=$AO$1),ROUND(D88/31*$AP$2,0),IF(C88=$AM$6,ROUND((G88)*1/30,0),IF(C88=$AN$6,ROUND((G88)*1/31,0),""))))) ->  | W88: =IF(C88="","",IF($C88="TOTAL",SUM($W$8:W87),IF(AND($AO$2=$AO$20,C88=$AO$1),ROUND(H88/31*$AP$2,0),IF(C88=$AM$6,ROUND((K88)*1/30,0),IF(C88=$AN$6,ROUND((K88)*1/31,0),""))))) ->  | Y88: =IFERROR(IF(C88="","",IF(AND(BH89="",BO89=""),"",IF($C88="TOTAL",SUM($Y$8:Y87),BH89))),"") ->  | Z88: =IFERROR(IF(C88="","",IF($C88="TOTAL",SUM($Z$8:Z87),ROUND(O88*$AO$7%,0))),"") ->  | AA88: =IFERROR(IF(C88="","",IF($C88="TOTAL",SUM($AA$8:AA87),IF($AC$3=$AL$2,SUM(U88,X88,Y88,Z88),SUM(R88,U88,X88,Y88,Z88)))),"") ->  | AB88: =IFERROR(IF(C88="","",IF($C88="TOTAL",SUM($AB$8:AB87),SUM(O88-AA88))),"") ->  | AK88: 34 | AL88: 34 | AN88: 2023-08-01 | AP88: 2027-05-01 | BI88: 0 | BJ88: 0 | BO88: 2100
D89: =IFERROR(IF($C88="TOTAL","अक्षरें राशि :-",IF($C89="TOTAL",SUM($D$8:D88),IF(AU90="","",AU90))),"") ->  | E89: =IFERROR(IF($C89="TOTAL",SUM($E$8:E88),IF(AV90="","",AV90)),"") ->  | F89: =IFERROR(IF($C89="TOTAL",SUM($F$8:F88),IF(AW90="","",AW90)),"") ->  | H89: =IFERROR(IF($C89="TOTAL",SUM($H$8:H88),IF(AY90="","",AY90)),"") ->  | I89: =IFERROR(IF($C89="TOTAL",SUM($I$8:I88),IF(AZ90="","",AZ90)),"") ->  | J89: =IFERROR(IF($C89="TOTAL",SUM($J$8:J88),IF(BA90="","",BA90)),"") ->  | L89: =IFERROR(IF(C89="","",IF(D89="","",IF(H89="","",IF($C89="TOTAL",SUM($L$8:L88),SUM(D89-H89))))),"") ->  | M89: =IFERROR(IF(C89="","",IF(E89="","",IF(I89="","",IF($C89="TOTAL",SUM($M$8:M88),SUM(E89-I89))))),"") ->  | N89: =IFERROR(IF(C89="","",IF(F89="","",IF(J89="","",IF($C89="TOTAL",SUM($N$8:N88),SUM(F89-J89))))),"") ->  | P89: =IFERROR(IF(C89="","",IF($C89="TOTAL",SUM($P$8:P88),IF(AND(C89>$AL$1,$AC$3=$AL$2),BO90,IF($AO$18=$AO$20,SUM(BB90+BJ90),ROUND((D89+E89)*10%,0))))),"") ->  | Q89: =IFERROR(IF(C89="","",IF(H89="","",IF(I89="","",IF($C89="TOTAL",SUM($Q$8:Q88),IF(AND(C89>$AL$1,$AC$3=$AL$2),BO90,IF($AO$18=$AO$20,$AO$21,ROUND((H89+I89)*10%,0))))))),"") ->  | S89: =IFERROR(IF(C89="","",IF($AO$16=$AO$17,0,IF($C89="TOTAL",SUM($S$8:S88),IF($AO$19=$AO$20,$AO$25,0)))),"") ->  | T89: =IFERROR(IF(C89="","",IF($AO$16=$AO$17,0,IF($C89="TOTAL",SUM($T$8:T88),IF($AO$19=$AO$20,$AO$24,0)))),"") ->  | V89: =IF(C89="","",IF($C89="TOTAL",SUM($V$8:V88),IF(AND($AO$2=$AO$20,C89=$AO$1),ROUND(D89/31*$AP$2,0),IF(C89=$AM$6,ROUND((G89)*1/30,0),IF(C89=$AN$6,ROUND((G89)*1/31,0),""))))) ->  | W89: =IF(C89="","",IF($C89="TOTAL",SUM($W$8:W88),IF(AND($AO$2=$AO$20,C89=$AO$1),ROUND(H89/31*$AP$2,0),IF(C89=$AM$6,ROUND((K89)*1/30,0),IF(C89=$AN$6,ROUND((K89)*1/31,0),""))))) ->  | Y89: =IFERROR(IF(C89="","",IF(AND(BH90="",BO90=""),"",IF($C89="TOTAL",SUM($Y$8:Y88),BH90))),"") ->  | Z89: =IFERROR(IF(C89="","",IF($C89="TOTAL",SUM($Z$8:Z88),ROUND(O89*$AO$7%,0))),"") ->  | AA89: =IFERROR(IF(C89="","",IF($C89="TOTAL",SUM($AA$8:AA88),IF($AC$3=$AL$2,SUM(U89,X89,Y89,Z89),SUM(R89,U89,X89,Y89,Z89)))),"") ->  | AB89: =IFERROR(IF(C89="","",IF($C89="TOTAL",SUM($AB$8:AB88),SUM(O89-AA89))),"") ->  | AK89: 34 | AL89: 34 | AN89: 2023-09-01 | AP89: 2027-06-01 | BI89: 0 | BJ89: 0 | BO89: 2100
B90: =IFERROR(IF(A90="","",IF(A90=0,"",A90)),"") ->  | D90: =IFERROR(IF($C89="TOTAL","अक्षरें राशि :-",IF($C90="TOTAL",SUM($D$8:D89),IF(AU91="","",AU91))),"") ->  | E90: =IFERROR(IF($C90="TOTAL",SUM($E$8:E89),IF(AV91="","",AV91)),"") ->  | F90: =IFERROR(IF($C90="TOTAL",SUM($F$8:F89),IF(AW91="","",AW91)),"") ->  | H90: =IFERROR(IF($C90="TOTAL",SUM($H$8:H89),IF(AY91="","",AY91)),"") ->  | I90: =IFERROR(IF($C90="TOTAL",SUM($I$8:I89),IF(AZ91="","",AZ91)),"") ->  | J90: =IFERROR(IF($C90="TOTAL",SUM($J$8:J89),IF(BA91="","",BA91)),"") ->  | L90: =IFERROR(IF(C90="","",IF(D90="","",IF(H90="","",IF($C90="TOTAL",SUM($L$8:L89),SUM(D90-H90))))),"") ->  | M90: =IFERROR(IF(C90="","",IF(E90="","",IF(I90="","",IF($C90="TOTAL",SUM($M$8:M89),SUM(E90-I90))))),"") ->  | N90: =IFERROR(IF(C90="","",IF(F90="","",IF(J90="","",IF($C90="TOTAL",SUM($N$8:N89),SUM(F90-J90))))),"") ->  | P90: =IFERROR(IF(C90="","",IF($C90="TOTAL",SUM($P$8:P89),IF(AND(C90>$AL$1,$AC$3=$AL$2),BO91,IF($AO$18=$AO$20,SUM(BB91+BJ91),ROUND((D90+E90)*10%,0))))),"") ->  | Q90: =IFERROR(IF(C90="","",IF(H90="","",IF(I90="","",IF($C90="TOTAL",SUM($Q$8:Q89),IF(AND(C90>$AL$1,$AC$3=$AL$2),BO91,IF($AO$18=$AO$20,$AO$21,ROUND((H90+I90)*10%,0))))))),"") ->  | S90: =IFERROR(IF(C90="","",IF($AO$16=$AO$17,0,IF($C90="TOTAL",SUM($S$8:S89),IF($AO$19=$AO$20,$AO$25,0)))),"") ->  | T90: =IFERROR(IF(C90="","",IF($AO$16=$AO$17,0,IF($C90="TOTAL",SUM($T$8:T89),IF($AO$19=$AO$20,$AO$24,0)))),"") ->  | V90: =IF(C90="","",IF($C90="TOTAL",SUM($V$8:V89),IF(AND($AO$2=$AO$20,C90=$AO$1),ROUND(D90/31*$AP$2,0),IF(C90=$AM$6,ROUND((G90)*1/30,0),IF(C90=$AN$6,ROUND((G90)*1/31,0),""))))) ->  | W90: =IF(C90="","",IF($C90="TOTAL",SUM($W$8:W89),IF(AND($AO$2=$AO$20,C90=$AO$1),ROUND(H90/31*$AP$2,0),IF(C90=$AM$6,ROUND((K90)*1/30,0),IF(C90=$AN$6,ROUND((K90)*1/31,0),""))))) ->  | Y90: =IFERROR(IF(C90="","",IF(AND(BH91="",BO91=""),"",IF($C90="TOTAL",SUM($Y$8:Y89),BH91))),"") ->  | Z90: =IFERROR(IF(C90="","",IF($C90="TOTAL",SUM($Z$8:Z89),ROUND(O90*$AO$7%,0))),"") ->  | AA90: =IFERROR(IF(C90="","",IF($C90="TOTAL",SUM($AA$8:AA89),IF($AC$3=$AL$2,SUM(U90,X90,Y90,Z90),SUM(R90,U90,X90,Y90,Z90)))),"") ->  | AB90: =IFERROR(IF(C90="","",IF($C90="TOTAL",SUM($AB$8:AB89),SUM(O90-AA90))),"") ->  | AK90: 34 | AL90: 34 | AN90: 2023-10-01 | AP90: 2027-07-01 | BI90: 0 | BJ90: 0 | BO90: 2100
D91: =IFERROR(IF($C90="TOTAL","अक्षरें राशि :-",IF($C91="TOTAL",SUM($D$8:D90),IF(AU92="","",AU92))),"") ->  | E91: =IFERROR(IF($C91="TOTAL",SUM($E$8:E90),IF(AV92="","",AV92)),"") ->  | F91: =IFERROR(IF($C91="TOTAL",SUM($F$8:F90),IF(AW92="","",AW92)),"") ->  | H91: =IFERROR(IF($C91="TOTAL",SUM($H$8:H90),IF(AY92="","",AY92)),"") ->  | I91: =IFERROR(IF($C91="TOTAL",SUM($I$8:I90),IF(AZ92="","",AZ92)),"") ->  | J91: =IFERROR(IF($C91="TOTAL",SUM($J$8:J90),IF(BA92="","",BA92)),"") ->  | L91: =IFERROR(IF(C91="","",IF(D91="","",IF(H91="","",IF($C91="TOTAL",SUM($L$8:L90),SUM(D91-H91))))),"") ->  | M91: =IFERROR(IF(C91="","",IF(E91="","",IF(I91="","",IF($C91="TOTAL",SUM($M$8:M90),SUM(E91-I91))))),"") ->  | N91: =IFERROR(IF(C91="","",IF(F91="","",IF(J91="","",IF($C91="TOTAL",SUM($N$8:N90),SUM(F91-J91))))),"") ->  | P91: =IFERROR(IF(C91="","",IF($C91="TOTAL",SUM($P$8:P90),IF(AND(C91>$AL$1,$AC$3=$AL$2),BO92,IF($AO$18=$AO$20,SUM(BB92+BJ92),ROUND((D91+E91)*10%,0))))),"") ->  | Q91: =IFERROR(IF(C91="","",IF(H91="","",IF(I91="","",IF($C91="TOTAL",SUM($Q$8:Q90),IF(AND(C91>$AL$1,$AC$3=$AL$2),BO92,IF($AO$18=$AO$20,$AO$21,ROUND((H91+I91)*10%,0))))))),"") ->  | S91: =IFERROR(IF(C91="","",IF($AO$16=$AO$17,0,IF($C91="TOTAL",SUM($S$8:S90),IF($AO$19=$AO$20,$AO$25,0)))),"") ->  | T91: =IFERROR(IF(C91="","",IF($AO$16=$AO$17,0,IF($C91="TOTAL",SUM($T$8:T90),IF($AO$19=$AO$20,$AO$24,0)))),"") ->  | V91: =IF(C91="","",IF($C91="TOTAL",SUM($V$8:V90),IF(AND($AO$2=$AO$20,C91=$AO$1),ROUND(D91/31*$AP$2,0),IF(C91=$AM$6,ROUND((G91)*1/30,0),IF(C91=$AN$6,ROUND((G91)*1/31,0),""))))) ->  | W91: =IF(C91="","",IF($C91="TOTAL",SUM($W$8:W90),IF(AND($AO$2=$AO$20,C91=$AO$1),ROUND(H91/31*$AP$2,0),IF(C91=$AM$6,ROUND((K91)*1/30,0),IF(C91=$AN$6,ROUND((K91)*1/31,0),""))))) ->  | Y91: =IFERROR(IF(C91="","",IF(AND(BH92="",BO92=""),"",IF($C91="TOTAL",SUM($Y$8:Y90),BH92))),"") ->  | Z91: =IFERROR(IF(C91="","",IF($C91="TOTAL",SUM($Z$8:Z90),ROUND(O91*$AO$7%,0))),"") ->  | AA91: =IFERROR(IF(C91="","",IF($C91="TOTAL",SUM($AA$8:AA90),IF($AC$3=$AL$2,SUM(U91,X91,Y91,Z91),SUM(R91,U91,X91,Y91,Z91)))),"") ->  | AB91: =IFERROR(IF(C91="","",IF($C91="TOTAL",SUM($AB$8:AB90),SUM(O91-AA91))),"") ->  | AK91: 34 | AL91: 34 | AN91: 2023-11-01 | AP91: 2027-08-01 | BI91: 0 | BJ91: 0 | BO91: 2100
D92: =IFERROR(IF($C91="TOTAL","अक्षरें राशि :-",IF($C92="TOTAL",SUM($D$8:D91),IF(AU93="","",AU93))),"") ->  | E92: =IFERROR(IF($C92="TOTAL",SUM($E$8:E91),IF(AV93="","",AV93)),"") ->  | F92: =IFERROR(IF($C92="TOTAL",SUM($F$8:F91),IF(AW93="","",AW93)),"") ->  | H92: =IFERROR(IF($C92="TOTAL",SUM($H$8:H91),IF(AY93="","",AY93)),"") ->  | I92: =IFERROR(IF($C92="TOTAL",SUM($I$8:I91),IF(AZ93="","",AZ93)),"") ->  | J92: =IFERROR(IF($C92="TOTAL",SUM($J$8:J91),IF(BA93="","",BA93)),"") ->  | L92: =IFERROR(IF(C92="","",IF(D92="","",IF(H92="","",IF($C92="TOTAL",SUM($L$8:L91),SUM(D92-H92))))),"") ->  | M92: =IFERROR(IF(C92="","",IF(E92="","",IF(I92="","",IF($C92="TOTAL",SUM($M$8:M91),SUM(E92-I92))))),"") ->  | N92: =IFERROR(IF(C92="","",IF(F92="","",IF(J92="","",IF($C92="TOTAL",SUM($N$8:N91),SUM(F92-J92))))),"") ->  | P92: =IFERROR(IF(C92="","",IF($C92="TOTAL",SUM($P$8:P91),IF(AND(C92>$AL$1,$AC$3=$AL$2),BO93,IF($AO$18=$AO$20,SUM(BB93+BJ93),ROUND((D92+E92)*10%,0))))),"") ->  | Q92: =IFERROR(IF(C92="","",IF(H92="","",IF(I92="","",IF($C92="TOTAL",SUM($Q$8:Q91),IF(AND(C92>$AL$1,$AC$3=$AL$2),BO93,IF($AO$18=$AO$20,$AO$21,ROUND((H92+I92)*10%,0))))))),"") ->  | S92: =IFERROR(IF(C92="","",IF($AO$16=$AO$17,0,IF($C92="TOTAL",SUM($S$8:S91),IF($AO$19=$AO$20,$AO$25,0)))),"") ->  | T92: =IFERROR(IF(C92="","",IF($AO$16=$AO$17,0,IF($C92="TOTAL",SUM($T$8:T91),IF($AO$19=$AO$20,$AO$24,0)))),"") ->  | V92: =IF(C92="","",IF($C92="TOTAL",SUM($V$8:V91),IF(AND($AO$2=$AO$20,C92=$AO$1),ROUND(D92/31*$AP$2,0),IF(C92=$AM$6,ROUND((G92)*1/30,0),IF(C92=$AN$6,ROUND((G92)*1/31,0),""))))) ->  | W92: =IF(C92="","",IF($C92="TOTAL",SUM($W$8:W91),IF(AND($AO$2=$AO$20,C92=$AO$1),ROUND(H92/31*$AP$2,0),IF(C92=$AM$6,ROUND((K92)*1/30,0),IF(C92=$AN$6,ROUND((K92)*1/31,0),""))))) ->  | Y92: =IFERROR(IF(C92="","",IF(AND(BH93="",BO93=""),"",IF($C92="TOTAL",SUM($Y$8:Y91),BH93))),"") ->  | Z92: =IFERROR(IF(C92="","",IF($C92="TOTAL",SUM($Z$8:Z91),ROUND(O92*$AO$7%,0))),"") ->  | AA92: =IFERROR(IF(C92="","",IF($C92="TOTAL",SUM($AA$8:AA91),IF($AC$3=$AL$2,SUM(U92,X92,Y92,Z92),SUM(R92,U92,X92,Y92,Z92)))),"") ->  | AB92: =IFERROR(IF(C92="","",IF($C92="TOTAL",SUM($AB$8:AB91),SUM(O92-AA92))),"") ->  | AK92: 34 | AL92: 34 | AN92: 2023-12-01 | AP92: 2027-09-01 | BI92: 0 | BJ92: 0 | BO92: 2100
D93: =IFERROR(IF($C92="TOTAL","अक्षरें राशि :-",IF($C93="TOTAL",SUM($D$8:D92),IF(AU94="","",AU94))),"") ->  | E93: =IFERROR(IF($C93="TOTAL",SUM($E$8:E92),IF(AV94="","",AV94)),"") ->  | F93: =IFERROR(IF($C93="TOTAL",SUM($F$8:F92),IF(AW94="","",AW94)),"") ->  | H93: =IFERROR(IF($C93="TOTAL",SUM($H$8:H92),IF(AY94="","",AY94)),"") ->  | I93: =IFERROR(IF($C93="TOTAL",SUM($I$8:I92),IF(AZ94="","",AZ94)),"") ->  | J93: =IFERROR(IF($C93="TOTAL",SUM($J$8:J92),IF(BA94="","",BA94)),"") ->  | L93: =IFERROR(IF(C93="","",IF(D93="","",IF(H93="","",IF($C93="TOTAL",SUM($L$8:L92),SUM(D93-H93))))),"") ->  | M93: =IFERROR(IF(C93="","",IF(E93="","",IF(I93="","",IF($C93="TOTAL",SUM($M$8:M92),SUM(E93-I93))))),"") ->  | N93: =IFERROR(IF(C93="","",IF(F93="","",IF(J93="","",IF($C93="TOTAL",SUM($N$8:N92),SUM(F93-J93))))),"") ->  | P93: =IFERROR(IF(C93="","",IF($C93="TOTAL",SUM($P$8:P92),IF(AND(C93>$AL$1,$AC$3=$AL$2),BO94,IF($AO$18=$AO$20,SUM(BB94+BJ94),ROUND((D93+E93)*10%,0))))),"") ->  | Q93: =IFERROR(IF(C93="","",IF(H93="","",IF(I93="","",IF($C93="TOTAL",SUM($Q$8:Q92),IF(AND(C93>$AL$1,$AC$3=$AL$2),BO94,IF($AO$18=$AO$20,$AO$21,ROUND((H93+I93)*10%,0))))))),"") ->  | S93: =IFERROR(IF(C93="","",IF($AO$16=$AO$17,0,IF($C93="TOTAL",SUM($S$8:S92),IF($AO$19=$AO$20,$AO$25,0)))),"") ->  | T93: =IFERROR(IF(C93="","",IF($AO$16=$AO$17,0,IF($C93="TOTAL",SUM($T$8:T92),IF($AO$19=$AO$20,$AO$24,0)))),"") ->  | V93: =IF(C93="","",IF($C93="TOTAL",SUM($V$8:V92),IF(AND($AO$2=$AO$20,C93=$AO$1),ROUND(D93/31*$AP$2,0),IF(C93=$AM$6,ROUND((G93)*1/30,0),IF(C93=$AN$6,ROUND((G93)*1/31,0),""))))) ->  | W93: =IF(C93="","",IF($C93="TOTAL",SUM($W$8:W92),IF(AND($AO$2=$AO$20,C93=$AO$1),ROUND(H93/31*$AP$2,0),IF(C93=$AM$6,ROUND((K93)*1/30,0),IF(C93=$AN$6,ROUND((K93)*1/31,0),""))))) ->  | Y93: =IFERROR(IF(C93="","",IF(AND(BH94="",BO94=""),"",IF($C93="TOTAL",SUM($Y$8:Y92),BH94))),"") ->  | Z93: =IFERROR(IF(C93="","",IF($C93="TOTAL",SUM($Z$8:Z92),ROUND(O93*$AO$7%,0))),"") ->  | AA93: =IFERROR(IF(C93="","",IF($C93="TOTAL",SUM($AA$8:AA92),IF($AC$3=$AL$2,SUM(U93,X93,Y93,Z93),SUM(R93,U93,X93,Y93,Z93)))),"") ->  | AB93: =IFERROR(IF(C93="","",IF($C93="TOTAL",SUM($AB$8:AB92),SUM(O93-AA93))),"") ->  | BI93: 0 | BJ93: 0
D94: =IFERROR(IF($C93="TOTAL","अक्षरें राशि :-",IF($C94="TOTAL",SUM($D$8:D93),IF(AU95="","",AU95))),"") ->  | E94: =IFERROR(IF($C94="TOTAL",SUM($E$8:E93),IF(AV95="","",AV95)),"") ->  | F94: =IFERROR(IF($C94="TOTAL",SUM($F$8:F93),IF(AW95="","",AW95)),"") ->  | H94: =IFERROR(IF($C94="TOTAL",SUM($H$8:H93),IF(AY95="","",AY95)),"") ->  | I94: =IFERROR(IF($C94="TOTAL",SUM($I$8:I93),IF(AZ95="","",AZ95)),"") ->  | J94: =IFERROR(IF($C94="TOTAL",SUM($J$8:J93),IF(BA95="","",BA95)),"") ->  | L94: =IFERROR(IF(C94="","",IF(D94="","",IF(H94="","",IF($C94="TOTAL",SUM($L$8:L93),SUM(D94-H94))))),"") ->  | M94: =IFERROR(IF(C94="","",IF(E94="","",IF(I94="","",IF($C94="TOTAL",SUM($M$8:M93),SUM(E94-I94))))),"") ->  | N94: =IFERROR(IF(C94="","",IF(F94="","",IF(J94="","",IF($C94="TOTAL",SUM($N$8:N93),SUM(F94-J94))))),"") ->  | P94: =IFERROR(IF(C94="","",IF(AND(C94>$AL$1,$AC$3=$AL$2),"",IF($AO$18=$AO$20,SUM(BB95,BJ95),ROUND((D94+E94)*10%,0)))),"") ->  | Q94: =IFERROR(IF(C94="","",IF(H94="","",IF(I94="","",IF(AND(C94>$AL$1,$AC$3=$AL$2),"",IF($C94="TOTAL",SUM($Q$8:Q93),IF($AO$18=$AO$20,$AO$21,ROUND((H94+I94)*10%,0))))))),"") ->  | S94: =IFERROR(IF(C94="","",IF($AO$16=$AO$17,0,IF($C94="TOTAL",SUM($S$8:S93),IF($AO$19=$AO$20,$AO$25,0)))),"") ->  | T94: =IFERROR(IF(C94="","",IF($AO$16=$AO$17,0,IF($C94="TOTAL",SUM($T$8:T93),IF($AO$19=$AO$20,$AO$24,0)))),"") ->  | V94: =IF(C94="","",IF($C94="TOTAL",SUM($V$8:V93),IF(AND($AO$2=$AO$20,C94=$AO$1),ROUND(D94/31*$AP$2,0),IF(C94=$AM$6,ROUND((G94)*1/30,0),IF(C94=$AN$6,ROUND((G94)*1/31,0),""))))) ->  | W94: =IF(C94="","",IF($C94="TOTAL",SUM($W$8:W93),IF(AND($AO$2=$AO$20,C94=$AO$1),ROUND(H94/31*$AP$2,0),IF(C94=$AM$6,ROUND((K94)*1/30,0),IF(C94=$AN$6,ROUND((K94)*1/31,0),""))))) ->  | Y94: =IFERROR(IF(C94="","",IF(AND(BH95="",BO95=""),"",IF($C94="TOTAL",SUM($Y$8:Y93),BH95))),"") ->  | Z94: =IFERROR(IF(C94="","",IF($C94="TOTAL",SUM($Z$8:Z93),ROUND(O94*$AO$7%,0))),"") ->  | AA94: =IFERROR(IF(C94="","",IF($C94="TOTAL",SUM($AA$8:AA93),IF($AC$3=$AL$2,SUM(U94,X94,Y94,Z94),SUM(R94,U94,X94,Y94,Z94)))),"") ->  | AB94: =IFERROR(IF(C94="","",IF($C94="TOTAL",SUM($AB$8:AB93),SUM(O94-AA94))),"") -> 
D95: =IFERROR(IF($C94="TOTAL","अक्षरें राशि :-",IF($C95="TOTAL",SUM($D$8:D94),IF(AU96="","",AU96))),"") ->  | E95: =IFERROR(IF($C95="TOTAL",SUM($E$8:E94),IF(AV96="","",AV96)),"") ->  | F95: =IFERROR(IF($C95="TOTAL",SUM($F$8:F94),IF(AW96="","",AW96)),"") ->  | H95: =IFERROR(IF($C95="TOTAL",SUM($H$8:H94),IF(AY96="","",AY96)),"") ->  | I95: =IFERROR(IF($C95="TOTAL",SUM($I$8:I94),IF(AZ96="","",AZ96)),"") ->  | J95: =IFERROR(IF($C95="TOTAL",SUM($J$8:J94),IF(BA96="","",BA96)),"") ->  | L95: =IFERROR(IF(C95="","",IF(D95="","",IF(H95="","",IF($C95="TOTAL",SUM($L$8:L94),SUM(D95-H95))))),"") ->  | M95: =IFERROR(IF(C95="","",IF(E95="","",IF(I95="","",IF($C95="TOTAL",SUM($M$8:M94),SUM(E95-I95))))),"") ->  | N95: =IFERROR(IF(C95="","",IF(F95="","",IF(J95="","",IF($C95="TOTAL",SUM($N$8:N94),SUM(F95-J95))))),"") ->  | Q95: =IFERROR(IF(C95="","",IF(H95="","",IF(I95="","",IF(AND(C95>$AL$1,$AC$3=$AL$2),"",IF($C95="TOTAL",SUM($Q$8:Q94),IF($AO$18=$AO$20,$AO$21,ROUND((H95+I95)*10%,0))))))),"") ->  | S95: =IFERROR(IF(C95="","",IF($AO$16=$AO$17,0,IF($C95="TOTAL",SUM($S$8:S94),IF($AO$19=$AO$20,$AO$25,0)))),"") ->  | T95: =IFERROR(IF(C95="","",IF($AO$16=$AO$17,0,IF($C95="TOTAL",SUM($T$8:T94),IF($AO$19=$AO$20,$AO$24,0)))),"") ->  | V95: =IF(C95="","",IF($C95="TOTAL",SUM($V$8:V94),IF(AND($AO$2=$AO$20,C95=$AO$1),ROUND(D95/31*$AP$2,0),IF(C95=$AM$6,ROUND((G95)*1/30,0),IF(C95=$AN$6,ROUND((G95)*1/31,0),""))))) ->  | W95: =IF(C95="","",IF($C95="TOTAL",SUM($W$8:W94),IF(AND($AO$2=$AO$20,C95=$AO$1),ROUND(H95/31*$AP$2,0),IF(C95=$AM$6,ROUND((K95)*1/30,0),IF(C95=$AN$6,ROUND((K95)*1/31,0),""))))) ->  | Y95: =IFERROR(IF(C95="","",IF(AND(BH96="",BO96=""),"",IF($C95="TOTAL",SUM($Y$8:Y94),BH96))),"") ->  | Z95: =IFERROR(IF(C95="","",IF($C95="TOTAL",SUM($Z$8:Z94),ROUND(O95*$AO$7%,0))),"") ->  | AA95: =IFERROR(IF(C95="","",IF($C95="TOTAL",SUM($AA$8:AA94),IF($AC$3=$AL$2,SUM(U95,X95,Y95,Z95),SUM(R95,U95,X95,Y95,Z95)))),"") ->  | AB95: =IFERROR(IF(C95="","",IF($C95="TOTAL",SUM($AB$8:AB94),SUM(O95-AA95))),"") -> 

Sheet Unlock sheet
B1: =IF('Master Sheet'!D3="","",CONCATENATE("Office ",'Master Sheet'!D3)) -> Office Mahatma Gandhi Government School (English Medium) Bar, PALI
B2: Difference Arrear Sheet
B3: Name Of Employee : | E3: =IFERROR(UPPER('Master Sheet'!D7),"") -> HEERALAL JAT | L3: Post : | N3: =IFERROR(UPPER('Master Sheet'!G7),"") -> SR. TEACHER | S3: Pay Matrix Level : | V3: =IFERROR(CONCATENATE("L - ",'Master Sheet'!K7),"") -> L - 10 | Y3: GPF / NPS :- | AB3: =IF('Arrear Sheet'!AO18='Arrear Sheet'!AO20,"GPF","NPS") -> NPS
G4: Arrear From Date : | M4: =IFERROR('Master Sheet'!D9,"") -> 2020-10-01 | P4: to | Q4: =IFERROR('Master Sheet'!G9,"") -> 2022-06-01 | T4: Posting Place : | W4: =IFERROR(IF('Arrear Sheet'!X4="","",'Arrear Sheet'!X4),"") -> Mahatma Gandhi Government School (English Medium) Bar, PALI
A6: Sr. No. | B6: Month | C6: Pay Due | G6: Pay Drawn | K6: Pay Difference | O6: ='Arrear Sheet'!P6 -> NPS/GPF-2004 | R6: SI | U6: Corona relief fund | X6: Arrear inGPF-2004 | Y6: Income Tax | Z6: Total Deduction | AA6: Net Payment | AB6: Bill No./Date | AC6: Encashment Date
C7: Pay | D7: DA | E7: HRA | F7: Total | G7: Pay | H7: DA | I7: HRA | J7: Total | K7: Pay | L7: DA | M7: HRA | N7: Total | O7: Due | P7: Ded | Q7: Diff. | R7: Due | S7: Ded | T7: Diff. | U7: Due | V7: Ded | W7: Diff.
A8: =IF('Arrear Sheet'!B8="","",'Arrear Sheet'!B8) -> 1 | B8: =IF('Arrear Sheet'!C8="","",IF('Arrear Sheet'!C8="TOTAL","",'Arrear Sheet'!C8)) -> 2020-10-01 | C8: =IF('Arrear Sheet'!D8="","",IF('Arrear Sheet'!C8="TOTAL","",IF('Arrear Sheet'!D8="अक्षरें राशि :-","",'Arrear Sheet'!D8))) -> 29439 | D8: =IF('Arrear Sheet'!E8="","",IF('Arrear Sheet'!C8="TOTAL","",'Arrear Sheet'!E8)) -> 5005 | E8: =IF('Arrear Sheet'!F8="","",IF('Arrear Sheet'!C8="TOTAL","",'Arrear Sheet'!F8)) -> 2355 | F8: =IF('Arrear Sheet'!G8="","",IF('Arrear Sheet'!C8="TOTAL","",SUM(C8:E8))) -> 36799 | G8: =IF('Arrear Sheet'!H8="","",IF('Arrear Sheet'!C8="TOTAL","",'Arrear Sheet'!H8)) -> 20642 | H8: =IF('Arrear Sheet'!I8="","",IF('Arrear Sheet'!C8="TOTAL","",'Arrear Sheet'!I8)) -> 0 | I8: =IF('Arrear Sheet'!J8="","",IF('Arrear Sheet'!C8="TOTAL","",'Arrear Sheet'!J8)) -> 0 | J8: =IF('Arrear Sheet'!K8="","",IF('Arrear Sheet'!C8="TOTAL","",SUM(G8:I8))) -> 20642 | K8: =IF('Arrear Sheet'!L8="","",IF('Arrear Sheet'!C8="TOTAL","",'Arrear Sheet'!L8)) -> 8797 | L8: =IF('Arrear Sheet'!M8="","",IF('Arrear Sheet'!C8="TOTAL","",'Arrear Sheet'!M8)) -> 5005 | M8: =IF('Arrear Sheet'!N8="","",IF('Arrear Sheet'!C8="TOTAL","",'Arrear Sheet'!N8)) -> 2355 | N8: =IF('Arrear Sheet'!O8="","",IF('Arrear Sheet'!C8="TOTAL","",SUM(K8:M8))) -> 16157 | O8: =IF('Arrear Sheet'!P8="","",IF('Arrear Sheet'!C8="TOTAL","",'Arrear Sheet'!P8)) -> 3444 | P8: =IF('Arrear Sheet'!Q8="","",IF('Arrear Sheet'!C8="TOTAL","",'Arrear Sheet'!Q8)) -> 2064 | Q8: =IF('Arrear Sheet'!R8="","",IF('Arrear Sheet'!C8="TOTAL","",'Arrear Sheet'!R8)) -> 1380 | R8: =IF('Arrear Sheet'!S8="","",IF('Arrear Sheet'!C8="TOTAL","",'Arrear Sheet'!S8)) -> 0 | S8: =IF('Arrear Sheet'!T8="","",IF('Arrear Sheet'!C8="TOTAL","",'Arrear Sheet'!T8)) -> 0 | T8: =IF('Arrear Sheet'!U8="","",IF('Arrear Sheet'!C8="TOTAL","",'Arrear Sheet'!U8)) -> 0 | U8: =IF('Arrear Sheet'!V8="","",IF('Arrear Sheet'!C8="TOTAL","",'Arrear Sheet'!V8)) -> 1187 | V8: =IF('Arrear Sheet'!W8="","",IF('Arrear Sheet'!C8="TOTAL","",'Arrear Sheet'!W8)) -> 666 | W8: =IF('Arrear Sheet'!X8="","",IF('Arrear Sheet'!C8="TOTAL","",'Arrear Sheet'!X8)) -> 521 | X8: =IF('Arrear Sheet'!Y8="","",IF('Arrear Sheet'!C8="TOTAL","",'Arrear Sheet'!Y8)) ->  | Y8: =IF('Arrear Sheet'!Z8="","",IF('Arrear Sheet'!C8="TOTAL","",'Arrear Sheet'!Z8)) -> 0 | Z8: =IF('Arrear Sheet'!AA8="","",'Arrear Sheet'!AA8) -> 521 | AA8: =IF('Arrear Sheet'!AB8="","",IF('Arrear Sheet'!C8="TOTAL","",SUM(N8-Z8))) -> 15636
A9: =IF('Arrear Sheet'!B9="","",'Arrear Sheet'!B9) -> 2 | B9: =IF('Arrear Sheet'!C9="","",IF('Arrear Sheet'!C9="TOTAL","",'Arrear Sheet'!C9)) -> 2020-11-01 | C9: =IF('Arrear Sheet'!D9="","",IF('Arrear Sheet'!C9="TOTAL","",IF('Arrear Sheet'!D9="अक्षरें राशि :-","",'Arrear Sheet'!D9))) -> 33800 | D9: =IF('Arrear Sheet'!E9="","",IF('Arrear Sheet'!C9="TOTAL","",'Arrear Sheet'!E9)) -> 5746 | E9: =IF('Arrear Sheet'!F9="","",IF('Arrear Sheet'!C9="TOTAL","",'Arrear Sheet'!F9)) -> 2704 | F9: =IF('Arrear Sheet'!G9="","",IF('Arrear Sheet'!C9="TOTAL","",SUM(C9:E9))) -> 42250 | G9: =IF('Arrear Sheet'!H9="","",IF('Arrear Sheet'!C9="TOTAL","",'Arrear Sheet'!H9)) -> 23700 | H9: =IF('Arrear Sheet'!I9="","",IF('Arrear Sheet'!C9="TOTAL","",'Arrear Sheet'!I9)) -> 0 | I9: =IF('Arrear Sheet'!J9="","",IF('Arrear Sheet'!C9="TOTAL","",'Arrear Sheet'!J9)) -> 0 | J9: =IF('Arrear Sheet'!K9="","",IF('Arrear Sheet'!C9="TOTAL","",SUM(G9:I9))) -> 23700 | K9: =IF('Arrear Sheet'!L9="","",IF('Arrear Sheet'!C9="TOTAL","",'Arrear Sheet'!L9)) -> 10100 | L9: =IF('Arrear Sheet'!M9="","",IF('Arrear Sheet'!C9="TOTAL","",'Arrear Sheet'!M9)) -> 5746 | M9: =IF('Arrear Sheet'!N9="","",IF('Arrear Sheet'!C9="TOTAL","",'Arrear Sheet'!N9)) -> 2704 | N9: =IF('Arrear Sheet'!O9="","",IF('Arrear Sheet'!C9="TOTAL","",SUM(K9:M9))) -> 18550 | O9: =IF('Arrear Sheet'!P9="","",IF('Arrear Sheet'!C9="TOTAL","",'Arrear Sheet'!P9)) -> 3955 | P9: =IF('Arrear Sheet'!Q9="","",IF('Arrear Sheet'!C9="TOTAL","",'Arrear Sheet'!Q9)) -> 2370 | Q9: =IF('Arrear Sheet'!R9="","",IF('Arrear Sheet'!C9="TOTAL","",'Arrear Sheet'!R9)) -> 1585 | R9: =IF('Arrear Sheet'!S9="","",IF('Arrear Sheet'!C9="TOTAL","",'Arrear Sheet'!S9)) -> 0 | S9: =IF('Arrear Sheet'!T9="","",IF('Arrear Sheet'!C9="TOTAL","",'Arrear Sheet'!T9)) -> 0 | T9: =IF('Arrear Sheet'!U9="","",IF('Arrear Sheet'!C9="TOTAL","",'Arrear Sheet'!U9)) -> 0 | U9: =IF('Arrear Sheet'!V9="","",IF('Arrear Sheet'!C9="TOTAL","",'Arrear Sheet'!V9)) ->  | V9: =IF('Arrear Sheet'!W9="","",IF('Arrear Sheet'!C9="TOTAL","",'Arrear Sheet'!W9)) ->  | W9: =IF('Arrear Sheet'!X9="","",IF('Arrear Sheet'!C9="TOTAL","",'Arrear Sheet'!X9)) ->  | X9: =IF('Arrear Sheet'!Y9="","",IF('Arrear Sheet'!C9="TOTAL","",'Arrear Sheet'!Y9)) ->  | Y9: =IF('Arrear Sheet'!Z9="","",IF('Arrear Sheet'!C9="TOTAL","",'Arrear Sheet'!Z9)) -> 0 | Z9: =IF('Arrear Sheet'!AA9="","",IF('Arrear Sheet'!C9="TOTAL","",'Arrear Sheet'!AA9)) -> 0 | AA9: =IF('Arrear Sheet'!AB9="","",IF('Arrear Sheet'!C9="TOTAL","",SUM(N9-Z9))) -> 18550
A10: =IF('Arrear Sheet'!B10="","",'Arrear Sheet'!B10) -> 3 | B10: =IF('Arrear Sheet'!C10="","",IF('Arrear Sheet'!C10="TOTAL","",'Arrear Sheet'!C10)) -> 2020-12-01 | C10: =IF('Arrear Sheet'!D10="","",IF('Arrear Sheet'!C10="TOTAL","",IF('Arrear Sheet'!D10="अक्षरें राशि :-","",'Arrear Sheet'!D10))) -> 33800 | D10: =IF('Arrear Sheet'!E10="","",IF('Arrear Sheet'!C10="TOTAL","",'Arrear Sheet'!E10)) -> 5746 | E10: =IF('Arrear Sheet'!F10="","",IF('Arrear Sheet'!C10="TOTAL","",'Arrear Sheet'!F10)) -> 2704 | F10: =IF('Arrear Sheet'!G10="","",IF('Arrear Sheet'!C10="TOTAL","",SUM(C10:E10))) -> 42250 | G10: =IF('Arrear Sheet'!H10="","",IF('Arrear Sheet'!C10="TOTAL","",'Arrear Sheet'!H10)) -> 23700 | H10: =IF('Arrear Sheet'!I10="","",IF('Arrear Sheet'!C10="TOTAL","",'Arrear Sheet'!I10)) -> 0 | I10: =IF('Arrear Sheet'!J10="","",IF('Arrear Sheet'!C10="TOTAL","",'Arrear Sheet'!J10)) -> 0 | J10: =IF('Arrear Sheet'!K10="","",IF('Arrear Sheet'!C10="TOTAL","",SUM(G10:I10))) -> 23700 | K10: =IF('Arrear Sheet'!L10="","",IF('Arrear Sheet'!C10="TOTAL","",'Arrear Sheet'!L10)) -> 10100 | L10: =IF('Arrear Sheet'!M10="","",IF('Arrear Sheet'!C10="TOTAL","",'Arrear Sheet'!M10)) -> 5746 | M10: =IF('Arrear Sheet'!N10="","",IF('Arrear Sheet'!C10="TOTAL","",'Arrear Sheet'!N10)) -> 2704 | N10: =IF('Arrear Sheet'!O10="","",IF('Arrear Sheet'!C10="TOTAL","",SUM(K10:M10))) -> 18550 | O10: =IF('Arrear Sheet'!P10="","",IF('Arrear Sheet'!C10="TOTAL","",'Arrear Sheet'!P10)) -> 3955 | P10: =IF('Arrear Sheet'!Q10="","",IF('Arrear Sheet'!C10="TOTAL","",'Arrear Sheet'!Q10)) -> 2370 | Q10: =IF('Arrear Sheet'!R10="","",IF('Arrear Sheet'!C10="TOTAL","",'Arrear Sheet'!R10)) -> 1585 | R10: =IF('Arrear Sheet'!S10="","",IF('Arrear Sheet'!C10="TOTAL","",'Arrear Sheet'!S10)) -> 0 | S10: =IF('Arrear Sheet'!T10="","",IF('Arrear Sheet'!C10="TOTAL","",'Arrear Sheet'!T10)) -> 0 | T10: =IF('Arrear Sheet'!U10="","",IF('Arrear Sheet'!C10="TOTAL","",'Arrear Sheet'!U10)) -> 0 | U10: =IF('Arrear Sheet'!V10="","",IF('Arrear Sheet'!C10="TOTAL","",'Arrear Sheet'!V10)) ->  | V10: =IF('Arrear Sheet'!W10="","",IF('Arrear Sheet'!C10="TOTAL","",'Arrear Sheet'!W10)) ->  | W10: =IF('Arrear Sheet'!X10="","",IF('Arrear Sheet'!C10="TOTAL","",'Arrear Sheet'!X10)) ->  | X10: =IF('Arrear Sheet'!Y10="","",IF('Arrear Sheet'!C10="TOTAL","",'Arrear Sheet'!Y10)) ->  | Y10: =IF('Arrear Sheet'!Z10="","",IF('Arrear Sheet'!C10="TOTAL","",'Arrear Sheet'!Z10)) -> 0 | Z10: =IF('Arrear Sheet'!AA10="","",IF('Arrear Sheet'!C10="TOTAL","",'Arrear Sheet'!AA10)) -> 0 | AA10: =IF('Arrear Sheet'!AB10="","",IF('Arrear Sheet'!C10="TOTAL","",SUM(N10-Z10))) -> 18550
A11: =IF('Arrear Sheet'!B11="","",'Arrear Sheet'!B11) -> 4 | B11: =IF('Arrear Sheet'!C11="","",IF('Arrear Sheet'!C11="TOTAL","",'Arrear Sheet'!C11)) -> 2021-01-01 | C11: =IF('Arrear Sheet'!D11="","",IF('Arrear Sheet'!C11="TOTAL","",IF('Arrear Sheet'!D11="अक्षरें राशि :-","",'Arrear Sheet'!D11))) -> 33800 | D11: =IF('Arrear Sheet'!E11="","",IF('Arrear Sheet'!C11="TOTAL","",'Arrear Sheet'!E11)) -> 5746 | E11: =IF('Arrear Sheet'!F11="","",IF('Arrear Sheet'!C11="TOTAL","",'Arrear Sheet'!F11)) -> 2704 | F11: =IF('Arrear Sheet'!G11="","",IF('Arrear Sheet'!C11="TOTAL","",SUM(C11:E11))) -> 42250 | G11: =IF('Arrear Sheet'!H11="","",IF('Arrear Sheet'!C11="TOTAL","",'Arrear Sheet'!H11)) -> 23700 | H11: =IF('Arrear Sheet'!I11="","",IF('Arrear Sheet'!C11="TOTAL","",'Arrear Sheet'!I11)) -> 0 | I11: =IF('Arrear Sheet'!J11="","",IF('Arrear Sheet'!C11="TOTAL","",'Arrear Sheet'!J11)) -> 0 | J11: =IF('Arrear Sheet'!K11="","",IF('Arrear Sheet'!C11="TOTAL","",SUM(G11:I11))) -> 23700 | K11: =IF('Arrear Sheet'!L11="","",IF('Arrear Sheet'!C11="TOTAL","",'Arrear Sheet'!L11)) -> 10100 | L11: =IF('Arrear Sheet'!M11="","",IF('Arrear Sheet'!C11="TOTAL","",'Arrear Sheet'!M11)) -> 5746 | M11: =IF('Arrear Sheet'!N11="","",IF('Arrear Sheet'!C11="TOTAL","",'Arrear Sheet'!N11)) -> 2704 | N11: =IF('Arrear Sheet'!O11="","",IF('Arrear Sheet'!C11="TOTAL","",SUM(K11:M11))) -> 18550 | O11: =IF('Arrear Sheet'!P11="","",IF('Arrear Sheet'!C11="TOTAL","",'Arrear Sheet'!P11)) -> 3955 | P11: =IF('Arrear Sheet'!Q11="","",IF('Arrear Sheet'!C11="TOTAL","",'Arrear Sheet'!Q11)) -> 2370 | Q11: =IF('Arrear Sheet'!R11="","",IF('Arrear Sheet'!C11="TOTAL","",'Arrear Sheet'!R11)) -> 1585 | R11: =IF('Arrear Sheet'!S11="","",IF('Arrear Sheet'!C11="TOTAL","",'Arrear Sheet'!S11)) -> 0 | S11: =IF('Arrear Sheet'!T11="","",IF('Arrear Sheet'!C11="TOTAL","",'Arrear Sheet'!T11)) -> 0 | T11: =IF('Arrear Sheet'!U11="","",IF('Arrear Sheet'!C11="TOTAL","",'Arrear Sheet'!U11)) -> 0 | U11: =IF('Arrear Sheet'!V11="","",IF('Arrear Sheet'!C11="TOTAL","",'Arrear Sheet'!V11)) ->  | V11: =IF('Arrear Sheet'!W11="","",IF('Arrear Sheet'!C11="TOTAL","",'Arrear Sheet'!W11)) ->  | W11: =IF('Arrear Sheet'!X11="","",IF('Arrear Sheet'!C11="TOTAL","",'Arrear Sheet'!X11)) ->  | X11: =IF('Arrear Sheet'!Y11="","",IF('Arrear Sheet'!C11="TOTAL","",'Arrear Sheet'!Y11)) ->  | Y11: =IF('Arrear Sheet'!Z11="","",IF('Arrear Sheet'!C11="TOTAL","",'Arrear Sheet'!Z11)) -> 0 | Z11: =IF('Arrear Sheet'!AA11="","",IF('Arrear Sheet'!C11="TOTAL","",'Arrear Sheet'!AA11)) -> 0 | AA11: =IF('Arrear Sheet'!AB11="","",IF('Arrear Sheet'!C11="TOTAL","",SUM(N11-Z11))) -> 18550
A12: =IF('Arrear Sheet'!B12="","",'Arrear Sheet'!B12) -> 5 | B12: =IF('Arrear Sheet'!C12="","",IF('Arrear Sheet'!C12="TOTAL","",'Arrear Sheet'!C12)) -> 2021-02-01 | C12: =IF('Arrear Sheet'!D12="","",IF('Arrear Sheet'!C12="TOTAL","",IF('Arrear Sheet'!D12="अक्षरें राशि :-","",'Arrear Sheet'!D12))) -> 33800 | D12: =IF('Arrear Sheet'!E12="","",IF('Arrear Sheet'!C12="TOTAL","",'Arrear Sheet'!E12)) -> 5746 | E12: =IF('Arrear Sheet'!F12="","",IF('Arrear Sheet'!C12="TOTAL","",'Arrear Sheet'!F12)) -> 2704 | F12: =IF('Arrear Sheet'!G12="","",IF('Arrear Sheet'!C12="TOTAL","",SUM(C12:E12))) -> 42250 | G12: =IF('Arrear Sheet'!H12="","",IF('Arrear Sheet'!C12="TOTAL","",'Arrear Sheet'!H12)) -> 23700 | H12: =IF('Arrear Sheet'!I12="","",IF('Arrear Sheet'!C12="TOTAL","",'Arrear Sheet'!I12)) -> 0 | I12: =IF('Arrear Sheet'!J12="","",IF('Arrear Sheet'!C12="TOTAL","",'Arrear Sheet'!J12)) -> 0 | J12: =IF('Arrear Sheet'!K12="","",IF('Arrear Sheet'!C12="TOTAL","",SUM(G12:I12))) -> 23700 | K12: =IF('Arrear Sheet'!L12="","",IF('Arrear Sheet'!C12="TOTAL","",'Arrear Sheet'!L12)) -> 10100 | L12: =IF('Arrear Sheet'!M12="","",IF('Arrear Sheet'!C12="TOTAL","",'Arrear Sheet'!M12)) -> 5746 | M12: =IF('Arrear Sheet'!N12="","",IF('Arrear Sheet'!C12="TOTAL","",'Arrear Sheet'!N12)) -> 2704 | N12: =IF('Arrear Sheet'!O12="","",IF('Arrear Sheet'!C12="TOTAL","",SUM(K12:M12))) -> 18550 | O12: =IF('Arrear Sheet'!P12="","",IF('Arrear Sheet'!C12="TOTAL","",'Arrear Sheet'!P12)) -> 3955 | P12: =IF('Arrear Sheet'!Q12="","",IF('Arrear Sheet'!C12="TOTAL","",'Arrear Sheet'!Q12)) -> 2370 | Q12: =IF('Arrear Sheet'!R12="","",IF('Arrear Sheet'!C12="TOTAL","",'Arrear Sheet'!R12)) -> 1585 | R12: =IF('Arrear Sheet'!S12="","",IF('Arrear Sheet'!C12="TOTAL","",'Arrear Sheet'!S12)) -> 0 | S12: =IF('Arrear Sheet'!T12="","",IF('Arrear Sheet'!C12="TOTAL","",'Arrear Sheet'!T12)) -> 0 | T12: =IF('Arrear Sheet'!U12="","",IF('Arrear Sheet'!C12="TOTAL","",'Arrear Sheet'!U12)) -> 0 | U12: =IF('Arrear Sheet'!V12="","",IF('Arrear Sheet'!C12="TOTAL","",'Arrear Sheet'!V12)) ->  | V12: =IF('Arrear Sheet'!W12="","",IF('Arrear Sheet'!C12="TOTAL","",'Arrear Sheet'!W12)) ->  | W12: =IF('Arrear Sheet'!X12="","",IF('Arrear Sheet'!C12="TOTAL","",'Arrear Sheet'!X12)) ->  | X12: =IF('Arrear Sheet'!Y12="","",IF('Arrear Sheet'!C12="TOTAL","",'Arrear Sheet'!Y12)) ->  | Y12: =IF('Arrear Sheet'!Z12="","",IF('Arrear Sheet'!C12="TOTAL","",'Arrear Sheet'!Z12)) -> 0 | Z12: =IF('Arrear Sheet'!AA12="","",IF('Arrear Sheet'!C12="TOTAL","",'Arrear Sheet'!AA12)) -> 0 | AA12: =IF('Arrear Sheet'!AB12="","",IF('Arrear Sheet'!C12="TOTAL","",SUM(N12-Z12))) -> 18550
A13: =IF('Arrear Sheet'!B13="","",'Arrear Sheet'!B13) -> 6 | B13: =IF('Arrear Sheet'!C13="","",IF('Arrear Sheet'!C13="TOTAL","",'Arrear Sheet'!C13)) -> 2021-03-01 | C13: =IF('Arrear Sheet'!D13="","",IF('Arrear Sheet'!C13="TOTAL","",IF('Arrear Sheet'!D13="अक्षरें राशि :-","",'Arrear Sheet'!D13))) -> 33800 | D13: =IF('Arrear Sheet'!E13="","",IF('Arrear Sheet'!C13="TOTAL","",'Arrear Sheet'!E13)) -> 5746 | E13: =IF('Arrear Sheet'!F13="","",IF('Arrear Sheet'!C13="TOTAL","",'Arrear Sheet'!F13)) -> 2704 | F13: =IF('Arrear Sheet'!G13="","",IF('Arrear Sheet'!C13="TOTAL","",SUM(C13:E13))) -> 42250 | G13: =IF('Arrear Sheet'!H13="","",IF('Arrear Sheet'!C13="TOTAL","",'Arrear Sheet'!H13)) -> 23700 | H13: =IF('Arrear Sheet'!I13="","",IF('Arrear Sheet'!C13="TOTAL","",'Arrear Sheet'!I13)) -> 0 | I13: =IF('Arrear Sheet'!J13="","",IF('Arrear Sheet'!C13="TOTAL","",'Arrear Sheet'!J13)) -> 0 | J13: =IF('Arrear Sheet'!K13="","",IF('Arrear Sheet'!C13="TOTAL","",SUM(G13:I13))) -> 23700 | K13: =IF('Arrear Sheet'!L13="","",IF('Arrear Sheet'!C13="TOTAL","",'Arrear Sheet'!L13)) -> 10100 | L13: =IF('Arrear Sheet'!M13="","",IF('Arrear Sheet'!C13="TOTAL","",'Arrear Sheet'!M13)) -> 5746 | M13: =IF('Arrear Sheet'!N13="","",IF('Arrear Sheet'!C13="TOTAL","",'Arrear Sheet'!N13)) -> 2704 | N13: =IF('Arrear Sheet'!O13="","",IF('Arrear Sheet'!C13="TOTAL","",SUM(K13:M13))) -> 18550 | O13: =IF('Arrear Sheet'!P13="","",IF('Arrear Sheet'!C13="TOTAL","",'Arrear Sheet'!P13)) -> 3955 | P13: =IF('Arrear Sheet'!Q13="","",IF('Arrear Sheet'!C13="TOTAL","",'Arrear Sheet'!Q13)) -> 2370 | Q13: =IF('Arrear Sheet'!R13="","",IF('Arrear Sheet'!C13="TOTAL","",'Arrear Sheet'!R13)) -> 1585 | R13: =IF('Arrear Sheet'!S13="","",IF('Arrear Sheet'!C13="TOTAL","",'Arrear Sheet'!S13)) -> 0 | S13: =IF('Arrear Sheet'!T13="","",IF('Arrear Sheet'!C13="TOTAL","",'Arrear Sheet'!T13)) -> 0 | T13: =IF('Arrear Sheet'!U13="","",IF('Arrear Sheet'!C13="TOTAL","",'Arrear Sheet'!U13)) -> 0 | U13: =IF('Arrear Sheet'!V13="","",IF('Arrear Sheet'!C13="TOTAL","",'Arrear Sheet'!V13)) ->  | V13: =IF('Arrear Sheet'!W13="","",IF('Arrear Sheet'!C13="TOTAL","",'Arrear Sheet'!W13)) ->  | W13: =IF('Arrear Sheet'!X13="","",IF('Arrear Sheet'!C13="TOTAL","",'Arrear Sheet'!X13)) ->  | X13: =IF('Arrear Sheet'!Y13="","",IF('Arrear Sheet'!C13="TOTAL","",'Arrear Sheet'!Y13)) ->  | Y13: =IF('Arrear Sheet'!Z13="","",IF('Arrear Sheet'!C13="TOTAL","",'Arrear Sheet'!Z13)) -> 0 | Z13: =IF('Arrear Sheet'!AA13="","",IF('Arrear Sheet'!C13="TOTAL","",'Arrear Sheet'!AA13)) -> 0 | AA13: =IF('Arrear Sheet'!AB13="","",IF('Arrear Sheet'!C13="TOTAL","",SUM(N13-Z13))) -> 18550
A14: =IF('Arrear Sheet'!B14="","",'Arrear Sheet'!B14) -> 7 | B14: =IF('Arrear Sheet'!C14="","",IF('Arrear Sheet'!C14="TOTAL","",'Arrear Sheet'!C14)) -> 2021-04-01 | C14: =IF('Arrear Sheet'!D14="","",IF('Arrear Sheet'!C14="TOTAL","",IF('Arrear Sheet'!D14="अक्षरें राशि :-","",'Arrear Sheet'!D14))) -> 33800 | D14: =IF('Arrear Sheet'!E14="","",IF('Arrear Sheet'!C14="TOTAL","",'Arrear Sheet'!E14)) -> 5746 | E14: =IF('Arrear Sheet'!F14="","",IF('Arrear Sheet'!C14="TOTAL","",'Arrear Sheet'!F14)) -> 2704 | F14: =IF('Arrear Sheet'!G14="","",IF('Arrear Sheet'!C14="TOTAL","",SUM(C14:E14))) -> 42250 | G14: =IF('Arrear Sheet'!H14="","",IF('Arrear Sheet'!C14="TOTAL","",'Arrear Sheet'!H14)) -> 23700 | H14: =IF('Arrear Sheet'!I14="","",IF('Arrear Sheet'!C14="TOTAL","",'Arrear Sheet'!I14)) -> 0 | I14: =IF('Arrear Sheet'!J14="","",IF('Arrear Sheet'!C14="TOTAL","",'Arrear Sheet'!J14)) -> 0 | J14: =IF('Arrear Sheet'!K14="","",IF('Arrear Sheet'!C14="TOTAL","",SUM(G14:I14))) -> 23700 | K14: =IF('Arrear Sheet'!L14="","",IF('Arrear Sheet'!C14="TOTAL","",'Arrear Sheet'!L14)) -> 10100 | L14: =IF('Arrear Sheet'!M14="","",IF('Arrear Sheet'!C14="TOTAL","",'Arrear Sheet'!M14)) -> 5746 | M14: =IF('Arrear Sheet'!N14="","",IF('Arrear Sheet'!C14="TOTAL","",'Arrear Sheet'!N14)) -> 2704 | N14: =IF('Arrear Sheet'!O14="","",IF('Arrear Sheet'!C14="TOTAL","",SUM(K14:M14))) -> 18550 | O14: =IF('Arrear Sheet'!P14="","",IF('Arrear Sheet'!C14="TOTAL","",'Arrear Sheet'!P14)) -> 3955 | P14: =IF('Arrear Sheet'!Q14="","",IF('Arrear Sheet'!C14="TOTAL","",'Arrear Sheet'!Q14)) -> 2370 | Q14: =IF('Arrear Sheet'!R14="","",IF('Arrear Sheet'!C14="TOTAL","",'Arrear Sheet'!R14)) -> 1585 | R14: =IF('Arrear Sheet'!S14="","",IF('Arrear Sheet'!C14="TOTAL","",'Arrear Sheet'!S14)) -> 0 | S14: =IF('Arrear Sheet'!T14="","",IF('Arrear Sheet'!C14="TOTAL","",'Arrear Sheet'!T14)) -> 0 | T14: =IF('Arrear Sheet'!U14="","",IF('Arrear Sheet'!C14="TOTAL","",'Arrear Sheet'!U14)) -> 0 | U14: =IF('Arrear Sheet'!V14="","",IF('Arrear Sheet'!C14="TOTAL","",'Arrear Sheet'!V14)) ->  | V14: =IF('Arrear Sheet'!W14="","",IF('Arrear Sheet'!C14="TOTAL","",'Arrear Sheet'!W14)) ->  | W14: =IF('Arrear Sheet'!X14="","",IF('Arrear Sheet'!C14="TOTAL","",'Arrear Sheet'!X14)) ->  | X14: =IF('Arrear Sheet'!Y14="","",IF('Arrear Sheet'!C14="TOTAL","",'Arrear Sheet'!Y14)) ->  | Y14: =IF('Arrear Sheet'!Z14="","",IF('Arrear Sheet'!C14="TOTAL","",'Arrear Sheet'!Z14)) -> 0 | Z14: =IF('Arrear Sheet'!AA14="","",IF('Arrear Sheet'!C14="TOTAL","",'Arrear Sheet'!AA14)) -> 0 | AA14: =IF('Arrear Sheet'!AB14="","",IF('Arrear Sheet'!C14="TOTAL","",SUM(N14-Z14))) -> 18550
A15: =IF('Arrear Sheet'!B15="","",'Arrear Sheet'!B15) -> 8 | B15: =IF('Arrear Sheet'!C15="","",IF('Arrear Sheet'!C15="TOTAL","",'Arrear Sheet'!C15)) -> 2021-05-01 | C15: =IF('Arrear Sheet'!D15="","",IF('Arrear Sheet'!C15="TOTAL","",IF('Arrear Sheet'!D15="अक्षरें राशि :-","",'Arrear Sheet'!D15))) -> 33800 | D15: =IF('Arrear Sheet'!E15="","",IF('Arrear Sheet'!C15="TOTAL","",'Arrear Sheet'!E15)) -> 5746 | E15: =IF('Arrear Sheet'!F15="","",IF('Arrear Sheet'!C15="TOTAL","",'Arrear Sheet'!F15)) -> 2704 | F15: =IF('Arrear Sheet'!G15="","",IF('Arrear Sheet'!C15="TOTAL","",SUM(C15:E15))) -> 42250 | G15: =IF('Arrear Sheet'!H15="","",IF('Arrear Sheet'!C15="TOTAL","",'Arrear Sheet'!H15)) -> 23700 | H15: =IF('Arrear Sheet'!I15="","",IF('Arrear Sheet'!C15="TOTAL","",'Arrear Sheet'!I15)) -> 0 | I15: =IF('Arrear Sheet'!J15="","",IF('Arrear Sheet'!C15="TOTAL","",'Arrear Sheet'!J15)) -> 0 | J15: =IF('Arrear Sheet'!K15="","",IF('Arrear Sheet'!C15="TOTAL","",SUM(G15:I15))) -> 23700 | K15: =IF('Arrear Sheet'!L15="","",IF('Arrear Sheet'!C15="TOTAL","",'Arrear Sheet'!L15)) -> 10100 | L15: =IF('Arrear Sheet'!M15="","",IF('Arrear Sheet'!C15="TOTAL","",'Arrear Sheet'!M15)) -> 5746 | M15: =IF('Arrear Sheet'!N15="","",IF('Arrear Sheet'!C15="TOTAL","",'Arrear Sheet'!N15)) -> 2704 | N15: =IF('Arrear Sheet'!O15="","",IF('Arrear Sheet'!C15="TOTAL","",SUM(K15:M15))) -> 18550 | O15: =IF('Arrear Sheet'!P15="","",IF('Arrear Sheet'!C15="TOTAL","",'Arrear Sheet'!P15)) -> 3955 | P15: =IF('Arrear Sheet'!Q15="","",IF('Arrear Sheet'!C15="TOTAL","",'Arrear Sheet'!Q15)) -> 2370 | Q15: =IF('Arrear Sheet'!R15="","",IF('Arrear Sheet'!C15="TOTAL","",'Arrear Sheet'!R15)) -> 1585 | R15: =IF('Arrear Sheet'!S15="","",IF('Arrear Sheet'!C15="TOTAL","",'Arrear Sheet'!S15)) -> 0 | S15: =IF('Arrear Sheet'!T15="","",IF('Arrear Sheet'!C15="TOTAL","",'Arrear Sheet'!T15)) -> 0 | T15: =IF('Arrear Sheet'!U15="","",IF('Arrear Sheet'!C15="TOTAL","",'Arrear Sheet'!U15)) -> 0 | U15: =IF('Arrear Sheet'!V15="","",IF('Arrear Sheet'!C15="TOTAL","",'Arrear Sheet'!V15)) ->  | V15: =IF('Arrear Sheet'!W15="","",IF('Arrear Sheet'!C15="TOTAL","",'Arrear Sheet'!W15)) ->  | W15: =IF('Arrear Sheet'!X15="","",IF('Arrear Sheet'!C15="TOTAL","",'Arrear Sheet'!X15)) ->  | X15: =IF('Arrear Sheet'!Y15="","",IF('Arrear Sheet'!C15="TOTAL","",'Arrear Sheet'!Y15)) ->  | Y15: =IF('Arrear Sheet'!Z15="","",IF('Arrear Sheet'!C15="TOTAL","",'Arrear Sheet'!Z15)) -> 0 | Z15: =IF('Arrear Sheet'!AA15="","",IF('Arrear Sheet'!C15="TOTAL","",'Arrear Sheet'!AA15)) -> 0 | AA15: =IF('Arrear Sheet'!AB15="","",IF('Arrear Sheet'!C15="TOTAL","",SUM(N15-Z15))) -> 18550
A16: =IF('Arrear Sheet'!B16="","",'Arrear Sheet'!B16) -> 9 | B16: =IF('Arrear Sheet'!C16="","",IF('Arrear Sheet'!C16="TOTAL","",'Arrear Sheet'!C16)) -> 2021-06-01 | C16: =IF('Arrear Sheet'!D16="","",IF('Arrear Sheet'!C16="TOTAL","",IF('Arrear Sheet'!D16="अक्षरें राशि :-","",'Arrear Sheet'!D16))) -> 33800 | D16: =IF('Arrear Sheet'!E16="","",IF('Arrear Sheet'!C16="TOTAL","",'Arrear Sheet'!E16)) -> 5746 | E16: =IF('Arrear Sheet'!F16="","",IF('Arrear Sheet'!C16="TOTAL","",'Arrear Sheet'!F16)) -> 2704 | F16: =IF('Arrear Sheet'!G16="","",IF('Arrear Sheet'!C16="TOTAL","",SUM(C16:E16))) -> 42250 | G16: =IF('Arrear Sheet'!H16="","",IF('Arrear Sheet'!C16="TOTAL","",'Arrear Sheet'!H16)) -> 23700 | H16: =IF('Arrear Sheet'!I16="","",IF('Arrear Sheet'!C16="TOTAL","",'Arrear Sheet'!I16)) -> 0 | I16: =IF('Arrear Sheet'!J16="","",IF('Arrear Sheet'!C16="TOTAL","",'Arrear Sheet'!J16)) -> 0 | J16: =IF('Arrear Sheet'!K16="","",IF('Arrear Sheet'!C16="TOTAL","",SUM(G16:I16))) -> 23700 | K16: =IF('Arrear Sheet'!L16="","",IF('Arrear Sheet'!C16="TOTAL","",'Arrear Sheet'!L16)) -> 10100 | L16: =IF('Arrear Sheet'!M16="","",IF('Arrear Sheet'!C16="TOTAL","",'Arrear Sheet'!M16)) -> 5746 | M16: =IF('Arrear Sheet'!N16="","",IF('Arrear Sheet'!C16="TOTAL","",'Arrear Sheet'!N16)) -> 2704 | N16: =IF('Arrear Sheet'!O16="","",IF('Arrear Sheet'!C16="TOTAL","",SUM(K16:M16))) -> 18550 | O16: =IF('Arrear Sheet'!P16="","",IF('Arrear Sheet'!C16="TOTAL","",'Arrear Sheet'!P16)) -> 3955 | P16: =IF('Arrear Sheet'!Q16="","",IF('Arrear Sheet'!C16="TOTAL","",'Arrear Sheet'!Q16)) -> 2370 | Q16: =IF('Arrear Sheet'!R16="","",IF('Arrear Sheet'!C16="TOTAL","",'Arrear Sheet'!R16)) -> 1585 | R16: =IF('Arrear Sheet'!S16="","",IF('Arrear Sheet'!C16="TOTAL","",'Arrear Sheet'!S16)) -> 0 | S16: =IF('Arrear Sheet'!T16="","",IF('Arrear Sheet'!C16="TOTAL","",'Arrear Sheet'!T16)) -> 0 | T16: =IF('Arrear Sheet'!U16="","",IF('Arrear Sheet'!C16="TOTAL","",'Arrear Sheet'!U16)) -> 0 | U16: =IF('Arrear Sheet'!V16="","",IF('Arrear Sheet'!C16="TOTAL","",'Arrear Sheet'!V16)) ->  | V16: =IF('Arrear Sheet'!W16="","",IF('Arrear Sheet'!C16="TOTAL","",'Arrear Sheet'!W16)) ->  | W16: =IF('Arrear Sheet'!X16="","",IF('Arrear Sheet'!C16="TOTAL","",'Arrear Sheet'!X16)) ->  | X16: =IF('Arrear Sheet'!Y16="","",IF('Arrear Sheet'!C16="TOTAL","",'Arrear Sheet'!Y16)) ->  | Y16: =IF('Arrear Sheet'!Z16="","",IF('Arrear Sheet'!C16="TOTAL","",'Arrear Sheet'!Z16)) -> 0 | Z16: =IF('Arrear Sheet'!AA16="","",IF('Arrear Sheet'!C16="TOTAL","",'Arrear Sheet'!AA16)) -> 0 | AA16: =IF('Arrear Sheet'!AB16="","",IF('Arrear Sheet'!C16="TOTAL","",SUM(N16-Z16))) -> 18550
A17: =IF('Arrear Sheet'!B17="","",'Arrear Sheet'!B17) -> 10 | B17: =IF('Arrear Sheet'!C17="","",IF('Arrear Sheet'!C17="TOTAL","",'Arrear Sheet'!C17)) -> 2021-07-01 | C17: =IF('Arrear Sheet'!D17="","",IF('Arrear Sheet'!C17="TOTAL","",IF('Arrear Sheet'!D17="अक्षरें राशि :-","",'Arrear Sheet'!D17))) -> 34800 | D17: =IF('Arrear Sheet'!E17="","",IF('Arrear Sheet'!C17="TOTAL","",'Arrear Sheet'!E17)) -> 10788 | E17: =IF('Arrear Sheet'!F17="","",IF('Arrear Sheet'!C17="TOTAL","",'Arrear Sheet'!F17)) -> 3132 | F17: =IF('Arrear Sheet'!G17="","",IF('Arrear Sheet'!C17="TOTAL","",SUM(C17:E17))) -> 48720 | G17: =IF('Arrear Sheet'!H17="","",IF('Arrear Sheet'!C17="TOTAL","",'Arrear Sheet'!H17)) -> 23700 | H17: =IF('Arrear Sheet'!I17="","",IF('Arrear Sheet'!C17="TOTAL","",'Arrear Sheet'!I17)) -> 0 | I17: =IF('Arrear Sheet'!J17="","",IF('Arrear Sheet'!C17="TOTAL","",'Arrear Sheet'!J17)) -> 0 | J17: =IF('Arrear Sheet'!K17="","",IF('Arrear Sheet'!C17="TOTAL","",SUM(G17:I17))) -> 23700 | K17: =IF('Arrear Sheet'!L17="","",IF('Arrear Sheet'!C17="TOTAL","",'Arrear Sheet'!L17)) -> 11100 | L17: =IF('Arrear Sheet'!M17="","",IF('Arrear Sheet'!C17="TOTAL","",'Arrear Sheet'!M17)) -> 10788 | M17: =IF('Arrear Sheet'!N17="","",IF('Arrear Sheet'!C17="TOTAL","",'Arrear Sheet'!N17)) -> 3132 | N17: =IF('Arrear Sheet'!O17="","",IF('Arrear Sheet'!C17="TOTAL","",SUM(K17:M17))) -> 25020 | O17: =IF('Arrear Sheet'!P17="","",IF('Arrear Sheet'!C17="TOTAL","",'Arrear Sheet'!P17)) -> 4559 | P17: =IF('Arrear Sheet'!Q17="","",IF('Arrear Sheet'!C17="TOTAL","",'Arrear Sheet'!Q17)) -> 2370 | Q17: =IF('Arrear Sheet'!R17="","",IF('Arrear Sheet'!C17="TOTAL","",'Arrear Sheet'!R17)) -> 2189 | R17: =IF('Arrear Sheet'!S17="","",IF('Arrear Sheet'!C17="TOTAL","",'Arrear Sheet'!S17)) -> 0 | S17: =IF('Arrear Sheet'!T17="","",IF('Arrear Sheet'!C17="TOTAL","",'Arrear Sheet'!T17)) -> 0 | T17: =IF('Arrear Sheet'!U17="","",IF('Arrear Sheet'!C17="TOTAL","",'Arrear Sheet'!U17)) -> 0 | U17: =IF('Arrear Sheet'!V17="","",IF('Arrear Sheet'!C17="TOTAL","",'Arrear Sheet'!V17)) ->  | V17: =IF('Arrear Sheet'!W17="","",IF('Arrear Sheet'!C17="TOTAL","",'Arrear Sheet'!W17)) ->  | W17: =IF('Arrear Sheet'!X17="","",IF('Arrear Sheet'!C17="TOTAL","",'Arrear Sheet'!X17)) ->  | X17: =IF('Arrear Sheet'!Y17="","",IF('Arrear Sheet'!C17="TOTAL","",'Arrear Sheet'!Y17)) -> 1044 | Y17: =IF('Arrear Sheet'!Z17="","",IF('Arrear Sheet'!C17="TOTAL","",'Arrear Sheet'!Z17)) -> 0 | Z17: =IF('Arrear Sheet'!AA17="","",IF('Arrear Sheet'!C17="TOTAL","",'Arrear Sheet'!AA17)) -> 1044 | AA17: =IF('Arrear Sheet'!AB17="","",IF('Arrear Sheet'!C17="TOTAL","",SUM(N17-Z17))) -> 23976
A18: =IF('Arrear Sheet'!B18="","",'Arrear Sheet'!B18) -> 11 | B18: =IF('Arrear Sheet'!C18="","",IF('Arrear Sheet'!C18="TOTAL","",'Arrear Sheet'!C18)) -> 2021-08-01 | C18: =IF('Arrear Sheet'!D18="","",IF('Arrear Sheet'!C18="TOTAL","",IF('Arrear Sheet'!D18="अक्षरें राशि :-","",'Arrear Sheet'!D18))) -> 34800 | D18: =IF('Arrear Sheet'!E18="","",IF('Arrear Sheet'!C18="TOTAL","",'Arrear Sheet'!E18)) -> 10788 | E18: =IF('Arrear Sheet'!F18="","",IF('Arrear Sheet'!C18="TOTAL","",'Arrear Sheet'!F18)) -> 3132 | F18: =IF('Arrear Sheet'!G18="","",IF('Arrear Sheet'!C18="TOTAL","",SUM(C18:E18))) -> 48720 | G18: =IF('Arrear Sheet'!H18="","",IF('Arrear Sheet'!C18="TOTAL","",'Arrear Sheet'!H18)) -> 23700 | H18: =IF('Arrear Sheet'!I18="","",IF('Arrear Sheet'!C18="TOTAL","",'Arrear Sheet'!I18)) -> 0 | I18: =IF('Arrear Sheet'!J18="","",IF('Arrear Sheet'!C18="TOTAL","",'Arrear Sheet'!J18)) -> 0 | J18: =IF('Arrear Sheet'!K18="","",IF('Arrear Sheet'!C18="TOTAL","",SUM(G18:I18))) -> 23700 | K18: =IF('Arrear Sheet'!L18="","",IF('Arrear Sheet'!C18="TOTAL","",'Arrear Sheet'!L18)) -> 11100 | L18: =IF('Arrear Sheet'!M18="","",IF('Arrear Sheet'!C18="TOTAL","",'Arrear Sheet'!M18)) -> 10788 | M18: =IF('Arrear Sheet'!N18="","",IF('Arrear Sheet'!C18="TOTAL","",'Arrear Sheet'!N18)) -> 3132 | N18: =IF('Arrear Sheet'!O18="","",IF('Arrear Sheet'!C18="TOTAL","",SUM(K18:M18))) -> 25020 | O18: =IF('Arrear Sheet'!P18="","",IF('Arrear Sheet'!C18="TOTAL","",'Arrear Sheet'!P18)) -> 4559 | P18: =IF('Arrear Sheet'!Q18="","",IF('Arrear Sheet'!C18="TOTAL","",'Arrear Sheet'!Q18)) -> 2370 | Q18: =IF('Arrear Sheet'!R18="","",IF('Arrear Sheet'!C18="TOTAL","",'Arrear Sheet'!R18)) -> 2189 | R18: =IF('Arrear Sheet'!S18="","",IF('Arrear Sheet'!C18="TOTAL","",'Arrear Sheet'!S18)) -> 0 | S18: =IF('Arrear Sheet'!T18="","",IF('Arrear Sheet'!C18="TOTAL","",'Arrear Sheet'!T18)) -> 0 | T18: =IF('Arrear Sheet'!U18="","",IF('Arrear Sheet'!C18="TOTAL","",'Arrear Sheet'!U18)) -> 0 | U18: =IF('Arrear Sheet'!V18="","",IF('Arrear Sheet'!C18="TOTAL","",'Arrear Sheet'!V18)) ->  | V18: =IF('Arrear Sheet'!W18="","",IF('Arrear Sheet'!C18="TOTAL","",'Arrear Sheet'!W18)) ->  | W18: =IF('Arrear Sheet'!X18="","",IF('Arrear Sheet'!C18="TOTAL","",'Arrear Sheet'!X18)) ->  | X18: =IF('Arrear Sheet'!Y18="","",IF('Arrear Sheet'!C18="TOTAL","",'Arrear Sheet'!Y18)) -> 1044 | Y18: =IF('Arrear Sheet'!Z18="","",IF('Arrear Sheet'!C18="TOTAL","",'Arrear Sheet'!Z18)) -> 0 | Z18: =IF('Arrear Sheet'!AA18="","",IF('Arrear Sheet'!C18="TOTAL","",'Arrear Sheet'!AA18)) -> 1044 | AA18: =IF('Arrear Sheet'!AB18="","",IF('Arrear Sheet'!C18="TOTAL","",SUM(N18-Z18))) -> 23976
A19: =IF('Arrear Sheet'!B19="","",'Arrear Sheet'!B19) -> 12 | B19: =IF('Arrear Sheet'!C19="","",IF('Arrear Sheet'!C19="TOTAL","",'Arrear Sheet'!C19)) -> 2021-09-01 | C19: =IF('Arrear Sheet'!D19="","",IF('Arrear Sheet'!C19="TOTAL","",IF('Arrear Sheet'!D19="अक्षरें राशि :-","",'Arrear Sheet'!D19))) -> 34800 | D19: =IF('Arrear Sheet'!E19="","",IF('Arrear Sheet'!C19="TOTAL","",'Arrear Sheet'!E19)) -> 10788 | E19: =IF('Arrear Sheet'!F19="","",IF('Arrear Sheet'!C19="TOTAL","",'Arrear Sheet'!F19)) -> 3132 | F19: =IF('Arrear Sheet'!G19="","",IF('Arrear Sheet'!C19="TOTAL","",SUM(C19:E19))) -> 48720 | G19: =IF('Arrear Sheet'!H19="","",IF('Arrear Sheet'!C19="TOTAL","",'Arrear Sheet'!H19)) -> 23700 | H19: =IF('Arrear Sheet'!I19="","",IF('Arrear Sheet'!C19="TOTAL","",'Arrear Sheet'!I19)) -> 0 | I19: =IF('Arrear Sheet'!J19="","",IF('Arrear Sheet'!C19="TOTAL","",'Arrear Sheet'!J19)) -> 0 | J19: =IF('Arrear Sheet'!K19="","",IF('Arrear Sheet'!C19="TOTAL","",SUM(G19:I19))) -> 23700 | K19: =IF('Arrear Sheet'!L19="","",IF('Arrear Sheet'!C19="TOTAL","",'Arrear Sheet'!L19)) -> 11100 | L19: =IF('Arrear Sheet'!M19="","",IF('Arrear Sheet'!C19="TOTAL","",'Arrear Sheet'!M19)) -> 10788 | M19: =IF('Arrear Sheet'!N19="","",IF('Arrear Sheet'!C19="TOTAL","",'Arrear Sheet'!N19)) -> 3132 | N19: =IF('Arrear Sheet'!O19="","",IF('Arrear Sheet'!C19="TOTAL","",SUM(K19:M19))) -> 25020 | O19: =IF('Arrear Sheet'!P19="","",IF('Arrear Sheet'!C19="TOTAL","",'Arrear Sheet'!P19)) -> 4559 | P19: =IF('Arrear Sheet'!Q19="","",IF('Arrear Sheet'!C19="TOTAL","",'Arrear Sheet'!Q19)) -> 2370 | Q19: =IF('Arrear Sheet'!R19="","",IF('Arrear Sheet'!C19="TOTAL","",'Arrear Sheet'!R19)) -> 2189 | R19: =IF('Arrear Sheet'!S19="","",IF('Arrear Sheet'!C19="TOTAL","",'Arrear Sheet'!S19)) -> 0 | S19: =IF('Arrear Sheet'!T19="","",IF('Arrear Sheet'!C19="TOTAL","",'Arrear Sheet'!T19)) -> 0 | T19: =IF('Arrear Sheet'!U19="","",IF('Arrear Sheet'!C19="TOTAL","",'Arrear Sheet'!U19)) -> 0 | U19: =IF('Arrear Sheet'!V19="","",IF('Arrear Sheet'!C19="TOTAL","",'Arrear Sheet'!V19)) ->  | V19: =IF('Arrear Sheet'!W19="","",IF('Arrear Sheet'!C19="TOTAL","",'Arrear Sheet'!W19)) ->  | W19: =IF('Arrear Sheet'!X19="","",IF('Arrear Sheet'!C19="TOTAL","",'Arrear Sheet'!X19)) ->  | X19: =IF('Arrear Sheet'!Y19="","",IF('Arrear Sheet'!C19="TOTAL","",'Arrear Sheet'!Y19)) -> 1044 | Y19: =IF('Arrear Sheet'!Z19="","",IF('Arrear Sheet'!C19="TOTAL","",'Arrear Sheet'!Z19)) -> 0 | Z19: =IF('Arrear Sheet'!AA19="","",IF('Arrear Sheet'!C19="TOTAL","",'Arrear Sheet'!AA19)) -> 1044 | AA19: =IF('Arrear Sheet'!AB19="","",IF('Arrear Sheet'!C19="TOTAL","",SUM(N19-Z19))) -> 23976
